Workbook

Sheet 자료설명
A1: 자료 설명
A2: ○ 본 자료는 한국과학기술기획평가원에서 작성한 '지역 R&D 통계(Regional R&D Indicators 2023)' 통계자료의 원활한 활용을 위해 엑셀 파일 형식으로 정리하였습니다. 본 자료 내용을 인용할 때에는 반드시 원문 자료, 1차 자료원 통계 등의 출처를 밝혀야 합니다. ○ 본 자료에 수록된 최신 연구개발 통계는 국가연구개발사업 조사·분석(2023.11월 발표), 국가연구개발사업 성과분석(2024. 2월 발표), 연구개발활동조사(2024. 2월 발표), 과학기술 논문성과 분석연구(2023.11월 발표), 지식재산 통계연보(2023.7월 발표), KOSIS(통계청) 자료(2024.1월 기준 인구, GRDP 등 최신 발표자료)이며, 일부 자료는 차년도 보고서에서 기준시점 변경으로 인해 통계값이 업데이트 될 수 있습니다. ○ 본 자료는 광역시·도별 최신 현황과 추이를 제공하고 있으며, 크게 1) 연구개발투자(총 연구개발투자, 국가연구개발사업비), 2) 연구개발인력, 3) 연구개발성과(국가 전체 성과, 국가연구개발사업의 과학적·기술적·경제적 성과), 4) 연구개발 수행 조직 통계를 다루고 있습니다. ○ 본 자료의 통계 수치는 사사오입으로 인해 ‘합계’ 수치 마지막 단위에서 차이가 발생할 수 있습니다.

Sheet 목차
A1: 지표 대분류 | B1: 지표 중분류 | C1: 지표번호 | D1: 지표 세분류 | E1: 기관 | F1: 출처
A2: 연구개발투자 | B2: 총 R&D 투자 | C2: 1-1-1 | D2: 총 연구개발비 추이 | E2: 과학기술정보통신부, 한국과학기술기획평가원 | F2: 연구개발활동조사
A3: 연구개발투자 | B3: 총 R&D 투자 | C3: 1-1-2 | D3: 총 연구개발비 비중 추이 | E3: 과학기술정보통신부, 한국과학기술기획평가원 | F3: 연구개발활동조사
A4: 연구개발투자 | B4: 총 R&D 투자 | C4: 1-1-3 | D4: 연구원 1인당 연구개발비 추이 | E4: 과학기술정보통신부, 한국과학기술기획평가원 | F4: 연구개발활동조사
A5: 연구개발투자 | B5: 총 R&D 투자 | C5: 1-1-4 | D5: 연구개발주체별 연구개발비 | E5: 과학기술정보통신부, 한국과학기술기획평가원 | F5: 연구개발활동조사
A6: 연구개발투자 | B6: 총 R&D 투자 | C6: 1-1-5 | D6: 연구개발주체별 연구개발비 비중 | E6: 과학기술정보통신부, 한국과학기술기획평가원 | F6: 연구개발활동조사
A7: 연구개발투자 | B7: 총 R&D 투자 | C7: 1-1-6 | D7: 공공연구기관 분야별 연구개발비 | E7: 과학기술정보통신부, 한국과학기술기획평가원 | F7: 연구개발활동조사
A8: 연구개발투자 | B8: 총 R&D 투자 | C8: 1-1-7 | D8: 공공연구기관 조직형태별 연구개발비 추이 | E8: 과학기술정보통신부, 한국과학기술기획평가원 | F8: 연구개발활동조사
A9: 연구개발투자 | B9: 총 R&D 투자 | C9: 1-1-8 | D9: 대학 조직형태별 연구개발비 추이 | E9: 과학기술정보통신부, 한국과학기술기획평가원 | F9: 연구개발활동조사
A10: 연구개발투자 | B10: 총 R&D 투자 | C10: 1-1-9 | D10: 기업 산업별 연구개발비 | E10: 과학기술정보통신부, 한국과학기술기획평가원 | F10: 연구개발활동조사
A11: 연구개발투자 | B11: 총 R&D 투자 | C11: 1-1-10 | D11: 기업 산업별 연구원 1인당 연구개발비 | E11: 과학기술정보통신부, 한국과학기술기획평가원 | F11: 연구개발활동조사
A12: 연구개발투자 | B12: 총 R&D 투자 | C12: 1-1-11 | D12: 기업 산업별 기업유형별 연구개발비 | E12: 과학기술정보통신부, 한국과학기술기획평가원 | F12: 연구개발활동조사
A13: 연구개발투자 | B13: 총 R&D 투자 | C13: 1-1-12 | D13: 기업 산업별 종업원 규모별 연구개발비 | E13: 과학기술정보통신부, 한국과학기술기획평가원 | F13: 연구개발활동조사
A14: 연구개발투자 | B14: 총 R&D 투자 | C14: 1-1-13 | D14: 기업 산업별 자본금 규모별 연구개발비 | E14: 과학기술정보통신부, 한국과학기술기획평가원 | F14: 연구개발활동조사
A15: 연구개발투자 | B15: 총 R&D 투자 | C15: 1-1-14 | D15: 기업 산업별 매출액 규모별 연구개발비 | E15: 과학기술정보통신부, 한국과학기술기획평가원 | F15: 연구개발활동조사
A16: 연구개발투자 | B16: 총 R&D 투자 | C16: 1-1-15 | D16: 기업 산업별 연구원 수 규모별 연구개발비 | E16: 과학기술정보통신부, 한국과학기술기획평가원 | F16: 연구개발활동조사
A17: 연구개발투자 | B17: 총 R&D 투자 | C17: 1-1-16 | D17: 기업 산업별 연구개발비 규모별 연구개발비 | E17: 과학기술정보통신부, 한국과학기술기획평가원 | F17: 연구개발활동조사
A18: 연구개발투자 | B18: 국가연구개발사업비 | C18: 1-2-1 | D18: 국가연구개발사업비 추이 | E18: 과학기술정보통신부, 한국과학기술기획평가원 | F18: 국가연구개발사업 조사분석
A19: 연구개발투자 | B19: 국가연구개발사업비 | C19: 1-2-2 | D19: 국가연구개발사업비 비중 추이 | E19: 과학기술정보통신부, 한국과학기술기획평가원 | F19: 국가연구개발사업 조사분석
A20: 연구개발투자 | B20: 국가연구개발사업비 | C20: 1-2-3 | D20: 연구수행주체별 국가연구개발사업비 | E20: 과학기술정보통신부, 한국과학기술기획평가원 | F20: 국가연구개발사업 조사분석
A21: 연구개발투자 | B21: 국가연구개발사업비 | C21: 1-2-4 | D21: 연구수행주체별 국가연구개발사업비 비중 | E21: 과학기술정보통신부, 한국과학기술기획평가원 | F21: 국가연구개발사업 조사분석
A22: 연구개발투자 | B22: 국가연구개발사업비 | C22: 1-2-5 | D22: 부처별 국가연구개발사업비 | E22: 과학기술정보통신부, 한국과학기술기획평가원 | F22: 국가연구개발사업 조사분석
A23: 연구개발투자 | B23: 국가연구개발사업비 | C23: 1-2-6 | D23: 부처별 국가연구개발사업비 비중 | E23: 과학기술정보통신부, 한국과학기술기획평가원 | F23: 국가연구개발사업 조사분석
A24: 연구개발투자 | B24: 국가연구개발사업비 | C24: 1-2-7 | D24: 연구개발단계별 국가연구개발사업비 추이 | E24: 과학기술정보통신부, 한국과학기술기획평가원 | F24: 국가연구개발사업 조사분석
A25: 연구개발투자 | B25: 국가연구개발사업비 | C25: 1-2-8 | D25: 연구개발단계별 국가연구개발사업비 비중 추이 | E25: 과학기술정보통신부, 한국과학기술기획평가원 | F25: 국가연구개발사업 조사분석
A26: 연구개발투자 | B26: 국가연구개발사업비 | C26: 1-2-9 | D26: 미래유망신기술(6T)별 국가연구개발사업비 | E26: 과학기술정보통신부, 한국과학기술기획평가원 | F26: 국가연구개발사업 조사분석
A27: 연구개발투자 | B27: 국가연구개발사업비 | C27: 1-2-10 | D27: 미래유망신기술(6T)별 국가연구개발사업비 비중 | E27: 과학기술정보통신부, 한국과학기술기획평가원 | F27: 국가연구개발사업 조사분석
A28: 연구개발투자 | B28: 국가연구개발사업비 | C28: 1-2-11 | D28: 국가과학기술표준분류 연구분야별 국가연구개발사업비 | E28: 과학기술정보통신부, 한국과학기술기획평가원 | F28: 국가연구개발사업 조사분석
A29: 연구개발투자 | B29: 국가연구개발사업비 | C29: 1-2-12 | D29: 국가과학기술표준분류 연구분야별 국가연구개발사업비 비중 | E29: 과학기술정보통신부, 한국과학기술기획평가원 | F29: 국가연구개발사업 조사분석
A30: 연구개발투자 | B30: 국가연구개발사업비 | C30: 1-2-13 | D30: 국가과학기술표준분류 적용분야별 국가연구개발사업비 | E30: 과학기술정보통신부, 한국과학기술기획평가원 | F30: 국가연구개발사업 조사분석
A31: 연구개발투자 | B31: 국가연구개발사업비 | C31: 1-2-14 | D31: 국가과학기술표준분류 적용분야별 국가연구개발사업비 비중 | E31: 과학기술정보통신부, 한국과학기술기획평가원 | F31: 국가연구개발사업 조사분석
A32: 연구개발인력 | B32: 총 연구개발인력 | C32: 2-1-1 | D32: 연구원 수 추이 | E32: 과학기술정보통신부, 한국과학기술기획평가원 | F32: 연구개발활동조사
A33: 연구개발인력 | B33: 총 연구개발인력 | C33: 2-1-2 | D33: 연구원 수 비중 추이 | E33: 과학기술정보통신부, 한국과학기술기획평가원 | F33: 연구개발활동조사
A34: 연구개발인력 | B34: 총 연구개발인력 | C34: 2-1-3 | D34: 여성 연구원 수 추이 | E34: 과학기술정보통신부, 한국과학기술기획평가원 | F34: 연구개발활동조사
A35: 연구개발인력 | B35: 총 연구개발인력 | C35: 2-1-4 | D35: 전체 연구원 수 대비 여성 연구원 수 비중 추이 | E35: 과학기술정보통신부, 한국과학기술기획평가원 | F35: 연구개발활동조사
A36: 연구개발인력 | B36: 총 연구개발인력 | C36: 2-1-5 | D36: 연구개발인력 추이 | E36: 과학기술정보통신부, 한국과학기술기획평가원 | F36: 연구개발활동조사
A37: 연구개발인력 | B37: 총 연구개발인력 | C37: 2-1-6 | D37: 연구개발인력 비중 추이 | E37: 과학기술정보통신부, 한국과학기술기획평가원 | F37: 연구개발활동조사
A38: 연구개발인력 | B38: 총 연구개발인력 | C38: 2-1-7 | D38: 여성 연구개발인력 추이 | E38: 과학기술정보통신부, 한국과학기술기획평가원 | F38: 연구개발활동조사
A39: 연구개발인력 | B39: 총 연구개발인력 | C39: 2-1-8 | D39: 전체 연구개발인력 대비 여성 연구개발인력 비중 추이 | E39: 과학기술정보통신부, 한국과학기술기획평가원 | F39: 연구개발활동조사
A40: 연구개발인력 | B40: 총 연구개발인력 | C40: 2-1-9 | D40: 인구 및 경제활동인구, 취업자 천 명당 연구원 수 추이 | E40: 과학기술정보통신부, 한국과학기술기획평가원, 통계청 | F40: 연구개발활동조사, KOSIS
A41: 연구개발인력 | B41: 총 연구개발인력 | C41: 2-1-10 | D41: 인구 및 경제활동인구, 취업자 천 명당 연구개발인력 추이 | E41: 과학기술정보통신부, 한국과학기술기획평가원, 통계청 | F41: 연구개발활동조사, KOSIS
A42: 연구개발인력 | B42: 총 연구개발인력 | C42: 2-1-11 | D42: 연구개발주체별 연구원 수 | E42: 과학기술정보통신부, 한국과학기술기획평가원 | F42: 연구개발활동조사
A43: 연구개발인력 | B43: 총 연구개발인력 | C43: 2-1-12 | D43: 연구개발주체별 연구원 수 비중 | E43: 과학기술정보통신부, 한국과학기술기획평가원 | F43: 연구개발활동조사
A44: 연구개발인력 | B44: 총 연구개발인력 | C44: 2-1-13 | D44: 연구개발주체별 연구개발인력 | E44: 과학기술정보통신부, 한국과학기술기획평가원 | F44: 연구개발활동조사
A45: 연구개발인력 | B45: 총 연구개발인력 | C45: 2-1-14 | D45: 연구개발주체별 연구개발인력 비중 | E45: 과학기술정보통신부, 한국과학기술기획평가원 | F45: 연구개발활동조사
A46: 연구개발인력 | B46: 총 연구개발인력 | C46: 2-1-15 | D46: 연구개발주체별 여성 연구원 수 | E46: 과학기술정보통신부, 한국과학기술기획평가원 | F46: 연구개발활동조사
A47: 연구개발인력 | B47: 총 연구개발인력 | C47: 2-1-16 | D47: 연구개발주체별 여성 연구원 수 비중 | E47: 과학기술정보통신부, 한국과학기술기획평가원 | F47: 연구개발활동조사
A48: 연구개발인력 | B48: 총 연구개발인력 | C48: 2-1-17 | D48: 연구개발주체별 여성 연구개발인력 | E48: 과학기술정보통신부, 한국과학기술기획평가원 | F48: 연구개발활동조사
A49: 연구개발인력 | B49: 총 연구개발인력 | C49: 2-1-18 | D49: 연구개발주체별 여성 연구개발인력 비중 | E49: 과학기술정보통신부, 한국과학기술기획평가원 | F49: 연구개발활동조사
A50: 연구개발인력 | B50: 총 연구개발인력 | C50: 2-1-19 | D50: 공공연구기관 분야별 연구원 수 | E50: 과학기술정보통신부, 한국과학기술기획평가원 | F50: 연구개발활동조사
A51: 연구개발인력 | B51: 총 연구개발인력 | C51: 2-1-20 | D51: 공공연구기관 분야별 연구개발인력 | E51: 과학기술정보통신부, 한국과학기술기획평가원 | F51: 연구개발활동조사
A52: 연구개발인력 | B52: 총 연구개발인력 | C52: 2-1-21 | D52: 공공연구기관 조직형태별 연구원 수 추이 | E52: 과학기술정보통신부, 한국과학기술기획평가원 | F52: 연구개발활동조사
A53: 연구개발인력 | B53: 총 연구개발인력 | C53: 2-1-22 | D53: 공공연구기관 조직형태별 연구개발인력 추이 | E53: 과학기술정보통신부, 한국과학기술기획평가원 | F53: 연구개발활동조사
A54: 연구개발인력 | B54: 총 연구개발인력 | C54: 2-1-23 | D54: 대학 조직형태별 연구원 수 추이 | E54: 과학기술정보통신부, 한국과학기술기획평가원 | F54: 연구개발활동조사
A55: 연구개발인력 | B55: 총 연구개발인력 | C55: 2-1-24 | D55: 대학 조직형태별 연구개발인력 추이 | E55: 과학기술정보통신부, 한국과학기술기획평가원 | F55: 연구개발활동조사
A56: 연구개발인력 | B56: 총 연구개발인력 | C56: 2-1-25 | D56: 기업 산업별 연구원 수 | E56: 과학기술정보통신부, 한국과학기술기획평가원 | F56: 연구개발활동조사
A57: 연구개발인력 | B57: 총 연구개발인력 | C57: 2-1-26 | D57: 기업 산업별 연구개발인력 | E57: 과학기술정보통신부, 한국과학기술기획평가원 | F57: 연구개발활동조사
A58: 연구개발인력 | B58: 총 연구개발인력 | C58: 2-1-27 | D58: 기업 산업별 기업유형별 연구원 수 | E58: 과학기술정보통신부, 한국과학기술기획평가원 | F58: 연구개발활동조사
A59: 연구개발인력 | B59: 총 연구개발인력 | C59: 2-1-28 | D59: 기업 산업별 기업유형별 연구개발인력 | E59: 과학기술정보통신부, 한국과학기술기획평가원 | F59: 연구개발활동조사
A60: 연구개발인력 | B60: 총 연구개발인력 | C60: 2-1-29 | D60: 기업 산업별 종업원 규모별 연구원 수 | E60: 과학기술정보통신부, 한국과학기술기획평가원 | F60: 연구개발활동조사
A61: 연구개발인력 | B61: 총 연구개발인력 | C61: 2-1-30 | D61: 기업 산업별 종업원 규모별 연구개발인력 | E61: 과학기술정보통신부, 한국과학기술기획평가원 | F61: 연구개발활동조사
A62: 연구개발인력 | B62: 총 연구개발인력 | C62: 2-1-31 | D62: 기업 산업별 자본금 규모별 연구원 수 | E62: 과학기술정보통신부, 한국과학기술기획평가원 | F62: 연구개발활동조사
A63: 연구개발인력 | B63: 총 연구개발인력 | C63: 2-1-32 | D63: 기업 산업별 자본금 규모별 연구개발인력 | E63: 과학기술정보통신부, 한국과학기술기획평가원 | F63: 연구개발활동조사
A64: 연구개발인력 | B64: 총 연구개발인력 | C64: 2-1-33 | D64: 기업 산업별 매출액 규모별 연구원 수 | E64: 과학기술정보통신부, 한국과학기술기획평가원 | F64: 연구개발활동조사
A65: 연구개발인력 | B65: 총 연구개발인력 | C65: 2-1-34 | D65: 기업 산업별 매출액 규모별 연구개발인력 | E65: 과학기술정보통신부, 한국과학기술기획평가원 | F65: 연구개발활동조사
A66: 연구개발인력 | B66: 총 연구개발인력 | C66: 2-1-35 | D66: 기업 산업별 연구원 수 규모별 연구원 수 | E66: 과학기술정보통신부, 한국과학기술기획평가원 | F66: 연구개발활동조사
A67: 연구개발인력 | B67: 총 연구개발인력 | C67: 2-1-36 | D67: 기업 산업별 연구원 수 규모별 연구개발인력 | E67: 과학기술정보통신부, 한국과학기술기획평가원 | F67: 연구개발활동조사
A68: 연구개발인력 | B68: 총 연구개발인력 | C68: 2-1-37 | D68: 기업 산업별 연구개발비 규모별 연구원 수 | E68: 과학기술정보통신부, 한국과학기술기획평가원 | F68: 연구개발활동조사
A69: 연구개발인력 | B69: 총 연구개발인력 | C69: 2-1-38 | D69: 기업 산업별 연구개발비 규모별 연구개발인력 | E69: 과학기술정보통신부, 한국과학기술기획평가원 | F69: 연구개발활동조사
A70: 연구개발성과 | B70: 국가 전체 성과 | C70: 3-1-1 | D70: 과학기술 논문(SCI) 수 추이 | E70: 한국과학기술기획평가원 | F70: 과학기술논문(SCI) 분석 결과
A71: 연구개발성과 | B71: 국가 전체 성과 | C71: 3-1-2 | D71: 과학기술 논문(SCI) 수 비중 추이 | E71: 한국과학기술기획평가원 | F71: 과학기술논문(SCI) 분석 결과
A72: 연구개발성과 | B72: 국가 전체 성과 | C72: 3-1-3 | D72: 과학기술 논문(SCI) 피인용 수 추이 | E72: 한국과학기술기획평가원 | F72: 과학기술논문(SCI) 분석 결과
A73: 연구개발성과 | B73: 국가 전체 성과 | C73: 3-1-4 | D73: 과학기술논문(SCI) 피인용 수 비중 추이 | E73: 한국과학기술기획평가원 | F73: 과학기술논문(SCI) 분석 결과
A74: 연구개발성과 | B74: 국가 전체 성과 | C74: 3-1-5 | D74: 국내 특허 출원 건수 추이 | E74: 특허청 | F74: 지식재산통계연보
A75: 연구개발성과 | B75: 국가 전체 성과 | C75: 3-1-6 | D75: 국내 특허 출원 건수 비중 추이 | E75: 특허청 | F75: 지식재산통계연보
A76: 연구개발성과 | B76: 국가 전체 성과 | C76: 3-1-7 | D76: 국내 특허 등록 건수 추이 | E76: 특허청 | F76: 지식재산통계연보
A77: 연구개발성과 | B77: 국가 전체 성과 | C77: 3-1-8 | D77: 국내 특허 등록 건수 비중 추이 | E77: 특허청 | F77: 지식재산통계연보
A78: 연구개발성과 | B78: 국가연구개발사업 성과 : 논문, 특허 | C78: 3-2-1 | D78: 국가연구개발사업 과학기술논문(SCI) 수 및 비중 추이 | E78: 과학기술정보통신부, 한국과학기술기획평가원 | F78: 국가연구개발사업 성과분석
A79: 연구개발성과 | B79: 국가연구개발사업 성과 : 논문, 특허 | C79: 3-2-2 | D79: 연구수행주체별 국가연구개발사업 과학기술논문(SCI) 수 및 비중 추이 | E79: 과학기술정보통신부, 한국과학기술기획평가원 | F79: 국가연구개발사업 성과분석
A80: 연구개발성과 | B80: 국가연구개발사업 성과 : 논문, 특허 | C80: 3-2-3 | D80: 국가연구개발사업 국내 특허 출원 건수 및 비중 추이 | E80: 과학기술정보통신부, 한국과학기술기획평가원 | F80: 국가연구개발사업 성과분석
A81: 연구개발성과 | B81: 국가연구개발사업 성과 : 논문, 특허 | C81: 3-2-4 | D81: 연구수행주체별 국가연구개발사업 국내 특허 출원 건수 및 비중 추이 | E81: 과학기술정보통신부, 한국과학기술기획평가원 | F81: 국가연구개발사업 성과분석
A82: 연구개발성과 | B82: 국가연구개발사업 성과 : 논문, 특허 | C82: 3-2-5 | D82: 미래유망신기술(6T)별 국가연구개발사업 국내특허 출원 건수 및 비중 추이 | E82: 과학기술정보통신부, 한국과학기술기획평가원 | F82: 국가연구개발사업 성과분석
A83: 연구개발성과 | B83: 국가연구개발사업 성과 : 논문, 특허 | C83: 3-2-6 | D83: 국가연구개발사업 국내 특허 등록 건수 및 비중 추이 | E83: 과학기술정보통신부, 한국과학기술기획평가원 | F83: 국가연구개발사업 성과분석
A84: 연구개발성과 | B84: 국가연구개발사업 성과 : 논문, 특허 | C84: 3-2-7 | D84: 연구수행주체별 국가연구개발사업 국내 특허 등록 건수 및 비중 추이 | E84: 과학기술정보통신부, 한국과학기술기획평가원 | F84: 국가연구개발사업 성과분석
A85: 연구개발성과 | B85: 국가연구개발사업 성과 : 논문, 특허 | C85: 3-2-8 | D85: 미래유망신기술(6T)별 국가연구개발사업 국내특허 등록 수 및 비중 추이 | E85: 과학기술정보통신부, 한국과학기술기획평가원 | F85: 국가연구개발사업 성과분석
A86: 연구개발성과 | B86: 국가연구개발사업 성과 : 논문, 특허 | C86: 3-2-9 | D86: 국가연구개발사업 해외특허 출원 건수 및 비중 추이 | E86: 과학기술정보통신부, 한국과학기술기획평가원 | F86: 국가연구개발사업 성과분석
A87: 연구개발성과 | B87: 국가연구개발사업 성과 : 논문, 특허 | C87: 3-2-10 | D87: 국가연구개발사업 해외특허 등록 건수 및 비중 추이 | E87: 과학기술정보통신부, 한국과학기술기획평가원 | F87: 국가연구개발사업 성과분석
A88: 연구개발성과 | B88: 국가연구개발사업 성과 : 기술료, 사업화 | C88: 3-3-1 | D88: 국가연구개발사업 기술료 징수액 및 비중 추이 | E88: 과학기술정보통신부, 한국과학기술기획평가원 | F88: 국가연구개발사업 성과분석
A89: 연구개발성과 | B89: 국가연구개발사업 성과 : 기술료, 사업화 | C89: 3-3-2 | D89: 연구수행주체별 국가연구개발사업 기술료 징수액 및 비중 추이 | E89: 과학기술정보통신부, 한국과학기술기획평가원 | F89: 국가연구개발사업 성과분석
A90: 연구개발성과 | B90: 국가연구개발사업 성과 : 기술료, 사업화 | C90: 3-3-3 | D90: 국가연구개발사업 사업화 건수 및 비중 추이 | E90: 과학기술정보통신부, 한국과학기술기획평가원 | F90: 국가연구개발사업 성과분석
A91: 연구개발성과 | B91: 국가연구개발사업 성과 : 기술료, 사업화 | C91: 3-3-4 | D91: 사업화 형태별 국가연구개발사업 사업화 건수 및 비중 | E91: 과학기술정보통신부, 한국과학기술기획평가원 | F91: 국가연구개발사업 성과분석
A92: 기타 | B92: 연구개발 수행 조직 수 | C92: 4-1-1 | D92: 연구개발수행 조직 수 추이 | E92: 과학기술정보통신부, 한국과학기술기획평가원 | F92: 연구개발활동조사
A93: 기타 | B93: 연구개발 수행 조직 수 | C93: 4-1-2 | D93: 연구개발수행 조직 수 비중 추이 | E93: 과학기술정보통신부, 한국과학기술기획평가원 | F93: 연구개발활동조사
A94: 기타 | B94: 연구개발 수행 조직 수 | C94: 4-1-3 | D94: 연구개발주체별 연구개발수행 조직 수 | E94: 과학기술정보통신부, 한국과학기술기획평가원 | F94: 연구개발활동조사
A95: 기타 | B95: 연구개발 수행 조직 수 | C95: 4-1-4 | D95: 연구개발주체별 연구개발수행 조직 수 비중 | E95: 과학기술정보통신부, 한국과학기술기획평가원 | F95: 연구개발활동조사
A96: 기타 | B96: 연구개발 수행 조직 수 | C96: 4-1-5 | D96: 공공연구기관 분야별 연구수행 조직 수 | E96: 과학기술정보통신부, 한국과학기술기획평가원 | F96: 연구개발활동조사
A97: 기타 | B97: 연구개발 수행 조직 수 | C97: 4-1-6 | D97: 공공연구기관 조직형태별 연구수행 조직 수 추이 | E97: 과학기술정보통신부, 한국과학기술기획평가원 | F97: 연구개발활동조사
A98: 기타 | B98: 연구개발 수행 조직 수 | C98: 4-1-7 | D98: 대학 조직형태별 연구수행 조직 수 추이 | E98: 과학기술정보통신부, 한국과학기술기획평가원 | F98: 연구개발활동조사
A99: 기타 | B99: 연구개발 수행 조직 수 | C99: 4-1-8 | D99: 기업 산업별 연구수행 조직 수 | E99: 과학기술정보통신부, 한국과학기술기획평가원 | F99: 연구개발활동조사
A100: 기타 | B100: 경제사회지표 | C100: 4-2-1 | D100: 지역내 총생산(GRDP), 인구 1인당 지역내 총생산(GRDP) 추이 | E100: 통계청 | F100: KOSIS
A101: 기타 | B101: 경제사회지표 | C101: 4-2-2 | D101: 인구, 경제활동인구, 취업자 추이 | E101: 통계청 | F101: KOSIS

Sheet 1-1-1
A1: 1-1. 총 연구개발투자 | R1: return to the table
A2: 1-1-1. 총 연구개발비 추이
S4: (단위 : 백만원)
A5: 연도 | B5: 전체 | C5: 지역
C6: 서울 | D6: 부산 | E6: 대구 | F6: 인천 | G6: 광주 | H6: 대전 | I6: 울산 | J6: 세종 | K6: 경기 | L6: 강원 | M6: 충북 | N6: 충남 | O6: 전북 | P6: 전남 | Q6: 경북 | R6: 경남 | S6: 제주
A7: 2012 | B7: 55450116 | C7: 9916718 | D7: 1030602 | E7: 839431 | F7: 2131872 | G7: 672787 | H7: 5570946 | I7: 721439 | K7: 25181816 | L7: 351387 | M7: 954821 | N7: 2542806 | O7: 796881 | P7: 563992 | Q7: 2136661 | R7: 1917074 | S7: 120885
A8: 2013 | B8: 59300949 | C8: 10702663 | D8: 965470 | E8: 821246 | F8: 2132828 | G8: 593698 | H8: 5940087 | I8: 740508 | J8: 188074 | K8: 27309456 | L8: 356524 | M8: 1059810 | N8: 2628163 | O8: 875085 | P8: 645637 | Q8: 2135540 | R8: 2074905 | S8: 131256
A9: 2014 | B9: 63734127 | C9: 9635558 | D9: 1104845 | E9: 970544 | F9: 2282890 | G9: 679836 | H9: 6333015 | I9: 815288 | J9: 392505 | K9: 31032952 | L9: 370470 | M9: 1253947 | N9: 2323791 | O9: 870475 | P9: 748547 | Q9: 2696556 | R9: 2062025 | S9: 160882
A10: 2015 | B10: 65959372 | C10: 10030638 | D10: 1286165 | E10: 1103985 | F10: 2499552 | G10: 733169 | H10: 6655076 | I10: 972318 | J10: 488716 | K10: 31839012 | L10: 414232 | M10: 1379741 | N10: 2283743 | O10: 804323 | P10: 573946 | Q10: 2667983 | R10: 2094806 | S10: 131968
A11: 2016 | B11: 69405530 | C11: 10483939 | D11: 1241716 | E11: 1195814 | F11: 2389539 | G11: 835275 | H11: 7274095 | I11: 801477 | J11: 468534 | K11: 33050550 | L11: 392099 | M11: 2105365 | N11: 2980142 | O11: 900252 | P11: 519846 | Q11: 2417710 | R11: 2193717 | S11: 155459
A12: 2017 | B12: 78789187 | C12: 13169674 | D12: 1403273 | E12: 1237953 | F12: 2548150 | G12: 793265 | H12: 7698499 | I12: 729870 | J12: 483714 | K12: 38462499 | L12: 450289 | M12: 2212864 | N12: 2561356 | O12: 1032155 | P12: 549121 | Q12: 2846783 | R12: 2453699 | S12: 156024
A13: 2018 | B13: 85728715 | C13: 13475364 | D13: 1544922 | E13: 1325779 | F13: 2761302 | G13: 901033 | H13: 7992199 | I13: 1110302 | J13: 517122 | K13: 43615310 | L13: 481757 | M13: 1628701 | N13: 2587758 | O13: 1084572 | P13: 660766 | Q13: 3020401 | R13: 2862466 | S13: 158963
A14: 2019 | B14: 89047077 | C14: 13444939 | D14: 1581706 | E14: 1336026 | F14: 2845912 | G14: 826881 | H14: 7705898 | I14: 1109963 | J14: 594080 | K14: 45934833 | L14: 517215 | M14: 1659533 | N14: 3475221 | O14: 1121693 | P14: 723836 | Q14: 2805393 | R14: 3189524 | S14: 174423
A15: 2020 | B15: 93071686 | C15: 14431991 | D15: 1696834 | E15: 1364107 | F15: 2936629 | G15: 953946 | H15: 8873691 | I15: 1067196 | J15: 611544 | K15: 47045127 | L15: 555090 | M15: 1921720 | N15: 3665088 | O15: 1236097 | P15: 704142 | Q15: 2687056 | R15: 3089817 | S15: 231611
A16: 2021 | B16: 102135244 | C16: 16204342 | D16: 1762737 | E16: 1487642 | F16: 3226992 | G16: 1108895 | H16: 9442797 | I16: 1189961 | J16: 653391 | K16: 51957126 | L16: 685902 | M16: 2130661 | N16: 3632957 | O16: 1411160 | P16: 814256 | Q16: 2775075 | R16: 3408036 | S16: 243313
A17: 2022 | B17: 112646008 | C17: 17688535 | D17: 2037676 | E17: 1578436 | F17: 3602927 | G17: 1129290 | H17: 10379115 | I17: 1307878 | J17: 751287 | K17: 57702830 | L17: 763520 | M17: 2487439 | N17: 4116387 | O17: 1475578 | P17: 946446 | Q17: 3195310 | R17: 3255519 | S17: 227835
A18: 자료 : 과학기술정보통신부·한국과학기술기획평가원, 연구개발활동조사 통계, 각 연도

Sheet 1-1-2
R1: return to the table
A2: 1-1-2. 총 연구개발비 비중 추이
S4: (단위 : %)
A5: 연도 | B5: 전체 | C5: 지역
C6: 서울 | D6: 부산 | E6: 대구 | F6: 인천 | G6: 광주 | H6: 대전 | I6: 울산 | J6: 세종 | K6: 경기 | L6: 강원 | M6: 충북 | N6: 충남 | O6: 전북 | P6: 전남 | Q6: 경북 | R6: 경남 | S6: 제주
A7: 2012 | B7: 100 | C7: 17.88403472 | D7: 1.85861108 | E7: 1.513848952 | F7: 3.844666439 | G7: 1.213319373 | H7: 10.04677069 | I7: 1.301059496 | J7: 0 | K7: 45.41345955 | L7: 0.6336993055 | M7: 1.721945902 | N7: 4.585754158 | O7: 1.437113315 | P7: 1.017115997 | Q7: 3.85330303 | R7: 3.457294841 | S7: 0.2180067576
A8: 2013 | B8: 100 | C8: 18.04804675 | D8: 1.628085244 | E8: 1.384878343 | F8: 3.596616978 | G8: 1.001161044 | H8: 10.01684981 | I8: 1.248728751 | J8: 0.3171517542 | K8: 46.05230854 | L8: 0.6012112892 | M8: 1.787172074 | N8: 4.431907152 | O8: 1.475667784 | P8: 1.088746489 | Q8: 3.601190261 | R8: 3.498940632 | S8: 0.221338785
A9: 2014 | B9: 100 | C9: 15.11836508 | D9: 1.733521823 | E9: 1.52280112 | F9: 3.581895771 | G9: 1.066675001 | H9: 9.936615277 | I9: 1.279201643 | J9: 0.6158474564 | K9: 48.69126394 | L9: 0.5812741422 | M9: 1.967465562 | N9: 3.646070182 | O9: 1.365791046 | P9: 1.174483805 | Q9: 4.23094522 | R9: 3.235354585 | S9: 0.2524267729
A10: 2015 | B10: 100 | C10: 15.20729761 | D10: 1.949935181 | E10: 1.673734856 | F10: 3.789532744 | G10: 1.111546362 | H10: 10.08965943 | I10: 1.474116521 | J10: 0.7409348894 | K10: 48.27064151 | L10: 0.6280108307 | M10: 2.091804331 | N10: 3.462348004 | O10: 1.219421859 | P10: 0.8701507953 | Q10: 4.04488842 | R10: 3.175903494 | S10: 0.2000746763
A11: 2016 | B11: 100 | C11: 15.10533671 | D11: 1.78907358 | E11: 1.722937639 | F11: 3.442865432 | G11: 1.203470386 | H11: 10.48056978 | I11: 1.154773978 | J11: 0.6750672461 | K11: 47.61947643 | L11: 0.5649391338 | M11: 3.033425435 | N11: 4.293810594 | O11: 1.297089728 | P11: 0.7489979545 | Q11: 3.483454416 | R11: 3.160723648 | S11: 0.2239864749
A12: 2017 | B12: 100 | C12: 16.71507792 | D12: 1.781047696 | E12: 1.57122195 | F12: 3.234136684 | G12: 1.006819629 | H12: 9.771009568 | I12: 0.9263580801 | J12: 0.6139344984 | K12: 48.81697662 | L12: 0.5715111643 | M12: 2.808588442 | N12: 3.250897867 | O12: 1.310021133 | P12: 0.6969496969 | Q12: 3.613164583 | R12: 3.114258559 | S12: 0.1980271734
A13: 2018 | B13: 100 | C13: 15.7186119 | D13: 1.802105631 | E13: 1.546481829 | F13: 3.220976775 | G13: 1.051028235 | H13: 9.322662774 | I13: 1.295134308 | J13: 0.6032074551 | K13: 50.87596379 | L13: 0.5619552329 | M13: 1.899831346 | N13: 3.018542853 | O13: 1.265121027 | P13: 0.770763915 | Q13: 3.523208064 | R13: 3.338981577 | S13: 0.1854256185
A14: 2019 | B14: 100 | C14: 15.09868651 | D14: 1.776258192 | E14: 1.500359186 | F14: 3.195963412 | G14: 0.9285885936 | H14: 8.653734923 | I14: 1.246490101 | J14: 0.6671527242 | K14: 51.58488582 | L14: 0.5808332148 | M14: 1.863658029 | N14: 3.902678355 | O14: 1.259662908 | P14: 0.8128689053 | Q14: 3.150460514 | R14: 3.581840199 | S14: 0.1958772886
A15: 2020 | B15: 100 | C15: 15.50631736 | D15: 1.823147375 | E15: 1.465651971 | F15: 3.155233483 | G15: 1.024958332 | H15: 9.534254059 | I15: 1.146638732 | J15: 0.6570677144 | K15: 50.54719542 | L15: 0.5964112437 | M15: 2.064774028 | N15: 3.937919423 | O15: 1.328112827 | P15: 0.756558767 | Q15: 2.887082114 | R15: 3.319824893 | S15: 0.2488522664
A16: 2021 | B16: 100 | C16: 15.8655733 | D16: 1.725885141 | E16: 1.45654129 | F16: 3.15952836 | G16: 1.085712391 | H16: 9.245385462 | I16: 1.165083622 | J16: 0.6397311784 | K16: 50.87090799 | L16: 0.671562502 | M16: 2.086117305 | N16: 3.557006238 | O16: 1.381658226 | P16: 0.7972331275 | Q16: 2.717059157 | R16: 3.336787446 | S16: 0.2382262875
A17: 2022 | B17: 100 | C17: 15.70276241 | D17: 1.808919851 | E17: 1.40123563 | F17: 3.198450672 | G17: 1.002512224 | H17: 9.213921722 | I17: 1.161051353 | J17: 0.6669450727 | K17: 51.22492224 | L17: 0.6778047563 | M17: 2.208190991 | N17: 3.654267979 | O17: 1.309924804 | P17: 0.8401948873 | Q17: 2.836594085 | R17: 2.890043826 | S17: 0.2022575003
A18: 자료 : 과학기술정보통신부·한국과학기술기획평가원, 연구개발활동조사 통계, 각 연도

Sheet 1-1-3
R1: return to the table
A2: 1-1-3. 연구원 1인당 연구개발비 추이
S4: (단위 : 천원)
A5: 연도 | B5: 전체 | C5: 지역
C6: 서울 | D6: 부산 | E6: 대구 | F6: 인천 | G6: 광주 | H6: 대전 | I6: 울산 | J6: 세종 | K6: 경기 | L6: 강원 | M6: 충북 | N6: 충남 | O6: 전북 | P6: 전남 | Q6: 경북 | R6: 경남 | S6: 제주
A7: 2012 | B7: 138030.3791 | C7: 96995.45183 | D7: 66217.03932 | E7: 86780.83325 | F7: 148087.8022 | G7: 94386.50393 | H7: 196957.61 | I7: 131051.5895 | K7: 177563.0628 | L7: 62669.34189 | M7: 86573.66942 | N7: 163545.5364 | O7: 102334.7888 | P7: 146949.4528 | Q7: 133067.2604 | R7: 124907.0889 | S7: 63590.21568
A8: 2013 | B8: 144519.0833 | C8: 101886.4582 | D8: 72401.19985 | E8: 91229.28238 | F8: 141961.3951 | G8: 82664.71735 | H8: 199291.6527 | I8: 132233.5714 | J8: 121259.8324 | K8: 189681.9309 | L8: 63733.28566 | M8: 102209.4705 | N8: 152419.1266 | O8: 107280.2501 | P8: 163659.5691 | Q8: 136735.8176 | R8: 119556.6119 | S8: 85676.24021
A9: 2014 | B9: 145695.6546 | C9: 89654.78162 | D9: 81047.902 | E9: 91345.31765 | F9: 143514.8048 | G9: 86218.89664 | H9: 196769.1471 | I9: 122085.6544 | J9: 128732.3713 | K9: 197824.6585 | L9: 60170.5376 | M9: 112431.3638 | N9: 141075.2186 | O9: 101821.8505 | P9: 171645.7235 | Q9: 155600.4616 | R9: 117300.4722 | S9: 104468.8312
A10: 2015 | B10: 145521.5129 | C10: 94884.66996 | D10: 82743.50232 | E10: 93908.21708 | F10: 141915.1763 | G10: 88825.90259 | H10: 194229.3953 | I10: 139161.0133 | J10: 137087.237 | K10: 192825.8094 | L10: 65803.33598 | M10: 121788.4191 | N10: 129964.8873 | O10: 92112.11635 | P10: 135716.7179 | Q10: 148204.8106 | R10: 125137.7539 | S10: 85250.64599
A11: 2016 | B11: 150629.7733 | C11: 95239.27144 | D11: 84568.27624 | E11: 104410.5475 | F11: 129619.6908 | G11: 98441.36712 | H11: 210788.3451 | I11: 108719.0722 | J11: 131536.7771 | K11: 198219.6513 | L11: 66615.52837 | M11: 182995.6541 | N11: 171647.3909 | O11: 98152.20235 | P11: 123802.3339 | Q11: 135271.6388 | R11: 123784.9566 | S11: 89653.40254
A12: 2017 | B12: 163193.5372 | C12: 111098.0505 | D12: 97646.16241 | E12: 105080.4686 | F12: 129775.9104 | G12: 102727.9202 | H12: 215372.7514 | I12: 93489.17638 | J12: 117720.6133 | K12: 222863.7757 | L12: 67529.84403 | M12: 179557.2866 | N12: 149446.0587 | O12: 113100.4821 | P12: 122217.0042 | Q12: 147234.7039 | R12: 125291.0029 | S12: 85119.47627
A13: 2018 | B13: 166732.2384 | C13: 105813.616 | D13: 94455.97946 | E13: 98725.0726 | F13: 136718.4235 | G13: 95125.95017 | H13: 219801.4081 | I13: 131833.5312 | J13: 127244.5866 | K13: 238786.5034 | L13: 71583.50669 | M13: 121499.5151 | N13: 145192.0552 | O13: 112355.9515 | P13: 129409.7141 | Q13: 155594.5292 | R13: 130658.4809 | S13: 86960.06565
A14: 2019 | B14: 165473.1834 | C14: 101092.0472 | D14: 95820.31865 | E14: 95111.12693 | F14: 131238.7365 | G14: 87306.62021 | H14: 206277.2171 | I14: 138313.1464 | J14: 141481.3051 | K14: 234394.8778 | L14: 73011.71654 | M14: 124608.2745 | N14: 189035.0849 | O14: 121830.4551 | P14: 130845.2639 | Q14: 143608.5488 | R14: 139848.4676 | S14: 86820.80637
A15: 2020 | B15: 166781.6861 | C15: 103446.9755 | D15: 98054.55071 | E15: 94089.32267 | F15: 133988.639 | G15: 95710.44447 | H15: 248625.4518 | I15: 135088.1013 | J15: 128990.5083 | K15: 228486.4278 | L15: 76374.51844 | M15: 135935.4884 | N15: 197217.3913 | O15: 123215.4107 | P15: 122056.1622 | Q15: 140031.0595 | R15: 132066.0369 | S15: 103351.6287
A16: 2021 | B16: 174094.3637 | C16: 107057.5776 | D16: 101388.3009 | E16: 100137.4529 | F16: 139394.9028 | G16: 118068.0366 | H16: 248435.8178 | I16: 149718.2939 | J16: 131229.3633 | K16: 241530.7369 | L16: 86407.40741 | M16: 139495.9408 | N16: 187092.234 | O16: 132106.3471 | P16: 134476.6309 | Q16: 139514.1019 | R16: 148900.5592 | S16: 104740.8523
A17: 2022 | B17: 187265.8188 | C17: 113192.8597 | D17: 114889.2648 | E17: 109196.541 | F17: 158078.5802 | G17: 126644.6114 | H17: 270169.8467 | I17: 160259.527 | J17: 149420.6444 | K17: 258048.8972 | L17: 108439.1422 | M17: 152239.3659 | N17: 215506.3609 | O17: 131560.0927 | P17: 143270.663 | Q17: 155451.7149 | R17: 142535.8581 | S17: 93184.04908
A18: 자료 : 과학기술정보통신부·한국과학기술기획평가원, 연구개발활동조사 통계, 각 연도

Sheet 1-1-4
R1: return to the table
A2: 1-1-4. 연구개발주체별 연구개발비(2022년)
S4: (단위 : 백만원)
A5: 연구개발 주체별 | B5: 전체 | C5: 지역
C6: 서울 | D6: 부산 | E6: 대구 | F6: 인천 | G6: 광주 | H6: 대전 | I6: 울산 | J6: 세종 | K6: 경기 | L6: 강원 | M6: 충북 | N6: 충남 | O6: 전북 | P6: 전남 | Q6: 경북 | R6: 경남 | S6: 제주
A7: 총계 | B7: 112646008 | C7: 17688535 | D7: 2037676 | E7: 1578436 | F7: 3602927 | G7: 1129290 | H7: 10379115 | I7: 1307878 | J7: 751287 | K7: 57702830 | L7: 763520 | M7: 2487439 | N7: 4116387 | O7: 1475578 | P7: 946446 | Q7: 3195310 | R7: 3255519 | S7: 227835
A8: 공공연구기관 | B8: 12918586 | C8: 1335221 | D8: 534595 | E8: 270272 | F8: 332318 | G8: 216340 | H8: 5538583 | I8: 141136 | J8: 335119 | K8: 1098649 | L8: 162658 | M8: 542930 | N8: 363194 | O8: 485240 | P8: 253771 | Q8: 387296 | R8: 815338 | S8: 105927
A9: 국·공립 | B9: 1019910 | C9: 57250 | D9: 128631 | E9: 9858 | F9: 79523 | G9: 14842 | H9: 20267 | I9: 13608 | J9: 1495 | K9: 64646 | L9: 49090 | M9: 92361 | N9: 51297 | O9: 183260 | P9: 41779 | Q9: 85175 | R9: 69831 | S9: 56997
A10: 정부출연 | B10: 9273677 | C10: 736953 | D10: 284786 | E10: 66917 | F10: 143745 | G10: 89193 | H10: 5487248 | I10: 105683 | J10: 330833 | K10: 409651 | L10: 69624 | M10: 368109 | N10: 136003 | O10: 173960 | P10: 91861 | Q10: 55674 | R10: 696989 | S10: 26449
A11: 지방자치단체출연 | B11: 252331 | C11: 21757 | D11: 4370 | E11: - | F11: 15196 | G11: 1130 | H11: 1234 | I11: 6097 | J11: - | K11: 13379 | L11: 28811 | M11: 9971 | N11: 1482 | O11: 27481 | P11: 41930 | Q11: 66317 | R11: 12256 | S11: 920
A12: 기타비영리 | B12: 2172625 | C12: 355193 | D12: 116797 | E12: 192474 | F12: 93155 | G12: 111175 | H12: 29834 | I12: 15748 | J12: 2791 | K12: 579417 | L12: 14023 | M12: 72470 | N12: 174224 | O12: 100539 | P12: 77987 | Q12: 180130 | R12: 35107 | S12: 21561
A13: 국·공립병원 | B13: 25799 | C13: 23517 | D13: 11 | E13: - | F13: 35 | G13: - | H13: - | I13: - | J13: - | K13: 906 | L13: 52 | M13: 19 | N13: 188 | O13: - | P13: 214 | Q13: - | R13: 857 | S13: -
A14: 사립병원 | B14: 174244 | C14: 140551 | D14: - | E14: 1023 | F14: 664 | G14: - | H14: - | I14: - | J14: - | K14: 30650 | L14: 1058 | M14: - | N14: - | O14: - | P14: - | Q14: - | R14: 298 | S14: -
A15: 대학 | B15: 10306122 | C15: 3702217 | D15: 502030 | E15: 450273 | F15: 261443 | G15: 483855 | H15: 872638 | I15: 226897 | J15: 68583 | K15: 1513458 | L15: 285810 | M15: 250700 | N15: 270380 | O15: 389330 | P15: 184671 | Q15: 507816 | R15: 275232 | S15: 60789
A16: 국·공립 | B16: 4531064 | C16: 1121793 | D16: 339461 | E16: 396534 | F16: 429 | G16: 383388 | H16: 762166 | I16: 184220 | J16: 4023 | K16: 118483 | L16: 159094 | M16: 177167 | N16: 77522 | O16: 289754 | P16: 161563 | Q16: 55810 | R16: 239227 | S16: 60430
A17: 사립 | B17: 5775058 | C17: 2580424 | D17: 162569 | E17: 53739 | F17: 261014 | G17: 100467 | H17: 110472 | I17: 42677 | J17: 64560 | K17: 1394975 | L17: 126716 | M17: 73533 | N17: 192858 | O17: 99576 | P17: 23108 | Q17: 452006 | R17: 36005 | S17: 359
A18: 기업체 | B18: 89421300 | C18: 12651097 | D18: 1001051 | E18: 857891 | F18: 3009166 | G18: 429095 | H18: 3967894 | I18: 939845 | J18: 347585 | K18: 55090724 | L18: 315052 | M18: 1693809 | N18: 3482813 | O18: 601007 | P18: 508004 | Q18: 2300198 | R18: 2164949 | S18: 61119
A19: 정부투자기관 | B19: 888771 | C19: 31579 | D19: 2948 | E19: 5533 | F19: 22964 | G19: 81 | H19: 559625 | I19: 3064 | J19: - | K19: 114802 | L19: 13719 | M19: 6893 | N19: 4522 | O19: 43003 | P19: 34974 | Q19: 41271 | R19: 2283 | S19: 1510
A20: 민간기업 | B20: 88532529 | C20: 12619518 | D20: 998103 | E20: 852358 | F20: 2986202 | G20: 429014 | H20: 3408269 | I20: 936781 | J20: 347585 | K20: 54975922 | L20: 301333 | M20: 1686916 | N20: 3478291 | O20: 558004 | P20: 473030 | Q20: 2258927 | R20: 2162666 | S20: 59609
A21: 자료 : 과학기술정보통신부·한국과학기술기획평가원, 2022년도 연구개발활동조사 통계

Sheet 1-1-5
R1: return to the table
A2: 1-1-5. 연구개발주체별 연구개발비 비중(2022년)
S4: (단위 : %)
A5: 연구개발 주체별 | B5: 전체 | C5: 지역
C6: 서울 | D6: 부산 | E6: 대구 | F6: 인천 | G6: 광주 | H6: 대전 | I6: 울산 | J6: 세종 | K6: 경기 | L6: 강원 | M6: 충북 | N6: 충남 | O6: 전북 | P6: 전남 | Q6: 경북 | R6: 경남 | S6: 제주
A7: 총계 | B7: 100 | C7: 100 | D7: 100 | E7: 100 | F7: 100 | G7: 100 | H7: 100 | I7: 100 | J7: 100 | K7: 100 | L7: 100 | M7: 100 | N7: 100 | O7: 100 | P7: 100 | Q7: 100 | R7: 100 | S7: 100
A8: 공공연구기관 | B8: 11.46830343 | C8: 7.548510942 | D8: 26.23552518 | E8: 17.12277216 | F8: 9.223556292 | G8: 19.15716955 | H8: 53.36276744 | I8: 10.79122059 | J8: 44.60598946 | K8: 1.903977673 | L8: 21.30369866 | M8: 21.82686691 | N8: 8.823125717 | O8: 32.88474076 | P8: 26.81304586 | Q8: 12.1207645 | R8: 25.04479317 | S8: 46.49285667
A9: 국·공립 | B9: 0.9054115793 | C9: 0.3236559726 | D9: 6.312632627 | E9: 0.6245422684 | F9: 2.207177664 | G9: 1.314277112 | H9: 0.1952671302 | I9: 1.040464019 | J9: 0.1989918633 | K9: 0.1120326334 | L9: 6.429432104 | M9: 3.71309608 | N9: 1.24616563 | O9: 12.41954 | P9: 4.414303616 | Q9: 2.665625557 | R9: 2.145003608 | S9: 25.01678847
A10: 정부출연 | B10: 8.232583795 | C10: 4.166274935 | D10: 13.97601974 | E10: 4.239449683 | F10: 3.989672841 | G10: 7.898148394 | H10: 52.86816843 | I10: 8.080493746 | J10: 44.03550175 | K10: 0.7099322512 | L10: 9.118818106 | M10: 14.79871466 | N10: 3.303941053 | O10: 11.78927851 | P10: 9.70588919 | Q10: 1.742366155 | R10: 21.40945883 | S10: 11.60883973
A11: 지방자치단체출연 | B11: 0.2240034995 | C11: 0.1230005764 | D11: 0.2144600025 | F11: 0.4217681901 | G11: 0.1000628714 | H11: 0.01188926031 | I11: 0.4661749796 | K11: 0.02318603784 | L11: 3.773444049 | M11: 0.4008540511 | N11: 0.03600244583 | O11: 1.86238884 | P11: 4.430258039 | Q11: 2.075448079 | R11: 0.3764683911 | S11: 0.4038009963
A12: 기타비영리 | B12: 1.928719036 | C12: 2.008040802 | D12: 5.731872977 | E12: 12.19396922 | F12: 2.585536704 | G12: 9.844681171 | H12: 0.2874426191 | I12: 1.204087843 | J12: 0.3714958465 | K12: 1.004139658 | L12: 1.836625105 | M12: 2.913438279 | N12: 4.232449476 | O12: 6.813533409 | P12: 8.239984109 | Q12: 5.637324704 | R12: 1.078384122 | S12: 9.46342748
A13: 국·공립병원 | B13: 0.02290272017 | C13: 0.1329505242 | D13: 0.0005398306698 | F13: 0.0009714323937 | K13: 0.001570113632 | L13: 0.006810561609 | M13: 0.0007638378268 | N13: 0.004567111887 | P13: 0.02261090437 | R13: 0.02632452767
A14: 사립병원 | B14: 0.1546828007 | C14: 0.7945881329 | E14: 0.06481099012 | F14: 0.01842946027 | K14: 0.05311697884 | L14: 0.1385687343 | R14: 0.009153686401
A15: 대학 | B15: 9.149123154 | C15: 20.93003745 | D15: 24.63738102 | E15: 28.52652879 | F15: 7.256405695 | G15: 42.84594745 | H15: 8.407633984 | I15: 17.34848357 | J15: 9.128735091 | K15: 2.622848827 | L15: 37.43320411 | M15: 10.07863911 | N15: 6.568381447 | O15: 26.38491493 | P15: 19.51204823 | Q15: 15.89254251 | R15: 8.454320187 | S15: 26.68115083
A16: 국·공립 | B16: 4.022391987 | C16: 6.341921476 | D16: 16.65922355 | E16: 25.12195616 | F16: 0.01190698563 | G16: 33.94947268 | H16: 7.343265779 | I16: 14.08541164 | J16: 0.5354811144 | K16: 0.2053330833 | L16: 20.83691324 | M16: 7.122466119 | N16: 1.883253445 | O16: 19.63664408 | P16: 17.07049319 | Q16: 1.746622393 | R16: 7.348352137 | S16: 26.52358066
A17: 사립 | B17: 5.126731167 | C17: 14.58811597 | D17: 7.97815747 | E17: 3.404572628 | F17: 7.244498709 | G17: 8.896474776 | H17: 1.064368205 | I17: 3.263071938 | J17: 8.593253976 | K17: 2.417515744 | L17: 16.59629086 | M17: 2.956172996 | N17: 4.685128002 | O17: 6.748270847 | P17: 2.441555039 | Q17: 14.14592011 | R17: 1.10596805 | S17: 0.1575701714
A18: 기업체 | B18: 79.38257342 | C18: 71.52145161 | D18: 49.12709381 | E18: 54.35069905 | F18: 83.52003801 | G18: 37.996883 | H18: 38.22959857 | I18: 71.86029584 | J18: 46.26527545 | K18: 95.47317523 | L18: 41.26309723 | M18: 68.09449398 | N18: 84.60849284 | O18: 40.73027654 | P18: 53.67490591 | Q18: 71.986693 | R18: 66.50088665 | S18: 26.82599249
A19: 정부투자기관 | B19: 0.7889946708 | C19: 0.1785280692 | D19: 0.1446746195 | E19: 0.3505368605 | F19: 0.6373706711 | G19: 0.007172648301 | H19: 5.391837358 | I19: 0.2342726156 | K19: 0.1989538468 | L19: 1.796809514 | M19: 0.2771123232 | N19: 0.1098536168 | O19: 2.914315611 | P19: 3.695297988 | Q19: 1.291611768 | R19: 0.0701270673 | S19: 0.6627603309
A20: 민간기업 | B20: 78.59357874 | C20: 71.34292354 | D20: 48.98241919 | E20: 54.00016219 | F20: 82.88266734 | G20: 37.98971035 | H20: 32.83776122 | I20: 71.62602322 | J20: 46.26527545 | K20: 95.27422139 | L20: 39.46628772 | M20: 67.81738165 | N20: 84.49863922 | O20: 37.81596093 | P20: 49.97960792 | Q20: 70.69508123 | R20: 66.43075958 | S20: 26.16323216
A21: 자료 : 과학기술정보통신부·한국과학기술기획평가원, 2022년도 연구개발활동조사 통계

Sheet 1-1-6
R1: return to the table
A2: 1-1-6. 공공연구기관 분야별 연구개발비(2022년)
S4: (단위 : 백만원)
A5: 분야별 | B5: 전체 | C5: 지역
C6: 서울 | D6: 부산 | E6: 대구 | F6: 인천 | G6: 광주 | H6: 대전 | I6: 울산 | J6: 세종 | K6: 경기 | L6: 강원 | M6: 충북 | N6: 충남 | O6: 전북 | P6: 전남 | Q6: 경북 | R6: 경남 | S6: 제주
A7: 총계 | B7: 12918586.1 | C7: 1335220.9 | D7: 534594.7 | E7: 270272 | F7: 332318 | G7: 216339.7 | H7: 5538582.6 | I7: 141136 | J7: 335118.8 | K7: 1098648.8 | L7: 162658.2 | M7: 542930.4 | N7: 363194 | O7: 485240.4 | P7: 253771 | Q7: 387295.6 | R7: 815338 | S7: 105927
A8: 이학 | B8: 1858449 | C8: 69252.5 | D8: 179335.7 | E8: 19030 | F8: 135192 | G8: 8445.7 | H8: 1052637.6 | I8: 49717 | J8: 0 | K8: 3065 | L8: 5921.1 | M8: 93169.4 | N8: 20891 | O8: 44586 | P8: 30911 | Q8: 54814 | R8: 32127 | S8: 59354
A9: 공학 | B9: 8418849.1 | C9: 667795 | D9: 165955 | E9: 195852 | F9: 170536 | G9: 171450 | H9: 4368090 | I9: 61219 | J9: 31110.8 | K9: 855455.8 | L9: 94533.1 | M9: 68349 | N9: 310227 | O9: 165286.4 | P9: 122060 | Q9: 257846 | R9: 690985 | S9: 22099
A10: 의약보건학 | B10: 789630 | C10: 317867 | D10: 6813 | E10: 45544 | F10: 2629 | G10: 14549 | H10: 94049 | I10: 0 | J10: 0 | K10: 146973 | L10: 18551 | M10: 88888 | N10: 188 | O10: 28742 | P10: 7041 | Q10: 5519 | R10: 11617 | S10: 660
A11: 농업과학 | B11: 797429 | C11: 48601.4 | D11: 115910 | E11: 9462 | F11: 8689 | G11: 19797 | H11: 320 | I11: 1107 | J11: 2102 | K11: 63419 | L11: 38664 | M11: 28944 | N11: 29711 | O11: 241668 | P11: 36493 | Q11: 66396.6 | R11: 63251 | S11: 22894
A12: 인문학 | B12: 46978 | C12: 6763 | D12: 12703 | E12: 0 | F12: 0 | G12: 0 | H12: 13022 | I12: 0 | J12: 0 | K12: 2211 | L12: 59 | M12: 1005 | N12: 1557 | O12: 1180 | P12: 2344 | Q12: 2247 | R12: 3887 | S12: 0
A13: 사회과학 | B13: 1007251 | C13: 224942 | D13: 53878 | E13: 384 | F13: 15272 | G13: 2098 | H13: 10464 | I13: 29093 | J13: 301906 | K13: 27525 | L13: 4930 | M13: 262575 | N13: 620 | O13: 3778 | P13: 54922 | Q13: 473 | R13: 13471 | S13: 920
A14: 국·공립 연구기관 | B14: 1045709 | C14: 80767.4 | D14: 128642 | E14: 9858 | F14: 79558 | G14: 14842 | H14: 20267 | I14: 13608 | J14: 1495 | K14: 65552 | L14: 49142 | M14: 92380 | N14: 51485 | O14: 183260 | P14: 41993 | Q14: 85174.6 | R14: 70688 | S14: 56997
A15: 이학 | B15: 114124 | C15: 1825 | D15: 0 | E15: 0 | F15: 23092 | G15: 0 | H15: 0 | I15: 0 | J15: 0 | K15: 170 | L15: 3888 | M15: 3122 | N15: 20891 | O15: 65 | P15: 5436 | Q15: 17045 | R15: 5247 | S15: 33343
A16: 공학 | B16: 63067 | C16: 0 | D16: 0 | E16: 396 | F16: 47666 | G16: 293 | H16: 1000 | I16: 12347 | J16: 0 | K16: 343 | L16: 0 | M16: 292 | N16: 0 | O16: 0 | P16: 630 | Q16: 0 | R16: 0 | S16: 100
A17: 의약보건학 | B17: 112697 | C17: 29540 | D17: 11 | E17: 0 | F17: 35 | G17: 14549 | H17: 694 | I17: 0 | J17: 0 | K17: 906 | L17: 6046 | M17: 58997 | N17: 188 | O17: 0 | P17: 214 | Q17: 0 | R17: 857 | S17: 660
A18: 농업과학 | B18: 705734 | C18: 46120.4 | D18: 115910 | E18: 9462 | F18: 8351 | G18: 0 | H18: 0 | I18: 1107 | J18: 1495 | K18: 61513 | L18: 38057 | M18: 28944 | N18: 28831 | O18: 182015 | P18: 33009 | Q18: 66396.6 | R18: 61629 | S18: 22894
A19: 인문학 | B19: 38401 | C19: 2292 | D19: 12554 | E19: 0 | F19: 0 | G19: 0 | H19: 13022 | I19: 0 | J19: 0 | K19: 0 | L19: 0 | M19: 1005 | N19: 1316 | O19: 1180 | P19: 2344 | Q19: 1733 | R19: 2955 | S19: 0
A20: 사회과학 | B20: 11686 | C20: 990 | D20: 167 | E20: 0 | F20: 414 | G20: 0 | H20: 5551 | I20: 154 | J20: 0 | K20: 2620 | L20: 1151 | M20: 20 | N20: 259 | O20: 0 | P20: 360 | Q20: 0 | R20: 0 | S20: 0
A21: 출연연구기관 | B21: 9526008 | C21: 758709.5 | D21: 289155.7 | E21: 66917 | F21: 158941 | G21: 90322.7 | H21: 5488481.6 | I21: 111780 | J21: 330833 | K21: 423030 | L21: 98435.1 | M21: 378080.4 | N21: 137485 | O21: 201441 | P21: 133791 | Q21: 121991 | R21: 709245 | S21: 27369
A22: 이학 | B22: 1679999 | C22: 52499.5 | D22: 173333.7 | E22: 19030 | F22: 112100 | G22: 8445.7 | H22: 1047216.6 | I22: 49717 | J22: 0 | K22: 2143 | L22: 2033.1 | M22: 89734.4 | N22: 0 | O22: 44521 | P22: 25475 | Q22: 22420 | R22: 26880 | S22: 4450
A23: 공학 | B23: 6625240 | C23: 484803 | D23: 56090 | E23: 42209 | F23: 31645 | G23: 60950 | H23: 4344298 | I23: 33124 | J23: 29075 | K23: 407019 | L23: 80694 | M23: 26406 | N23: 136003 | O23: 67414 | P23: 46453 | Q23: 96856 | R23: 660202 | S23: 21999
A24: 의약보건학 | B24: 242659 | C24: 67543 | D24: 6802 | E24: 5678 | F24: 0 | G24: 0 | H24: 93355 | I24: 0 | J24: 0 | K24: 11276 | L24: 11322 | M24: 0 | N24: 0 | O24: 28742 | P24: 5751 | Q24: 1728 | R24: 10462 | S24: 0
A25: 농업과학 | B25: 81100 | C25: 0 | D25: 0 | E25: 0 | F25: 338 | G25: 19797 | H25: 0 | I25: 0 | J25: 0 | K25: 0 | L25: 607 | M25: 0 | N25: 880 | O25: 56986 | P25: 1550 | Q25: 0 | R25: 942 | S25: 0
A26: 인문학 | B26: 755 | C26: 0 | D26: 0 | E26: 0 | F26: 0 | G26: 0 | H26: 0 | I26: 0 | J26: 0 | K26: 0 | L26: 0 | M26: 0 | N26: 241 | O26: 0 | P26: 0 | Q26: 514 | R26: 0 | S26: 0
A27: 사회과학 | B27: 896255 | C27: 153864 | D27: 52930 | E27: 0 | F27: 14858 | G27: 1130 | H27: 3612 | I27: 28939 | J27: 301758 | K27: 2592 | L27: 3779 | M27: 261940 | N27: 361 | O27: 3778 | P27: 54562 | Q27: 473 | R27: 10759 | S27: 920
A28: 기타 | B28: 2346869.1 | C28: 495744 | D28: 116797 | E28: 193497 | F28: 93819 | G28: 111175 | H28: 29834 | I28: 15748 | J28: 2790.8 | K28: 610066.8 | L28: 15081.1 | M28: 72470 | N28: 174224 | O28: 100539.4 | P28: 77987 | Q28: 180130 | R28: 35405 | S28: 21561
A29: 이학 | B29: 64326 | C29: 14928 | D29: 6002 | E29: 0 | F29: 0 | G29: 0 | H29: 5421 | I29: 0 | J29: 0 | K29: 752 | L29: 0 | M29: 313 | N29: 0 | O29: 0 | P29: 0 | Q29: 15349 | R29: 0 | S29: 21561
A30: 공학 | B30: 1730542.1 | C30: 182992 | D30: 109865 | E30: 153247 | F30: 91225 | G30: 110207 | H30: 22792 | I30: 15748 | J30: 2035.8 | K30: 448093.8 | L30: 13839.1 | M30: 41651 | N30: 174224 | O30: 97872.4 | P30: 74977 | Q30: 160990 | R30: 30783 | S30: 0
A31: 의약보건학 | B31: 434274 | C31: 220784 | D31: 0 | E31: 39866 | F31: 2594 | G31: 0 | H31: 0 | I31: 0 | J31: 0 | K31: 134791 | L31: 1183 | M31: 29891 | N31: 0 | O31: 0 | P31: 1076 | Q31: 3791 | R31: 298 | S31: 0
A32: 농업과학 | B32: 10595 | C32: 2481 | D32: 0 | E32: 0 | F32: 0 | G32: 0 | H32: 320 | I32: 0 | J32: 607 | K32: 1906 | L32: 0 | M32: 0 | N32: 0 | O32: 2667 | P32: 1934 | Q32: 0 | R32: 680 | S32: 0
A33: 인문학 | B33: 7822 | C33: 4471 | D33: 149 | E33: 0 | F33: 0 | G33: 0 | H33: 0 | I33: 0 | J33: 0 | K33: 2211 | L33: 59 | M33: 0 | N33: 0 | O33: 0 | P33: 0 | Q33: 0 | R33: 932 | S33: 0
A34: 사회과학 | B34: 99310 | C34: 70088 | D34: 781 | E34: 384 | F34: 0 | G34: 968 | H34: 1301 | I34: 0 | J34: 148 | K34: 22313 | L34: 0 | M34: 615 | N34: 0 | O34: 0 | P34: 0 | Q34: 0 | R34: 2712 | S34: 0
A35: 주 : 1. 국·공립연구기관 : '국·공립시험연구기관'과 '국공립병원'
A36: 2. 출연연구기관 : '정부출연(연)'과 '지방자치단체출연(연)'
A37: 3. 기타 : '기타비영리기관'과 '사립병원'
A38: 자료 : 과학기술정보통신부·한국과학기술기획평가원, 2022년도 연구개발활동조사 통계

Sheet 1-1-7
S1: return to the table
A2: 1-1-7. 공공연구기관 조직형태별 연구개발비 추이
T4: (단위 : 백만원)
A5: 연도 | B5: 조직형태별 | C5: 전체 | D5: 지역
D6: 서울 | E6: 부산 | F6: 대구 | G6: 인천 | H6: 광주 | I6: 대전 | J6: 울산 | K6: 세종 | L6: 경기 | M6: 강원 | N6: 충북 | O6: 충남 | P6: 전북 | Q6: 전남 | R6: 경북 | S6: 경남 | T6: 제주
A7: 2021 | B7: 총계 | C7: =SUM(D7:T7) -> 12258101 | D7: =D8+D11 -> 1184382.7 | E7: =E8+E11 -> 452275 | F7: 261320 | G7: 320435 | H7: 268738.4 | I7: 5086426.4 | J7: 137532.8 | K7: 327364 | L7: 1005467.4 | M7: 166807.2 | N7: 472783.6 | O7: 301000.2 | P7: 501710 | Q7: 268679.1 | R7: 442969.2 | S7: 965196.2 | T7: 95013.8
B8: 국·공립 연구기관 | C8: 1000026 | D8: =SUM(D9:D10) -> 61084 | E8: =SUM(E9:E10) -> 122018 | F8: 31576 | G8: 88819 | H8: 3653 | I8: 20881 | J8: 15230 | K8: 1495 | L8: 79865.4 | M8: 49761 | N8: 78041 | O8: 53719 | P8: 179038 | Q8: 37827.8 | R8: 77511 | S8: 46722 | T8: 52784.8
B9: 국립연구기관 | C9: 786021 | D9: 60787 | E9: 121573 | F9: 0 | G9: 87528 | H9: 0 | I9: 20118 | J9: 15114 | K9: 0 | L9: 53311.4 | M9: 27166 | N9: 64558 | O9: 37563 | P9: 168376 | Q9: 24215.8 | R9: 56249 | S9: 39241 | T9: 38439.8
B10: 공립연구기관 | C10: 185786 | D10: 297 | E10: 445 | F10: 31576 | G10: 1291 | H10: 3653 | I10: 763 | J10: 116 | K10: 1495 | L10: 26554 | M10: 22595 | N10: 13483 | O10: 16156 | P10: 10662 | Q10: 13612 | R10: 21262 | S10: 7481 | T10: 14345
B11: 소계 | C11: =SUM(D11:T11) -> 11258075 | D11: =SUM(D12:D13) -> 1123298.7 | E11: =SUM(E12:E13) -> 330257 | F11: 229744 | G11: 231616 | H11: 265085.4 | I11: 5065545.4 | J11: 122302.8 | K11: 325869 | L11: 925602 | M11: 117046.2 | N11: 394742.6 | O11: 247281.2 | P11: 322672 | Q11: 230851.3 | R11: 365458.2 | S11: 918474.2 | T11: 42229
B12: 출연연구기관 | C12: 8979610 | D12: 638955 | E12: 249540.6 | F12: 59968 | G12: 146271 | H12: 131218.8 | I12: 5036942.4 | J12: 102452.8 | K12: 323844 | L12: 429062.6 | M12: 61925.2 | N12: 328853.6 | O12: 120414.2 | P12: 214644.2 | Q12: 119540.2 | R12: 140575.2 | S12: 848646.2 | T12: 26756
B13: 기타 | C13: 2278465 | D13: 484343.7 | E13: 80716.4 | F13: 169776 | G13: 85345 | H13: 133866.6 | I13: 28603 | J13: 19850 | K13: 2025 | L13: 496539.4 | M13: 55121 | N13: 65889 | O13: 126867 | P13: 108027.8 | Q13: 111311.1 | R13: 224883 | S13: 69828 | T13: 15473
A14: 2022 | B14: 총계 | C14: 12918586.1 | D14: 1335220.9 | E14: 534594.7 | F14: 270272 | G14: 332318 | H14: 216339.7 | I14: 5538582.6 | J14: 141136 | K14: 335118.8 | L14: 1098648.8 | M14: 162658.2 | N14: 542930.4 | O14: 363194 | P14: 485240.4 | Q14: 253771 | R14: 387295.6 | S14: 815338 | T14: 105927
B15: 국·공립 연구기관 | C15: 1045709 | D15: 80767.4 | E15: 128642 | F15: 9858 | G15: 79558 | H15: 14842 | I15: 20267 | J15: 13608 | K15: 1495 | L15: 65552 | M15: 49142 | N15: 92380 | O15: 51485 | P15: 183260 | Q15: 41993 | R15: 85174.6 | S15: 70688 | T15: 56997
B16: 국립연구기관 | C16: 788828 | D16: 60887.4 | E16: 115472 | F16: 396 | G16: 78561 | H16: 293 | I16: 20169 | J16: 13454 | K16: 0 | L16: 42032 | M16: 29177 | N16: 78262 | O16: 35724 | P16: 172072 | Q16: 28072 | R16: 66767.6 | S16: 47489 | T16: 43108
B17: 공립연구기관 | C17: 199884 | D17: 19880 | E17: 13170 | F17: 9462 | G17: 997 | H17: 14549 | I17: 98 | J17: 154 | K17: 1495 | L17: 23520 | M17: 19965 | N17: 14118 | O17: 15761 | P17: 11188 | Q17: 13921 | R17: 18407 | S17: 23199 | T17: 13889
B18: 소계 | C18: 11872877.1 | D18: 1254453.5 | E18: 405952.7 | F18: 260414 | G18: 252760 | H18: 201497.7 | I18: 5518315.6 | J18: 127528 | K18: 333623.8 | L18: 1033096.8 | M18: 113516.2 | N18: 450550.4 | O18: 311709 | P18: 301980.4 | Q18: 211778 | R18: 302121 | S18: 744650 | T18: 48930
B19: 출연연구기관 | C19: 9526008 | D19: 758709.5 | E19: 289155.7 | F19: 66917 | G19: 158941 | H19: 90322.7 | I19: 5488481.6 | J19: 111780 | K19: 330833 | L19: 423030 | M19: 98435.1 | N19: 378080.4 | O19: 137485 | P19: 201441 | Q19: 133791 | R19: 121991 | S19: 709245 | T19: 27369
B20: 기타 | C20: 2346869.1 | D20: 495744 | E20: 116797 | F20: 193497 | G20: 93819 | H20: 111175 | I20: 29834 | J20: 15748 | K20: 2790.8 | L20: 610066.8 | M20: 15081.1 | N20: 72470 | O20: 174224 | P20: 100539.4 | Q20: 77987 | R20: 180130 | S20: 35405 | T20: 21561
A21: 주 : 1. 국·공립 연구기관 : '국·공립시험연구기관'과 '국공립병원', 국립연구기관은 중앙행정기관 소속, 공립연구기관은 지방자치단체 소속
A22: 2. 소계 : 출연연구기관은 정부출연(연), 지방자치단체출연(연), 기타는 기타비영리기관, 사립병원
A23: 자료 : 과학기술정보통신부·한국과학기술기획평가원, 연구개발활동조사 통계, 각 연도

Sheet 1-1-8
S1: return to the table
A2: 1-1-8. 대학 조직형태별 연구개발비 추이
T4: (단위 : 백만원)
A5: 연도 | B5: 조직형태별 | C5: 전체 | D5: 지역
D6: 서울 | E6: 부산 | F6: 대구 | G6: 인천 | H6: 광주 | I6: 대전 | J6: 울산 | K6: 세종 | L6: 경기 | M6: 강원 | N6: 충북 | O6: 충남 | P6: 전북 | Q6: 전남 | R6: 경북 | S6: 경남 | T6: 제주
A7: 2021 | B7: 총계 | C7: =C8+C11+C14 -> 8673924.12 | D7: =D8+D11+D14 -> 2962729.3 | E7: 430645 | F7: 392319.12 | G7: 263435.6 | H7: 436837 | I7: 704419.4 | J7: 193106 | K7: 70365 | L7: 1315130.1 | M7: 241348 | N7: 181687 | O7: 249160.6 | P7: 311112 | Q7: 147371 | R7: 441565 | S7: 250118 | T7: 82576
B8: 4년제 | C8: 8619116.12 | D8: 2953065.8 | E8: 429874 | F8: 390654.12 | G8: 260187.6 | H8: 436190 | I8: 703757.4 | J8: 189405 | K8: 70234 | L8: 1295425.6 | M8: 240515 | N8: 180906 | O8: 243328.6 | P8: 307320 | Q8: 146804 | R8: 440748 | S8: 248549 | T8: 82152
B9: 국·공립 | C9: 3757802.12 | D9: 901531 | E9: 291710 | F9: 336937.12 | G9: 44393 | H9: 338776 | I9: 635566 | J9: 158755 | K9: 0 | L9: 53924 | M9: 120047 | N9: 128738 | O9: 63441 | P9: 219236 | Q9: 127579 | R9: 38527 | S9: 216734 | T9: 81908
B10: 사립 | C10: 4861314 | D10: 2051534.8 | E10: 138164 | F10: 53717 | G10: 215794.6 | H10: 97414 | I10: 68191.4 | J10: 30650 | K10: 70234 | L10: 1241501.6 | M10: 120468 | N10: 52168 | O10: 179887.6 | P10: 88084 | Q10: 19225 | R10: 402221 | S10: 31815 | T10: 244
B11: 2,3년제 | C11: 36198 | D11: 6431.5 | E11: 771 | F11: 1665 | G11: 3199 | H11: 647 | I11: 560 | J11: 663 | K11: 64 | L11: 9413.5 | M11: 833 | N11: 781 | O11: 4049 | P11: 3780 | Q11: 567 | R11: 781 | S11: 1569 | T11: 424
B12: 국·공립 | C12: 4817 | D12: 0 | E12: 0 | F12: 0 | G12: 0 | H12: 0 | I12: 0 | J12: 0 | K12: 0 | L12: 303 | M12: 599 | N12: 284 | O12: 12 | P12: 3460 | Q12: 105 | R12: 33 | S12: 21 | T12: 0
B13: 사립 | C13: 31381 | D13: 6431.5 | E13: 771 | F13: 1665 | G13: 3199 | H13: 647 | I13: 560 | J13: 663 | K13: 64 | L13: 9110.5 | M13: 234 | N13: 497 | O13: 4037 | P13: 320 | Q13: 462 | R13: 748 | S13: 1548 | T13: 424
B14: 대학원대학교 | C14: 18610 | D14: 3232 | E14: 0 | F14: 0 | G14: 49 | H14: 0 | I14: 102 | J14: 3038 | K14: 67 | L14: 10291 | M14: 0 | N14: 0 | O14: 1783 | P14: 12 | Q14: 0 | R14: 36 | S14: 0 | T14: 0
B15: 국·공립 | C15: 1449 | D15: 0 | E15: 0 | F15: 0 | G15: 0 | H15: 0 | I15: 0 | J15: 0 | K15: 0 | L15: 0 | M15: 0 | N15: 0 | O15: 1449 | P15: 0 | Q15: 0 | R15: 0 | S15: 0 | T15: 0
B16: 사립 | C16: 17161 | D16: 3232 | E16: 0 | F16: 0 | G16: 49 | H16: 0 | I16: 102 | J16: 3038 | K16: 67 | L16: 10291 | M16: 0 | N16: 0 | O16: 334 | P16: 12 | Q16: 0 | R16: 36 | S16: 0 | T16: 0
A17: 2022 | B17: 총계 | C17: 9513345 | D17: 3291051.4 | E17: 472381 | F17: 412830 | G17: 240629 | H17: 441980 | I17: 845726 | J17: 222822 | K17: 64560 | L17: 1410490.6 | M17: 277625 | N17: 226914 | O17: 265143 | P17: 353916 | Q17: 173601 | R17: 507816 | S17: 247214 | T17: 58646
B18: 4년제 | C18: 9460645 | D18: 3281917.4 | E18: 471698 | F18: 411452 | G18: 237889 | H18: 441022 | I18: 844912 | J18: 218166 | K18: 64486 | L18: 1391074.6 | M18: 276932 | N18: 226312 | O18: 261292 | P18: 349549 | Q18: 172787 | R18: 506804 | S18: 245923 | T18: 58429
B19: 국·공립 | C19: 4077410 | D19: 966395 | E19: 316727 | F19: 369915 | G19: 429 | H19: 345401 | I19: 738898 | J19: 184220 | K19: 0 | L19: 41883 | M19: 154288 | N19: 153318 | O19: 76352 | P19: 252456 | Q19: 150405 | R19: 55643 | S19: 212793 | T19: 58287
B20: 사립 | C20: 5383235 | D20: 2315522.4 | E20: 154971 | F20: 41537 | G20: 237460 | H20: 95621 | I20: 106014 | J20: 33946 | K20: 64486 | L20: 1349191.6 | M20: 122644 | N20: 72994 | O20: 184940 | P20: 97093 | Q20: 22382 | R20: 451161 | S20: 33130 | T20: 142
B21: 2,3년제 | C21: 33423 | D21: 6250 | E21: 683 | F21: 1378 | G21: 2701 | H21: 958 | I21: 688 | J21: 1221 | K21: 0 | L21: 8267 | M21: 693 | N21: 602 | O21: 2293 | P21: 4355 | Q21: 814 | R21: 1012 | S21: 1291 | T21: 217
B22: 국·공립 | C22: 4925 | D22: 0 | E22: 0 | F22: 0 | G22: 0 | H22: 0 | I22: 0 | J22: 0 | K22: 0 | L22: 160 | M22: 521 | N22: 63 | O22: 20 | P22: 3856 | Q22: 88 | R22: 167 | S22: 50 | T22: 0
B23: 사립 | C23: 28498 | D23: 6250 | E23: 683 | F23: 1378 | G23: 2701 | H23: 958 | I23: 688 | J23: 1221 | K23: 0 | L23: 8107 | M23: 172 | N23: 539 | O23: 2273 | P23: 499 | Q23: 726 | R23: 845 | S23: 1241 | T23: 217
B24: 대학원대학교 | C24: 19277 | D24: 2884 | E24: 0 | F24: 0 | G24: 39 | H24: 0 | I24: 126 | J24: 3435 | K24: 74 | L24: 11149 | M24: 0 | N24: 0 | O24: 1558 | P24: 12 | Q24: 0 | R24: 0 | S24: 0 | T24: 0
B25: 국·공립 | C25: 1150 | D25: 0 | E25: 0 | F25: 0 | G25: 0 | H25: 0 | I25: 0 | J25: 0 | K25: 0 | L25: 0 | M25: 0 | N25: 0 | O25: 1150 | P25: 0 | Q25: 0 | R25: 0 | S25: 0 | T25: 0
B26: 사립 | C26: 18127 | D26: 2884 | E26: 0 | F26: 0 | G26: 39 | H26: 0 | I26: 126 | J26: 3435 | K26: 74 | L26: 11149 | M26: 0 | N26: 0 | O26: 408 | P26: 12 | Q26: 0 | R26: 0 | S26: 0 | T26: 0
A27: 주 : 학부 과정이 개설되지 않고, 석사 및 박사학위 과정만 개설된 고등교육기관을 '대학원대학교'로 분류
A28: 자료 : 과학기술정보통신부·한국과학기술기획평가원, 연구개발활동조사 통계, 각 연도

Sheet 1-1-9
R1: return to the table
A2: 1-1-9. 기업 산업별 연구개발비(2022년)
S4: (단위 : 백만원)
A5: 산업별 | B5: 전체 | C5: 지역
C6: 서울 | D6: 부산 | E6: 대구 | F6: 인천 | G6: 광주 | H6: 대전 | I6: 울산 | J6: 세종 | K6: 경기 | L6: 강원 | M6: 충북 | N6: 충남 | O6: 전북 | P6: 전남 | Q6: 경북 | R6: 경남 | S6: 제주
A7: 총계 | B7: 89421300.22 | C7: 12651096.55 | D7: 1001051.06 | E7: 857891.34 | F7: 3009166.3 | G7: 429095.32 | H7: 3967894.02 | I7: 939844.99 | J7: 347585.49 | K7: 55090723.64 | L7: 315051.76 | M7: 1693808.89 | N7: 3482812.6 | O7: 601007.38 | P7: 508004.46 | Q7: 2300198.06 | R7: 2164949.09 | S7: 61119.27
A8: [ 농업, 임업 및 어업 ] | B8: 59208 | C8: 2381 | D8: 1418 | E8: 0 | F8: 12 | G8: 48 | H8: 525 | I8: 292 | J8: 735 | K8: 32167 | L8: 2800 | M8: 1307 | N8: 2280 | O8: 8690 | P8: 983 | Q8: 1109 | R8: 3920 | S8: 541
A9: [ 광업 ] | B9: 7923 | C9: 366 | D9: 0 | E9: 0 | F9: 0 | G9: 0 | H9: 0 | I9: 2964 | J9: 0 | K9: 1413 | L9: 1569 | M9: 1548 | N9: 0 | O9: 0 | P9: 0 | Q9: 63 | R9: 0 | S9: 0
A10: [ 제조업 ] | B10: 76895561.85 | C10: 7152398.95 | D10: 759671 | E10: 730030.55 | F10: 2096108.8 | G10: 345527.5 | H10: 2894518.1 | I10: 887869.2 | J10: 311094 | K10: 51438556.8 | L10: 244254 | M10: 1565958.4 | N10: 3387410.4 | O10: 466578 | P10: 398588.45 | Q10: 2124278.3 | R10: 2067509.4 | S10: 25210
A11: 식료품 | B11: 1068907.7 | C11: 307218.7 | D11: 8997 | E11: 11034 | F11: 27374 | G11: 3871 | H11: 52868 | I11: 1748 | J11: 9092 | K11: 408874 | L11: 28131 | M11: 78190 | N11: 41296 | O11: 28446 | P11: 18009 | Q11: 13568 | R11: 23506 | S11: 6685
A12: 음료 | B12: 40040 | C12: 12964 | D12: 1072 | E12: 843 | F12: 80 | G12: 0 | H12: 349 | I12: 0 | J12: 0 | K12: 7275 | L12: 3224 | M12: 4717 | N12: 1092 | O12: 1247 | P12: 1001 | Q12: 1752 | R12: 2641 | S12: 1783
A13: 담배 | B13: 50446 | C13: 0 | D13: 0 | E13: 0 | F13: 0 | G13: 0 | H13: 50446 | I13: 0 | J13: 0 | K13: 0 | L13: 0 | M13: 0 | N13: 0 | O13: 0 | P13: 0 | Q13: 0 | R13: 0 | S13: 0
A14: 섬유제품(의복제외) | B14: 203030 | C14: 37031 | D14: 9656 | E14: 34757 | F14: 2617 | G14: 1931 | H14: 2392 | I14: 437 | J14: 749 | K14: 60957 | L14: 435 | M14: 8093 | N14: 7648 | O14: 5574 | P14: 50 | Q14: 24744 | R14: 5959 | S14: 0
A15: 의복, 의복액세서리 및 모피제품 | B15: 278373 | C15: 245370 | D15: 9279 | E15: 2097 | F15: 1723 | G15: 226 | H15: 1095 | I15: 538 | J15: 0 | K15: 14677 | L15: 241 | M15: 344 | N15: 0 | O15: 860 | P15: 377 | Q15: 863 | R15: 683 | S15: 0
A16: 가죽, 가방 및 신발 | B16: 56756 | C16: 23362 | D16: 12838 | E16: 847 | F16: 526 | G16: 0 | H16: 123 | I16: 0 | J16: 655 | K16: 15500 | L16: 0 | M16: 817 | N16: 440 | O16: 174 | P16: 275 | Q16: 89 | R16: 1110 | S16: 0
A17: 목재 및 나무제품(가구제외) | B17: 36787 | C17: 3557 | D17: 1186 | E17: 266 | F17: 6322 | G17: 634 | H17: 1055 | I17: 0 | J17: 259 | K17: 13113 | L17: 1765 | M17: 1108 | N17: 1367 | O17: 1388 | P17: 1347 | Q17: 1839 | R17: 1581 | S17: 0
A18: 펄프, 종이 및 종이제품 | B18: 238182 | C18: 155593 | D18: 2073 | E18: 3031 | F18: 1608 | G18: 478 | H18: 7665 | I18: 4192 | J18: 478 | K18: 45453 | L18: 55 | M18: 5953 | N18: 3111 | O18: 2644 | P18: 94 | Q18: 3062 | R18: 2454 | S18: 238
A19: 인쇄 및 기록매체 복제 | B19: 74830 | C19: 23940.6 | D19: 1925 | E19: 3356 | F19: 3558 | G19: 4313 | H19: 897 | I19: 476 | J19: 70 | K19: 27289.5 | L19: 258 | M19: 2197 | N19: 1201 | O19: 423 | P19: 587.4 | Q19: 2168.5 | R19: 2044 | S19: 126
A20: 코크스, 연탄 및 석유정제품 | B20: 302267 | C20: 17754 | D20: 197 | E20: 0 | F20: 612 | G20: 0 | H20: 241300 | I20: 3041 | J20: 0 | K20: 19527 | L20: 905 | M20: 877 | N20: 8232 | O20: 0 | P20: 3940 | Q20: 2755 | R20: 3127 | S20: 0
A21: 화학물질 및 화학제품(의약품 제외) | B21: 3768115 | C21: 826291 | D21: 32754 | E21: 19308 | F21: 93124 | G21: 7479 | H21: 562787 | I21: 116403 | J21: 46116 | K21: 1278508 | L21: 20204 | M21: 271558 | N21: 182825 | O21: 105658 | P21: 60638 | Q21: 87726 | R21: 53299 | S21: 3437
A22: 의료용 물질 및 의약품 | B22: 2552310 | C22: 484156 | D22: 3677 | E22: 10828 | F22: 471166 | G22: 2974 | H22: 91977 | I22: 4279 | J22: 16355 | K22: 1269422 | L22: 64637 | M22: 80493 | N22: 25034 | O22: 6715 | P22: 5653 | Q22: 11211 | R22: 2899 | S22: 834
A23: 고무 및 프라스틱제품 | B23: 1136477 | C23: 167748 | D23: 22783 | E23: 23871 | F23: 62632 | G23: 29605 | H23: 187478 | I23: 6343 | J23: 10033 | K23: 343583 | L23: 4845 | M23: 61358 | N23: 92904 | O23: 9195 | P23: 7581 | Q23: 43817 | R23: 62287 | S23: 414
A24: 비금속 광물제품 | B24: 365639 | C24: 17958 | D24: 2491 | E24: 5042 | F24: 10018 | G24: 3830 | H24: 3404 | I24: 2524 | J24: 30832 | K24: 75775 | L24: 8382 | M24: 19479 | N24: 93759 | O24: 14606 | P24: 10121 | Q24: 53949 | R24: 13362 | S24: 107
A25: 제1차 금속산업 | B25: 809372 | C25: 14861 | D25: 20057 | E25: 4502 | F25: 81905 | G25: 2011 | H25: 17517 | I25: 29753 | J25: 2416 | K25: 83055 | L25: 2096 | M25: 7780 | N25: 105580 | O25: 23324 | P25: 104145 | Q25: 260674 | R25: 49696 | S25: 0
A26: · 제1차 철강 산업 | B26: 590035 | C26: 10823 | D26: 15836 | E26: 2049 | F26: 59710 | G26: 800 | H26: 86 | I26: 3285 | J26: 1000 | K26: 18863 | L26: 1169 | M26: 4563 | N26: 90878 | O26: 11800 | P26: 96274 | Q26: 236385 | R26: 36514 | S26: 0
A27: · 제1차 비철금속 산업 | B27: 166850 | C27: 2503 | D27: 1388 | E27: 1687 | F27: 13119 | G27: 777 | H27: 17144 | I27: 21379 | J27: 1301 | K27: 51360 | L27: 927 | M27: 1545 | N27: 11387 | O27: 9421 | P27: 7002 | Q27: 18407 | R27: 7503 | S27: 0
A28: · 금속주조업 | B28: 52487 | C28: 1535 | D28: 2833 | E28: 766 | F28: 9076 | G28: 434 | H28: 287 | I28: 5089 | J28: 115 | K28: 12832 | L28: 0 | M28: 1672 | N28: 3315 | O28: 2103 | P28: 869 | Q28: 5882 | R28: 5679 | S28: 0
A29: 금속가공제품(기계 및 가구 제외) | B29: 1126945 | C29: 49800 | D29: 46190 | E29: 39225 | F29: 62717 | G29: 8369 | H29: 168558 | I29: 23657 | J29: 2598 | K29: 405308 | L29: 3016 | M29: 62715 | N29: 43299 | O29: 18696 | P29: 18683 | Q29: 93584 | R29: 80452 | S29: 78
A30: 전자부품, 컴퓨터, 영상, 음향 및 통신장비 | B30: 42700692.5 | C30: 3548970.15 | D30: 133234 | E30: 49558.05 | F30: 415188 | G30: 84106 | H30: 167113.1 | I30: 14730.7 | J30: 29825 | K30: 34614777.7 | L30: 12164 | M30: 446308.4 | N30: 1782883.5 | O30: 36909 | P30: 13429.1 | Q30: 908990.8 | R30: 439583 | S30: 2922
A31: · 반도체 | B31: 7108982.9 | C31: 371577.4 | D31: 9240 | E31: 11372 | F31: 168880 | G31: 14402 | H31: 66604 | I31: 5010 | J31: 189 | K31: 6000289.5 | L31: 586 | M31: 369587 | N31: 46490 | O31: 17881 | P31: 1656 | Q31: 14974 | R31: 8328 | S31: 1917
A32: · 전자부품 | B32: 6481673.4 | C32: 505834.3 | D32: 96884 | E32: 25130.4 | F32: 83212 | G32: 18384 | H32: 35732 | I32: 6555 | J32: 25108 | K32: 4302614.7 | L32: 8044 | M32: 72472 | N32: 917840 | O32: 13468 | P32: 6242 | Q32: 312399 | R32: 51754 | S32: 0
A33: · 컴퓨터 및 주변장치 | B33: 326666.4 | C33: 83131.55 | D33: 3630 | E33: 2465.65 | F33: 30356 | G33: 6 | H33: 7499.3 | I33: 920.7 | J33: 1107 | K33: 184334.2 | L33: 380 | M33: 920.4 | N33: 1565 | O33: 902 | P33: 2287.6 | Q33: 3689 | R33: 3407 | S33: 65
A34: · 통신 및 방송 장비 | B34: 26156473.3 | C34: 1193321.4 | D34: 12103 | E34: 7659 | F34: 66177 | G34: 51042 | H34: 52576.8 | I34: 2061 | J34: 2795 | K34: 23357445.3 | L34: 2746 | M34: 2397 | N34: 815380.5 | O34: 3596 | P34: 3196.5 | Q34: 573691.8 | R34: 9567 | S34: 718
A35: · 영상 및 음향기기 | B35: 2614145.5 | C35: 1395020.5 | D35: 10909 | E35: 2931 | F35: 66563 | G35: 272 | H35: 4211 | I35: 184 | J35: 626 | K35: 759414 | L35: 408 | M35: 932 | N35: 697 | O35: 1062 | P35: 47 | Q35: 4237 | R35: 366410 | S35: 222
A36: · 마그네틱 및 광학 매체 | B36: 12751 | C36: 85 | D36: 468 | E36: 0 | F36: 0 | G36: 0 | H36: 490 | I36: 0 | J36: 0 | K36: 10680 | L36: 0 | M36: 0 | N36: 911 | O36: 0 | P36: 0 | Q36: 0 | R36: 117 | S36: 0
A37: 의료, 정밀, 광학기기 및 시계 | B37: 2305330.5 | C37: 481900.9 | D37: 45242.8 | E37: 56890 | F37: 56198 | G37: 28388 | H37: 123313 | I37: 12337.5 | J37: 7133 | K37: 1236156.3 | L37: 34870 | M37: 46828 | N37: 36830 | O37: 9044 | P37: 4961 | Q37: 99003 | R37: 25835 | S37: 400
A38: 전기장비 | B38: 4134858.4 | C38: 243185.4 | D38: 67492.2 | E38: 64471.5 | F38: 158859.4 | G38: 47846 | H38: 882938 | I38: 20795 | J38: 5803 | K38: 1566781.6 | L38: 16478 | M38: 283543 | N38: 528448.9 | O38: 21689 | P38: 39736 | Q38: 83664 | R38: 97266.4 | S38: 5861
A39: 기타 기계 및 장비 | B39: 4582934.45 | C39: 212820.7 | D39: 166377 | E39: 153459 | F39: 423474.4 | G39: 48464.5 | H39: 263774 | I39: 38635 | J39: 5210 | K39: 2270486.9 | L39: 6897 | M39: 95314 | N39: 192090 | O39: 64787 | P39: 28395.95 | Q39: 109507 | R39: 501171 | S39: 2071
A40: 자동차 및 트레일러 | B40: 9669611 | C40: 164935 | D40: 110284 | E40: 236393 | F40: 177335 | G40: 66239 | H40: 6240 | I40: 539150 | J40: 120775 | K40: 7264616 | L40: 32215 | M40: 56710 | N40: 229184 | O40: 101861 | P40: 12569 | Q40: 311167 | R40: 239938 | S40: 0
A41: 기타 운송장비 | B41: 1085777.8 | C41: 20929 | D41: 53326 | E41: 3995 | F41: 16430 | G41: 2788 | H41: 45912 | I41: 67406 | J41: 22625 | K41: 293859.8 | L41: 1590 | M41: 22138 | N41: 4159 | O41: 10234 | P41: 64257 | Q41: 4264 | R41: 451865 | S41: 0
A42: · 선박 및 보트 | B42: 376042 | C42: 8928 | D42: 43826 | E42: 845 | F42: 3437 | G42: 67 | H42: 12553 | I42: 66459 | J42: 89 | K42: 80482 | L42: 1290 | M42: 0 | N42: 1193 | O42: 2140 | P42: 61858 | Q42: 3018 | R42: 89857 | S42: 0
A43: · 철도장비 | B43: 90124.8 | C43: 4569 | D43: 2222 | E43: 274 | F43: 2149 | G43: 0 | H43: 0 | I43: 0 | J43: 0 | K43: 56831.8 | L43: 0 | M43: 19271 | N43: 92 | O43: 619 | P43: 0 | Q43: 0 | R43: 4097 | S43: 0
A44: · 항공기, 우주선 및 부품 | B44: 592004 | C44: 6072 | D44: 6544 | E44: 2314 | F44: 7902 | G44: 1312 | H44: 33359 | I44: 947 | J44: 22536 | K44: 149461 | L44: 0 | M44: 2087 | N44: 2262 | O44: 3091 | P44: 1746 | Q44: 804 | R44: 351567 | S44: 0
A45: · 기타 운송장비 | B45: 27607 | C45: 1360 | D45: 734 | E45: 562 | F45: 2942 | G45: 1409 | H45: 0 | I45: 0 | J45: 0 | K45: 7085 | L45: 300 | M45: 780 | N45: 612 | O45: 4384 | P45: 653 | Q45: 442 | R45: 6344 | S45: 0
A46: 가구 | B46: 77662.5 | C46: 16968.5 | D46: 331 | E46: 2888 | F46: 8732 | G46: 779 | H46: 431 | I46: 223 | J46: 0 | K46: 37704 | L46: 139 | M46: 2319 | N46: 2864 | O46: 655 | P46: 36 | Q46: 1475 | R46: 2118 | S46: 0
A47: 기타 제품 | B47: 219935 | C47: 74356 | D47: 7022 | E47: 3337 | F47: 12207 | G47: 1196 | H47: 13485 | I47: 1156 | J47: 70 | K47: 82967 | L47: 1707 | M47: 6913 | N47: 3163 | O47: 2160 | P47: 1703 | Q47: 3706 | R47: 4533 | S47: 254
A48: 산업용 기계 및 장비 수리업 | B48: 10283 | C48: 729 | D48: 1187 | E48: 32 | F48: 1703 | G48: 0 | H48: 1401 | I48: 45 | J48: 0 | K48: 2891 | L48: 0 | M48: 206 | N48: 0 | O48: 289 | P48: 1000 | Q48: 700 | R48: 100 | S48: 0
A49: [ 전기, 가스, 증기 및 공기조절 공급업 ] | B49: 524407 | C49: 23604 | D49: 550 | E49: 588 | F49: 16295 | G49: 738 | H49: 433743 | I49: 313 | J49: 0 | K49: 27388 | L49: 205 | M49: 56 | N49: 4727 | O49: 1476 | P49: 14364 | Q49: 0 | R49: 131 | S49: 229
A50: [ 수도, 하수·및 폐기물 처리, 원료재생업 ] | B50: 60426 | C50: 8668 | D50: 1588 | E50: 121 | F50: 8024 | G50: 656 | H50: 3384 | I50: 1009 | J50: 251 | K50: 19699 | L50: 1305 | M50: 2557 | N50: 1384 | O50: 3174 | P50: 1943 | Q50: 4143 | R50: 2278 | S50: 242
A51: [ 건설업 ] | B51: 678498.9 | C51: 182858.4 | D51: 25909 | E51: 12095 | F51: 25970 | G51: 18072 | H51: 75801 | I51: 7101 | J51: 1089 | K51: 212874 | L51: 13678 | M51: 16058 | N51: 11001 | O51: 15006 | P51: 23854 | Q51: 18617 | R51: 14737.5 | S51: 3778
A52: [ 서비스부문 ] | B52: 11195253.47 | C52: 5280798.2 | D52: 211915.06 | E52: 115056.79 | F52: 862756.5 | G52: 64053.82 | H52: 559922.92 | I52: 40296.79 | J52: 34416.49 | K52: 3358625.84 | L52: 51240.76 | M52: 106324.49 | N52: 76010.2 | O52: 106083.38 | P52: 68272.01 | Q52: 151987.76 | R52: 76373.19 | S52: 31119.27
A53: 도매 및 소매업 | B53: 1182521.57 | C53: 524752.4 | D53: 29561.7 | E53: 13733.8 | F53: 28194.1 | G53: 11159 | H53: 30700 | I53: 4481 | J53: 2472 | K53: 420532.42 | L53: 4732 | M53: 27825 | N53: 20972 | O53: 13148.4 | P53: 9754 | Q53: 17821 | R53: 16993.95 | S53: 5688.8
A54: 운수 및 창고업 | B54: 133297.9 | C54: 63865.9 | D54: 4958 | E54: 389 | F54: 6276 | G54: 124 | H54: 48017 | I54: 100 | J54: 0 | K54: 5948 | L54: 169 | M54: 607 | N54: 1087 | O54: 38 | P54: 1319 | Q54: 77 | R54: 190 | S54: 133
A55: 숙박 및 음식점업 | B55: 35965 | C55: 25513 | D55: 164 | E55: 0 | F55: 1091 | G55: 10 | H55: 360 | I55: 257 | J55: 0 | K55: 5957 | L55: 192 | M55: 166 | N55: 161 | O55: 1099 | P55: 699 | Q55: 62 | R55: 40 | S55: 194
A56: 정보통신업 | B56: 4841794.6 | C56: 2906532.95 | D56: 83384.46 | E56: 47118.99 | F56: 38751.1 | G56: 22565.62 | H56: 113653.42 | I56: 9790.79 | J56: 8949.99 | K56: 1454773.37 | L56: 11894.76 | M56: 9566.99 | N56: 7938.1 | O56: 14977.98 | P56: 26559.61 | Q56: 48247.76 | R56: 19344.24 | S56: 17744.47
A57: · 출판업 | B57: 3358013.4 | C57: 1789846.93 | D57: 61619.91 | E57: 34533.3 | F57: 28680.99 | G57: 14596.46 | H57: 77305.27 | I57: 5359.59 | J57: 6841.3 | K57: 1236579.57 | L57: 8585.4 | M57: 5287.45 | N57: 5452.89 | O57: 9733.19 | P57: 5524.86 | Q57: 43262.7 | R57: 12859.08 | S57: 11944.51
A58: · 영상·오디오 기록물 제작 및 배급업 | B58: 61500.2 | C58: 46107.2 | D58: 963.3 | E58: 216 | F58: 0 | G58: 477.5 | H58: 2196.6 | I58: 0 | J58: 0 | K58: 10830.6 | L58: 28 | M58: 0 | N58: 385 | O58: 0 | P58: 0 | Q58: 296 | R58: 0 | S58: 0
A59: · 방송업 | B59: 22591 | C59: 20522 | D59: 592 | E59: 0 | F59: 0 | G59: 0 | H59: 361 | I59: 0 | J59: 0 | K59: 585 | L59: 0 | M59: 0 | N59: 0 | O59: 0 | P59: 0 | Q59: 0 | R59: 0 | S59: 531
A60: · 우편 및 통신업 | B60: 345542 | C60: 305086 | D60: 40 | E60: 0 | F60: 0 | G60: 0 | H60: 7123 | I60: 0 | J60: 0 | K60: 33252 | L60: 0 | M60: 0 | N60: 0 | O60: 41 | P60: 0 | Q60: 0 | R60: 0 | S60: 0
A61: · 컴퓨터프로그래밍, 시스템통합 및 관리업 | B61: 677766.84 | C61: 471667.2 | D61: 16129.65 | E61: 9934.69 | F61: 8501.11 | G61: 3681.66 | H61: 18272.55 | I61: 4431.2 | J61: 2108.69 | K61: 100456.76 | L61: 3140.36 | M61: 3632.54 | N61: 1730.31 | O61: 3089.79 | P61: 20977.75 | Q61: 3800.06 | R61: 4325.16 | S61: 1887.36
A62: · 정보서비스업 | B62: 376381.16 | C62: 273303.62 | D62: 4039.6 | E62: 2435 | F62: 1569 | G62: 3810 | H62: 8395 | I62: 0 | J62: 0 | K62: 73069.44 | L62: 141 | M62: 647 | N62: 369.9 | O62: 2114 | P62: 57 | Q62: 889 | R62: 2160 | S62: 3381.6
A63: 금융 및 보험업 | B63: 212582.1 | C63: 42481 | D63: 5226 | E63: 17 | F63: 77 | G63: 0 | H63: 9390 | I63: 3469 | J63: 11501 | K63: 135797.1 | L63: 0 | M63: 0 | N63: 0 | O63: 526 | P63: 1544 | Q63: 2376 | R63: 178 | S63: 0
A64: 부동산업 | B64: 20280 | C64: 8978 | D64: 0 | E64: 5896 | F64: 2809 | G64: 0 | H64: 66 | I64: 0 | J64: 2 | K64: 1879 | L64: 0 | M64: 0 | N64: 265 | O64: 0 | P64: 170 | Q64: 10 | R64: 205 | S64: 0
A65: 전문, 과학 및 기술서비스 | B65: 4448183 | C65: 1512371.25 | D65: 82440.9 | E65: 43384 | F65: 774667.3 | G65: 27395.2 | H65: 341975.5 | I65: 21131 | J65: 11354.5 | K65: 1278081.25 | L65: 27224 | M65: 66744 | N65: 45012.1 | O65: 73188 | P65: 25838 | Q65: 79829 | R65: 31883 | S65: 5664
A66: · 연구개발업 | B66: 2964321.45 | C66: 870068.5 | D66: 43412.9 | E66: 25767 | F66: 746679 | G66: 8188.6 | H66: 287096.1 | I66: 2894 | J66: 9182.5 | K66: 831842.85 | L66: 11701 | M66: 27339 | N66: 33619 | O66: 18497 | P66: 10670 | Q66: 27163 | R66: 8889 | S66: 1312
A67: · 전문서비스업 | B67: 220490.2 | C67: 165863.4 | D67: 3692 | E67: 2890 | F67: 4030.3 | G67: 1206.6 | H67: 4166.4 | I67: 703 | J67: 433 | K67: 30887.4 | L67: 290 | M67: 1830 | N67: 567.1 | O67: 1036 | P67: 432 | Q67: 1293 | R67: 687 | S67: 483
A68: · 건축기술, 엔지니어링 및 기타 과학기술 서비스업 | B68: 1105224.4 | C68: 393883.4 | D68: 29792 | E68: 10923 | F68: 22044 | G68: 16783 | H68: 48256 | I68: 14556 | J68: 1549 | K68: 366267 | L68: 14055 | M68: 34371 | N68: 10331 | O68: 52771 | P68: 13734 | Q68: 50507 | R68: 21566 | S68: 3836
A69: · 기타 전문, 과학 및 기술 서비스업 | B69: 158146.95 | C69: 82555.95 | D69: 5544 | E69: 3804 | F69: 1914 | G69: 1217 | H69: 2457 | I69: 2978 | J69: 190 | K69: 49084 | L69: 1178 | M69: 3204 | N69: 495 | O69: 884 | P69: 1002 | Q69: 866 | R69: 741 | S69: 33
A70: 사업시설 관리, 사업 지원 및 임대 서비스업 | B70: 144543.8 | C70: 86931.4 | D70: 2225 | E70: 2384 | F70: 1444 | G70: 563 | H70: 2246 | I70: 612 | J70: 38 | K70: 31883.9 | L70: 7016 | M70: 811.5 | N70: 308 | O70: 591 | P70: 1678 | Q70: 928 | R70: 3568 | S70: 1316
A71: 공공 행정, 국방 및 사회보장 행정 | B71: 14186 | C71: 0 | D71: 0 | E71: 0 | F71: 0 | G71: 0 | H71: 11954 | I71: 0 | J71: 0 | K71: 0 | L71: 0 | M71: 0 | N71: 0 | O71: 0 | P71: 0 | Q71: 0 | R71: 2232 | S71: 0
A72: 교육 서비스 | B72: 56258.7 | C72: 35598.5 | D72: 2412 | E72: 1053 | F72: 5784 | G72: 1222 | H72: 820 | I72: 0 | J72: 35 | K72: 5387.8 | L72: 0 | M72: 431 | N72: 0 | O72: 494 | P72: 210.4 | Q72: 2030 | R72: 732 | S72: 49
A73: 보건 및 사회복지 서비스업 | B73: 34500 | C73: 15856 | D73: 1419 | E73: 834 | F73: 2216 | G73: 628 | H73: 436 | I73: 327 | J73: 0 | K73: 9289 | L73: 0 | M73: 116 | N73: 51 | O73: 1994 | P73: 309 | Q73: 272 | R73: 753 | S73: 0
A74: 예술, 스포츠 및 여가관련 서비스업 | B74: 12295 | C74: 5519 | D74: 64 | E74: 66 | F74: 612 | G74: 0 | H74: 183 | I74: 129 | J74: 64 | K74: 5111 | L74: 0 | M74: 0 | N74: 0 | O74: 27 | P74: 31 | Q74: 0 | R74: 159 | S74: 330
A75: 협회 및 단체, 수리 및 기타 개인 서비스업 | B75: 58845.8 | C75: 52398.8 | D75: 60 | E75: 181 | F75: 835 | G75: 387 | H75: 122 | I75: 0 | J75: 0 | K75: 3986 | L75: 13 | M75: 57 | N75: 216 | O75: 0 | P75: 160 | Q75: 335 | R75: 95 | S75: 0
A76: 가구내 고용활동 및 달리 분류되지 않은 자가소비 생산활동 | B76: 22 | C76: 22 | D76: 0 | E76: 0 | F76: 0 | G76: 0 | H76: 0 | I76: 0 | J76: 0 | K76: 0 | L76: 0 | M76: 0 | N76: 0 | O76: 0 | P76: 0 | Q76: 0 | R76: 0 | S76: 0
A77: 자료 : 과학기술정보통신부·한국과학기술기획평가원, 2022년도 연구개발활동조사 통계

Sheet 1-1-10
R1: return to the table
A2: 1-1-10. 기업 산업별 연구원 1인당 연구개발비(2022년)
S4: (단위 : 천원)
A5: 산업별 | B5: 전체 | C5: 지역
C6: 서울 | D6: 부산 | E6: 대구 | F6: 인천 | G6: 광주 | H6: 대전 | I6: 울산 | J6: 세종 | K6: 경기 | L6: 강원 | M6: 충북 | N6: 충남 | O6: 전북 | P6: 전남 | Q6: 경북 | R6: 경남 | S6: 제주
A7: 총계 | B7: 201730.9997 | C7: 118422.6954 | D7: 98470.49577 | E7: 104252.1983 | F7: 159265.7087 | G7: 103446.3163 | H7: 213499.8128 | I7: 195110.0249 | J7: 204101.8732 | K7: 271270.6252 | L7: 107931.4012 | M7: 163858.8459 | N7: 243179.2068 | O7: 108957.103 | P7: 137187.2698 | Q7: 184665.8687 | R7: 129219.8335 | S7: 75736.39405
A8: [ 농업, 임업 및 어업 ] | B8: 127879.0497 | C8: 95240 | D8: 157555.5556 | F8: 12000 | G8: 16000 | H8: 87500 | I8: 97333.33333 | J8: 61250 | K8: 155396.1353 | L8: 147368.4211 | M8: 72611.11111 | N8: 73548.3871 | O8: 142459.0164 | P8: 57823.52941 | Q8: 79214.28571 | R8: 150769.2308 | S8: 49181.81818
A9: [ 광업 ] | B9: 127790.3226 | C9: 61000 | I9: 269454.5455 | K9: 88312.5 | L9: 87166.66667 | M9: 172000 | Q9: 31500
A10: [ 제조업 ] | B10: 242234.9968 | C10: 173488.2225 | D10: 111782.0777 | E10: 116748.8486 | F10: 155336.3569 | G10: 118860.5091 | H10: 232267.5413 | I10: 217348.6414 | J10: 237839.4495 | K10: 299275.3934 | L10: 120262.9247 | M10: 176844.5398 | N10: 256894.4638 | O10: 110931.5264 | P10: 168678.9886 | Q10: 196747.0872 | R10: 135467.7893 | S10: 75705.70571
A11: 식료품 | B11: 119846.1375 | C11: 199882.0429 | D11: 59980 | E11: 87571.42857 | F11: 86081.76101 | G11: 73037.73585 | H11: 171093.8511 | I11: 58266.66667 | J11: 102157.3034 | K11: 123901.2121 | L11: 87363.35404 | M11: 96530.8642 | N11: 70955.32646 | O11: 81274.28571 | P11: 74417.35537 | Q11: 61393.66516 | R11: 61695.53806 | S11: 67525.25253
A12: 음료 | B12: 87423.58079 | C12: 136463.1579 | D12: 59555.55556 | E12: 49588.23529 | F12: 40000 | H12: 58166.66667 | K12: 75781.25 | L12: 115142.8571 | M12: 90711.53846 | N12: 54600 | O12: 69277.77778 | P12: 77000 | Q12: 48666.66667 | R12: 80030.30303 | S12: 74291.66667
A13: 담배 | B13: 313329.1925 | H13: 313329.1925
A14: 섬유제품(의복제외) | B14: 86469.3356 | C14: 75573.46939 | D14: 94666.66667 | E14: 80456.01852 | F14: 58155.55556 | G14: 113588.2353 | H14: 68342.85714 | I14: 62428.57143 | J14: 83222.22222 | K14: 85613.76404 | L14: 48333.33333 | M14: 101162.5 | N14: 149960.7843 | O14: 89903.22581 | P14: 50000 | Q14: 110959.6413 | R14: 81630.13699
A15: 의복, 의복액세서리 및 모피제품 | B15: 81324.27695 | C15: 83658.37027 | D15: 113158.5366 | E15: 36789.47368 | F15: 59413.7931 | G15: 75333.33333 | H15: 121666.6667 | I15: 107600 | K15: 59662.60163 | L15: 40166.66667 | M15: 34400 | O15: 57333.33333 | P15: 62833.33333 | Q15: 107875 | R15: 48785.71429
A16: 가죽, 가방 및 신발 | B16: 85734.13897 | C16: 74638.97764 | D16: 132350.5155 | E16: 65153.84615 | F16: 75142.85714 | H16: 41000 | J16: 655000 | K16: 82446.80851 | M16: 136166.6667 | N16: 73333.33333 | O16: 43500 | P16: 137500 | Q16: 29666.66667 | R16: 58421.05263
A17: 목재 및 나무제품(가구제외) | B17: 76163.56108 | C17: 69745.09804 | D17: 91230.76923 | E17: 33250 | F17: 71033.70787 | G17: 48769.23077 | H17: 105500 | J17: 64750 | K17: 78053.57143 | L17: 88250 | M17: 79142.85714 | N17: 75944.44444 | O17: 86750 | P17: 67350 | Q17: 87571.42857 | R17: 87833.33333
A18: 펄프, 종이 및 종이제품 | B18: 200152.9412 | C18: 781874.3719 | D18: 76777.77778 | E18: 94718.75 | F18: 51870.96774 | G18: 53111.11111 | H18: 174204.5455 | I18: 97488.37209 | J18: 68285.71429 | K18: 79602.45184 | L18: 27500 | M18: 73493.82716 | N18: 70704.54545 | O18: 73444.44444 | P18: 31333.33333 | Q18: 92787.87879 | R18: 98160 | S18: 79333.33333
A19: 인쇄 및 기록매체 복제 | B19: 67112.10762 | C19: 64704.32432 | D19: 48125 | E19: 54129.03226 | F19: 71160 | G19: 86260 | H19: 56062.5 | I19: 158666.6667 | J19: 35000 | K19: 66559.7561 | L19: 64500 | M19: 99863.63636 | N19: 66722.22222 | O19: 42300 | P19: 117480 | Q19: 83403.84615 | R19: 88869.56522 | S19: 31500
A20: 코크스, 연탄 및 석유정제품 | B20: 375953.9801 | C20: 845428.5714 | D20: 24625 | F20: 153000 | H20: 491446.0285 | I20: 101366.6667 | K20: 205547.3684 | L20: 75416.66667 | M20: 58466.66667 | N20: 187090.9091 | P20: 197000 | Q20: 95000 | R20: 89342.85714
A21: 화학물질 및 화학제품(의약품 제외) | B21: 165478.679 | C21: 208133.7531 | D21: 93316.23932 | E21: 87763.63636 | F21: 94830.95723 | G21: 83100 | H21: 243630.7359 | I21: 175570.1357 | J21: 192953.9749 | K21: 151249.024 | L21: 108042.7807 | M21: 168564.8665 | N21: 147677.706 | O21: 134254.1296 | P21: 184310.0304 | Q21: 120668.5007 | R21: 94669.627 | S21: 67392.15686
A22: 의료용 물질 및 의약품 | B22: 223377.3849 | C22: 207081.266 | D22: 91925 | E22: 106156.8627 | F22: 389393.3884 | G22: 99133.33333 | H22: 187708.1633 | I22: 118861.1111 | J22: 244104.4776 | K22: 221694.3765 | L22: 170546.1741 | M22: 160986 | N22: 93410.44776 | O22: 90743.24324 | P22: 113060 | Q22: 186850 | R22: 63021.73913 | S22: 83400
A23: 고무 및 프라스틱제품 | B23: 148539.668 | C23: 241364.0288 | D23: 99925.4386 | E23: 113671.4286 | F23: 124269.8413 | G23: 147288.5572 | H23: 271314.0376 | I23: 88097.22222 | J23: 137438.3562 | K23: 122489.4831 | L23: 112674.4186 | M23: 123955.5556 | N23: 161291.6667 | O23: 90147.05882 | P23: 81516.12903 | Q23: 134821.5385 | R23: 117301.3183 | S23: 59142.85714
A24: 비금속 광물제품 | B24: 129429.7345 | C24: 110851.8519 | D24: 65552.63158 | E24: 80031.74603 | F24: 131815.7895 | G24: 116060.6061 | H24: 100117.6471 | I24: 105166.6667 | J24: 362729.4118 | K24: 92295.98051 | L24: 106101.2658 | M24: 104725.8065 | N24: 202066.8103 | O24: 109000 | P24: 72812.94964 | Q24: 161523.9521 | R24: 89677.85235 | S24: 26750
A25: 제1차 금속산업 | B25: 204852.4424 | C25: 131513.2743 | D25: 97839.02439 | E25: 71460.31746 | F25: 208409.6692 | G25: 71821.42857 | H25: 269492.3077 | I25: 275490.7407 | J25: 134222.2222 | K25: 112388.3627 | L25: 87333.33333 | M25: 79387.7551 | N25: 135012.7877 | O25: 171500 | P25: 601994.2197 | Q25: 392581.3253 | R25: 145309.9415
A26: · 제1차 철강 산업 | B26: 249380.8115 | C26: 166507.6923 | D26: 95397.59036 | E26: 68300 | F26: 326284.153 | G26: 66666.66667 | H26: 86000 | I26: 219000 | J26: 90909.09091 | K26: 71996.18321 | L26: 97416.66667 | M26: 77338.98305 | N26: 137902.8832 | O26: 153246.7532 | P26: 770192 | Q26: 504019.1898 | R26: 165972.7273
A27: · 제1차 비철금속 산업 | B27: 151406.5336 | C27: 69527.77778 | D27: 106769.2308 | E27: 80333.33333 | F27: 98639.09774 | G27: 70636.36364 | H27: 295586.2069 | I27: 288905.4054 | J27: 216833.3333 | K27: 146742.8571 | L27: 77250 | M27: 67173.91304 | N27: 135559.5238 | O27: 254621.6216 | P27: 194500 | Q27: 137365.6716 | R27: 101391.8919
A28: · 금속주조업 | B28: 108668.7371 | C28: 127916.6667 | D28: 108961.5385 | E28: 63833.33333 | F28: 117870.1299 | G28: 86800 | H28: 47833.33333 | I28: 267842.1053 | J28: 115000 | K28: 101039.3701 | M28: 104500 | N28: 85000 | O28: 95590.90909 | P28: 72416.66667 | Q28: 96426.22951 | R28: 118312.5
A29: 금속가공제품(기계 및 가구 제외) | B29: 112626.9238 | C29: 100403.2258 | D29: 96834.38155 | E29: 101883.1169 | F29: 85097.69335 | G29: 73412.2807 | H29: 286176.5705 | I29: 135182.8571 | J29: 129900 | K29: 100697.6398 | L29: 61551.02041 | M29: 121540.6977 | N29: 96220 | O29: 74784 | P29: 90694.17476 | Q29: 132931.8182 | R29: 99078.81773 | S29: 78000
A30: 전자부품, 컴퓨터, 영상, 음향 및 통신장비 | B30: 370270.3927 | C30: 215010.9142 | D30: 169941.3265 | E30: 94038.04554 | F30: 194194.5744 | G30: 185255.5066 | H30: 111408.7333 | I30: 113313.0769 | J30: 201520.2703 | K30: 420761.3952 | L30: 133670.3297 | M30: 341475.4399 | N30: 462485.9922 | O30: 118678.4566 | P30: 126689.6226 | Q30: 373302.1766 | R30: 160431.7518 | S30: 121750
A31: · 반도체 | B31: 534188.676 | C31: 192228.3497 | D31: 192500 | E31: 96372.88136 | F31: 297323.9437 | G31: 163659.0909 | H31: 162448.7805 | I31: 128461.5385 | J31: 63000 | K31: 710850.5509 | L31: 83714.28571 | M31: 407034.141 | N31: 132828.5714 | O31: 125922.5352 | P31: 150545.4545 | Q31: 101863.9456 | R31: 95724.13793 | S31: 239625
A32: · 전자부품 | B32: 287550.3926 | C32: 167995.45 | D32: 221702.5172 | E32: 110221.0526 | F32: 130018.75 | G32: 123382.5503 | H32: 100089.6359 | I32: 133775.5102 | J32: 251080 | K32: 304265.2358 | L32: 196195.122 | M32: 218948.6405 | N32: 548291.5173 | O32: 134680 | P32: 102327.8689 | Q32: 376838.3595 | R32: 131689.5674
A33: · 컴퓨터 및 주변장치 | B33: 113347.1201 | C33: 99917.72837 | D33: 68490.56604 | E33: 44029.46429 | F33: 162331.5508 | G33: 1200 | H33: 83325.55556 | I33: 57543.75 | J33: 138375 | K33: 123465.6397 | L33: 190000 | M33: 57525 | N33: 65208.33333 | O33: 45100 | P33: 190633.3333 | Q33: 83840.90909 | R33: 148130.4348 | S33: 65000
A34: · 통신 및 방송 장비 | B34: 411245.9051 | C34: 283449.2637 | D34: 69959.53757 | E34: 87034.09091 | F34: 135887.0637 | G34: 252683.1683 | H34: 86475 | I34: 98142.85714 | J34: 99821.42857 | K34: 429136.0359 | L34: 72263.15789 | M34: 70500 | N34: 455265.4941 | O34: 102742.8571 | P34: 152214.2857 | Q34: 416624.4009 | R34: 191340 | S34: 65272.72727
A35: · 영상 및 음향기기 | B35: 202129.8616 | C35: 214025.8515 | D35: 165287.8788 | E35: 79216.21622 | F35: 260011.7188 | G35: 27200 | H35: 140366.6667 | I35: 36800 | J35: 69555.55556 | K35: 203650.8447 | L35: 136000 | M35: 51777.77778 | N35: 58083.33333 | O35: 75857.14286 | P35: 47000 | Q35: 111500 | R35: 167846.9995 | S35: 55500
A36: · 마그네틱 및 광학 매체 | B36: 227696.4286 | C36: 42500 | D36: 66857.14286 | H36: 98000 | K36: 314117.6471 | N36: 227750 | R36: 29250
A37: 의료, 정밀, 광학기기 및 시계 | B37: 135043.6706 | C37: 120354.8701 | D37: 111710.6173 | E37: 103813.8686 | F37: 88222.91994 | G37: 95582.49158 | H37: 115353.6015 | I37: 109181.4159 | J37: 122982.7586 | K37: 160664.9727 | L37: 108968.75 | M37: 130804.4693 | N37: 93715.01272 | O37: 105162.7907 | P37: 67040.54054 | Q37: 138272.3464 | R37: 89086.2069 | S37: 44444.44444
A38: 전기장비 | B38: 187572.9632 | C38: 114332.5811 | D38: 94792.41573 | E38: 134036.3825 | F38: 115282.5835 | G38: 100728.4211 | H38: 338939.7313 | I38: 98089.62264 | J38: 78418.91892 | K38: 162360.7876 | L38: 116865.2482 | M38: 240290.678 | N38: 520126.8701 | O38: 102791.4692 | P38: 143451.2635 | Q38: 147295.7746 | R38: 110029.8643 | S38: 110584.9057
A39: 기타 기계 및 장비 | B39: 132992.8743 | C39: 103311.0194 | D39: 111214.5722 | E39: 112341.8741 | F39: 139392.4951 | G39: 86853.94265 | H39: 189356.7839 | I39: 92872.59615 | J39: 102156.8627 | K39: 143356.9201 | L39: 76633.33333 | M39: 107214.8481 | N39: 110206.5404 | O39: 109622.6734 | P39: 89577.12934 | Q39: 99011.75407 | R39: 144512.9758 | S39: 51775
A40: 자동차 및 트레일러 | B40: 247450.1881 | C40: 117979.2561 | D40: 131290.4762 | E40: 165078.9106 | F40: 127304.379 | G40: 152976.9053 | H40: 71724.13793 | I40: 354937.4589 | J40: 384633.758 | K40: 295345.6113 | L40: 166056.701 | M40: 173957.0552 | N40: 158934.8128 | O40: 120403.0733 | P40: 193369.2308 | Q40: 127894.3691 | R40: 136483.504
A41: 기타 운송장비 | B41: 148675.5854 | C41: 136790.8497 | D41: 94549.64539 | E41: 78333.33333 | F41: 124469.697 | G41: 139400 | H41: 105788.0184 | I41: 139556.9358 | J41: 471354.1667 | K41: 164627.3389 | L41: 227142.8571 | M41: 110139.3035 | N41: 34371.90083 | O41: 100333.3333 | P41: 334671.875 | Q41: 80452.83019 | R41: 152811.9716
A42: · 선박 및 보트 | B42: 166463.9221 | C42: 330666.6667 | D42: 92851.69492 | E42: 65000 | F42: 114566.6667 | G42: 22333.33333 | H42: 139477.7778 | I42: 139619.7479 | J42: 44500 | K42: 212353.562 | L42: 322500 | N42: 85214.28571 | O42: 66875 | P42: 359639.5349 | Q42: 94312.5 | R42: 175159.8441
A43: · 철도장비 | B43: 74360.39604 | C43: 78775.86207 | D43: 111100 | E43: 68500 | F43: 85960 | K43: 66625.79132 | M43: 110120 | N43: 46000 | O43: 77375 | R43: 61149.25373
A44: · 항공기, 우주선 및 부품 | B44: 164354.2476 | C44: 132000 | D44: 109066.6667 | E44: 100608.6957 | F44: 123468.75 | G44: 100923.0769 | H44: 96973.83721 | I44: 135285.7143 | J44: 489913.0435 | K44: 300122.49 | M44: 130437.5 | N44: 24063.82979 | O44: 79256.41026 | P44: 102705.8824 | Q44: 61846.15385 | R44: 151406.9767
A45: · 기타 운송장비 | B45: 120030.4348 | C45: 61818.18182 | D45: 61166.66667 | E45: 51090.90909 | F45: 226307.6923 | G45: 352250 | K45: 128818.1818 | L45: 100000 | M45: 78000 | N45: 55636.36364 | O45: 190608.6957 | P45: 217666.6667 | Q45: 55250 | R45: 115345.4545
A46: 가구 | B46: 74105.43893 | C46: 80419.43128 | D46: 66200 | E46: 152000 | F46: 80851.85185 | G46: 70818.18182 | H46: 47888.88889 | I46: 223000 | K46: 65119.17098 | L46: 46333.33333 | M46: 68205.88235 | N46: 124521.7391 | O46: 93571.42857 | P46: 36000 | Q46: 105357.1429 | R46: 92086.95652
A47: 기타 제품 | B47: 78886.29842 | C47: 76262.5641 | D47: 72391.75258 | E47: 87815.78947 | F47: 74889.57055 | G47: 66444.44444 | H47: 160535.7143 | I47: 82571.42857 | J47: 70000 | K47: 76467.28111 | L47: 81285.71429 | M47: 113327.8689 | N47: 98843.75 | O47: 45000 | P47: 89631.57895 | Q47: 72666.66667 | R47: 58870.12987 | S47: 63500
A48: 산업용 기계 및 장비 수리업 | B48: 76170.37037 | C48: 72900 | D48: 69823.52941 | E48: 32000 | F48: 56766.66667 | H48: 77833.33333 | I48: 45000 | K48: 107074.0741 | M48: 68666.66667 | O48: 28900 | P48: 100000 | Q48: 100000 | R48: 100000
A49: [ 전기, 가스, 증기 및 공기조절 공급업 ] | B49: 435192.5311 | C49: 287853.6585 | D49: 42307.69231 | E49: 65333.33333 | F49: 370340.9091 | G49: 49200 | H49: 538142.6799 | I49: 62600 | K49: 304311.1111 | L49: 34166.66667 | M49: 56000 | N49: 90903.84615 | O49: 92250 | P49: 266000 | R49: 18714.28571 | S49: 45800
A50: [ 수도, 하수·및 폐기물 처리, 원료재생업 ] | B50: 91003.01205 | C50: 127470.5882 | D50: 75619.04762 | E50: 60500 | F50: 127365.0794 | G50: 46857.14286 | H50: 161142.8571 | I50: 53105.26316 | J50: 62750 | K50: 90362.38532 | L50: 81562.5 | M50: 60880.95238 | N50: 125818.1818 | O50: 62235.29412 | P50: 53972.22222 | Q50: 92066.66667 | R50: 78551.72414 | S50: 60500
A51: [ 건설업 ] | B51: 76030.80457 | C51: 70930.33359 | D51: 69461.12601 | E51: 51033.75527 | F51: 75494.18605 | G51: 59643.56436 | H51: 123454.3974 | I51: 58204.91803 | J51: 43560 | K51: 90239.08436 | L51: 62456.621 | M51: 57555.55556 | N51: 55281.40704 | O51: 47188.67925 | P51: 64470.27027 | Q51: 72439.68872 | R51: 56036.12167 | S51: 59031.25
A52: [ 서비스부문 ] | B52: 97766.60091 | C52: 84030.2686 | D52: 71738.34123 | E52: 66583.79051 | F52: 174364.6928 | G52: 70699.58057 | H52: 119743.9949 | I52: 70448.93357 | J52: 97221.72316 | K52: 118608.1096 | L52: 84001.2459 | M52: 93843.32745 | N52: 90166.31079 | O52: 122781.6898 | P52: 79110.0927 | Q52: 113339.1201 | R52: 65444.03599 | S52: 79793
A53: 도매 및 소매업 | B53: 83352.47551 | C53: 79992.7439 | D53: 72812.06897 | E53: 58691.45299 | F53: 65415.54524 | G53: 76958.62069 | H53: 82305.63003 | I53: 59746.66667 | J53: 57488.37209 | K53: 93368.65453 | L53: 65722.22222 | M53: 85879.62963 | N53: 83553.78486 | O53: 83217.72152 | P53: 76203.125 | Q53: 95811.82796 | R53: 77245.22727 | S53: 73880.51948
A54: 운수 및 창고업 | B54: 120631.5837 | C54: 114866.7266 | D54: 97215.68627 | E54: 129666.6667 | F54: 112071.4286 | G54: 24800 | H54: 156407.1661 | I54: 50000 | K54: 79306.66667 | L54: 84500 | M54: 75875 | N54: 98818.18182 | O54: 38000 | P54: 69421.05263 | Q54: 25666.66667 | R54: 63333.33333 | S54: 44333.33333
A55: 숙박 및 음식점업 | B55: 102464.3875 | C55: 107649.789 | D55: 82000 | F55: 57421.05263 | G55: 5000 | H55: 45000 | I55: 128500 | K55: 104508.7719 | L55: 64000 | M55: 83000 | N55: 53666.66667 | O55: 183166.6667 | P55: 139800 | Q55: 31000 | R55: 40000 | S55: 97000
A56: 정보통신업 | B56: 79796.20944 | C56: 74368.21508 | D56: 60075.25937 | E56: 50829.54693 | F56: 53671.88366 | G56: 61319.61957 | H56: 55603.43444 | I56: 44503.59091 | J56: 51142.8 | K56: 106025.3167 | L56: 57462.6087 | M56: 53446.87151 | N56: 50561.1465 | O56: 65692.89474 | P56: 88532.03333 | Q56: 116540.4831 | R56: 54955.22727 | S56: 92419.11458
A57: · 출판업 | B57: 73987.86851 | C57: 62735.60918 | D57: 61191.56902 | E57: 48230.86592 | F57: 52147.25455 | G57: 56795.5642 | H57: 50559.3656 | I57: 42876.72 | J57: 53033.33333 | K57: 109898.6465 | L57: 65537.40458 | M57: 46381.14035 | N57: 48686.51786 | O57: 56588.31395 | P57: 47628.10345 | Q57: 144691.3043 | R57: 54487.62712 | S57: 107608.1982
A58: · 영상·오디오 기록물 제작 및 배급업 | B58: 62819.40756 | C58: 62055.45087 | D58: 56664.70588 | E58: 36000 | G58: 159166.6667 | H58: 66563.63636 | K58: 65244.57831 | L58: 28000 | N58: 42777.77778 | Q58: 296000
A59: · 방송업 | B59: 152641.8919 | C59: 171016.6667 | D59: 65777.77778 | H59: 72200 | K59: 117000 | S59: 59000
A60: · 우편 및 통신업 | B60: 184485.8516 | C60: 184788.613 | D60: 40000 | H60: 71230 | K60: 277100 | O60: 41000
A61: · 컴퓨터프로그래밍, 시스템통합 및 관리업 | B61: 87071.79342 | C61: 99591.89189 | D61: 56397.37762 | E61: 60210.24242 | F61: 60722.21429 | G61: 64590.52632 | H61: 61317.28188 | I61: 46644.21053 | J61: 45841.08696 | K61: 72794.75362 | L61: 43018.63014 | M61: 66046.18182 | N61: 59665.86207 | O61: 110349.6429 | P61: 115899.1713 | Q61: 41305 | R61: 50292.55814 | S61: 51009.72973
A62: · 정보서비스업 | B62: 83510.35278 | C62: 82744.05692 | D62: 59405.88235 | E62: 60875 | F62: 49031.25 | G62: 74705.88235 | H62: 106265.8228 | K62: 91565.71429 | L62: 70500 | M62: 64700 | N62: 52842.85714 | O62: 78296.2963 | P62: 19000 | Q62: 40409.09091 | R62: 72000 | S62: 96617.14286
A63: 금융 및 보험업 | B63: 194850.6874 | C63: 111498.6877 | D63: 104520 | E63: 5666.666667 | F63: 77000 | H63: 191632.6531 | I63: 289083.3333 | J63: 460040 | K63: 251011.2754 | O63: 526000 | P63: 193000 | Q63: 132000 | R63: 89000
A64: 부동산업 | B64: 83801.65289 | C64: 93520.83333 | E64: 93587.30159 | F64: 108038.4615 | H64: 16500 | J64: 1000 | K64: 64793.10345 | N64: 53000 | P64: 15454.54545 | Q64: 3333.333333 | R64: 68333.33333
A65: 전문, 과학 및 기술서비스 | B65: 135843.1211 | C65: 113209.9147 | D65: 86597.58403 | E65: 103049.8812 | F65: 217542.0668 | G65: 83268.08511 | H65: 194746.8679 | I65: 88045.83333 | J65: 107117.9245 | K65: 146367.5275 | L65: 97577.06093 | M65: 112174.7899 | N65: 110867.2414 | O65: 179382.3529 | P65: 75110.46512 | Q65: 117741.8879 | R65: 64540.48583 | S65: 66635.29412
A66: · 연구개발업 | B66: 204888.129 | C66: 200569.041 | D66: 128821.6617 | E66: 195204.5455 | F66: 241175.3876 | G66: 98657.83133 | H66: 269068.5098 | I66: 120583.3333 | J66: 145753.9683 | K66: 194719.7683 | L66: 107348.6239 | M66: 127158.1395 | N66: 158580.1887 | O66: 131184.3972 | P66: 107777.7778 | Q66: 184782.3129 | R66: 76629.31034 | S66: 77176.47059
A67: · 전문서비스업 | B67: 61503.54254 | C67: 61408.14513 | D67: 68370.37037 | E67: 39589.0411 | F67: 79025.4902 | G67: 60330 | H67: 65100 | I67: 31954.54545 | J67: 39363.63636 | K67: 70198.63636 | L67: 58000 | M67: 37346.93878 | N67: 27004.7619 | O67: 47090.90909 | P67: 61714.28571 | Q67: 68052.63158 | R67: 52846.15385 | S67: 37153.84615
A68: · 건축기술, 엔지니어링 및 기타 과학기술 서비스업 | B68: 87100.98511 | C68: 77020.61009 | D68: 62326.35983 | E68: 67425.92593 | F68: 58472.14854 | G68: 85627.55102 | H68: 83632.58232 | I68: 86642.85714 | J68: 55321.42857 | K68: 101122.8603 | L68: 91862.7451 | M68: 116118.2432 | N68: 63771.60494 | O68: 225517.094 | P68: 61587.44395 | Q68: 102034.3434 | R68: 61617.14286 | S68: 71037.03704
A69: · 기타 전문, 과학 및 기술 서비스업 | B69: 78955.04244 | C69: 68454.35323 | D69: 66795.18072 | E69: 70444.44444 | F69: 51729.72973 | G69: 40566.66667 | H69: 51187.5 | I69: 114538.4615 | J69: 47500 | K69: 123326.6332 | L69: 98166.66667 | M69: 91542.85714 | N69: 45000 | O69: 80363.63636 | P69: 66800 | Q69: 50941.17647 | R69: 49400 | S69: 33000
A70: 사업시설 관리, 사업 지원 및 임대 서비스업 | B70: 78641.89336 | C70: 75135.17718 | D70: 50568.18182 | E70: 103652.1739 | F70: 48133.33333 | G70: 33117.64706 | H70: 86384.61538 | I70: 55636.36364 | J70: 38000 | K70: 97207.0122 | L70: 152521.7391 | M70: 67625 | N70: 51333.33333 | O70: 39400 | P70: 49352.94118 | Q70: 54588.23529 | R70: 75914.89362 | S70: 54833.33333
A71: 공공 행정, 국방 및 사회보장 행정 | B71: 168880.9524 | H71: 186781.25 | R71: 111600
A72: 교육 서비스 | B72: 57057.50507 | C72: 50637.98009 | D72: 67000 | E72: 39000 | F72: 186580.6452 | G72: 53130.43478 | H72: 39047.61905 | J72: 35000 | K72: 59206.59341 | M72: 39181.81818 | O72: 32933.33333 | P72: 52600 | Q72: 203000 | R72: 73200 | S72: 16333.33333
A73: 보건 및 사회복지 서비스업 | B73: 66346.15385 | C73: 72733.94495 | D73: 67571.42857 | E73: 39714.28571 | F73: 51534.88372 | G73: 44857.14286 | H73: 33538.46154 | I73: 46714.28571 | K73: 73722.22222 | M73: 116000 | N73: 51000 | O73: 64322.58065 | P73: 51500 | Q73: 38857.14286 | R73: 68454.54545
A74: 예술, 스포츠 및 여가관련 서비스업 | B74: 63051.28205 | C74: 49276.78571 | D74: 32000 | E74: 66000 | F74: 40800 | H74: 45750 | I74: 43000 | J74: 64000 | K74: 104306.1224 | O74: 27000 | P74: 31000 | R74: 79500 | S74: 82500
A75: 협회 및 단체, 수리 및 기타 개인 서비스업 | B75: 120585.6557 | C75: 137529.6588 | D75: 30000 | E75: 36200 | F75: 64230.76923 | G75: 129000 | H75: 17428.57143 | K75: 62281.25 | L75: 13000 | M75: 57000 | N75: 72000 | P75: 53333.33333 | Q75: 111666.6667 | R75: 47500
A76: 가구내 고용활동 및 달리 분류되지 않은 자가소비 생산활동 | B76: 22000 | C76: 22000
A77: 자료 : 과학기술정보통신부·한국과학기술기획평가원, 2022년도 연구개발활동조사 통계

Sheet 1-1-11
R1: return to the table
A2: 1-1-11. 기업 산업별 기업유형별 연구개발비(2022년)
S4: (단위 : 백만원)
A5: 산업별·기업유형별 | B5: 전체 | C5: 지역
C6: 서울 | D6: 부산 | E6: 대구 | F6: 인천 | G6: 광주 | H6: 대전 | I6: 울산 | J6: 세종 | K6: 경기 | L6: 강원 | M6: 충북 | N6: 충남 | O6: 전북 | P6: 전남 | Q6: 경북 | R6: 경남 | S6: 제주
A7: 총계 | B7: =SUM(C7:S7) -> 89421300.22 | C7: =SUM(C8:C11) -> 12651096.56 | D7: 1001051.05 | E7: 857891.33 | F7: 3009166.3 | G7: 429095.32 | H7: 3967894.02 | I7: 939844.99 | J7: 347585.5 | K7: 55090723.64 | L7: 315051.76 | M7: 1693808.89 | N7: 3482812.6 | O7: 601007.38 | P7: 508004.46 | Q7: 2300198.06 | R7: 2164949.09 | S7: 61119.27
A8: 대기업 | B8: =SUM(C8:S8) -> 55170632.34 | C8: =SUM(C13,C18,C23,C218,C223,C228,C233) -> 4655833 | D8: 89830 | E8: 17854 | F8: 792104 | G8: 48766 | H8: 2496805.75 | I8: 560061 | J8: 91521 | K8: 41250561.59 | L8: 27597 | M8: 597365 | N8: 2289413 | O8: 167268 | P8: 189871 | Q8: 1187467 | R8: 707034 | S8: 1281
A9: 중견기업 | B9: =SUM(C9:S9) -> 12504052.33 | C9: =SUM(C14,C19,C24,C219,C224,C229,C234) -> 1945933.38 | D9: 156281.57 | E9: 266940 | F9: 1252724.4 | G9: 78163 | H9: 343114.1 | I9: 153852 | J9: 151744 | K9: 5874632.88 | L9: 39453 | M9: 484950 | N9: 480111 | O9: 75337 | P9: 50591 | Q9: 462301 | R9: 685118 | S9: 2806
A10: 중소기업 | B10: =SUM(C10:S10) -> 9422731.55 | C10: =SUM(C15,C20,C25,C220,C225,C230,C235) -> 2447695.75 | D10: 375801.75 | E10: 285866.02 | F10: 507361.65 | G10: 122807.36 | H10: 241728.8 | I10: 104246.22 | J10: 29999.51 | K10: 3359300.67 | L10: 89820.19 | M10: 316626.77 | N10: 407531.74 | O10: 178297.41 | P10: 125176.33 | Q10: 314997.46 | R10: 493310.42 | S10: 22163.5
A11: 벤처기업 | B11: =SUM(C11:S11) -> 12323884 | C11: =SUM(C16,C21,C26,C221,C226,C231,C236) -> 3601634.43 | D11: =SUM(D16,D21,D26,D221,D226,D231,D236) -> 379137.73 | E11: 287231.31 | F11: 456976.25 | G11: 179358.96 | H11: 886245.37 | I11: 121685.77 | J11: 74320.99 | K11: 4606228.5 | L11: 158181.57 | M11: 294867.12 | N11: 305756.86 | O11: 180104.97 | P11: 142366.13 | Q11: 335432.6 | R11: 279486.67 | S11: 34868.77
A12: [ 농업, 임업 및 어업 ] | B12: 59208 | C12: 2381 | D12: 1418 | E12: 0 | F12: 12 | G12: 48 | H12: 525 | I12: 292 | J12: 735 | K12: 32167 | L12: 2800 | M12: 1307 | N12: 2280 | O12: 8690 | P12: 983 | Q12: 1109 | R12: 3920 | S12: 541
A13: 대기업 | B13: 16909 | C13: 0 | D13: 0 | E13: 0 | F13: 0 | G13: 0 | H13: 0 | I13: 0 | J13: 0 | K13: 12089 | L13: 0 | M13: 0 | N13: 0 | O13: 2102 | P13: 0 | Q13: 0 | R13: 2718 | S13: 0
A14: 중견기업 | B14: 4078 | C14: 0 | D14: 0 | E14: 0 | F14: 0 | G14: 0 | H14: 0 | I14: 0 | J14: 0 | K14: 4042 | L14: 0 | M14: 0 | N14: 0 | O14: 0 | P14: 36 | Q14: 0 | R14: 0 | S14: 0
A15: 중소기업 | B15: 14758 | C15: 173 | D15: 1307 | E15: 0 | F15: 12 | G15: 1 | H15: 0 | I15: 0 | J15: 669 | K15: 4961 | L15: 684 | M15: 732 | N15: 1156 | O15: 3136 | P15: 373 | Q15: 493 | R15: 998 | S15: 63
A16: 벤처기업 | B16: 23463 | C16: 2208 | D16: 111 | E16: 0 | F16: 0 | G16: 47 | H16: 525 | I16: 292 | J16: 66 | K16: 11075 | L16: 2116 | M16: 575 | N16: 1124 | O16: 3452 | P16: 574 | Q16: 616 | R16: 204 | S16: 478
A17: [ 광업 ] | B17: 7923 | C17: 366 | D17: 0 | E17: 0 | F17: 0 | G17: 0 | H17: 0 | I17: 2964 | J17: 0 | K17: 1413 | L17: 1569 | M17: 1548 | N17: 0 | O17: 0 | P17: 0 | Q17: 63 | R17: 0 | S17: 0
A18: 대기업 | B18: 3223 | C18: 0 | D18: 0 | E18: 0 | F18: 0 | G18: 0 | H18: 0 | I18: 2964 | J18: 0 | K18: 0 | L18: 259 | M18: 0 | N18: 0 | O18: 0 | P18: 0 | Q18: 0 | R18: 0 | S18: 0
A19: 중견기업 | B19: 851 | C19: 0 | D19: 0 | E19: 0 | F19: 0 | G19: 0 | H19: 0 | I19: 0 | J19: 0 | K19: 0 | L19: 851 | M19: 0 | N19: 0 | O19: 0 | P19: 0 | Q19: 0 | R19: 0 | S19: 0
A20: 중소기업 | B20: 3799 | C20: 366 | D20: 0 | E20: 0 | F20: 0 | G20: 0 | H20: 0 | I20: 0 | J20: 0 | K20: 1413 | L20: 409 | M20: 1548 | N20: 0 | O20: 0 | P20: 0 | Q20: 63 | R20: 0 | S20: 0
A21: 벤처기업 | B21: 50 | C21: 0 | D21: 0 | E21: 0 | F21: 0 | G21: 0 | H21: 0 | I21: 0 | J21: 0 | K21: 0 | L21: 50 | M21: 0 | N21: 0 | O21: 0 | P21: 0 | Q21: 0 | R21: 0 | S21: 0
A22: [ 제조업 ] | B22: 76895561.85 | C22: 7152398.95 | D22: 759671 | E22: 730030.55 | F22: 2096108.8 | G22: 345527.5 | H22: 2894518.1 | I22: 887869.2 | J22: 311094 | K22: 51438556.8 | L22: 244254 | M22: 1565958.4 | N22: 3387410.4 | O22: 466578 | P22: 398588.45 | Q22: 2124278.3 | R22: 2067509.4 | S22: 25210
A23: 대기업 | B23: 53105128 | C23: 3848837 | D23: 86052 | E23: 12304 | F23: 675518 | G23: 48685 | H23: 1931760 | I23: 556210 | J23: 80020 | K23: 40798859 | L23: 13619 | M23: 589913 | N23: 2284335 | O23: 121491 | P23: 175196 | Q23: 1178964 | R23: 702084 | S23: 1281
A24: 중견기업 | B24: 10086688.4 | C24: 1299104 | D24: 142837 | E24: 264320 | F24: 658581.4 | G24: 76706 | H24: 317270 | I24: 149147 | J24: 151744 | K24: 4846491 | L24: 36730 | M24: 474613 | N24: 462203 | O24: 75337 | P24: 27603 | Q24: 417606 | R24: 683590 | S24: 2806
A25: 중소기업 | B25: 6568745.3 | C25: 1020537.2 | D25: 273415.4 | E25: 242547 | F25: 429304 | G25: 75805.5 | H25: 155660 | I25: 85962 | J25: 22142 | K25: 2631504.8 | L25: 64304 | M25: 258883 | N25: 372794 | O25: 121610 | P25: 86661 | Q25: 279374 | R25: 440352.4 | S25: 7889
A26: 벤처기업 | B26: 7135000.15 | C26: 983920.75 | D26: 257366.6 | E26: 210859.55 | F26: 332705.4 | G26: 144331 | H26: 489828.1 | I26: 96550.2 | J26: 57188 | K26: 3161702 | L26: 129601 | M26: 242549.4 | N26: 268078.4 | O26: 148140 | P26: 109128.45 | Q26: 248334.3 | R26: 241483 | S26: 13234
A27: 식료품 | B27: 1068907.7 | C27: 307218.7 | D27: 8997 | E27: 11034 | F27: 27374 | G27: 3871 | H27: 52868 | I27: 1748 | J27: 9092 | K27: 408874 | L27: 28131 | M27: 78190 | N27: 41296 | O27: 28446 | P27: 18009 | Q27: 13568 | R27: 23506 | S27: 6685
A28: 대기업 | B28: 253921 | C28: 32393 | D28: 0 | E28: 0 | F28: 0 | G28: 0 | H28: 25060 | I28: 0 | J28: 0 | K28: 193794 | L28: 0 | M28: 410 | N28: 0 | O28: 2264 | P28: 0 | Q28: 0 | R28: 0 | S28: 0
A29: 중견기업 | B29: 405677 | C29: 223584 | D29: 60 | E29: 0 | F29: 12591 | G29: 0 | H29: 21219 | I29: 1395 | J29: 6273 | K29: 82354 | L29: 6858 | M29: 40183 | N29: 5006 | O29: 943 | P29: 27 | Q29: 0 | R29: 4295 | S29: 889
A30: 중소기업 | B30: 231168.7 | C30: 27599.7 | D30: 4521 | E30: 6053 | F30: 8418 | G30: 972 | H30: 2596 | I30: 41 | J30: 1878 | K30: 81913 | L30: 12321 | M30: 23035 | N30: 20569 | O30: 12039 | P30: 9661 | Q30: 7948 | R30: 8633 | S30: 2971
A31: 벤처기업 | B31: 178141 | C31: 23642 | D31: 4416 | E31: 4981 | F31: 6365 | G31: 2899 | H31: 3993 | I31: 312 | J31: 941 | K31: 50813 | L31: 8952 | M31: 14562 | N31: 15721 | O31: 13200 | P31: 8321 | Q31: 5620 | R31: 10578 | S31: 2825
A32: 음료 | B32: 40040 | C32: 12964 | D32: 1072 | E32: 843 | F32: 80 | G32: 0 | H32: 349 | I32: 0 | J32: 0 | K32: 7275 | L32: 3224 | M32: 4717 | N32: 1092 | O32: 1247 | P32: 1001 | Q32: 1752 | R32: 2641 | S32: 1783
A33: 대기업 | B33: 9728 | C33: 8447 | D33: 0 | E33: 0 | F33: 0 | G33: 0 | H33: 0 | I33: 0 | J33: 0 | K33: 0 | L33: 0 | M33: 0 | N33: 0 | O33: 0 | P33: 0 | Q33: 0 | R33: 0 | S33: 1281
A34: 중견기업 | B34: 13860 | C34: 1281 | D34: 767 | E34: 557 | F34: 0 | G34: 0 | H34: 0 | I34: 0 | J34: 0 | K34: 2515 | L34: 2658 | M34: 4549 | N34: 108 | O34: 544 | P34: 498 | Q34: 0 | R34: 383 | S34: 0
A35: 중소기업 | B35: 11954 | C35: 3067 | D35: 198 | E35: 193 | F35: 80 | G35: 0 | H35: 349 | I35: 0 | J35: 0 | K35: 3523 | L35: 342 | M35: 168 | N35: 107 | O35: 567 | P35: 174 | Q35: 1284 | R35: 1528 | S35: 374
A36: 벤처기업 | B36: 4498 | C36: 169 | D36: 107 | E36: 93 | F36: 0 | G36: 0 | H36: 0 | I36: 0 | J36: 0 | K36: 1237 | L36: 224 | M36: 0 | N36: 877 | O36: 136 | P36: 329 | Q36: 468 | R36: 730 | S36: 128
A37: 담배 | B37: 50446 | C37: 0 | D37: 0 | E37: 0 | F37: 0 | G37: 0 | H37: 50446 | I37: 0 | J37: 0 | K37: 0 | L37: 0 | M37: 0 | N37: 0 | O37: 0 | P37: 0 | Q37: 0 | R37: 0 | S37: 0
A38: 대기업 | B38: 50446 | C38: 0 | D38: 0 | E38: 0 | F38: 0 | G38: 0 | H38: 50446 | I38: 0 | J38: 0 | K38: 0 | L38: 0 | M38: 0 | N38: 0 | O38: 0 | P38: 0 | Q38: 0 | R38: 0 | S38: 0
A39: 중견기업
A40: 중소기업
A41: 벤처기업
A42: 섬유제품(의복제외) | B42: 203030 | C42: 37031 | D42: 9656 | E42: 34757 | F42: 2617 | G42: 1931 | H42: 2392 | I42: 437 | J42: 749 | K42: 60957 | L42: 435 | M42: 8093 | N42: 7648 | O42: 5574 | P42: 50 | Q42: 24744 | R42: 5959 | S42: 0
A43: 대기업 | B43: 4641 | C43: 2266 | D43: 0 | E43: 0 | F43: 0 | G43: 0 | H43: 0 | I43: 0 | J43: 0 | K43: 0 | L43: 0 | M43: 0 | N43: 0 | O43: 0 | P43: 0 | Q43: 2375 | R43: 0 | S43: 0
A44: 중견기업 | B44: 9249 | C44: 3049 | D44: 438 | E44: 118 | F44: 0 | G44: 549 | H44: 0 | I44: 0 | J44: 0 | K44: 1974 | L44: 0 | M44: 0 | N44: 0 | O44: 291 | P44: 0 | Q44: 2256 | R44: 574 | S44: 0
A45: 중소기업 | B45: 127038 | C45: 24639 | D45: 7262 | E45: 23596 | F45: 1619 | G45: 895 | H45: 1362 | I45: 280 | J45: 749 | K45: 40478 | L45: 221 | M45: 6844 | N45: 1847 | O45: 1240 | P45: 50 | Q45: 12079 | R45: 3877 | S45: 0
A46: 벤처기업 | B46: 62102 | C46: 7077 | D46: 1956 | E46: 11043 | F46: 998 | G46: 487 | H46: 1030 | I46: 157 | J46: 0 | K46: 18505 | L46: 214 | M46: 1249 | N46: 5801 | O46: 4043 | P46: 0 | Q46: 8034 | R46: 1508 | S46: 0
A47: 의복, 의복액세서리 및 모피제품 | B47: 278373 | C47: 245370 | D47: 9279 | E47: 2097 | F47: 1723 | G47: 226 | H47: 1095 | I47: 538 | J47: 0 | K47: 14677 | L47: 241 | M47: 344 | N47: 0 | O47: 860 | P47: 377 | Q47: 863 | R47: 683 | S47: 0
A48: 대기업 | B48: 36155 | C48: 36155 | D48: 0 | E48: 0 | F48: 0 | G48: 0 | H48: 0 | I48: 0 | J48: 0 | K48: 0 | L48: 0 | M48: 0 | N48: 0 | O48: 0 | P48: 0 | Q48: 0 | R48: 0 | S48: 0
A49: 중견기업 | B49: 83788 | C49: 83304 | D49: 0 | E49: 0 | F49: 0 | G49: 0 | H49: 0 | I49: 0 | J49: 0 | K49: 484 | L49: 0 | M49: 0 | N49: 0 | O49: 0 | P49: 0 | Q49: 0 | R49: 0 | S49: 0
A50: 중소기업 | B50: 121813 | C50: 99390 | D50: 5943 | E50: 1159 | F50: 795 | G50: 42 | H50: 1070 | I50: 538 | J50: 0 | K50: 10146 | L50: 241 | M50: 344 | N50: 0 | O50: 725 | P50: 377 | Q50: 758 | R50: 285 | S50: 0
A51: 벤처기업 | B51: 36617 | C51: 26521 | D51: 3336 | E51: 938 | F51: 928 | G51: 184 | H51: 25 | I51: 0 | J51: 0 | K51: 4047 | L51: 0 | M51: 0 | N51: 0 | O51: 135 | P51: 0 | Q51: 105 | R51: 398 | S51: 0
A52: 가죽, 가방 및 신발 | B52: 56756 | C52: 23362 | D52: 12838 | E52: 847 | F52: 526 | G52: 0 | H52: 123 | I52: 0 | J52: 655 | K52: 15500 | L52: 0 | M52: 817 | N52: 440 | O52: 174 | P52: 275 | Q52: 89 | R52: 1110 | S52: 0
A53: 대기업
A54: 중견기업 | B54: 7177 | C54: 5619 | D54: 0 | E54: 0 | F54: 0 | G54: 0 | H54: 0 | I54: 0 | J54: 655 | K54: 903 | L54: 0 | M54: 0 | N54: 0 | O54: 0 | P54: 0 | Q54: 0 | R54: 0 | S54: 0
A55: 중소기업 | B55: 30645 | C55: 13829 | D55: 5201 | E55: 271 | F55: 275 | G55: 0 | H55: 123 | I55: 0 | J55: 0 | K55: 8583 | L55: 0 | M55: 817 | N55: 154 | O55: 91 | P55: 275 | Q55: 69 | R55: 957 | S55: 0
A56: 벤처기업 | B56: 18934 | C56: 3914 | D56: 7637 | E56: 576 | F56: 251 | G56: 0 | H56: 0 | I56: 0 | J56: 0 | K56: 6014 | L56: 0 | M56: 0 | N56: 286 | O56: 83 | P56: 0 | Q56: 20 | R56: 153 | S56: 0
A57: 목재 및 나무제품(가구제외) | B57: 36787 | C57: 3557 | D57: 1186 | E57: 266 | F57: 6322 | G57: 634 | H57: 1055 | I57: 0 | J57: 259 | K57: 13113 | L57: 1765 | M57: 1108 | N57: 1367 | O57: 1388 | P57: 1347 | Q57: 1839 | R57: 1581 | S57: 0
A58: 대기업
A59: 중견기업 | B59: 1585 | C59: 0 | D59: 0 | E59: 0 | F59: 1585 | G59: 0 | H59: 0 | I59: 0 | J59: 0 | K59: 0 | L59: 0 | M59: 0 | N59: 0 | O59: 0 | P59: 0 | Q59: 0 | R59: 0 | S59: 0
A60: 중소기업 | B60: 20170 | C60: 2776 | D60: 559 | E60: 0 | F60: 4065 | G60: 419 | H60: 890 | I60: 0 | J60: 70 | K60: 8106 | L60: 230 | M60: 488 | N60: 455 | O60: 251 | P60: 387 | Q60: 966 | R60: 508 | S60: 0
A61: 벤처기업 | B61: 15032 | C61: 781 | D61: 627 | E61: 266 | F61: 672 | G61: 215 | H61: 165 | I61: 0 | J61: 189 | K61: 5007 | L61: 1535 | M61: 620 | N61: 912 | O61: 1137 | P61: 960 | Q61: 873 | R61: 1073 | S61: 0
A62: 펄프, 종이 및 종이제품 | B62: 238182 | C62: 155593 | D62: 2073 | E62: 3031 | F62: 1608 | G62: 478 | H62: 7665 | I62: 4192 | J62: 478 | K62: 45453 | L62: 55 | M62: 5953 | N62: 3111 | O62: 2644 | P62: 94 | Q62: 3062 | R62: 2454 | S62: 238
A63: 대기업 | B63: 137 | C63: 87 | D63: 0 | E63: 0 | F63: 0 | G63: 0 | H63: 0 | I63: 0 | J63: 0 | K63: 50 | L63: 0 | M63: 0 | N63: 0 | O63: 0 | P63: 0 | Q63: 0 | R63: 0 | S63: 0
A64: 중견기업 | B64: 25492 | C64: 425 | D64: 0 | E64: 499 | F64: 0 | G64: 0 | H64: 7150 | I64: 4041 | J64: 375 | K64: 11135 | L64: 0 | M64: 441 | N64: 0 | O64: 772 | P64: 0 | Q64: 0 | R64: 654 | S64: 0
A65: 중소기업 | B65: 190190 | C65: 152135 | D65: 1144 | E65: 1178 | F65: 1527 | G65: 478 | H65: 515 | I65: 92 | J65: 103 | K65: 22903 | L65: 55 | M65: 4284 | N65: 1792 | O65: 1043 | P65: 0 | Q65: 2333 | R65: 370 | S65: 238
A66: 벤처기업 | B66: 22363 | C66: 2946 | D66: 929 | E66: 1354 | F66: 81 | G66: 0 | H66: 0 | I66: 59 | J66: 0 | K66: 11365 | L66: 0 | M66: 1228 | N66: 1319 | O66: 829 | P66: 94 | Q66: 729 | R66: 1430 | S66: 0
A67: 인쇄 및 기록매체 복제 | B67: 74830 | C67: 23940.6 | D67: 1925 | E67: 3356 | F67: 3558 | G67: 4313 | H67: 897 | I67: 476 | J67: 70 | K67: 27289.5 | L67: 258 | M67: 2197 | N67: 1201 | O67: 423 | P67: 587.4 | Q67: 2168.5 | R67: 2044 | S67: 126
A68: 대기업
A69: 중견기업
A70: 중소기업 | B70: 55008.1 | C70: 18981.6 | D70: 1403 | E70: 1931 | F70: 2965 | G70: 1491 | H70: 812 | I70: 100 | J70: 70 | K70: 20182.5 | L70: 258 | M70: 1980 | N70: 1087 | O70: 173 | P70: 0 | Q70: 2058 | R70: 1516 | S70: 0
A71: 벤처기업 | B71: 19821.9 | C71: 4959 | D71: 522 | E71: 1425 | F71: 593 | G71: 2822 | H71: 85 | I71: 376 | J71: 0 | K71: 7107 | L71: 0 | M71: 217 | N71: 114 | O71: 250 | P71: 587.4 | Q71: 110.5 | R71: 528 | S71: 126
A72: 코크스, 연탄 및 석유정제품 | B72: 302267 | C72: 17754 | D72: 197 | E72: 0 | F72: 612 | G72: 0 | H72: 241300 | I72: 3041 | J72: 0 | K72: 19527 | L72: 905 | M72: 877 | N72: 8232 | O72: 0 | P72: 3940 | Q72: 2755 | R72: 3127 | S72: 0
A73: 대기업 | B73: 278719 | C73: 17728 | D73: 0 | E73: 0 | F73: 0 | G73: 0 | H73: 241300 | I73: 0 | J73: 0 | K73: 17431 | L73: 0 | M73: 0 | N73: 2260 | O73: 0 | P73: 0 | Q73: 0 | R73: 0 | S73: 0
A74: 중견기업 | B74: 10124 | C74: 0 | D74: 0 | E74: 0 | F74: 0 | G74: 0 | H74: 0 | I74: 288 | J74: 0 | K74: 635 | L74: 0 | M74: 0 | N74: 4913 | O74: 0 | P74: 3196 | Q74: 0 | R74: 1092 | S74: 0
A75: 중소기업 | B75: 10378 | C75: 0 | D75: 197 | E75: 0 | F75: 97 | G75: 0 | H75: 0 | I75: 1575 | J75: 0 | K75: 1346 | L75: 905 | M75: 877 | N75: 1059 | O75: 0 | P75: 0 | Q75: 2645 | R75: 1677 | S75: 0
A76: 벤처기업 | B76: 3046 | C76: 26 | D76: 0 | E76: 0 | F76: 515 | G76: 0 | H76: 0 | I76: 1178 | J76: 0 | K76: 115 | L76: 0 | M76: 0 | N76: 0 | O76: 0 | P76: 744 | Q76: 110 | R76: 358 | S76: 0
A77: 화학물질 및 화학제품(의약품 제외) | B77: 3768115 | C77: 826291 | D77: 32754 | E77: 19308 | F77: 93124 | G77: 7479 | H77: 562787 | I77: 116403 | J77: 46116 | K77: 1278508 | L77: 20204 | M77: 271558 | N77: 182825 | O77: 105658 | P77: 60638 | Q77: 87726 | R77: 53299 | S77: 3437
A78: 대기업 | B78: 1829084 | C78: 654698 | D78: 0 | E78: 0 | F78: 1573 | G78: 0 | H78: 410481 | I78: 43352 | J78: 28896 | K78: 414034 | L78: 0 | M78: 89113 | N78: 63471 | O78: 51553 | P78: 33951 | Q78: 32580 | R78: 5382 | S78: 0
A79: 중견기업 | B79: 895634 | C79: 59470 | D79: 12422 | E79: 49 | F79: 8850 | G79: 0 | H79: 92240 | I79: 54006 | J79: 1848 | K79: 464919 | L79: 0 | M79: 99445 | N79: 42448 | O79: 28980 | P79: 9475 | Q79: 11197 | R79: 10285 | S79: 0
A80: 중소기업 | B80: 525855 | C80: 55187 | D80: 11195 | E80: 7612 | F80: 41354 | G80: 995 | H80: 14555 | I80: 8535 | J80: 5690 | K80: 209240 | L80: 8207 | M80: 38616 | N80: 56133 | O80: 12371 | P80: 4262 | Q80: 20210 | R80: 30515 | S80: 1178
A81: 벤처기업 | B81: 517542 | C81: 56936 | D81: 9137 | E81: 11647 | F81: 41347 | G81: 6484 | H81: 45511 | I81: 10510 | J81: 9682 | K81: 190315 | L81: 11997 | M81: 44384 | N81: 20773 | O81: 12754 | P81: 12950 | Q81: 23739 | R81: 7117 | S81: 2259
A82: 의료용 물질 및 의약품 | B82: 2552310 | C82: 484156 | D82: 3677 | E82: 10828 | F82: 471166 | G82: 2974 | H82: 91977 | I82: 4279 | J82: 16355 | K82: 1269422 | L82: 64637 | M82: 80493 | N82: 25034 | O82: 6715 | P82: 5653 | Q82: 11211 | R82: 2899 | S82: 834
A83: 대기업 | B83: 544200 | C83: 22294 | D83: 0 | E83: 0 | F83: 422649 | G83: 0 | H83: 10517 | I83: 0 | J83: 0 | K83: 74118 | L83: 5864 | M83: 8758 | N83: 0 | O83: 0 | P83: 0 | Q83: 0 | R83: 0 | S83: 0
A84: 중견기업 | B84: 1185845 | C84: 230405 | D84: 224 | E84: 393 | F84: 36516 | G84: 0 | H84: 1274 | I84: 0 | J84: 14069 | K84: 858761 | L84: 3958 | M84: 27119 | N84: 11398 | O84: 436 | P84: 1292 | Q84: 0 | R84: 0 | S84: 0
A85: 중소기업 | B85: 247687 | C85: 106609 | D85: 3043 | E85: 2453 | F85: 3138 | G85: 60 | H85: 3773 | I85: 414 | J85: 1914 | K85: 101642 | L85: 1137 | M85: 9520 | N85: 5983 | O85: 1701 | P85: 3289 | Q85: 1966 | R85: 1045 | S85: 0
A86: 벤처기업 | B86: 574578 | C86: 124848 | D86: 410 | E86: 7982 | F86: 8863 | G86: 2914 | H86: 76413 | I86: 3865 | J86: 372 | K86: 234901 | L86: 53678 | M86: 35096 | N86: 7653 | O86: 4578 | P86: 1072 | Q86: 9245 | R86: 1854 | S86: 834
A87: 고무 및 프라스틱제품 | B87: 1136477 | C87: 167748 | D87: 22783 | E87: 23871 | F87: 62632 | G87: 29605 | H87: 187478 | I87: 6343 | J87: 10033 | K87: 343583 | L87: 4845 | M87: 61358 | N87: 92904 | O87: 9195 | P87: 7581 | Q87: 43817 | R87: 62287 | S87: 414
A88: 대기업 | B88: 264320 | C88: 59696 | D88: 0 | E88: 0 | F88: 0 | G88: 0 | H88: 181654 | I88: 0 | J88: 5643 | K88: 1683 | L88: 0 | M88: 0 | N88: 15644 | O88: 0 | P88: 0 | Q88: 0 | R88: 0 | S88: 0
A89: 중견기업 | B89: 386234 | C89: 80773 | D89: 5191 | E89: 5799 | F89: 29639 | G89: 21143 | H89: 72 | I89: 646 | J89: 180 | K89: 131848 | L89: 0 | M89: 20063 | N89: 44943 | O89: 0 | P89: 0 | Q89: 16353 | R89: 29584 | S89: 0
A90: 중소기업 | B90: 310665 | C90: 16526 | D90: 8280 | E90: 10223 | F90: 22853 | G90: 5992 | H90: 2180 | I90: 2697 | J90: 1746 | K90: 147367 | L90: 3741 | M90: 23143 | N90: 22107 | O90: 5526 | P90: 3496 | Q90: 14978 | R90: 19810 | S90: 0
A91: 벤처기업 | B91: 175258 | C91: 10753 | D91: 9312 | E91: 7849 | F91: 10140 | G91: 2470 | H91: 3572 | I91: 3000 | J91: 2464 | K91: 62685 | L91: 1104 | M91: 18152 | N91: 10210 | O91: 3669 | P91: 4085 | Q91: 12486 | R91: 12893 | S91: 414
A92: 비금속 광물제품 | B92: 365639 | C92: 17958 | D92: 2491 | E92: 5042 | F92: 10018 | G92: 3830 | H92: 3404 | I92: 2524 | J92: 30832 | K92: 75775 | L92: 8382 | M92: 19479 | N92: 93759 | O92: 14606 | P92: 10121 | Q92: 53949 | R92: 13362 | S92: 107
A93: 대기업 | B93: 58449 | C93: 0 | D93: 0 | E93: 0 | F93: 0 | G93: 0 | H93: 0 | I93: 0 | J93: 22167 | K93: 9866 | L93: 0 | M93: 0 | N93: 963 | O93: 0 | P93: 0 | Q93: 25453 | R93: 0 | S93: 0
A94: 중견기업 | B94: 154666 | C94: 8756 | D94: 0 | E94: 934 | F94: 3365 | G94: 0 | H94: 430 | I94: 0 | J94: 8266 | K94: 22966 | L94: 1875 | M94: 5997 | N94: 77893 | O94: 4969 | P94: 2761 | Q94: 12130 | R94: 4324 | S94: 0
A95: 중소기업 | B95: 87828 | C95: 7024 | D95: 1548 | E95: 2643 | F95: 3814 | G95: 1309 | H95: 2042 | I95: 1703 | J95: 399 | K95: 24937 | L95: 2772 | M95: 9063 | N95: 9182 | O95: 3208 | P95: 4183 | Q95: 9324 | R95: 4622 | S95: 55
A96: 벤처기업 | B96: 64696 | C96: 2178 | D96: 943 | E96: 1465 | F96: 2839 | G96: 2521 | H96: 932 | I96: 821 | J96: 0 | K96: 18006 | L96: 3735 | M96: 4419 | N96: 5721 | O96: 6429 | P96: 3177 | Q96: 7042 | R96: 4416 | S96: 52
A97: 제1차 금속산업 | B97: 809372 | C97: 14861 | D97: 20057 | E97: 4502 | F97: 81905 | G97: 2011 | H97: 17517 | I97: 29753 | J97: 2416 | K97: 83055 | L97: 2096 | M97: 7780 | N97: 105580 | O97: 23324 | P97: 104145 | Q97: 260674 | R97: 49696 | S97: 0
A98: 대기업 | B98: 524065 | C98: 8212 | D98: 404 | E98: 675 | F98: 57622 | G98: 0 | H98: 0 | I98: 14959 | J98: 0 | K98: 22948 | L98: 0 | M98: 0 | N98: 79523 | O98: 12918 | P98: 92763 | Q98: 214691 | R98: 19350 | S98: 0
A99: 중견기업 | B99: 97846 | C99: 1885 | D99: 5881 | E99: 786 | F99: 6149 | G99: 0 | H99: 16753 | I99: 9320 | J99: 0 | K99: 7669 | L99: 0 | M99: 156 | N99: 12014 | O99: 1931 | P99: 3355 | Q99: 30586 | R99: 1361 | S99: 0
A100: 중소기업 | B100: 115889 | C100: 3917 | D100: 9163 | E100: 2171 | F100: 9362 | G100: 910 | H100: 445 | I100: 2141 | J100: 1416 | K100: 35958 | L100: 791 | M100: 5755 | N100: 7848 | O100: 6146 | P100: 2648 | Q100: 11941 | R100: 15277 | S100: 0
A101: 벤처기업 | B101: 71572 | C101: 847 | D101: 4609 | E101: 870 | F101: 8772 | G101: 1101 | H101: 319 | I101: 3333 | J101: 1000 | K101: 16480 | L101: 1305 | M101: 1869 | N101: 6195 | O101: 2329 | P101: 5379 | Q101: 3456 | R101: 13708 | S101: 0
A102: · 제1차 철강 산업 | B102: 590035 | C102: 10823 | D102: 15836 | E102: 2049 | F102: 59710 | G102: 800 | H102: 86 | I102: 3285 | J102: 1000 | K102: 18863 | L102: 1169 | M102: 4563 | N102: 90878 | O102: 11800 | P102: 96274 | Q102: 236385 | R102: 36514 | S102: 0
A103: 대기업 | B103: 474113 | C103: 8212 | D103: 404 | E103: 0 | F103: 55645 | G103: 0 | H103: 0 | I103: 0 | J103: 0 | K103: 0 | L103: 0 | M103: 0 | N103: 79523 | O103: 5886 | P103: 92245 | Q103: 212848 | R103: 19350 | S103: 0
A104: 중견기업 | B104: 37626 | C104: 158 | D104: 4891 | E104: 0 | F104: 873 | G104: 0 | H104: 0 | I104: 0 | J104: 0 | K104: 1353 | L104: 0 | M104: 156 | N104: 6373 | O104: 1921 | P104: 1771 | Q104: 18907 | R104: 1223 | S104: 0
A105: 중소기업 | B105: 50450 | C105: 2316 | D105: 6502 | E105: 1179 | F105: 2765 | G105: 328 | H105: 86 | I105: 775 | J105: 0 | K105: 12761 | L105: 0 | M105: 3368 | N105: 3237 | O105: 3587 | P105: 1122 | Q105: 3732 | R105: 8692 | S105: 0
A106: 벤처기업 | B106: 27846 | C106: 137 | D106: 4039 | E106: 870 | F106: 427 | G106: 472 | H106: 0 | I106: 2510 | J106: 1000 | K106: 4749 | L106: 1169 | M106: 1039 | N106: 1745 | O106: 406 | P106: 1136 | Q106: 898 | R106: 7249 | S106: 0
A107: · 제1차 비철금속 산업 | B107: 166850 | C107: 2503 | D107: 1388 | E107: 1687 | F107: 13119 | G107: 777 | H107: 17144 | I107: 21379 | J107: 1301 | K107: 51360 | L107: 927 | M107: 1545 | N107: 11387 | O107: 9421 | P107: 7002 | Q107: 18407 | R107: 7503 | S107: 0
A108: 대기업 | B108: 49952 | C108: 0 | D108: 0 | E108: 675 | F108: 1977 | G108: 0 | H108: 0 | I108: 14959 | J108: 0 | K108: 22948 | L108: 0 | M108: 0 | N108: 0 | O108: 7032 | P108: 518 | Q108: 1843 | R108: 0 | S108: 0
A109: 중견기업 | B109: 54708 | C109: 1637 | D109: 990 | E109: 786 | F109: 4655 | G109: 0 | H109: 16753 | I109: 5219 | J109: 0 | K109: 5616 | L109: 0 | M109: 0 | N109: 5641 | O109: 10 | P109: 1584 | Q109: 11679 | R109: 138 | S109: 0
A110: 중소기업 | B110: 32837 | C110: 376 | D110: 398 | E110: 226 | F110: 3013 | G110: 148 | H110: 72 | I110: 681 | J110: 1301 | K110: 13857 | L110: 791 | M110: 1085 | N110: 1471 | O110: 645 | P110: 782 | Q110: 3573 | R110: 4418 | S110: 0
A111: 벤처기업 | B111: 29353 | C111: 490 | D111: 0 | E111: 0 | F111: 3474 | G111: 629 | H111: 319 | I111: 520 | J111: 0 | K111: 8939 | L111: 136 | M111: 460 | N111: 4275 | O111: 1734 | P111: 4118 | Q111: 1312 | R111: 2947 | S111: 0
A112: · 금속주조업 | B112: 52487 | C112: 1535 | D112: 2833 | E112: 766 | F112: 9076 | G112: 434 | H112: 287 | I112: 5089 | J112: 115 | K112: 12832 | L112: 0 | M112: 1672 | N112: 3315 | O112: 2103 | P112: 869 | Q112: 5882 | R112: 5679 | S112: 0
A113: 대기업
A114: 중견기업 | B114: 5512 | C114: 90 | D114: 0 | E114: 0 | F114: 621 | G114: 0 | H114: 0 | I114: 4101 | J114: 0 | K114: 700 | L114: 0 | M114: 0 | N114: 0 | O114: 0 | P114: 0 | Q114: 0 | R114: 0 | S114: 0
A115: 중소기업 | B115: 32602 | C115: 1225 | D115: 2263 | E115: 766 | F115: 3584 | G115: 434 | H115: 287 | I115: 685 | J115: 115 | K115: 9340 | L115: 0 | M115: 1302 | N115: 3140 | O115: 1914 | P115: 744 | Q115: 4636 | R115: 2167 | S115: 0
A116: 벤처기업 | B116: 14373 | C116: 220 | D116: 570 | E116: 0 | F116: 4871 | G116: 0 | H116: 0 | I116: 303 | J116: 0 | K116: 2792 | L116: 0 | M116: 370 | N116: 175 | O116: 189 | P116: 125 | Q116: 1246 | R116: 3512 | S116: 0
A117: 금속가공제품(기계 및 가구 제외) | B117: 1126945 | C117: 49800 | D117: 46190 | E117: 39225 | F117: 62717 | G117: 8369 | H117: 168558 | I117: 23657 | J117: 2598 | K117: 405308 | L117: 3016 | M117: 62715 | N117: 43299 | O117: 18696 | P117: 18683 | Q117: 93584 | R117: 80452 | S117: 78
A118: 대기업 | B118: 176402 | C118: 8750 | D118: 0 | E118: 0 | F118: 0 | G118: 0 | H118: 138362 | I118: 0 | J118: 0 | K118: 23887 | L118: 0 | M118: 0 | N118: 0 | O118: 0 | P118: 5403 | Q118: 0 | R118: 0 | S118: 0
A119: 중견기업 | B119: 273594 | C119: 8975 | D119: 2379 | E119: 1536 | F119: 12938 | G119: 216 | H119: 7629 | I119: 2909 | J119: 0 | K119: 153025 | L119: 0 | M119: 18999 | N119: 4594 | O119: 2626 | P119: 1337 | Q119: 35556 | R119: 20875 | S119: 0
A120: 중소기업 | B120: 410890 | C120: 16989 | D120: 23993 | E120: 22423 | F120: 35462 | G120: 3947 | H120: 5531 | I120: 10688 | J120: 328 | K120: 149734 | L120: 1847 | M120: 33692 | N120: 24939 | O120: 9792 | P120: 8304 | Q120: 15165 | R120: 47978 | S120: 78
A121: 벤처기업 | B121: 266059 | C121: 15086 | D121: 19818 | E121: 15266 | F121: 14317 | G121: 4206 | H121: 17036 | I121: 10060 | J121: 2270 | K121: 78662 | L121: 1169 | M121: 10024 | N121: 13766 | O121: 6278 | P121: 3639 | Q121: 42863 | R121: 11599 | S121: 0
A122: 전자부품, 컴퓨터, 영상, 음향 및 통신장비 | B122: 42700692.5 | C122: 3548970.15 | D122: 133234 | E122: 49558.05 | F122: 415188 | G122: 84106 | H122: 167113.1 | I122: 14730.7 | J122: 29825 | K122: 34614777.7 | L122: 12164 | M122: 446308.4 | N122: 1782883.5 | O122: 36909 | P122: 13429.1 | Q122: 908990.8 | R122: 439583 | S122: 2922
A123: 대기업 | B123: 38597396 | C123: 2816983 | D123: 85648 | E123: 2015 | F123: 102 | G123: 26540 | H123: 43448 | I123: 51 | J123: 23314 | K123: 32512007 | L123: 0 | M123: 301665 | N123: 1623155 | O123: 0 | P123: 0 | Q123: 820876 | R123: 341592 | S123: 0
A124: 중견기업 | B124: 1529822 | C124: 240221 | D124: 10643 | E124: 11303 | F124: 299874 | G124: 11341 | H124: 4187 | I124: 0 | J124: 0 | K124: 701590 | L124: 609 | M124: 107907 | N124: 60849 | O124: 6464 | P124: 0 | Q124: 20001 | R124: 52916 | S124: 1917
A125: 중소기업 | B125: 1008525.7 | C125: 212678.7 | D125: 13438 | E125: 11051 | F125: 56928 | G125: 9106 | H125: 34145 | I125: 6620 | J125: 4234 | K125: 509954 | L125: 5749 | M125: 13171 | N125: 54881 | O125: 5532 | P125: 5460 | Q125: 34891 | R125: 30622 | S125: 65
A126: 벤처기업 | B126: 1564948.8 | C126: 279087.45 | D126: 23505 | E126: 25189.05 | F126: 58284 | G126: 37119 | H126: 85333.1 | I126: 8059.7 | J126: 2277 | K126: 891226.7 | L126: 5806 | M126: 23565.4 | N126: 43998.5 | O126: 24913 | P126: 7969.1 | Q126: 33222.8 | R126: 14453 | S126: 940
A127: · 반도체 | B127: 7108982.9 | C127: 371577.4 | D127: 9240 | E127: 11372 | F127: 168880 | G127: 14402 | H127: 66604 | I127: 5010 | J127: 189 | K127: 6000289.5 | L127: 586 | M127: 369587 | N127: 46490 | O127: 17881 | P127: 1656 | Q127: 14974 | R127: 8328 | S127: 1917
A128: 대기업 | B128: 6029156 | C128: 149656 | D128: 0 | E128: 0 | F128: 0 | G128: 0 | H128: 43448 | I128: 0 | J128: 0 | K128: 5528310 | L128: 0 | M128: 301665 | N128: 6077 | O128: 0 | P128: 0 | Q128: 0 | R128: 0 | S128: 0
A129: 중견기업 | B129: 482989 | C129: 133520 | D129: 0 | E129: 0 | F129: 153009 | G129: 8448 | H129: 0 | I129: 0 | J129: 0 | K129: 123024 | L129: 0 | M129: 47914 | N129: 10242 | O129: 2464 | P129: 0 | Q129: 2451 | R129: 0 | S129: 1917
A130: 중소기업 | B130: 229515.4 | C130: 29782.4 | D130: 6241 | E130: 1612 | F130: 8476 | G130: 801 | H130: 5549 | I130: 4457 | J130: 175 | K130: 135016 | L130: 0 | M130: 8012 | N130: 11765 | O130: 3346 | P130: 534 | Q130: 7200 | R130: 6549 | S130: 0
A131: 벤처기업 | B131: 367322.5 | C131: 58619 | D131: 2999 | E131: 9760 | F131: 7395 | G131: 5153 | H131: 17607 | I131: 553 | J131: 14 | K131: 213939.5 | L131: 586 | M131: 11996 | N131: 18406 | O131: 12071 | P131: 1122 | Q131: 5323 | R131: 1779 | S131: 0
A132: · 전자부품 | B132: 6481673.4 | C132: 505834.3 | D132: 96884 | E132: 25130.4 | F132: 83212 | G132: 18384 | H132: 35732 | I132: 6555 | J132: 25108 | K132: 4302614.7 | L132: 8044 | M132: 72472 | N132: 917840 | O132: 13468 | P132: 6242 | Q132: 312399 | R132: 51754 | S132: 0
A133: 대기업 | B133: 5181217 | C133: 375690 | D133: 76694 | E133: 0 | F133: 0 | G133: 939 | H133: 0 | I133: 0 | J133: 23314 | K133: 3622895 | L133: 0 | M133: 0 | N133: 805635 | O133: 0 | P133: 0 | Q133: 276050 | R133: 0 | S133: 0
A134: 중견기업 | B134: 497143 | C134: 47471 | D134: 10643 | E134: 11303 | F134: 34935 | G134: 2893 | H134: 3546 | I134: 0 | J134: 0 | K134: 243810 | L134: 609 | M134: 59993 | N134: 50607 | O134: 4000 | P134: 0 | Q134: 4445 | R134: 22888 | S134: 0
A135: 중소기업 | B135: 355158.5 | C135: 25752.5 | D135: 3741 | E135: 6962.4 | F135: 21597 | G135: 5627 | H135: 12734 | I135: 531 | J135: 1140 | K135: 184080.6 | L135: 4372 | M135: 3253 | N135: 40590 | O135: 1924 | P135: 3491 | Q135: 18227 | R135: 21136 | S135: 0
A136: 벤처기업 | B136: 448154.9 | C136: 56920.8 | D136: 5806 | E136: 6865 | F136: 26680 | G136: 8925 | H136: 19452 | I136: 6024 | J136: 654 | K136: 251829.1 | L136: 3063 | M136: 9226 | N136: 21008 | O136: 7544 | P136: 2751 | Q136: 13677 | R136: 7730 | S136: 0
A137: · 컴퓨터 및 주변장치 | B137: 326666.4 | C137: 83131.55 | D137: 3630 | E137: 2465.65 | F137: 30356 | G137: 6 | H137: 7499.3 | I137: 920.7 | J137: 1107 | K137: 184334.2 | L137: 380 | M137: 920.4 | N137: 1565 | O137: 902 | P137: 2287.6 | Q137: 3689 | R137: 3407 | S137: 65
A138: 대기업
A139: 중견기업 | B139: 118304 | C139: 1587 | D139: 0 | E139: 0 | F139: 26593 | G139: 0 | H139: 0 | I139: 0 | J139: 0 | K139: 90124 | L139: 0 | M139: 0 | N139: 0 | O139: 0 | P139: 0 | Q139: 0 | R139: 0 | S139: 0
A140: 중소기업 | B140: 82156.3 | C140: 42026.5 | D140: 589 | E140: 1396.6 | F140: 1272 | G140: 6 | H140: 1350 | I140: 0 | J140: 1107 | K140: 32126.2 | L140: 380 | M140: 615 | N140: 110 | O140: 86 | P140: 0 | Q140: 177 | R140: 850 | S140: 65
A141: 벤처기업 | B141: 126206.1 | C141: 39518.05 | D141: 3041 | E141: 1069.05 | F141: 2491 | G141: 0 | H141: 6149.3 | I141: 920.7 | J141: 0 | K141: 62084 | L141: 0 | M141: 305.4 | N141: 1455 | O141: 816 | P141: 2287.6 | Q141: 3512 | R141: 2557 | S141: 0
A142: · 통신 및 방송 장비 | B142: 26156473.3 | C142: 1193321.4 | D142: 12103 | E142: 7659 | F142: 66177 | G142: 51042 | H142: 52576.8 | I142: 2061 | J142: 2795 | K142: 23357445.3 | L142: 2746 | M142: 2397 | N142: 815380.5 | O142: 3596 | P142: 3196.5 | Q142: 573691.8 | R142: 9567 | S142: 718
A143: 대기업 | B143: 25006554 | C143: 957067 | D143: 0 | E143: 0 | F143: 0 | G143: 25503 | H143: 0 | I143: 0 | J143: 0 | K143: 22667715 | L143: 0 | M143: 0 | N143: 811443 | O143: 0 | P143: 0 | Q143: 544826 | R143: 0 | S143: 0
A144: 중견기업 | B144: 313159 | C144: 39196 | D144: 0 | E144: 0 | F144: 29375 | G144: 0 | H144: 641 | I144: 0 | J144: 0 | K144: 226066 | L144: 0 | M144: 0 | N144: 0 | O144: 0 | P144: 0 | Q144: 12038 | R144: 5843 | S144: 0
A145: 중소기업 | B145: 269977 | C145: 94559.8 | D145: 2622 | E145: 979 | F145: 17551 | G145: 2498 | H145: 10592 | I145: 1499 | J145: 1287 | K145: 124426.2 | L145: 997 | M145: 359 | N145: 808 | O145: 176 | P145: 1435 | Q145: 8402 | R145: 1786 | S145: 0
A146: 벤처기업 | B146: 566783.3 | C146: 102498.6 | D146: 9481 | E146: 6680 | F146: 19251 | G146: 23041 | H146: 41343.8 | I146: 562 | J146: 1508 | K146: 339238.1 | L146: 1749 | M146: 2038 | N146: 3129.5 | O146: 3420 | P146: 1761.5 | Q146: 8425.8 | R146: 1938 | S146: 718
A147: · 영상 및 음향기기 | B147: 2614145.5 | C147: 1395020.5 | D147: 10909 | E147: 2931 | F147: 66563 | G147: 272 | H147: 4211 | I147: 184 | J147: 626 | K147: 759414 | L147: 408 | M147: 932 | N147: 697 | O147: 1062 | P147: 47 | Q147: 4237 | R147: 366410 | S147: 222
A148: 대기업 | B148: 2380469 | C148: 1334570 | D148: 8954 | E148: 2015 | F148: 102 | G148: 98 | H148: 0 | I148: 51 | J148: 0 | K148: 693087 | L148: 0 | M148: 0 | N148: 0 | O148: 0 | P148: 0 | Q148: 0 | R148: 341592 | S148: 0
A149: 중견기업 | B149: 118227 | C149: 18447 | D149: 0 | E149: 0 | F149: 55962 | G149: 0 | H149: 0 | I149: 0 | J149: 0 | K149: 18566 | L149: 0 | M149: 0 | N149: 0 | O149: 0 | P149: 0 | Q149: 1067 | R149: 24185 | S149: 0
A150: 중소기업 | B150: 64126.5 | C150: 20557.5 | D150: 245 | E150: 101 | F150: 8032 | G150: 174 | H150: 3920 | I150: 133 | J150: 525 | K150: 27741 | L150: 0 | M150: 932 | N150: 697 | O150: 0 | P150: 0 | Q150: 885 | R150: 184 | S150: 0
A151: 벤처기업 | B151: 51323 | C151: 21446 | D151: 1710 | E151: 815 | F151: 2467 | G151: 0 | H151: 291 | I151: 0 | J151: 101 | K151: 20020 | L151: 408 | M151: 0 | N151: 0 | O151: 1062 | P151: 47 | Q151: 2285 | R151: 449 | S151: 222
A152: · 마그네틱 및 광학 매체 | B152: 12751 | C152: 85 | D152: 468 | E152: 0 | F152: 0 | G152: 0 | H152: 490 | I152: 0 | J152: 0 | K152: 10680 | L152: 0 | M152: 0 | N152: 911 | O152: 0 | P152: 0 | Q152: 0 | R152: 117 | S152: 0
A153: 대기업
A154: 중견기업
A155: 중소기업 | B155: 7592 | C155: 0 | D155: 0 | E155: 0 | F155: 0 | G155: 0 | H155: 0 | I155: 0 | J155: 0 | K155: 6564 | L155: 0 | M155: 0 | N155: 911 | O155: 0 | P155: 0 | Q155: 0 | R155: 117 | S155: 0
A156: 벤처기업 | B156: 5159 | C156: 85 | D156: 468 | E156: 0 | F156: 0 | G156: 0 | H156: 490 | I156: 0 | J156: 0 | K156: 4116 | L156: 0 | M156: 0 | N156: 0 | O156: 0 | P156: 0 | Q156: 0 | R156: 0 | S156: 0
A157: 의료, 정밀, 광학기기 및 시계 | B157: 2305330.5 | C157: 481900.9 | D157: 45242.8 | E157: 56890 | F157: 56198 | G157: 28388 | H157: 123313 | I157: 12337.5 | J157: 7133 | K157: 1236156.3 | L157: 34870 | M157: 46828 | N157: 36830 | O157: 9044 | P157: 4961 | Q157: 99003 | R157: 25835 | S157: 400
A158: 대기업 | B158: 552073 | C158: 61070 | D158: 0 | E158: 0 | F158: 71 | G158: 0 | H158: 1320 | I158: 0 | J158: 0 | K158: 418464 | L158: 0 | M158: 300 | N158: 0 | O158: 0 | P158: 0 | Q158: 70848 | R158: 0 | S158: 0
A159: 중견기업 | B159: 319669 | C159: 131279 | D159: 13735 | E159: 0 | F159: 5172 | G159: 0 | H159: 4345 | I159: 0 | J159: 180 | K159: 150628 | L159: 2070 | M159: 6918 | N159: 4878 | O159: 0 | P159: 0 | Q159: 464 | R159: 0 | S159: 0
A160: 중소기업 | B160: 396246.4 | C160: 76796 | D160: 11403 | E160: 17822 | F160: 20434 | G160: 6244 | H160: 30877 | I160: 3332 | J160: 1144 | K160: 172127.4 | L160: 10008 | M160: 8433 | N160: 11174 | O160: 3616 | P160: 2378 | Q160: 11258 | R160: 8800 | S160: 400
A161: 벤처기업 | B161: 1037342.1 | C161: 212755.9 | D161: 20104.8 | E161: 39068 | F161: 30521 | G161: 22144 | H161: 86771 | I161: 9005.5 | J161: 5809 | K161: 494936.9 | L161: 22792 | M161: 31177 | N161: 20778 | O161: 5428 | P161: 2583 | Q161: 16433 | R161: 17035 | S161: 0
A162: 전기장비 | B162: 4134858.4 | C162: 243185.4 | D162: 67492.2 | E162: 64471.5 | F162: 158859.4 | G162: 47846 | H162: 882938 | I162: 20795 | J162: 5803 | K162: 1566781.6 | L162: 16478 | M162: 283543 | N162: 528448.9 | O162: 21689 | P162: 39736 | Q162: 83664 | R162: 97266.4 | S162: 5861
A163: 대기업 | B163: 2363357 | C163: 34693 | D163: 0 | E163: 2285 | F163: 0 | G163: 0 | H163: 814224 | I163: 0 | J163: 0 | K163: 868531 | L163: 7755 | M163: 170067 | N163: 458861 | O163: 136 | P163: 0 | Q163: 6805 | R163: 0 | S163: 0
A164: 중견기업 | B164: 475010 | C164: 64946 | D164: 5994 | E164: 32548 | F164: 75869 | G164: 16031 | H164: 1886 | I164: 1303 | J164: 2187 | K164: 103516 | L164: 0 | M164: 73810 | N164: 7596 | O164: 0 | P164: 1137 | Q164: 53522 | R164: 34665 | S164: 0
A165: 중소기업 | B165: 555562.5 | C165: 65329.7 | D165: 22012.4 | E165: 11121 | F165: 44440 | G165: 8754 | H165: 9958 | I165: 5660 | J165: 1363 | K165: 246436 | L165: 2490 | M165: 21193 | N165: 39852 | O165: 6669 | P165: 12191 | Q165: 11923 | R165: 45170.4 | S165: 1000
A166: 벤처기업 | B166: 740928.9 | C166: 78216.7 | D166: 39485.8 | E166: 18517.5 | F166: 38550.4 | G166: 23061 | H166: 56870 | I166: 13832 | J166: 2253 | K166: 348298.6 | L166: 6233 | M166: 18473 | N166: 22139.9 | O166: 14884 | P166: 26408 | Q166: 11414 | R166: 17431 | S166: 4861
A167: 기타 기계 및 장비 | B167: 4582934.45 | C167: 212820.7 | D167: 166377 | E167: 153459 | F167: 423474.4 | G167: 48464.5 | H167: 263774 | I167: 38635 | J167: 5210 | K167: 2270486.9 | L167: 6897 | M167: 95314 | N167: 192090 | O167: 64787 | P167: 28395.95 | Q167: 109507 | R167: 501171 | S167: 2071
A168: 대기업 | B168: 584756 | C168: 27287 | D168: 0 | E168: 0 | F168: 173913 | G168: 0 | H168: 3295 | I168: 655 | J168: 0 | K168: 224839 | L168: 0 | M168: 4522 | N168: 2207 | O168: 17106 | P168: 0 | Q168: 0 | R168: 130932 | S168: 0
A169: 중견기업 | B169: 1517756.4 | C169: 46516 | D169: 25741 | E169: 52182 | F169: 40449.4 | G169: 9348 | H169: 159320 | I169: 1067 | J169: 0 | K169: 899106 | L169: 0 | M169: 28649 | N169: 48092 | O169: 9907 | P169: 751 | Q169: 15008 | R169: 181620 | S169: 0
A170: 중소기업 | B170: 1281927.9 | C170: 57709.5 | D170: 75924 | E170: 63927 | F170: 121406 | G170: 19181.5 | H170: 32246 | I170: 16492 | J170: 492 | K170: 577597.9 | L170: 2210 | M170: 35881 | N170: 67910 | O170: 20182 | P170: 14592 | Q170: 54404 | R170: 120484 | S170: 1289
A171: 벤처기업 | B171: 1198494.15 | C171: 81308.2 | D171: 64712 | E171: 37350 | F171: 87706 | G171: 19935 | H171: 68913 | I171: 20421 | J171: 4718 | K171: 568944 | L171: 4687 | M171: 26262 | N171: 73881 | O171: 17592 | P171: 13052.95 | Q171: 40095 | R171: 68135 | S171: 782
A172: 자동차 및 트레일러 | B172: 9669611 | C172: 164935 | D172: 110284 | E172: 236393 | F172: 177335 | G172: 66239 | H172: 6240 | I172: 539150 | J172: 120775 | K172: 7264616 | L172: 32215 | M172: 56710 | N172: 229184 | O172: 101861 | P172: 12569 | Q172: 311167 | R172: 239938 | S172: 0
A173: 대기업 | B173: 6436779 | C173: 52070 | D173: 0 | E173: 7329 | F173: 19588 | G173: 22145 | H173: 0 | I173: 439353 | J173: 0 | K173: 5776287 | L173: 0 | M173: 15078 | N173: 38184 | O173: 37514 | P173: 0 | Q173: 5336 | R173: 23895 | S173: 0
A174: 중견기업 | B174: 2429043 | C174: 93694 | D174: 50700 | E174: 157616 | F174: 121194 | G174: 18078 | H174: 0 | I174: 73743 | J174: 117711 | K174: 1249913 | L174: 18702 | M174: 23494 | N174: 136973 | O174: 14863 | P174: 3774 | Q174: 219833 | R174: 128755 | S174: 0
A175: 중소기업 | B175: 564469 | C175: 11809 | D175: 41413 | E175: 52480 | F175: 31028 | G175: 13800 | H175: 4112 | I175: 18508 | J175: 546 | K175: 173309 | L175: 9933 | M175: 14224 | N175: 40736 | O175: 27797 | P175: 4902 | Q175: 57872 | R175: 62000 | S175: 0
A176: 벤처기업 | B176: 239320 | C176: 7362 | D176: 18171 | E176: 18968 | F176: 5525 | G176: 12216 | H176: 2128 | I176: 7546 | J176: 2518 | K176: 65107 | L176: 3580 | M176: 3914 | N176: 13291 | O176: 21687 | P176: 3893 | Q176: 28126 | R176: 25288 | S176: 0
A177: 기타 운송장비 | B177: 1085777.8 | C177: 20929 | D177: 53326 | E177: 3995 | F177: 16430 | G177: 2788 | H177: 45912 | I177: 67406 | J177: 22625 | K177: 293859.8 | L177: 1590 | M177: 22138 | N177: 4159 | O177: 10234 | P177: 64257 | Q177: 4264 | R177: 451865 | S177: 0
A178: 대기업 | B178: 535922 | C178: 6008 | D178: 0 | E178: 0 | F178: 0 | G178: 0 | H178: 11653 | I178: 57840 | J178: 0 | K178: 236342 | L178: 0 | M178: 0 | N178: 67 | O178: 0 | P178: 43079 | Q178: 0 | R178: 180933 | S178: 0
A179: 중견기업 | B179: 243998 | C179: 847 | D179: 8662 | E179: 0 | F179: 3187 | G179: 0 | H179: 0 | I179: 429 | J179: 0 | K179: 277 | L179: 0 | M179: 15778 | N179: 0 | O179: 2611 | P179: 0 | Q179: 0 | R179: 212207 | S179: 0
A180: 중소기업 | B180: 115122 | C180: 5659 | D180: 22281 | E180: 1306 | F180: 4802 | G180: 0 | H180: 3721 | I180: 5827 | J180: 0 | K180: 19871 | L180: 0 | M180: 5147 | N180: 2391 | O180: 1906 | P180: 9451 | Q180: 3122 | R180: 29638 | S180: 0
A181: 벤처기업 | B181: 190735.8 | C181: 8415 | D181: 22383 | E181: 2689 | F181: 8441 | G181: 2788 | H181: 30538 | I181: 3310 | J181: 22625 | K181: 37369.8 | L181: 1590 | M181: 1213 | N181: 1701 | O181: 5717 | P181: 11727 | Q181: 1142 | R181: 29087 | S181: 0
A182: · 선박 및 보트 | B182: 376042 | C182: 8928 | D182: 43826 | E182: 845 | F182: 3437 | G182: 67 | H182: 12553 | I182: 66459 | J182: 89 | K182: 80482 | L182: 1290 | M182: 0 | N182: 1193 | O182: 2140 | P182: 61858 | Q182: 3018 | R182: 89857 | S182: 0
A183: 대기업 | B183: 258360 | C183: 6008 | D183: 0 | E183: 0 | F183: 0 | G183: 0 | H183: 11653 | I183: 57840 | J183: 0 | K183: 78460 | L183: 0 | M183: 0 | N183: 0 | O183: 0 | P183: 43079 | Q183: 0 | R183: 61320 | S183: 0
A184: 중견기업 | B184: 16859 | C184: 847 | D184: 8662 | E184: 0 | F184: 1897 | G184: 0 | H184: 0 | I184: 429 | J184: 0 | K184: 0 | L184: 0 | M184: 0 | N184: 0 | O184: 0 | P184: 0 | Q184: 0 | R184: 5024 | S184: 0
A185: 중소기업 | B185: 54356 | C185: 114 | D185: 17759 | E185: 845 | F185: 839 | G185: 0 | H185: 900 | I185: 5827 | J185: 0 | K185: 1536 | L185: 0 | M185: 0 | N185: 1193 | O185: 1097 | P185: 8855 | Q185: 2766 | R185: 12625 | S185: 0
A186: 벤처기업 | B186: 46467 | C186: 1959 | D186: 17405 | E186: 0 | F186: 701 | G186: 67 | H186: 0 | I186: 2363 | J186: 89 | K186: 486 | L186: 1290 | M186: 0 | N186: 0 | O186: 1043 | P186: 9924 | Q186: 252 | R186: 10888 | S186: 0
A187: · 철도장비 | B187: 90124.8 | C187: 4569 | D187: 2222 | E187: 274 | F187: 2149 | G187: 0 | H187: 0 | I187: 0 | J187: 0 | K187: 56831.8 | L187: 0 | M187: 19271 | N187: 92 | O187: 619 | P187: 0 | Q187: 0 | R187: 4097 | S187: 0
A188: 대기업 | B188: 27998 | C188: 0 | D188: 0 | E188: 0 | F188: 0 | G188: 0 | H188: 0 | I188: 0 | J188: 0 | K188: 27998 | L188: 0 | M188: 0 | N188: 0 | O188: 0 | P188: 0 | Q188: 0 | R188: 0 | S188: 0
A189: 중견기업 | B189: 15778 | C189: 0 | D189: 0 | E189: 0 | F189: 0 | G189: 0 | H189: 0 | I189: 0 | J189: 0 | K189: 0 | L189: 0 | M189: 15778 | N189: 0 | O189: 0 | P189: 0 | Q189: 0 | R189: 0 | S189: 0
A190: 중소기업 | B190: 23401 | C190: 3664 | D190: 758 | E190: 0 | F190: 597 | G190: 0 | H190: 0 | I190: 0 | J190: 0 | K190: 11857 | L190: 0 | M190: 3306 | N190: 0 | O190: 370 | P190: 0 | Q190: 0 | R190: 2849 | S190: 0
A191: 벤처기업 | B191: 22947.8 | C191: 905 | D191: 1464 | E191: 274 | F191: 1552 | G191: 0 | H191: 0 | I191: 0 | J191: 0 | K191: 16976.8 | L191: 0 | M191: 187 | N191: 92 | O191: 249 | P191: 0 | Q191: 0 | R191: 1248 | S191: 0
A192: · 항공기, 우주선 및 부품 | B192: 592004 | C192: 6072 | D192: 6544 | E192: 2314 | F192: 7902 | G192: 1312 | H192: 33359 | I192: 947 | J192: 22536 | K192: 149461 | L192: 0 | M192: 2087 | N192: 2262 | O192: 3091 | P192: 1746 | Q192: 804 | R192: 351567 | S192: 0
A193: 대기업 | B193: 249564 | C193: 0 | D193: 0 | E193: 0 | F193: 0 | G193: 0 | H193: 0 | I193: 0 | J193: 0 | K193: 129884 | L193: 0 | M193: 0 | N193: 67 | O193: 0 | P193: 0 | Q193: 0 | R193: 119613 | S193: 0
A194: 중견기업 | B194: 208339 | C194: 0 | D194: 0 | E194: 0 | F194: 910 | G194: 0 | H194: 0 | I194: 0 | J194: 0 | K194: 246 | L194: 0 | M194: 0 | N194: 0 | O194: 0 | P194: 0 | Q194: 0 | R194: 207183 | S194: 0
A195: 중소기업 | B195: 26118 | C195: 1294 | D195: 3653 | E195: 217 | F195: 2005 | G195: 0 | H195: 2821 | I195: 0 | J195: 0 | K195: 4379 | L195: 0 | M195: 1589 | N195: 835 | O195: 439 | P195: 596 | Q195: 99 | R195: 8191 | S195: 0
A196: 벤처기업 | B196: 107983 | C196: 4778 | D196: 2891 | E196: 2097 | F196: 4987 | G196: 1312 | H196: 30538 | I196: 947 | J196: 22536 | K196: 14952 | L196: 0 | M196: 498 | N196: 1360 | O196: 2652 | P196: 1150 | Q196: 705 | R196: 16580 | S196: 0
A197: · 기타 운송장비 | B197: 27607 | C197: 1360 | D197: 734 | E197: 562 | F197: 2942 | G197: 1409 | H197: 0 | I197: 0 | J197: 0 | K197: 7085 | L197: 300 | M197: 780 | N197: 612 | O197: 4384 | P197: 653 | Q197: 442 | R197: 6344 | S197: 0
A198: 대기업
A199: 중견기업 | B199: 3022 | C199: 0 | D199: 0 | E199: 0 | F199: 380 | G199: 0 | H199: 0 | I199: 0 | J199: 0 | K199: 31 | L199: 0 | M199: 0 | N199: 0 | O199: 2611 | P199: 0 | Q199: 0 | R199: 0 | S199: 0
A200: 중소기업 | B200: 11247 | C200: 587 | D200: 111 | E200: 244 | F200: 1361 | G200: 0 | H200: 0 | I200: 0 | J200: 0 | K200: 2099 | L200: 0 | M200: 252 | N200: 363 | O200: 0 | P200: 0 | Q200: 257 | R200: 5973 | S200: 0
A201: 벤처기업 | B201: 13338 | C201: 773 | D201: 623 | E201: 318 | F201: 1201 | G201: 1409 | H201: 0 | I201: 0 | J201: 0 | K201: 4955 | L201: 300 | M201: 528 | N201: 249 | O201: 1773 | P201: 653 | Q201: 185 | R201: 371 | S201: 0
... 156 more rows

Sheet 1-1-12
R1: return to the table
A2: 1-1-12. 기업 산업별 종업원 규모별 연구개발비(2022년)
S4: (단위 : 백만원)
A5: 산업별·종업원 규모별 | B5: 전체 | C5: 지역
C6: 서울 | D6: 부산 | E6: 대구 | F6: 인천 | G6: 광주 | H6: 대전 | I6: 울산 | J6: 세종 | K6: 경기 | L6: 강원 | M6: 충북 | N6: 충남 | O6: 전북 | P6: 전남 | Q6: 경북 | R6: 경남 | S6: 제주
A7: 총계 | B7: =SUM(C7:S7) -> 89421300.21 | C7: =SUM(C8:C11) -> 12651096.55 | D7: =SUM(D8:D11) -> 1001051.05 | E7: 857891.34 | F7: 3009166.3 | G7: 429095.32 | H7: 3967894.02 | I7: 939844.99 | J7: 347585.49 | K7: 55090723.64 | L7: 315051.76 | M7: 1693808.89 | N7: 3482812.6 | O7: 601007.38 | P7: 508004.46 | Q7: 2300198.06 | R7: 2164949.09 | S7: 61119.27
A8: 99명이하 (1) | B8: 17428918.7 | C8: =SUM(C13,C18,C23,C218,C223,C228,C233) -> 4913201.54 | D8: =SUM(D13,D18,D23,D218,D223,D228,D233) -> 623248.75 | E8: 466278.59 | F8: 797872.35 | G8: 249229.32 | H8: 871266.14 | I8: 198388.99 | J8: 96082.29 | K8: 6320610.68 | L8: 185325.16 | M8: 449092.73 | N8: 496327.43 | O8: 300185.38 | P8: 260299.46 | Q8: 520455.78 | R8: 627709.64 | S8: 53344.47
A9: 100~299명 (2) | B9: 5724445.13 | C9: =SUM(C14,C19,C24,C219,C224,C229,C234) -> 1295178.99 | D9: 171437.3 | E9: 117966.75 | F9: 269208.55 | G9: 39164 | H9: 258630.33 | I9: 71283 | J9: 33393.2 | K9: 2349382.83 | L9: 35285.6 | M9: 270921.16 | N9: 324893.17 | O9: 73013 | P9: 29469 | Q9: 149496 | R9: 229228.45 | S9: 6493.8
A10: 300~999명 (3) | B10: 6531705.96 | C10: =SUM(C15,C20,C25,C220,C225,C230,C235) -> 1238650.84 | D10: 86611 | E10: 201715 | F10: 346767.4 | G10: 62348 | H10: 120870.8 | I10: 154641 | J10: 133395 | K10: 3063468.64 | L10: 58083 | M10: 264041 | N10: 298607 | O10: 56198 | P10: 10192 | Q10: 207215.28 | R10: 227621 | S10: 1281
A11: 1,000명이상 (4) | B11: 59736230.42 | C11: =SUM(C16,C21,C26,C221,C226,C231,C236) -> 5204065.18 | D11: 119754 | E11: 71931 | F11: 1595318 | G11: 78354 | H11: 2717126.75 | I11: 515532 | J11: 84715 | K11: 43357261.49 | L11: 36358 | M11: 709754 | N11: 2362985 | O11: 171611 | P11: 208044 | Q11: 1423031 | R11: 1080390 | S11: 0
A12: [ 농업, 임업 및 어업 ] | B12: 59208 | C12: 2381 | D12: 1418 | E12: 0 | F12: 12 | G12: 48 | H12: 525 | I12: 292 | J12: 735 | K12: 32167 | L12: 2800 | M12: 1307 | N12: 2280 | O12: 8690 | P12: 983 | Q12: 1109 | R12: 3920 | S12: 541
A13: 99명이하 (1) | B13: 26388 | C13: 594 | D13: 1418 | E13: 0 | F13: 12 | G13: 48 | H13: 525 | I13: 292 | J13: 735 | K13: 7309 | L13: 2800 | M13: 1307 | N13: 1675 | O13: 5874 | P13: 947 | Q13: 1109 | R13: 1202 | S13: 541
A14: 100~299명 (2) | B14: 15911 | C14: 1787 | D14: 0 | E14: 0 | F14: 0 | G14: 0 | H14: 0 | I14: 0 | J14: 0 | K14: 12769 | L14: 0 | M14: 0 | N14: 605 | O14: 714 | P14: 36 | Q14: 0 | R14: 0 | S14: 0
A15: 300~999명 (3) | B15: 16909 | C15: 0 | D15: 0 | E15: 0 | F15: 0 | G15: 0 | H15: 0 | I15: 0 | J15: 0 | K15: 12089 | L15: 0 | M15: 0 | N15: 0 | O15: 2102 | P15: 0 | Q15: 0 | R15: 2718 | S15: 0
A16: 1,000명이상 (4)
A17: [ 광업 ] | B17: 7923 | C17: 366 | D17: 0 | E17: 0 | F17: 0 | G17: 0 | H17: 0 | I17: 2964 | J17: 0 | K17: 1413 | L17: 1569 | M17: 1548 | N17: 0 | O17: 0 | P17: 0 | Q17: 63 | R17: 0 | S17: 0
A18: 99명이하 (1) | B18: 2614 | C18: 366 | D18: 0 | E18: 0 | F18: 0 | G18: 0 | H18: 0 | I18: 0 | J18: 0 | K18: 487 | L18: 150 | M18: 1548 | N18: 0 | O18: 0 | P18: 0 | Q18: 63 | R18: 0 | S18: 0
A19: 100~299명 (2) | B19: 1494 | C19: 0 | D19: 0 | E19: 0 | F19: 0 | G19: 0 | H19: 0 | I19: 0 | J19: 0 | K19: 926 | L19: 568 | M19: 0 | N19: 0 | O19: 0 | P19: 0 | Q19: 0 | R19: 0 | S19: 0
A20: 300~999명 (3) | B20: 851 | C20: 0 | D20: 0 | E20: 0 | F20: 0 | G20: 0 | H20: 0 | I20: 0 | J20: 0 | K20: 0 | L20: 851 | M20: 0 | N20: 0 | O20: 0 | P20: 0 | Q20: 0 | R20: 0 | S20: 0
A21: 1,000명이상 (4) | B21: 2964 | C21: 0 | D21: 0 | E21: 0 | F21: 0 | G21: 0 | H21: 0 | I21: 2964 | J21: 0 | K21: 0 | L21: 0 | M21: 0 | N21: 0 | O21: 0 | P21: 0 | Q21: 0 | R21: 0 | S21: 0
A22: [ 제조업 ] | B22: 76895561.85 | C22: 7152398.95 | D22: 759671 | E22: 730030.55 | F22: 2096108.8 | G22: 345527.5 | H22: 2894518.1 | I22: 887869.2 | J22: 311094 | K22: 51438556.8 | L22: 244254 | M22: 1565958.4 | N22: 3387410.4 | O22: 466578 | P22: 398588.45 | Q22: 2124278.3 | R22: 2067509.4 | S22: 25210
A23: 99명이하 (1) | B23: 10599163.45 | C23: 1568712.95 | D23: 435423 | E23: 357991.55 | F23: 613837.4 | G23: 179875.5 | H23: 510609.1 | I23: 156264.2 | J23: 73378 | K23: 4355087.8 | L23: 133990 | M23: 364291.4 | N23: 428216.4 | O23: 219191 | P23: 193050.45 | Q23: 436701.3 | R23: 552142.4 | S23: 20401
A24: 100~299명 (2) | B24: 4314482 | C24: 566197 | D24: 135060 | E24: 106335 | F24: 250562 | G24: 31840 | H24: 137424 | I24: 69448 | J24: 31107 | K24: 1940696 | L24: 32265 | M24: 252371 | N24: 309468 | O24: 66330 | P24: 24237 | Q24: 144633 | R24: 212981 | S24: 3528
A25: 300~999명 (3) | B25: 5581434.4 | C25: 774272 | D25: 72561 | E25: 199306 | F25: 254270.4 | G25: 55536 | H25: 108300 | I25: 150404 | J25: 133395 | K25: 2788673 | L25: 50572 | M25: 246435 | N25: 297805 | O25: 52975 | P25: 8167 | Q25: 163206 | R25: 224276 | S25: 1281
A26: 1,000명이상 (4) | B26: 56400482 | C26: 4243217 | D26: 116627 | E26: 66398 | F26: 977439 | G26: 78276 | H26: 2138185 | I26: 511753 | J26: 73214 | K26: 42354100 | L26: 27427 | M26: 702861 | N26: 2351921 | O26: 128082 | P26: 173134 | Q26: 1379738 | R26: 1078110 | S26: 0
A27: 식료품 | B27: 1068907.7 | C27: 307218.7 | D27: 8997 | E27: 11034 | F27: 27374 | G27: 3871 | H27: 52868 | I27: 1748 | J27: 9092 | K27: 408874 | L27: 28131 | M27: 78190 | N27: 41296 | O27: 28446 | P27: 18009 | Q27: 13568 | R27: 23506 | S27: 6685
A28: 99명이하 (1) | B28: 339749.7 | C28: 42806.7 | D28: 7457 | E28: 10786 | F28: 12912 | G28: 3791 | H28: 6177 | I28: 1748 | J28: 2600 | K28: 108727 | L28: 18478 | M28: 26236 | N28: 25460 | O28: 21631 | P28: 17734 | Q28: 11884 | R28: 14842 | S28: 6480
A29: 100~299명 (2) | B29: 82671 | C29: 9943 | D29: 1540 | E29: 248 | F29: 1980 | G29: 80 | H29: 412 | I29: 0 | J29: 219 | K29: 30366 | L29: 2637 | M29: 9157 | N29: 14546 | O29: 3630 | P29: 248 | Q29: 1684 | R29: 5776 | S29: 205
A30: 300~999명 (3) | B30: 100329 | C30: 17902 | D30: 0 | E30: 0 | F30: 1176 | G30: 0 | H30: 3109 | I30: 0 | J30: 0 | K30: 28431 | L30: 1143 | M30: 42797 | N30: 1290 | O30: 1566 | P30: 27 | Q30: 0 | R30: 2888 | S30: 0
A31: 1,000명이상 (4) | B31: 546158 | C31: 236567 | D31: 0 | E31: 0 | F31: 11306 | G31: 0 | H31: 43170 | I31: 0 | J31: 6273 | K31: 241350 | L31: 5873 | M31: 0 | N31: 0 | O31: 1619 | P31: 0 | Q31: 0 | R31: 0 | S31: 0
A32: 음료 | B32: 40040 | C32: 12964 | D32: 1072 | E32: 843 | F32: 80 | G32: 0 | H32: 349 | I32: 0 | J32: 0 | K32: 7275 | L32: 3224 | M32: 4717 | N32: 1092 | O32: 1247 | P32: 1001 | Q32: 1752 | R32: 2641 | S32: 1783
A33: 99명이하 (1) | B33: 14237 | C33: 2624 | D33: 305 | E33: 286 | F33: 80 | G33: 0 | H33: 94 | I33: 0 | J33: 0 | K33: 2996 | L33: 566 | M33: 168 | N33: 984 | O33: 1247 | P33: 503 | Q33: 1752 | R33: 2258 | S33: 374
A34: 100~299명 (2) | B34: 4765 | C34: 688 | D34: 767 | E34: 557 | F34: 0 | G34: 0 | H34: 255 | I34: 0 | J34: 0 | K34: 1764 | L34: 0 | M34: 0 | N34: 108 | O34: 0 | P34: 498 | Q34: 0 | R34: 0 | S34: 128
A35: 300~999명 (3) | B35: 5852 | C35: 1205 | D35: 0 | E35: 0 | F35: 0 | G35: 0 | H35: 0 | I35: 0 | J35: 0 | K35: 676 | L35: 0 | M35: 2307 | N35: 0 | O35: 0 | P35: 0 | Q35: 0 | R35: 383 | S35: 1281
A36: 1,000명이상 (4) | B36: 15186 | C36: 8447 | D36: 0 | E36: 0 | F36: 0 | G36: 0 | H36: 0 | I36: 0 | J36: 0 | K36: 1839 | L36: 2658 | M36: 2242 | N36: 0 | O36: 0 | P36: 0 | Q36: 0 | R36: 0 | S36: 0
A37: 담배 | B37: 50446 | C37: 0 | D37: 0 | E37: 0 | F37: 0 | G37: 0 | H37: 50446 | I37: 0 | J37: 0 | K37: 0 | L37: 0 | M37: 0 | N37: 0 | O37: 0 | P37: 0 | Q37: 0 | R37: 0 | S37: 0
A38: 99명이하 (1)
A39: 100~299명 (2)
A40: 300~999명 (3)
A41: 1,000명이상 (4) | B41: 50446 | C41: 0 | D41: 0 | E41: 0 | F41: 0 | G41: 0 | H41: 50446 | I41: 0 | J41: 0 | K41: 0 | L41: 0 | M41: 0 | N41: 0 | O41: 0 | P41: 0 | Q41: 0 | R41: 0 | S41: 0
A42: 섬유제품(의복제외) | B42: 203030 | C42: 37031 | D42: 9656 | E42: 34757 | F42: 2617 | G42: 1931 | H42: 2392 | I42: 437 | J42: 749 | K42: 60957 | L42: 435 | M42: 8093 | N42: 7648 | O42: 5574 | P42: 50 | Q42: 24744 | R42: 5959 | S42: 0
A43: 99명이하 (1) | B43: 165495 | C43: 28791 | D43: 5915 | E43: 29460 | F43: 2617 | G43: 924 | H43: 2392 | I43: 437 | J43: 749 | K43: 51885 | L43: 435 | M43: 6108 | N43: 7648 | O43: 5086 | P43: 50 | Q43: 17622 | R43: 5376 | S43: 0
A44: 100~299명 (2) | B44: 30551 | C44: 4522 | D44: 3741 | E44: 5297 | F44: 0 | G44: 458 | H44: 0 | I44: 0 | J44: 0 | K44: 8730 | L44: 0 | M44: 1985 | N44: 0 | O44: 488 | P44: 0 | Q44: 4747 | R44: 583 | S44: 0
A45: 300~999명 (3) | B45: 6984 | C45: 3718 | D45: 0 | E45: 0 | F45: 0 | G45: 549 | H45: 0 | I45: 0 | J45: 0 | K45: 342 | L45: 0 | M45: 0 | N45: 0 | O45: 0 | P45: 0 | Q45: 2375 | R45: 0 | S45: 0
A46: 1,000명이상 (4)
A47: 의복, 의복액세서리 및 모피제품 | B47: 278373 | C47: 245370 | D47: 9279 | E47: 2097 | F47: 1723 | G47: 226 | H47: 1095 | I47: 538 | J47: 0 | K47: 14677 | L47: 241 | M47: 344 | N47: 0 | O47: 860 | P47: 377 | Q47: 863 | R47: 683 | S47: 0
A48: 99명이하 (1) | B48: 147678 | C48: 116979 | D48: 7908 | E48: 1998 | F48: 1242 | G48: 226 | H48: 1095 | I48: 538 | J48: 0 | K48: 14324 | L48: 241 | M48: 344 | N48: 0 | O48: 860 | P48: 377 | Q48: 863 | R48: 683 | S48: 0
A49: 100~299명 (2) | B49: 42568 | C49: 40264 | D49: 1371 | E49: 99 | F49: 481 | G49: 0 | H49: 0 | I49: 0 | J49: 0 | K49: 353 | L49: 0 | M49: 0 | N49: 0 | O49: 0 | P49: 0 | Q49: 0 | R49: 0 | S49: 0
A50: 300~999명 (3) | B50: 51972 | C50: 51972 | D50: 0 | E50: 0 | F50: 0 | G50: 0 | H50: 0 | I50: 0 | J50: 0 | K50: 0 | L50: 0 | M50: 0 | N50: 0 | O50: 0 | P50: 0 | Q50: 0 | R50: 0 | S50: 0
A51: 1,000명이상 (4) | B51: 36155 | C51: 36155 | D51: 0 | E51: 0 | F51: 0 | G51: 0 | H51: 0 | I51: 0 | J51: 0 | K51: 0 | L51: 0 | M51: 0 | N51: 0 | O51: 0 | P51: 0 | Q51: 0 | R51: 0 | S51: 0
A52: 가죽, 가방 및 신발 | B52: 56756 | C52: 23362 | D52: 12838 | E52: 847 | F52: 526 | G52: 0 | H52: 123 | I52: 0 | J52: 655 | K52: 15500 | L52: 0 | M52: 817 | N52: 440 | O52: 174 | P52: 275 | Q52: 89 | R52: 1110 | S52: 0
A53: 99명이하 (1) | B53: 38399 | C53: 15058 | D53: 7358 | E53: 847 | F53: 526 | G53: 0 | H53: 123 | I53: 0 | J53: 0 | K53: 12325 | L53: 0 | M53: 74 | N53: 440 | O53: 174 | P53: 275 | Q53: 89 | R53: 1110 | S53: 0
A54: 100~299명 (2) | B54: 12975 | C54: 5208 | D54: 4097 | E54: 0 | F54: 0 | G54: 0 | H54: 0 | I54: 0 | J54: 655 | K54: 2272 | L54: 0 | M54: 743 | N54: 0 | O54: 0 | P54: 0 | Q54: 0 | R54: 0 | S54: 0
A55: 300~999명 (3) | B55: 5382 | C55: 3096 | D55: 1383 | E55: 0 | F55: 0 | G55: 0 | H55: 0 | I55: 0 | J55: 0 | K55: 903 | L55: 0 | M55: 0 | N55: 0 | O55: 0 | P55: 0 | Q55: 0 | R55: 0 | S55: 0
A56: 1,000명이상 (4)
A57: 목재 및 나무제품(가구제외) | B57: 36787 | C57: 3557 | D57: 1186 | E57: 266 | F57: 6322 | G57: 634 | H57: 1055 | I57: 0 | J57: 259 | K57: 13113 | L57: 1765 | M57: 1108 | N57: 1367 | O57: 1388 | P57: 1347 | Q57: 1839 | R57: 1581 | S57: 0
A58: 99명이하 (1) | B58: 33041 | C58: 3557 | D58: 1186 | E58: 266 | F58: 2872 | G58: 634 | H58: 1055 | I58: 0 | J58: 259 | K58: 12817 | L58: 1765 | M58: 1108 | N58: 1367 | O58: 1388 | P58: 1347 | Q58: 1839 | R58: 1581 | S58: 0
A59: 100~299명 (2) | B59: 1632 | C59: 0 | D59: 0 | E59: 0 | F59: 1336 | G59: 0 | H59: 0 | I59: 0 | J59: 0 | K59: 296 | L59: 0 | M59: 0 | N59: 0 | O59: 0 | P59: 0 | Q59: 0 | R59: 0 | S59: 0
A60: 300~999명 (3) | B60: 2114 | C60: 0 | D60: 0 | E60: 0 | F60: 2114 | G60: 0 | H60: 0 | I60: 0 | J60: 0 | K60: 0 | L60: 0 | M60: 0 | N60: 0 | O60: 0 | P60: 0 | Q60: 0 | R60: 0 | S60: 0
A61: 1,000명이상 (4)
A62: 펄프, 종이 및 종이제품 | B62: 238182 | C62: 155593 | D62: 2073 | E62: 3031 | F62: 1608 | G62: 478 | H62: 7665 | I62: 4192 | J62: 478 | K62: 45453 | L62: 55 | M62: 5953 | N62: 3111 | O62: 2644 | P62: 94 | Q62: 3062 | R62: 2454 | S62: 238
A63: 99명이하 (1) | B63: 203627 | C63: 153774 | D63: 2073 | E63: 1733 | F63: 1608 | G63: 478 | H63: 515 | I63: 151 | J63: 103 | K63: 29110 | L63: 55 | M63: 4593 | N63: 2652 | O63: 1588 | P63: 94 | Q63: 3062 | R63: 1800 | S63: 238
A64: 100~299명 (2) | B64: 10288 | C64: 1394 | D64: 0 | E64: 1298 | F64: 0 | G64: 0 | H64: 0 | I64: 0 | J64: 375 | K64: 4464 | L64: 0 | M64: 1360 | N64: 459 | O64: 284 | P64: 0 | Q64: 0 | R64: 654 | S64: 0
A65: 300~999명 (3) | B65: 7145 | C65: 425 | D65: 0 | E65: 0 | F65: 0 | G65: 0 | H65: 0 | I65: 4041 | J65: 0 | K65: 1907 | L65: 0 | M65: 0 | N65: 0 | O65: 772 | P65: 0 | Q65: 0 | R65: 0 | S65: 0
A66: 1,000명이상 (4) | B66: 17122 | C66: 0 | D66: 0 | E66: 0 | F66: 0 | G66: 0 | H66: 7150 | I66: 0 | J66: 0 | K66: 9972 | L66: 0 | M66: 0 | N66: 0 | O66: 0 | P66: 0 | Q66: 0 | R66: 0 | S66: 0
A67: 인쇄 및 기록매체 복제 | B67: 74830 | C67: 23940.6 | D67: 1925 | E67: 3356 | F67: 3558 | G67: 4313 | H67: 897 | I67: 476 | J67: 70 | K67: 27289.5 | L67: 258 | M67: 2197 | N67: 1201 | O67: 423 | P67: 587.4 | Q67: 2168.5 | R67: 2044 | S67: 126
A68: 99명이하 (1) | B68: 66138 | C68: 20258.6 | D68: 1925 | E68: 2384 | F68: 2955 | G68: 4313 | H68: 897 | I68: 476 | J68: 70 | K68: 24629.5 | L68: 258 | M68: 2197 | N68: 426 | O68: 423 | P68: 587.4 | Q68: 2168.5 | R68: 2044 | S68: 126
A69: 100~299명 (2) | B69: 7492 | C69: 2482 | D69: 0 | E69: 972 | F69: 603 | G69: 0 | H69: 0 | I69: 0 | J69: 0 | K69: 2660 | L69: 0 | M69: 0 | N69: 775 | O69: 0 | P69: 0 | Q69: 0 | R69: 0 | S69: 0
A70: 300~999명 (3) | B70: 1200 | C70: 1200 | D70: 0 | E70: 0 | F70: 0 | G70: 0 | H70: 0 | I70: 0 | J70: 0 | K70: 0 | L70: 0 | M70: 0 | N70: 0 | O70: 0 | P70: 0 | Q70: 0 | R70: 0 | S70: 0
A71: 1,000명이상 (4)
A72: 코크스, 연탄 및 석유정제품 | B72: 302267 | C72: 17754 | D72: 197 | E72: 0 | F72: 612 | G72: 0 | H72: 241300 | I72: 3041 | J72: 0 | K72: 19527 | L72: 905 | M72: 877 | N72: 8232 | O72: 0 | P72: 3940 | Q72: 2755 | R72: 3127 | S72: 0
A73: 99명이하 (1) | B73: 14452 | C73: 26 | D73: 197 | E73: 0 | F73: 612 | G73: 0 | H73: 0 | I73: 3041 | J73: 0 | K73: 1109 | L73: 905 | M73: 877 | N73: 1059 | O73: 0 | P73: 744 | Q73: 2755 | R73: 3127 | S73: 0
A74: 100~299명 (2) | B74: 5265 | C74: 0 | D74: 0 | E74: 0 | F74: 0 | G74: 0 | H74: 0 | I74: 0 | J74: 0 | K74: 352 | L74: 0 | M74: 0 | N74: 4913 | O74: 0 | P74: 0 | Q74: 0 | R74: 0 | S74: 0
A75: 300~999명 (3) | B75: 3831 | C75: 0 | D75: 0 | E75: 0 | F75: 0 | G75: 0 | H75: 0 | I75: 0 | J75: 0 | K75: 635 | L75: 0 | M75: 0 | N75: 0 | O75: 0 | P75: 3196 | Q75: 0 | R75: 0 | S75: 0
A76: 1,000명이상 (4) | B76: 278719 | C76: 17728 | D76: 0 | E76: 0 | F76: 0 | G76: 0 | H76: 241300 | I76: 0 | J76: 0 | K76: 17431 | L76: 0 | M76: 0 | N76: 2260 | O76: 0 | P76: 0 | Q76: 0 | R76: 0 | S76: 0
A77: 화학물질 및 화학제품(의약품 제외) | B77: 3768115 | C77: 826291 | D77: 32754 | E77: 19308 | F77: 93124 | G77: 7479 | H77: 562787 | I77: 116403 | J77: 46116 | K77: 1278508 | L77: 20204 | M77: 271558 | N77: 182825 | O77: 105658 | P77: 60638 | Q77: 87726 | R77: 53299 | S77: 3437
A78: 99명이하 (1) | B78: 861573 | C78: 88252 | D78: 19793 | E78: 18373 | F78: 64863 | G78: 7479 | H78: 56308 | I78: 16970 | J78: 16102 | K78: 328615 | L78: 18036 | M78: 77711 | N78: 48369 | O78: 18314 | P78: 12426 | Q78: 32753 | R78: 34216 | S78: 2993
A79: 100~299명 (2) | B79: 430864 | C79: 35240 | D79: 4509 | E79: 935 | F79: 24187 | G79: 0 | H79: 17355 | I79: 19998 | J79: 12675 | K79: 154859 | L79: 2168 | M79: 71300 | N79: 28289 | O79: 15065 | P79: 14445 | Q79: 19184 | R79: 10211 | S79: 444
A80: 300~999명 (3) | B80: 518077 | C80: 33517 | D80: 8452 | E80: 0 | F80: 1594 | G80: 0 | H80: 52768 | I80: 57036 | J80: 2934 | K80: 249798 | L80: 0 | M80: 13546 | N80: 54930 | O80: 23274 | P80: 1010 | Q80: 10346 | R80: 8872 | S80: 0
A81: 1,000명이상 (4) | B81: 1957601 | C81: 669282 | D81: 0 | E81: 0 | F81: 2480 | G81: 0 | H81: 436356 | I81: 22399 | J81: 14405 | K81: 545236 | L81: 0 | M81: 109001 | N81: 51237 | O81: 49005 | P81: 32757 | Q81: 25443 | R81: 0 | S81: 0
A82: 의료용 물질 및 의약품 | B82: 2552310 | C82: 484156 | D82: 3677 | E82: 10828 | F82: 471166 | G82: 2974 | H82: 91977 | I82: 4279 | J82: 16355 | K82: 1269422 | L82: 64637 | M82: 80493 | N82: 25034 | O82: 6715 | P82: 5653 | Q82: 11211 | R82: 2899 | S82: 834
A83: 99명이하 (1) | B83: 394165 | C83: 101871 | D83: 911 | E83: 7926 | F83: 7378 | G83: 1600 | H83: 58213 | I83: 1040 | J83: 616 | K83: 129946 | L83: 21572 | M83: 28755 | N83: 12555 | O83: 4016 | P83: 4361 | Q83: 10506 | R83: 2899 | S83: 0
A84: 100~299명 (2) | B84: 273008 | C84: 34286 | D84: 2542 | E84: 2509 | F84: 4623 | G84: 1374 | H84: 8443 | I84: 3239 | J84: 1670 | K84: 188824 | L84: 4123 | M84: 16459 | N84: 1614 | O84: 2263 | P84: 0 | Q84: 205 | R84: 0 | S84: 834
A85: 300~999명 (3) | B85: 719507 | C85: 242393 | D85: 0 | E85: 281 | F85: 519 | G85: 0 | H85: 25209 | I85: 0 | J85: 14069 | K85: 351345 | L85: 38942 | M85: 33656 | N85: 10865 | O85: 436 | P85: 1292 | Q85: 500 | R85: 0 | S85: 0
A86: 1,000명이상 (4) | B86: 1165630 | C86: 105606 | D86: 224 | E86: 112 | F86: 458646 | G86: 0 | H86: 112 | I86: 0 | J86: 0 | K86: 599307 | L86: 0 | M86: 1623 | N86: 0 | O86: 0 | P86: 0 | Q86: 0 | R86: 0 | S86: 0
A87: 고무 및 프라스틱제품 | B87: 1136477 | C87: 167748 | D87: 22783 | E87: 23871 | F87: 62632 | G87: 29605 | H87: 187478 | I87: 6343 | J87: 10033 | K87: 343583 | L87: 4845 | M87: 61358 | N87: 92904 | O87: 9195 | P87: 7581 | Q87: 43817 | R87: 62287 | S87: 414
A88: 99명이하 (1) | B88: 402393 | C88: 22320 | D88: 14924 | E88: 12919 | F88: 24463 | G88: 5745 | H88: 4936 | I88: 5481 | J88: 4210 | K88: 185686 | L88: 3343 | M88: 23403 | N88: 27156 | O88: 8801 | P88: 6826 | Q88: 24891 | R88: 26875 | S88: 414
A89: 100~299명 (2) | B89: 127949 | C89: 8947 | D89: 2883 | E89: 5573 | F89: 9000 | G89: 2717 | H89: 888 | I89: 862 | J89: 180 | K89: 44502 | L89: 1502 | M89: 21987 | N89: 12009 | O89: 394 | P89: 755 | Q89: 5252 | R89: 10498 | S89: 0
A90: 300~999명 (3) | B90: 129896 | C90: 4055 | D90: 4976 | E90: 0 | F90: 28265 | G90: 0 | H90: 0 | I90: 0 | J90: 5643 | K90: 21805 | L90: 0 | M90: 15968 | N90: 39713 | O90: 0 | P90: 0 | Q90: 0 | R90: 9471 | S90: 0
A91: 1,000명이상 (4) | B91: 476239 | C91: 132426 | D91: 0 | E91: 5379 | F91: 904 | G91: 21143 | H91: 181654 | I91: 0 | J91: 0 | K91: 91590 | L91: 0 | M91: 0 | N91: 14026 | O91: 0 | P91: 0 | Q91: 13674 | R91: 15443 | S91: 0
A92: 비금속 광물제품 | B92: 365639 | C92: 17958 | D92: 2491 | E92: 5042 | F92: 10018 | G92: 3830 | H92: 3404 | I92: 2524 | J92: 30832 | K92: 75775 | L92: 8382 | M92: 19479 | N92: 93759 | O92: 14606 | P92: 10121 | Q92: 53949 | R92: 13362 | S92: 107
A93: 99명이하 (1) | B93: 150687 | C93: 8171 | D93: 2491 | E93: 3998 | F93: 8045 | G93: 3830 | H93: 3404 | I93: 2362 | J93: 259 | K93: 43141 | L93: 6121 | M93: 13128 | N93: 12869 | O93: 8912 | P93: 7808 | Q93: 18052 | R93: 7989 | S93: 107
A94: 100~299명 (2) | B94: 21380 | C94: 1183 | D94: 0 | E94: 110 | F94: 1973 | G94: 0 | H94: 0 | I94: 162 | J94: 240 | K94: 3858 | L94: 386 | M94: 2861 | N94: 3353 | O94: 2248 | P94: 1492 | Q94: 700 | R94: 2814 | S94: 0
A95: 300~999명 (3) | B95: 48131 | C95: 8604 | D95: 0 | E95: 934 | F95: 0 | G95: 0 | H95: 0 | I95: 0 | J95: 1111 | K95: 18676 | L95: 1875 | M95: 3490 | N95: 5122 | O95: 3446 | P95: 821 | Q95: 1493 | R95: 2559 | S95: 0
A96: 1,000명이상 (4) | B96: 145441 | C96: 0 | D96: 0 | E96: 0 | F96: 0 | G96: 0 | H96: 0 | I96: 0 | J96: 29222 | K96: 10100 | L96: 0 | M96: 0 | N96: 72415 | O96: 0 | P96: 0 | Q96: 33704 | R96: 0 | S96: 0
A97: 제1차 금속산업 | B97: 809372 | C97: 14861 | D97: 20057 | E97: 4502 | F97: 81905 | G97: 2011 | H97: 17517 | I97: 29753 | J97: 2416 | K97: 83055 | L97: 2096 | M97: 7780 | N97: 105580 | O97: 23324 | P97: 104145 | Q97: 260674 | R97: 49696 | S97: 0
A98: 99명이하 (1) | B98: 150193 | C98: 3847 | D98: 9021 | E98: 2343 | F98: 10685 | G98: 2011 | H98: 764 | I98: 4749 | J98: 1178 | K98: 48172 | L98: 709 | M98: 6335 | N98: 10952 | O98: 3741 | P98: 9480 | Q98: 15602 | R98: 20604 | S98: 0
A99: 100~299명 (2) | B99: 76979 | C99: 11014 | D99: 6244 | E99: 698 | F99: 8943 | G99: 0 | H99: 1427 | I99: 4826 | J99: 1238 | K99: 11343 | L99: 679 | M99: 1445 | N99: 9950 | O99: 3485 | P99: 2420 | Q99: 4600 | R99: 8667 | S99: 0
A100: 300~999명 (3) | B100: 61753 | C100: 0 | D100: 1522 | E100: 1461 | F100: 4655 | G100: 0 | H100: 0 | I100: 8060 | J100: 0 | K100: 19377 | L100: 708 | M100: 0 | N100: 1629 | O100: 10687 | P100: 0 | Q100: 11695 | R100: 1959 | S100: 0
A101: 1,000명이상 (4) | B101: 520447 | C101: 0 | D101: 3270 | E101: 0 | F101: 57622 | G101: 0 | H101: 15326 | I101: 12118 | J101: 0 | K101: 4163 | L101: 0 | M101: 0 | N101: 83049 | O101: 5411 | P101: 92245 | Q101: 228777 | R101: 18466 | S101: 0
A102: · 제1차 철강 산업 Basic Iron and Steel | B102: 590035 | C102: 10823 | D102: 15836 | E102: 2049 | F102: 59710 | G102: 800 | H102: 86 | I102: 3285 | J102: 1000 | K102: 18863 | L102: 1169 | M102: 4563 | N102: 90878 | O102: 11800 | P102: 96274 | Q102: 236385 | R102: 36514 | S102: 0
A103: 99명이하 (1) | B103: 65517 | C103: 463 | D103: 7449 | E103: 1351 | F103: 3192 | G103: 800 | H103: 86 | I103: 2560 | J103: 1000 | K103: 15650 | L103: 490 | M103: 3657 | N103: 4080 | O103: 2693 | P103: 2505 | Q103: 5430 | R103: 14111 | S103: 0
A104: 100~299명 (2) | B104: 32200 | C104: 10360 | D104: 3595 | E104: 698 | F104: 873 | G104: 0 | H104: 0 | I104: 725 | J104: 0 | K104: 3213 | L104: 679 | M104: 906 | N104: 2120 | O104: 1775 | P104: 1524 | Q104: 3754 | R104: 1978 | S104: 0
A105: 300~999명 (3) | B105: 16139 | C105: 0 | D105: 1522 | E105: 0 | F105: 0 | G105: 0 | H105: 0 | I105: 0 | J105: 0 | K105: 0 | L105: 0 | M105: 0 | N105: 1629 | O105: 1921 | P105: 0 | Q105: 9108 | R105: 1959 | S105: 0
A106: 1,000명이상 (4) | B106: 476179 | C106: 0 | D106: 3270 | E106: 0 | F106: 55645 | G106: 0 | H106: 0 | I106: 0 | J106: 0 | K106: 0 | L106: 0 | M106: 0 | N106: 83049 | O106: 5411 | P106: 92245 | Q106: 218093 | R106: 18466 | S106: 0
A107: · 제1차 비철금속 산업 | B107: 166850 | C107: 2503 | D107: 1388 | E107: 1687 | F107: 13119 | G107: 777 | H107: 17144 | I107: 21379 | J107: 1301 | K107: 51360 | L107: 927 | M107: 1545 | N107: 11387 | O107: 9421 | P107: 7002 | Q107: 18407 | R107: 7503 | S107: 0
A108: 99명이하 (1) | B108: 51213 | C108: 1849 | D108: 398 | E108: 226 | F108: 3520 | G108: 777 | H108: 391 | I108: 1201 | J108: 63 | K108: 23675 | L108: 219 | M108: 1006 | N108: 3557 | O108: 655 | P108: 6106 | Q108: 4290 | R108: 3280 | S108: 0
A109: 100~299명 (2) | B109: 25755 | C109: 654 | D109: 990 | E109: 0 | F109: 2967 | G109: 0 | H109: 1427 | I109: 0 | J109: 1238 | K109: 4145 | L109: 0 | M109: 539 | N109: 7830 | O109: 0 | P109: 896 | Q109: 846 | R109: 4223 | S109: 0
A110: 300~999명 (3) | B110: 45614 | C110: 0 | D110: 0 | E110: 1461 | F110: 4655 | G110: 0 | H110: 0 | I110: 8060 | J110: 0 | K110: 19377 | L110: 708 | M110: 0 | N110: 0 | O110: 8766 | P110: 0 | Q110: 2587 | R110: 0 | S110: 0
A111: 1,000명이상 (4) | B111: 44268 | C111: 0 | D111: 0 | E111: 0 | F111: 1977 | G111: 0 | H111: 15326 | I111: 12118 | J111: 0 | K111: 4163 | L111: 0 | M111: 0 | N111: 0 | O111: 0 | P111: 0 | Q111: 10684 | R111: 0 | S111: 0
A112: · 금속주조업 | B112: 52487 | C112: 1535 | D112: 2833 | E112: 766 | F112: 9076 | G112: 434 | H112: 287 | I112: 5089 | J112: 115 | K112: 12832 | L112: 0 | M112: 1672 | N112: 3315 | O112: 2103 | P112: 869 | Q112: 5882 | R112: 5679 | S112: 0
A113: 99명이하 (1) | B113: 33463 | C113: 1535 | D113: 1174 | E113: 766 | F113: 3973 | G113: 434 | H113: 287 | I113: 988 | J113: 115 | K113: 8847 | L113: 0 | M113: 1672 | N113: 3315 | O113: 393 | P113: 869 | Q113: 5882 | R113: 3213 | S113: 0
A114: 100~299명 (2) | B114: 19024 | C114: 0 | D114: 1659 | E114: 0 | F114: 5103 | G114: 0 | H114: 0 | I114: 4101 | J114: 0 | K114: 3985 | L114: 0 | M114: 0 | N114: 0 | O114: 1710 | P114: 0 | Q114: 0 | R114: 2466 | S114: 0
A115: 300~999명 (3)
A116: 1,000명이상 (4)
A117: 금속가공제품(기계 및 가구 제외) | B117: 1126945 | C117: 49800 | D117: 46190 | E117: 39225 | F117: 62717 | G117: 8369 | H117: 168558 | I117: 23657 | J117: 2598 | K117: 405308 | L117: 3016 | M117: 62715 | N117: 43299 | O117: 18696 | P117: 18683 | Q117: 93584 | R117: 80452 | S117: 78
A118: 99명이하 (1) | B118: 529516 | C118: 28408 | D118: 33773 | E118: 25939 | F118: 41881 | G118: 7809 | H118: 9741 | I118: 16289 | J118: 2598 | K118: 181541 | L118: 3016 | M118: 25594 | N118: 30009 | O118: 14878 | P118: 11546 | Q118: 51748 | R118: 44668 | S118: 78
A119: 100~299명 (2) | B119: 172169 | C119: 15442 | D119: 10641 | E119: 10729 | F119: 9073 | G119: 560 | H119: 12938 | I119: 5575 | J119: 0 | K119: 40852 | L119: 0 | M119: 20052 | N119: 11652 | O119: 527 | P119: 1734 | Q119: 10169 | R119: 22225 | S119: 0
A120: 300~999명 (3) | B120: 83141 | C120: 5950 | D120: 1776 | E120: 2557 | F120: 3698 | G120: 0 | H120: 6179 | I120: 1793 | J120: 0 | K120: 23907 | L120: 0 | M120: 13097 | N120: 1638 | O120: 3291 | P120: 0 | Q120: 5696 | R120: 13559 | S120: 0
A121: 1,000명이상 (4) | B121: 342119 | C121: 0 | D121: 0 | E121: 0 | F121: 8065 | G121: 0 | H121: 139700 | I121: 0 | J121: 0 | K121: 159008 | L121: 0 | M121: 3972 | N121: 0 | O121: 0 | P121: 5403 | Q121: 25971 | R121: 0 | S121: 0
A122: 전자부품, 컴퓨터, 영상, 음향 및 통신장비 | B122: 42700692.5 | C122: 3548970.15 | D122: 133234 | E122: 49558.05 | F122: 415188 | G122: 84106 | H122: 167113.1 | I122: 14730.7 | J122: 29825 | K122: 34614777.7 | L122: 12164 | M122: 446308.4 | N122: 1782883.5 | O122: 36909 | P122: 13429.1 | Q122: 908990.8 | R122: 439583 | S122: 2922
A123: 99명이하 (1) | B123: 1912413.5 | C123: 369600.15 | D123: 31134 | E123: 22425.05 | F123: 89544 | G123: 26517 | H123: 99951.1 | I123: 7215.7 | J123: 3959 | K123: 1052764.7 | L123: 6636 | M123: 24394.4 | N123: 53899.5 | O123: 21183 | P123: 13240.1 | Q123: 54846.8 | R123: 34098 | S123: 1005
A124: 100~299명 (2) | B124: 980561 | C124: 174292 | D124: 5177 | E124: 14876 | F124: 54569 | G124: 7054 | H124: 18605 | I124: 7464 | J124: 1958 | K124: 570786 | L124: 1613 | M124: 26577 | N124: 53499 | O124: 9262 | P124: 189 | Q124: 12678 | R124: 20045 | S124: 1917
A125: 300~999명 (3) | B125: 1071229 | C125: 179473 | D125: 11275 | E125: 6136 | F125: 108976 | G125: 15547 | H125: 5109 | I125: 0 | J125: 594 | K125: 573264 | L125: 3915 | M125: 71420 | N125: 44912 | O125: 6464 | P125: 0 | Q125: 19959 | R125: 24185 | S125: 0
A126: 1,000명이상 (4) | B126: 38736489 | C126: 2825605 | D126: 85648 | E126: 6121 | F126: 162099 | G126: 34988 | H126: 43448 | I126: 51 | J126: 23314 | K126: 32417963 | L126: 0 | M126: 323917 | N126: 1630573 | O126: 0 | P126: 0 | Q126: 821507 | R126: 361255 | S126: 0
A127: · 반도체 | B127: 7108982.9 | C127: 371577.4 | D127: 9240 | E127: 11372 | F127: 168880 | G127: 14402 | H127: 66604 | I127: 5010 | J127: 189 | K127: 6000289.5 | L127: 586 | M127: 369587 | N127: 46490 | O127: 17881 | P127: 1656 | Q127: 14974 | R127: 8328 | S127: 1917
A128: 99명이하 (1) | B128: 463497.9 | C128: 69384.4 | D128: 9240 | E128: 5154 | F128: 15871 | G128: 5954 | H128: 23156 | I128: 553 | J128: 189 | K128: 260483.5 | L128: 586 | M128: 13870 | N128: 26258 | O128: 10448 | P128: 1656 | Q128: 12523 | R128: 8172 | S128: 0
A129: 100~299명 (2) | B129: 245468 | C129: 31769 | D129: 0 | E129: 6218 | F129: 1605 | G129: 0 | H129: 0 | I129: 4457 | J129: 0 | K129: 165362 | L129: 0 | M129: 23003 | N129: 6012 | O129: 4969 | P129: 0 | Q129: 0 | R129: 156 | S129: 1917
A130: 300~999명 (3) | B130: 241036 | C130: 120768 | D130: 0 | E130: 0 | F130: 0 | G130: 0 | H130: 0 | I130: 0 | J130: 0 | K130: 53913 | L130: 0 | M130: 47220 | N130: 14220 | O130: 2464 | P130: 0 | Q130: 2451 | R130: 0 | S130: 0
A131: 1,000명이상 (4) | B131: 6158981 | C131: 149656 | D131: 0 | E131: 0 | F131: 151404 | G131: 8448 | H131: 43448 | I131: 0 | J131: 0 | K131: 5520531 | L131: 0 | M131: 285494 | N131: 0 | O131: 0 | P131: 0 | Q131: 0 | R131: 0 | S131: 0
A132: · 전자부품 | B132: 6481673.4 | C132: 505834.3 | D132: 96884 | E132: 25130.4 | F132: 83212 | G132: 18384 | H132: 35732 | I132: 6555 | J132: 25108 | K132: 4302614.7 | L132: 8044 | M132: 72472 | N132: 917840 | O132: 13468 | P132: 6242 | Q132: 312399 | R132: 51754 | S132: 0
A133: 99명이하 (1) | B133: 565879.4 | C133: 74062.3 | D133: 7245 | E133: 8638.4 | F133: 35210 | G133: 12395 | H133: 23768 | I133: 3548 | J133: 1494 | K133: 317906.7 | L133: 2516 | M133: 6706 | N133: 20531 | O133: 5175 | P133: 6053 | Q133: 22527 | R133: 18104 | S133: 0
A134: 100~299명 (2) | B134: 294543 | C134: 11543 | D134: 2302 | E134: 6250 | F134: 17869 | G134: 5050 | H134: 6855 | I134: 3007 | J134: 300 | K134: 163363 | L134: 1613 | M134: 3143 | N134: 47487 | O134: 4293 | P134: 189 | Q134: 7292 | R134: 13987 | S134: 0
A135: 300~999명 (3) | B135: 343410 | C135: 30789 | D135: 10643 | E135: 6136 | F135: 19540 | G135: 0 | H135: 5109 | I135: 0 | J135: 0 | K135: 202487 | L135: 3915 | M135: 24200 | N135: 30692 | O135: 4000 | P135: 0 | Q135: 5899 | R135: 0 | S135: 0
A136: 1,000명이상 (4) | B136: 5277841 | C136: 389440 | D136: 76694 | E136: 4106 | F136: 10593 | G136: 939 | H136: 0 | I136: 0 | J136: 23314 | K136: 3618858 | L136: 0 | M136: 38423 | N136: 819130 | O136: 0 | P136: 0 | Q136: 276681 | R136: 19663 | S136: 0
A137: · 컴퓨터 및 주변장치 | B137: 326666.4 | C137: 83131.55 | D137: 3630 | E137: 2465.65 | F137: 30356 | G137: 6 | H137: 7499.3 | I137: 920.7 | J137: 1107 | K137: 184334.2 | L137: 380 | M137: 920.4 | N137: 1565 | O137: 902 | P137: 2287.6 | Q137: 3689 | R137: 3407 | S137: 65
A138: 99명이하 (1) | B138: 170737.4 | C138: 64260.55 | D138: 3630 | E138: 2465.65 | F138: 3763 | G138: 6 | H138: 7499.3 | I138: 920.7 | J138: 1107 | K138: 74300.2 | L138: 380 | M138: 489.4 | N138: 1565 | O138: 902 | P138: 2287.6 | Q138: 3689 | R138: 3407 | S138: 65
A139: 100~299명 (2) | B139: 43248 | C139: 6134 | D139: 0 | E139: 0 | F139: 9560 | G139: 0 | H139: 0 | I139: 0 | J139: 0 | K139: 27123 | L139: 0 | M139: 431 | N139: 0 | O139: 0 | P139: 0 | Q139: 0 | R139: 0 | S139: 0
A140: 300~999명 (3) | B140: 112681 | C140: 12737 | D140: 0 | E140: 0 | F140: 17033 | G140: 0 | H140: 0 | I140: 0 | J140: 0 | K140: 82911 | L140: 0 | M140: 0 | N140: 0 | O140: 0 | P140: 0 | Q140: 0 | R140: 0 | S140: 0
A141: 1,000명이상 (4)
A142: · 통신 및 방송 장비 | B142: 26156473.3 | C142: 1193321.4 | D142: 12103 | E142: 7659 | F142: 66177 | G142: 51042 | H142: 52576.8 | I142: 2061 | J142: 2795 | K142: 23357445.3 | L142: 2746 | M142: 2397 | N142: 815380.5 | O142: 3596 | P142: 3196.5 | Q142: 573691.8 | R142: 9567 | S142: 718
A143: 99명이하 (1) | B143: 599982.3 | C143: 129765.4 | D143: 8596 | E143: 5352 | F143: 24201 | G143: 7988 | H143: 44746.8 | I143: 2061 | J143: 1068 | K143: 344077.3 | L143: 2746 | M143: 2397 | N143: 3937.5 | O143: 3596 | P143: 3196.5 | Q143: 11870.8 | R143: 3665 | S143: 718
A144: 100~299명 (2) | B144: 366556 | C144: 102011 | D144: 2875 | E144: 2307 | F144: 25535 | G144: 2004 | H144: 7830 | I144: 0 | J144: 1133 | K144: 211573 | L144: 0 | M144: 0 | N144: 0 | O144: 0 | P144: 0 | Q144: 5386 | R144: 5902 | S144: 0
A145: 300~999명 (3) | B145: 270737 | C145: 9606 | D145: 632 | E145: 0 | F145: 16441 | G145: 15547 | H145: 0 | I145: 0 | J145: 594 | K145: 216308 | L145: 0 | M145: 0 | N145: 0 | O145: 0 | P145: 0 | Q145: 11609 | R145: 0 | S145: 0
A146: 1,000명이상 (4) | B146: 24919198 | C146: 951939 | D146: 0 | E146: 0 | F146: 0 | G146: 25503 | H146: 0 | I146: 0 | J146: 0 | K146: 22585487 | L146: 0 | M146: 0 | N146: 811443 | O146: 0 | P146: 0 | Q146: 544826 | R146: 0 | S146: 0
A147: · 영상 및 음향기기 | B147: 2614145.5 | C147: 1395020.5 | D147: 10909 | E147: 2931 | F147: 66563 | G147: 272 | H147: 4211 | I147: 184 | J147: 626 | K147: 759414 | L147: 408 | M147: 932 | N147: 697 | O147: 1062 | P147: 47 | Q147: 4237 | R147: 366410 | S147: 222
A148: 99명이하 (1) | B148: 99565.5 | C148: 32042.5 | D148: 1955 | E148: 815 | F148: 10499 | G148: 174 | H148: 291 | I148: 133 | J148: 101 | K148: 45317 | L148: 408 | M148: 932 | N148: 697 | O148: 1062 | P148: 47 | Q148: 4237 | R148: 633 | S148: 222
A149: 100~299명 (2) | B149: 30746 | C149: 22835 | D149: 0 | E149: 101 | F149: 0 | G149: 0 | H149: 3920 | I149: 0 | J149: 525 | K149: 3365 | L149: 0 | M149: 0 | N149: 0 | O149: 0 | P149: 0 | Q149: 0 | R149: 0 | S149: 0
A150: 300~999명 (3) | B150: 103365 | C150: 5573 | D150: 0 | E150: 0 | F150: 55962 | G150: 0 | H150: 0 | I150: 0 | J150: 0 | K150: 17645 | L150: 0 | M150: 0 | N150: 0 | O150: 0 | P150: 0 | Q150: 0 | R150: 24185 | S150: 0
A151: 1,000명이상 (4) | B151: 2380469 | C151: 1334570 | D151: 8954 | E151: 2015 | F151: 102 | G151: 98 | H151: 0 | I151: 51 | J151: 0 | K151: 693087 | L151: 0 | M151: 0 | N151: 0 | O151: 0 | P151: 0 | Q151: 0 | R151: 341592 | S151: 0
A152: · 마그네틱 및 광학 매체 | B152: 12751 | C152: 85 | D152: 468 | E152: 0 | F152: 0 | G152: 0 | H152: 490 | I152: 0 | J152: 0 | K152: 10680 | L152: 0 | M152: 0 | N152: 911 | O152: 0 | P152: 0 | Q152: 0 | R152: 117 | S152: 0
A153: 99명이하 (1) | B153: 12751 | C153: 85 | D153: 468 | E153: 0 | F153: 0 | G153: 0 | H153: 490 | I153: 0 | J153: 0 | K153: 10680 | L153: 0 | M153: 0 | N153: 911 | O153: 0 | P153: 0 | Q153: 0 | R153: 117 | S153: 0
A154: 100~299명 (2)
A155: 300~999명 (3)
A156: 1,000명이상 (4)
A157: 의료, 정밀, 광학기기 및 시계 | B157: 2305330.5 | C157: 481900.9 | D157: 45242.8 | E157: 56890 | F157: 56198 | G157: 28388 | H157: 123313 | I157: 12337.5 | J157: 7133 | K157: 1236156.3 | L157: 34870 | M157: 46828 | N157: 36830 | O157: 9044 | P157: 4961 | Q157: 99003 | R157: 25835 | S157: 400
A158: 99명이하 (1) | B158: 1043487.5 | C158: 218582.9 | D158: 26250.8 | E158: 37461 | F158: 40961 | G158: 26003 | H158: 99936 | I158: 8576.5 | J158: 7133 | K158: 450106.3 | L158: 24657 | M158: 20554 | N158: 22807 | O158: 8048 | P158: 4961 | Q158: 23709 | R158: 23341 | S158: 400
A159: 100~299명 (2) | B159: 441980 | C159: 93729 | D159: 14677 | E159: 6293 | F159: 15237 | G159: 2385 | H159: 23377 | I159: 3761 | J159: 0 | K159: 229355 | L159: 10213 | M159: 23087 | N159: 11930 | O159: 996 | P159: 0 | Q159: 4446 | R159: 2494 | S159: 0
A160: 300~999명 (3) | B160: 263901 | C160: 103065 | D160: 4189 | E160: 13136 | F160: 0 | G160: 0 | H160: 0 | I160: 0 | J160: 0 | K160: 138231 | L160: 0 | M160: 3187 | N160: 2093 | O160: 0 | P160: 0 | Q160: 0 | R160: 0 | S160: 0
A161: 1,000명이상 (4) | B161: 555962 | C161: 66524 | D161: 126 | E161: 0 | F161: 0 | G161: 0 | H161: 0 | I161: 0 | J161: 0 | K161: 418464 | L161: 0 | M161: 0 | N161: 0 | O161: 0 | P161: 0 | Q161: 70848 | R161: 0 | S161: 0
A162: 전기장비 | B162: 4134858.4 | C162: 243185.4 | D162: 67492.2 | E162: 64471.5 | F162: 158859.4 | G162: 47846 | H162: 882938 | I162: 20795 | J162: 5803 | K162: 1566781.6 | L162: 16478 | M162: 283543 | N162: 528448.9 | O162: 21689 | P162: 39736 | Q162: 83664 | R162: 97266.4 | S162: 5861
A163: 99명이하 (1) | B163: 1042018.4 | C163: 115536.4 | D163: 51980.2 | E163: 23807.5 | F163: 77515.4 | G163: 27233 | H163: 55693 | I163: 19049 | J163: 5803 | K163: 470881.6 | L163: 8723 | M163: 27144 | N163: 25561.9 | O163: 21553 | P163: 36778 | Q163: 22264 | R163: 46634.4 | S163: 5861
A164: 100~299명 (2) | B164: 256259 | C164: 32737 | D164: 15512 | E164: 6307 | F164: 7492 | G164: 3055 | H164: 12371 | I164: 443 | J164: 0 | K164: 111477 | L164: 0 | M164: 19464 | N164: 23061 | O164: 0 | P164: 1137 | Q164: 4142 | R164: 19061 | S164: 0
A165: 300~999명 (3) | B165: 247374 | C165: 15163 | D165: 0 | E165: 2188 | F165: 29990 | G165: 17558 | H165: 650 | I165: 0 | J165: 0 | K165: 122685 | L165: 0 | M165: 7023 | N165: 27234 | O165: 136 | P165: 1821 | Q165: 8352 | R165: 14574 | S165: 0
A166: 1,000명이상 (4) | B166: 2589207 | C166: 79749 | D166: 0 | E166: 32169 | F166: 43862 | G166: 0 | H166: 814224 | I166: 1303 | J166: 0 | K166: 861738 | L166: 7755 | M166: 229912 | N166: 452592 | O166: 0 | P166: 0 | Q166: 48906 | R166: 16997 | S166: 0
A167: 기타 기계 및 장비 | B167: 4582934.45 | C167: 212820.7 | D167: 166377 | E167: 153459 | F167: 423474.4 | G167: 48464.5 | H167: 263774 | I167: 38635 | J167: 5210 | K167: 2270486.9 | L167: 6897 | M167: 95314 | N167: 192090 | O167: 64787 | P167: 28395.95 | Q167: 109507 | R167: 501171 | S167: 2071
A168: 99명이하 (1) | B168: 1961501.05 | C168: 115062.7 | D168: 125931 | E168: 86908 | F168: 167370 | G168: 36519.5 | H168: 72074 | I168: 30547 | J168: 4449 | K168: 858641.9 | L168: 6897 | M168: 49943 | N168: 100847 | O168: 31008 | P168: 28320.95 | Q168: 84558 | R168: 160353 | S168: 2071
A169: 100~299명 (2) | B169: 723663 | C169: 54220 | D169: 26937 | E169: 18510 | F169: 50599 | G169: 4234 | H169: 33074 | I169: 8088 | J169: 761 | K169: 373907 | L169: 0 | M169: 18341 | N169: 67256 | O169: 6766 | P169: 75 | Q169: 10540 | R169: 50355 | S169: 0
A170: 300~999명 (3) | B170: 923837.4 | C170: 36488 | D170: 13509 | E170: 30306 | F170: 47001.4 | G170: 7711 | H170: 4980 | I170: 0 | J170: 0 | K170: 700111 | L170: 0 | M170: 9914 | N170: 15367 | O170: 0 | P170: 0 | Q170: 14409 | R170: 44041 | S170: 0
A171: 1,000명이상 (4) | B171: 973933 | C171: 7050 | D171: 0 | E171: 17735 | F171: 158504 | G171: 0 | H171: 153646 | I171: 0 | J171: 0 | K171: 337827 | L171: 0 | M171: 17116 | N171: 8620 | O171: 27013 | P171: 0 | Q171: 0 | R171: 246422 | S171: 0
A172: 자동차 및 트레일러 | B172: 9669611 | C172: 164935 | D172: 110284 | E172: 236393 | F172: 177335 | G172: 66239 | H172: 6240 | I172: 539150 | J172: 120775 | K172: 7264616 | L172: 32215 | M172: 56710 | N172: 229184 | O172: 101861 | P172: 12569 | Q172: 311167 | R172: 239938 | S172: 0
A173: 99명이하 (1) | B173: 611969 | C173: 29627 | D173: 40111 | E173: 59229 | F173: 26059 | G173: 20000 | H173: 3376 | I173: 27164 | J173: 595 | K173: 189012 | L173: 8807 | M173: 16315 | N173: 34300 | O173: 35865 | P173: 12453 | Q173: 46640 | R173: 62416 | S173: 0
A174: 100~299명 (2) | B174: 525016 | C174: 25139 | D174: 25423 | E174: 29975 | F174: 52940 | G174: 9923 | H174: 2387 | I174: 14470 | J174: 11136 | K174: 141978 | L174: 8278 | M174: 11695 | N174: 64936 | O174: 18059 | P174: 116 | Q174: 65938 | R174: 42623 | S174: 0
A175: 300~999명 (3) | B175: 1234911 | C175: 58099 | D175: 17391 | E175: 142307 | F175: 24385 | G175: 14171 | H175: 477 | I175: 67155 | J175: 109044 | K175: 503896 | L175: 3989 | M175: 13622 | N175: 92866 | O175: 2903 | P175: 0 | Q175: 87681 | R175: 96925 | S175: 0
A176: 1,000명이상 (4) | B176: 7297715 | C176: 52070 | D176: 27359 | E176: 4882 | F176: 73951 | G176: 22145 | H176: 0 | I176: 430361 | J176: 0 | K176: 6429730 | L176: 11141 | M176: 15078 | N176: 37082 | O176: 45034 | P176: 0 | Q176: 110908 | R176: 37974 | S176: 0
A177: 기타 운송장비 | B177: 1085777.8 | C177: 20929 | D177: 53326 | E177: 3995 | F177: 16430 | G177: 2788 | H177: 45912 | I177: 67406 | J177: 22625 | K177: 293859.8 | L177: 1590 | M177: 22138 | N177: 4159 | O177: 10234 | P177: 64257 | Q177: 4264 | R177: 451865 | S177: 0
A178: 99명이하 (1) | B178: 257260.8 | C178: 12124 | D178: 36239 | E178: 3239 | F178: 14200 | G178: 2788 | H178: 19478 | I178: 9006 | J178: 22625 | K178: 48570.8 | L178: 1590 | M178: 3154 | N178: 2974 | O178: 7371 | P178: 20846 | Q178: 3916 | R178: 49140 | S178: 0
A179: 100~299명 (2) | B179: 52629 | C179: 1950 | D179: 8999 | E179: 756 | F179: 333 | G179: 0 | H179: 5892 | I179: 560 | J179: 0 | K179: 8947 | L179: 0 | M179: 3206 | N179: 1118 | O179: 2863 | P179: 682 | Q179: 348 | R179: 16975 | S179: 0
A180: 300~999명 (3) | B180: 79975 | C180: 847 | D180: 8088 | E180: 0 | F180: 1897 | G180: 0 | H180: 8889 | I180: 12319 | J180: 0 | K180: 27960 | L180: 0 | M180: 15778 | N180: 0 | O180: 0 | P180: 0 | Q180: 0 | R180: 4197 | S180: 0
A181: 1,000명이상 (4) | B181: 695913 | C181: 6008 | D181: 0 | E181: 0 | F181: 0 | G181: 0 | H181: 11653 | I181: 45521 | J181: 0 | K181: 208382 | L181: 0 | M181: 0 | N181: 67 | O181: 0 | P181: 42729 | Q181: 0 | R181: 381553 | S181: 0
A182: · 선박 및 보트 건조업 | B182: 376042 | C182: 8928 | D182: 43826 | E182: 845 | F182: 3437 | G182: 67 | H182: 12553 | I182: 66459 | J182: 89 | K182: 80482 | L182: 1290 | M182: 0 | N182: 1193 | O182: 2140 | P182: 61858 | Q182: 3018 | R182: 89857 | S182: 0
A183: 99명이하 (1) | B183: 91442 | C183: 2073 | D183: 29014 | E183: 89 | F183: 1540 | G183: 67 | H183: 900 | I183: 8059 | J183: 89 | K183: 2022 | L183: 1290 | M183: 0 | N183: 75 | O183: 2140 | P183: 18447 | Q183: 2670 | R183: 22967 | S183: 0
A184: 100~299명 (2) | B184: 15036 | C184: 0 | D184: 8490 | E184: 756 | F184: 0 | G184: 0 | H184: 0 | I184: 560 | J184: 0 | K184: 0 | L184: 0 | M184: 0 | N184: 1118 | O184: 0 | P184: 682 | Q184: 348 | R184: 3082 | S184: 0
A185: 300~999명 (3) | B185: 51833 | C185: 847 | D185: 6322 | E185: 0 | F185: 1897 | G185: 0 | H185: 0 | I185: 12319 | J185: 0 | K185: 27960 | L185: 0 | M185: 0 | N185: 0 | O185: 0 | P185: 0 | Q185: 0 | R185: 2488 | S185: 0
A186: 1,000명이상 (4) | B186: 217731 | C186: 6008 | D186: 0 | E186: 0 | F186: 0 | G186: 0 | H186: 11653 | I186: 45521 | J186: 0 | K186: 50500 | L186: 0 | M186: 0 | N186: 0 | O186: 0 | P186: 42729 | Q186: 0 | R186: 61320 | S186: 0
A187: · 철도장비 | B187: 90124.8 | C187: 4569 | D187: 2222 | E187: 274 | F187: 2149 | G187: 0 | H187: 0 | I187: 0 | J187: 0 | K187: 56831.8 | L187: 0 | M187: 19271 | N187: 92 | O187: 619 | P187: 0 | Q187: 0 | R187: 4097 | S187: 0
A188: 99명이하 (1) | B188: 32068.8 | C188: 2619 | D188: 2222 | E188: 274 | F188: 1816 | G188: 0 | H188: 0 | I188: 0 | J188: 0 | K188: 21389.8 | L188: 0 | M188: 287 | N188: 92 | O188: 619 | P188: 0 | Q188: 0 | R188: 2750 | S188: 0
A189: 100~299명 (2) | B189: 14280 | C189: 1950 | D189: 0 | E189: 0 | F189: 333 | G189: 0 | H189: 0 | I189: 0 | J189: 0 | K189: 7444 | L189: 0 | M189: 3206 | N189: 0 | O189: 0 | P189: 0 | Q189: 0 | R189: 1347 | S189: 0
A190: 300~999명 (3) | B190: 15778 | C190: 0 | D190: 0 | E190: 0 | F190: 0 | G190: 0 | H190: 0 | I190: 0 | J190: 0 | K190: 0 | L190: 0 | M190: 15778 | N190: 0 | O190: 0 | P190: 0 | Q190: 0 | R190: 0 | S190: 0
A191: 1,000명이상 (4) | B191: 27998 | C191: 0 | D191: 0 | E191: 0 | F191: 0 | G191: 0 | H191: 0 | I191: 0 | J191: 0 | K191: 27998 | L191: 0 | M191: 0 | N191: 0 | O191: 0 | P191: 0 | Q191: 0 | R191: 0 | S191: 0
A192: · 항공기, 우주선 및 부품 | B192: 592004 | C192: 6072 | D192: 6544 | E192: 2314 | F192: 7902 | G192: 1312 | H192: 33359 | I192: 947 | J192: 22536 | K192: 149461 | L192: 0 | M192: 2087 | N192: 2262 | O192: 3091 | P192: 1746 | Q192: 804 | R192: 351567 | S192: 0
A193: 99명이하 (1) | B193: 111872 | C193: 6072 | D193: 4269 | E193: 2314 | F193: 7902 | G193: 1312 | H193: 18578 | I193: 947 | J193: 22536 | K193: 18074 | L193: 0 | M193: 2087 | N193: 2195 | O193: 2839 | P193: 1746 | Q193: 804 | R193: 20197 | S193: 0
A194: 100~299명 (2) | B194: 17584 | C194: 0 | D194: 509 | E194: 0 | F194: 0 | G194: 0 | H194: 5892 | I194: 0 | J194: 0 | K194: 1503 | L194: 0 | M194: 0 | N194: 0 | O194: 252 | P194: 0 | Q194: 0 | R194: 9428 | S194: 0
A195: 300~999명 (3) | B195: 12364 | C195: 0 | D195: 1766 | E195: 0 | F195: 0 | G195: 0 | H195: 8889 | I195: 0 | J195: 0 | K195: 0 | L195: 0 | M195: 0 | N195: 0 | O195: 0 | P195: 0 | Q195: 0 | R195: 1709 | S195: 0
A196: 1,000명이상 (4) | B196: 450184 | C196: 0 | D196: 0 | E196: 0 | F196: 0 | G196: 0 | H196: 0 | I196: 0 | J196: 0 | K196: 129884 | L196: 0 | M196: 0 | N196: 67 | O196: 0 | P196: 0 | Q196: 0 | R196: 320233 | S196: 0
A197: · 기타 운송장비 | B197: 27607 | C197: 1360 | D197: 734 | E197: 562 | F197: 2942 | G197: 1409 | H197: 0 | I197: 0 | J197: 0 | K197: 7085 | L197: 300 | M197: 780 | N197: 612 | O197: 4384 | P197: 653 | Q197: 442 | R197: 6344 | S197: 0
A198: 99명이하 (1) | B198: 21878 | C198: 1360 | D198: 734 | E198: 562 | F198: 2942 | G198: 1409 | H198: 0 | I198: 0 | J198: 0 | K198: 7085 | L198: 300 | M198: 780 | N198: 612 | O198: 1773 | P198: 653 | Q198: 442 | R198: 3226 | S198: 0
A199: 100~299명 (2) | B199: 5729 | C199: 0 | D199: 0 | E199: 0 | F199: 0 | G199: 0 | H199: 0 | I199: 0 | J199: 0 | K199: 0 | L199: 0 | M199: 0 | N199: 0 | O199: 2611 | P199: 0 | Q199: 0 | R199: 3118 | S199: 0
A200: 300~999명 (3)
A201: 1,000명이상 (4)
... 156 more rows

Sheet 1-1-13
R1: return to the table
A2: 1-1-13. 기업 산업별 자본금 규모별 연구개발비(2022년)
S4: (단위 : 백만원)
A5: 산업별·자본금 규모별 | B5: 전체 | C5: 지역
C6: 서울 | D6: 부산 | E6: 대구 | F6: 인천 | G6: 광주 | H6: 대전 | I6: 울산 | J6: 세종 | K6: 경기 | L6: 강원 | M6: 충북 | N6: 충남 | O6: 전북 | P6: 전남 | Q6: 경북 | R6: 경남 | S6: 제주
A7: 총계 | B7: =SUM(C7:S7) -> 89421300.21 | C7: =SUM(C8:C11) -> 12651096.56 | D7: =SUM(D8:D11) -> 1001051.05 | E7: 857891.34 | F7: 3009166.3 | G7: 429095.32 | H7: 3967894.01 | I7: 939844.99 | J7: 347585.49 | K7: 55090723.64 | L7: 315051.76 | M7: 1693808.89 | N7: 3482812.6 | O7: 601007.38 | P7: 508004.46 | Q7: 2300198.06 | R7: 2164949.09 | S7: 61119.27
A8: 1억원미만 (1) | B8: 2969793.92 | C8: =SUM(C13,C18,C23,C218,C223,C228,C233) -> 855109.29 | D8: =SUM(D13,D18,D23,D218,D223,D228,D233) -> 78100.29 | E8: 59375.47 | F8: 692423.63 | G8: 22335.48 | H8: 108194.67 | I8: 27073.09 | J8: 10272.19 | K8: 820889.92 | L8: 15847.86 | M8: 77109.52 | N8: 41750.26 | O8: 29783.03 | P8: 15249.14 | Q8: 55629.1 | R8: 54941.75 | S8: 5709.23
A9: 1억원~10억원미만 (2) | B9: 11385996.31 | C9: =SUM(C14,C19,C24,C219,C224,C229,C234) -> 3167648.31 | D9: 446838.53 | E9: 343117.71 | F9: 544522.31 | G9: 188335.32 | H9: 531615.14 | I9: 137751.43 | J9: 75393.4 | K9: 3942213.16 | L9: 109245.9 | M9: 307216.3 | N9: 352771.97 | O9: 201409.35 | P9: 173128.92 | Q9: 362745.18 | R9: 461313.54 | S9: 40729.84
A10: 10억원~100억원미만 (3) | B10: 11596824.21 | C10: =SUM(C15,C20,C25,C220,C225,C230,C235) -> 2986468.99 | D10: 274305.23 | E10: 248663.16 | F10: 607695.96 | G10: 97226.52 | H10: 435959.45 | I10: 116176.47 | J10: 68485.9 | K10: 4630333.91 | L10: 101071 | M10: 374121.07 | N10: 561306.37 | O10: 139835 | P10: 98166.4 | Q10: 390288.78 | R10: 455883.8 | S10: 10836.2
A11: 100억원이상 (4) | B11: 63468685.77 | C11: =SUM(C16,C21,C26,C221,C226,C231,C236) -> 5641869.97 | D11: 201807 | E11: 206735 | F11: 1164524.4 | G11: 121198 | H11: 2892124.75 | I11: 658844 | J11: 193434 | K11: 45697286.65 | L11: 88887 | M11: 935362 | N11: 2526984 | O11: 229980 | P11: 221460 | Q11: 1491535 | R11: 1192810 | S11: 3844
A12: [ 농업, 임업 및 어업 ] | B12: 59208 | C12: 2381 | D12: 1418 | E12: 0 | F12: 12 | G12: 48 | H12: 525 | I12: 292 | J12: 735 | K12: 32167 | L12: 2800 | M12: 1307 | N12: 2280 | O12: 8690 | P12: 983 | Q12: 1109 | R12: 3920 | S12: 541
A13: 1억원미만 (1) | B13: 2443 | C13: 0 | D13: 0 | E13: 0 | F13: 0 | G13: 0 | H13: 123 | I13: 0 | J13: 278 | K13: 766 | L13: 108 | M13: 0 | N13: 893 | O13: 136 | P13: 0 | Q13: 39 | R13: 0 | S13: 100
A14: 1억원~10억원미만 (2) | B14: 21107 | C14: 594 | D14: 1418 | E14: 0 | F14: 12 | G14: 48 | H14: 402 | I14: 292 | J14: 457 | K14: 5206 | L14: 2512 | M14: 554 | N14: 1292 | O14: 5203 | P14: 923 | Q14: 1070 | R14: 683 | S14: 441
A15: 10억원~100억원미만 (3) | B15: 24161 | C15: 0 | D15: 0 | E15: 0 | F15: 0 | G15: 0 | H15: 0 | I15: 0 | J15: 0 | K15: 16840 | L15: 180 | M15: 753 | N15: 95 | O15: 3351 | P15: 24 | Q15: 0 | R15: 2918 | S15: 0
A16: 100억원이상 (4) | B16: 11497 | C16: 1787 | D16: 0 | E16: 0 | F16: 0 | G16: 0 | H16: 0 | I16: 0 | J16: 0 | K16: 9355 | L16: 0 | M16: 0 | N16: 0 | O16: 0 | P16: 36 | Q16: 0 | R16: 319 | S16: 0
A17: [ 광업 ] | B17: 7923 | C17: 366 | D17: 0 | E17: 0 | F17: 0 | G17: 0 | H17: 0 | I17: 2964 | J17: 0 | K17: 1413 | L17: 1569 | M17: 1548 | N17: 0 | O17: 0 | P17: 0 | Q17: 63 | R17: 0 | S17: 0
A18: 1억원미만 (1)
A19: 1억원~10억원미만 (2) | B19: 2351 | C19: 316 | D19: 0 | E19: 0 | F19: 0 | G19: 0 | H19: 0 | I19: 0 | J19: 0 | K19: 487 | L19: 0 | M19: 1548 | N19: 0 | O19: 0 | P19: 0 | Q19: 0 | R19: 0 | S19: 0
A20: 10억원~100억원미만 (3) | B20: 1757 | C20: 50 | D20: 0 | E20: 0 | F20: 0 | G20: 0 | H20: 0 | I20: 0 | J20: 0 | K20: 926 | L20: 718 | M20: 0 | N20: 0 | O20: 0 | P20: 0 | Q20: 63 | R20: 0 | S20: 0
A21: 100억원이상 (4) | B21: 3815 | C21: 0 | D21: 0 | E21: 0 | F21: 0 | G21: 0 | H21: 0 | I21: 2964 | J21: 0 | K21: 0 | L21: 851 | M21: 0 | N21: 0 | O21: 0 | P21: 0 | Q21: 0 | R21: 0 | S21: 0
A22: [ 제조업 ] | B22: 76895561.85 | C22: 7152398.95 | D22: 759671 | E22: 730030.55 | F22: 2096108.8 | G22: 345527.5 | H22: 2894518.1 | I22: 887869.2 | J22: 311094 | K22: 51438556.8 | L22: 244254 | M22: 1565958.4 | N22: 3387410.4 | O22: 466578 | P22: 398588.45 | Q22: 2124278.3 | R22: 2067509.4 | S22: 25210
A23: 1억원미만 (1) | B23: 1146710.5 | C23: 195906.4 | D23: 45624 | E23: 41295.9 | F23: 76907 | G23: 12474 | H23: 52144 | I23: 17853.5 | J23: 3751 | K23: 486456.4 | L23: 9335 | M23: 64427.4 | N23: 31479 | O23: 14173 | P23: 9272.6 | Q23: 40224.3 | R23: 43872 | S23: 1515
A24: 1억원~10억원미만 (2) | B24: 7017583.05 | C24: 1013841.35 | D24: 300876 | E24: 255796.65 | F24: 428324.4 | G24: 134449.5 | H24: 293444.3 | I24: 112391.7 | J24: 60622 | K24: 2794994.9 | L24: 75894 | M24: 247617 | N24: 301017.4 | O24: 148990 | P24: 121317.45 | Q24: 307327 | R24: 405859.4 | S24: 14820
A25: 10억원~100억원미만 (3) | B25: 8614067.9 | C25: 1433833.2 | D25: 226310 | E25: 229352 | F25: 550225 | G25: 82358 | H25: 292825.8 | I25: 105313 | J25: 64788 | K25: 3743639.5 | L25: 89163 | M25: 334267 | N25: 533657 | O25: 117235 | P25: 78517.4 | Q25: 296218 | R25: 431106 | S25: 5260
A26: 100억원이상 (4) | B26: 60117200.4 | C26: 4508818 | D26: 186861 | E26: 203586 | F26: 1040652.4 | G26: 116246 | H26: 2256104 | I26: 652311 | J26: 181933 | K26: 44413466 | L26: 69862 | M26: 919647 | N26: 2521257 | O26: 186180 | P26: 189481 | Q26: 1480509 | R26: 1186672 | S26: 3615
A27: 식료품 | B27: 1068907.7 | C27: 307218.7 | D27: 8997 | E27: 11034 | F27: 27374 | G27: 3871 | H27: 52868 | I27: 1748 | J27: 9092 | K27: 408874 | L27: 28131 | M27: 78190 | N27: 41296 | O27: 28446 | P27: 18009 | Q27: 13568 | R27: 23506 | S27: 6685
A28: 1억원미만 (1) | B28: 36621 | C28: 4548 | D28: 1372 | E28: 757 | F28: 1693 | G28: 212 | H28: 453 | I28: 0 | J28: 0 | K28: 21147 | L28: 1400 | M28: 994 | N28: 790 | O28: 1135 | P28: 25 | Q28: 646 | R28: 1095 | S28: 354
A29: 1억원~10억원미만 (2) | B29: 238679.7 | C29: 25542.7 | D29: 5532 | E29: 7738 | F29: 10971 | G29: 2966 | H29: 4976 | I29: 353 | J29: 1896 | K29: 72470 | L29: 13692 | M29: 18564 | N29: 18344 | O29: 18286 | P29: 14222 | Q29: 8484 | R29: 11082 | S29: 3561
A30: 10억원~100억원미만 (3) | B30: 238706 | C30: 68883 | D30: 1781 | E30: 2151 | F30: 2520 | G30: 693 | H30: 4209 | I30: 1395 | J30: 7196 | K30: 65053 | L30: 6597 | M30: 29905 | N30: 20884 | O30: 6761 | P30: 3762 | Q30: 4213 | R30: 9933 | S30: 2770
A31: 100억원이상 (4) | B31: 554901 | C31: 208245 | D31: 312 | E31: 388 | F31: 12190 | G31: 0 | H31: 43230 | I31: 0 | J31: 0 | K31: 250204 | L31: 6442 | M31: 28727 | N31: 1278 | O31: 2264 | P31: 0 | Q31: 225 | R31: 1396 | S31: 0
A32: 음료 | B32: 40040 | C32: 12964 | D32: 1072 | E32: 843 | F32: 80 | G32: 0 | H32: 349 | I32: 0 | J32: 0 | K32: 7275 | L32: 3224 | M32: 4717 | N32: 1092 | O32: 1247 | P32: 1001 | Q32: 1752 | R32: 2641 | S32: 1783
A33: 1억원미만 (1) | B33: 495 | C33: 4 | D33: 43 | E33: 61 | F33: 0 | G33: 0 | H33: 46 | I33: 0 | J33: 0 | K33: 52 | L33: 52 | M33: 0 | N33: 237 | O33: 0 | P33: 0 | Q33: 0 | R33: 0 | S33: 0
A34: 1억원~10억원미만 (2) | B34: 5741 | C34: 852 | D34: 559 | E34: 42 | F34: 0 | G34: 0 | H34: 48 | I34: 0 | J34: 0 | K34: 1645 | L34: 224 | M34: 65 | N34: 277 | O34: 447 | P34: 503 | Q34: 753 | R34: 192 | S34: 134
A35: 10억원~100억원미만 (3) | B35: 22635 | C35: 10827 | D35: 0 | E35: 740 | F35: 80 | G35: 0 | H35: 255 | I35: 0 | J35: 0 | K35: 2967 | L35: 290 | M35: 2410 | N35: 578 | O35: 800 | P35: 0 | Q35: 999 | R35: 2449 | S35: 240
A36: 100억원이상 (4) | B36: 11169 | C36: 1281 | D36: 470 | E36: 0 | F36: 0 | G36: 0 | H36: 0 | I36: 0 | J36: 0 | K36: 2611 | L36: 2658 | M36: 2242 | N36: 0 | O36: 0 | P36: 498 | Q36: 0 | R36: 0 | S36: 1409
A37: 담배 | B37: 50446 | C37: 0 | D37: 0 | E37: 0 | F37: 0 | G37: 0 | H37: 50446 | I37: 0 | J37: 0 | K37: 0 | L37: 0 | M37: 0 | N37: 0 | O37: 0 | P37: 0 | Q37: 0 | R37: 0 | S37: 0
A38: 1억원미만 (1)
A39: 1억원~10억원미만 (2)
A40: 10억원~100억원미만 (3)
A41: 100억원이상 (4) | B41: 50446 | C41: 0 | D41: 0 | E41: 0 | F41: 0 | G41: 0 | H41: 50446 | I41: 0 | J41: 0 | K41: 0 | L41: 0 | M41: 0 | N41: 0 | O41: 0 | P41: 0 | Q41: 0 | R41: 0 | S41: 0
A42: 섬유제품(의복제외) | B42: 203030 | C42: 37031 | D42: 9656 | E42: 34757 | F42: 2617 | G42: 1931 | H42: 2392 | I42: 437 | J42: 749 | K42: 60957 | L42: 435 | M42: 8093 | N42: 7648 | O42: 5574 | P42: 50 | Q42: 24744 | R42: 5959 | S42: 0
A43: 1억원미만 (1) | B43: 24835 | C43: 7671 | D43: 349 | E43: 2987 | F43: 466 | G43: 437 | H43: 1110 | I43: 210 | J43: 0 | K43: 7999 | L43: 0 | M43: 2202 | N43: 377 | O43: 419 | P43: 0 | Q43: 487 | R43: 121 | S43: 0
A44: 1억원~10억원미만 (2) | B44: 108808 | C44: 18983 | D44: 5075 | E44: 21463 | F44: 1988 | G44: 487 | H44: 891 | I44: 217 | J44: 749 | K44: 34719 | L44: 435 | M44: 1793 | N44: 2229 | O44: 2857 | P44: 50 | Q44: 13009 | R44: 3863 | S44: 0
A45: 10억원~100억원미만 (3) | B45: 54458 | C45: 3838 | D45: 3002 | E45: 9605 | F45: 163 | G45: 458 | H45: 391 | I45: 10 | J45: 0 | K45: 15689 | L45: 0 | M45: 3609 | N45: 5042 | O45: 2154 | P45: 0 | Q45: 8873 | R45: 1624 | S45: 0
A46: 100억원이상 (4) | B46: 14929 | C46: 6539 | D46: 1230 | E46: 702 | F46: 0 | G46: 549 | H46: 0 | I46: 0 | J46: 0 | K46: 2550 | L46: 0 | M46: 489 | N46: 0 | O46: 144 | P46: 0 | Q46: 2375 | R46: 351 | S46: 0
A47: 의복, 의복액세서리 및 모피제품 | B47: 278373 | C47: 245370 | D47: 9279 | E47: 2097 | F47: 1723 | G47: 226 | H47: 1095 | I47: 538 | J47: 0 | K47: 14677 | L47: 241 | M47: 344 | N47: 0 | O47: 860 | P47: 377 | Q47: 863 | R47: 683 | S47: 0
A48: 1억원미만 (1) | B48: 36173 | C48: 26104 | D48: 4966 | E48: 321 | F48: 300 | G48: 0 | H48: 38 | I48: 35 | J48: 0 | K48: 3612 | L48: 59 | M48: 282 | N48: 0 | O48: 297 | P48: 0 | Q48: 105 | R48: 54 | S48: 0
A49: 1억원~10억원미만 (2) | B49: 95090 | C49: 78569 | D49: 2426 | E49: 835 | F49: 1281 | G49: 226 | H49: 1057 | I49: 503 | J49: 0 | K49: 8817 | L49: 0 | M49: 62 | N49: 0 | O49: 446 | P49: 197 | Q49: 42 | R49: 629 | S49: 0
A50: 10억원~100억원미만 (3) | B50: 70014 | C50: 63982 | D50: 1556 | E50: 941 | F50: 142 | G50: 0 | H50: 0 | I50: 0 | J50: 0 | K50: 2198 | L50: 182 | M50: 0 | N50: 0 | O50: 117 | P50: 180 | Q50: 716 | R50: 0 | S50: 0
A51: 100억원이상 (4) | B51: 77096 | C51: 76715 | D51: 331 | E51: 0 | F51: 0 | G51: 0 | H51: 0 | I51: 0 | J51: 0 | K51: 50 | L51: 0 | M51: 0 | N51: 0 | O51: 0 | P51: 0 | Q51: 0 | R51: 0 | S51: 0
A52: 가죽, 가방 및 신발 | B52: 56756 | C52: 23362 | D52: 12838 | E52: 847 | F52: 526 | G52: 0 | H52: 123 | I52: 0 | J52: 655 | K52: 15500 | L52: 0 | M52: 817 | N52: 440 | O52: 174 | P52: 275 | Q52: 89 | R52: 1110 | S52: 0
A53: 1억원미만 (1) | B53: 7918 | C53: 4957 | D53: 855 | E53: 208 | F53: 117 | G53: 0 | H53: 0 | I53: 0 | J53: 0 | K53: 1781 | L53: 0 | M53: 0 | N53: 0 | O53: 0 | P53: 0 | Q53: 0 | R53: 0 | S53: 0
A54: 1억원~10억원미만 (2) | B54: 33580 | C54: 13141 | D54: 8024 | E54: 639 | F54: 317 | G54: 0 | H54: 123 | I54: 0 | J54: 0 | K54: 9668 | L54: 0 | M54: 74 | N54: 440 | O54: 174 | P54: 0 | Q54: 89 | R54: 891 | S54: 0
A55: 10억원~100억원미만 (3) | B55: 11736 | C55: 5264 | D55: 3959 | E55: 0 | F55: 92 | G55: 0 | H55: 0 | I55: 0 | J55: 0 | K55: 1927 | L55: 0 | M55: 0 | N55: 0 | O55: 0 | P55: 275 | Q55: 0 | R55: 219 | S55: 0
A56: 100억원이상 (4) | B56: 3522 | C56: 0 | D56: 0 | E56: 0 | F56: 0 | G56: 0 | H56: 0 | I56: 0 | J56: 655 | K56: 2124 | L56: 0 | M56: 743 | N56: 0 | O56: 0 | P56: 0 | Q56: 0 | R56: 0 | S56: 0
A57: 목재 및 나무제품(가구제외) | B57: 36787 | C57: 3557 | D57: 1186 | E57: 266 | F57: 6322 | G57: 634 | H57: 1055 | I57: 0 | J57: 259 | K57: 13113 | L57: 1765 | M57: 1108 | N57: 1367 | O57: 1388 | P57: 1347 | Q57: 1839 | R57: 1581 | S57: 0
A58: 1억원미만 (1) | B58: 1822 | C58: 401 | D58: 80 | E58: 0 | F58: 41 | G58: 0 | H58: 0 | I58: 0 | J58: 70 | K58: 966 | L58: 127 | M58: 66 | N58: 30 | O58: 0 | P58: 0 | Q58: 0 | R58: 41 | S58: 0
A59: 1억원~10억원미만 (2) | B59: 28588 | C59: 2545 | D59: 1000 | E59: 266 | F59: 2929 | G59: 634 | H59: 1055 | I59: 0 | J59: 189 | K59: 10182 | L59: 1638 | M59: 1042 | N59: 1337 | O59: 1231 | P59: 1347 | Q59: 1839 | R59: 1354 | S59: 0
A60: 10억원~100억원미만 (3) | B60: 5126 | C60: 611 | D60: 106 | E60: 0 | F60: 2101 | G60: 0 | H60: 0 | I60: 0 | J60: 0 | K60: 1965 | L60: 0 | M60: 0 | N60: 0 | O60: 157 | P60: 0 | Q60: 0 | R60: 186 | S60: 0
A61: 100억원이상 (4) | B61: 1251 | C61: 0 | D61: 0 | E61: 0 | F61: 1251 | G61: 0 | H61: 0 | I61: 0 | J61: 0 | K61: 0 | L61: 0 | M61: 0 | N61: 0 | O61: 0 | P61: 0 | Q61: 0 | R61: 0 | S61: 0
A62: 펄프, 종이 및 종이제품 | B62: 238182 | C62: 155593 | D62: 2073 | E62: 3031 | F62: 1608 | G62: 478 | H62: 7665 | I62: 4192 | J62: 478 | K62: 45453 | L62: 55 | M62: 5953 | N62: 3111 | O62: 2644 | P62: 94 | Q62: 3062 | R62: 2454 | S62: 238
A63: 1억원미만 (1) | B63: 7819 | C63: 2465 | D63: 904 | E63: 40 | F63: 284 | G63: 22 | H63: 172 | I63: 59 | J63: 0 | K63: 3455 | L63: 0 | M63: 36 | N63: 143 | O63: 0 | P63: 0 | Q63: 166 | R63: 73 | S63: 0
A64: 1억원~10억원미만 (2) | B64: 188588 | C64: 150991 | D64: 760 | E64: 1814 | F64: 898 | G64: 456 | H64: 343 | I64: 92 | J64: 103 | K64: 21200 | L64: 55 | M64: 3802 | N64: 2077 | O64: 1577 | P64: 94 | Q64: 2477 | R64: 1611 | S64: 238
A65: 10억원~100억원미만 (3) | B65: 15352 | C65: 921 | D65: 409 | E65: 678 | F65: 356 | G65: 0 | H65: 0 | I65: 0 | J65: 375 | K65: 8997 | L65: 0 | M65: 1895 | N65: 891 | O65: 295 | P65: 0 | Q65: 419 | R65: 116 | S65: 0
A66: 100억원이상 (4) | B66: 26423 | C66: 1216 | D66: 0 | E66: 499 | F66: 70 | G66: 0 | H66: 7150 | I66: 4041 | J66: 0 | K66: 11801 | L66: 0 | M66: 220 | N66: 0 | O66: 772 | P66: 0 | Q66: 0 | R66: 654 | S66: 0
A67: 인쇄 및 기록매체 복제 | B67: 74830 | C67: 23940.6 | D67: 1925 | E67: 3356 | F67: 3558 | G67: 4313 | H67: 897 | I67: 476 | J67: 70 | K67: 27289.5 | L67: 258 | M67: 2197 | N67: 1201 | O67: 423 | P67: 587.4 | Q67: 2168.5 | R67: 2044 | S67: 126
A68: 1억원미만 (1) | B68: 11572.1 | C68: 4592.6 | D68: 428 | E68: 324 | F68: 654 | G68: 107 | H68: 226 | I68: 0 | J68: 70 | K68: 4098 | L68: 198 | M68: 105 | N68: 312 | O68: 250 | P68: 0 | Q68: 123.5 | R68: 0 | S68: 84
A69: 1억원~10억원미만 (2) | B69: 48145.5 | C69: 17309 | D69: 764 | E69: 2461 | F69: 1442 | G69: 3651 | H69: 608 | I69: 376 | J69: 0 | K69: 14795.5 | L69: 60 | M69: 1896 | N69: 242 | O69: 32 | P69: 568 | Q69: 1855 | R69: 2044 | S69: 42
A70: 10억원~100억원미만 (3) | B70: 13737.4 | C70: 2039 | D70: 733 | E70: 571 | F70: 1462 | G70: 555 | H70: 63 | I70: 100 | J70: 0 | K70: 7021 | L70: 0 | M70: 196 | N70: 647 | O70: 141 | P70: 19.4 | Q70: 190 | R70: 0 | S70: 0
A71: 100억원이상 (4) | B71: 1375 | C71: 0 | D71: 0 | E71: 0 | F71: 0 | G71: 0 | H71: 0 | I71: 0 | J71: 0 | K71: 1375 | L71: 0 | M71: 0 | N71: 0 | O71: 0 | P71: 0 | Q71: 0 | R71: 0 | S71: 0
A72: 코크스, 연탄 및 석유정제품 | B72: 302267 | C72: 17754 | D72: 197 | E72: 0 | F72: 612 | G72: 0 | H72: 241300 | I72: 3041 | J72: 0 | K72: 19527 | L72: 905 | M72: 877 | N72: 8232 | O72: 0 | P72: 3940 | Q72: 2755 | R72: 3127 | S72: 0
A73: 1억원미만 (1) | B73: 573 | C73: 0 | D73: 0 | E73: 0 | F73: 0 | G73: 0 | H73: 0 | I73: 0 | J73: 0 | K73: 214 | L73: 48 | M73: 224 | N73: 0 | O73: 0 | P73: 0 | Q73: 0 | R73: 87 | S73: 0
A74: 1억원~10억원미만 (2) | B74: 13979 | C74: 26 | D74: 87 | E74: 0 | F74: 35 | G74: 0 | H74: 0 | I74: 2666 | J74: 0 | K74: 628 | L74: 0 | M74: 434 | N74: 5094 | O74: 0 | P74: 0 | Q74: 2164 | R74: 2845 | S74: 0
A75: 10억원~100억원미만 (3) | B75: 8996 | C75: 0 | D75: 110 | E75: 0 | F75: 577 | G75: 0 | H75: 0 | I75: 375 | J75: 0 | K75: 1254 | L75: 857 | M75: 219 | N75: 878 | O75: 0 | P75: 3940 | Q75: 591 | R75: 195 | S75: 0
A76: 100억원이상 (4) | B76: 278719 | C76: 17728 | D76: 0 | E76: 0 | F76: 0 | G76: 0 | H76: 241300 | I76: 0 | J76: 0 | K76: 17431 | L76: 0 | M76: 0 | N76: 2260 | O76: 0 | P76: 0 | Q76: 0 | R76: 0 | S76: 0
A77: 화학물질 및 화학제품(의약품 제외) | B77: 3768115 | C77: 826291 | D77: 32754 | E77: 19308 | F77: 93124 | G77: 7479 | H77: 562787 | I77: 116403 | J77: 46116 | K77: 1278508 | L77: 20204 | M77: 271558 | N77: 182825 | O77: 105658 | P77: 60638 | Q77: 87726 | R77: 53299 | S77: 3437
A78: 1억원미만 (1) | B78: 84571 | C78: 10438 | D78: 2293 | E78: 1121 | F78: 7571 | G78: 348 | H78: 9015 | I78: 946 | J78: 106 | K78: 36562 | L78: 850 | M78: 4685 | N78: 2884 | O78: 390 | P78: 445 | Q78: 2025 | R78: 4205 | S78: 687
A79: 1억원~10억원미만 (2) | B79: 538226 | C79: 44350 | D79: 9925 | E79: 12134 | F79: 39434 | G79: 5381 | H79: 30806 | I79: 8400 | J79: 14248 | K79: 214613 | L79: 11203 | M79: 42939 | N79: 37013 | O79: 14168 | P79: 7724 | Q79: 22340 | R79: 21812 | S79: 1736
A80: 10억원~100억원미만 (3) | B80: 706404 | C80: 48101 | D80: 13131 | E80: 6053 | F80: 38221 | G80: 1750 | H80: 23834 | I80: 16577 | J80: 12730 | K80: 313480 | L80: 7639 | M80: 95299 | N80: 61234 | O80: 17391 | P80: 11563 | Q80: 20597 | R80: 18079 | S80: 725
A81: 100억원이상 (4) | B81: 2438914 | C81: 723402 | D81: 7405 | E81: 0 | F81: 7898 | G81: 0 | H81: 499132 | I81: 90480 | J81: 19032 | K81: 713853 | L81: 512 | M81: 128635 | N81: 81694 | O81: 73709 | P81: 40906 | Q81: 42764 | R81: 9203 | S81: 289
A82: 의료용 물질 및 의약품 | B82: 2552310 | C82: 484156 | D82: 3677 | E82: 10828 | F82: 471166 | G82: 2974 | H82: 91977 | I82: 4279 | J82: 16355 | K82: 1269422 | L82: 64637 | M82: 80493 | N82: 25034 | O82: 6715 | P82: 5653 | Q82: 11211 | R82: 2899 | S82: 834
A83: 1억원미만 (1) | B83: 9073 | C83: 3214 | D83: 0 | E83: 0 | F83: 855 | G83: 0 | H83: 105 | I83: 718 | J83: 0 | K83: 3502 | L83: 111 | M83: 291 | N83: 202 | O83: 0 | P83: 0 | Q83: 0 | R83: 75 | S83: 0
A84: 1억원~10억원미만 (2) | B84: 117620 | C84: 27502 | D84: 644 | E84: 4920 | F84: 5063 | G84: 60 | H84: 2785 | I84: 181 | J84: 0 | K84: 46882 | L84: 2993 | M84: 16979 | N84: 3262 | O84: 494 | P84: 1969 | Q84: 1452 | R84: 2434 | S84: 0
A85: 10억원~100억원미만 (3) | B85: 693261 | C85: 166645 | D85: 2809 | E85: 5221 | F85: 6077 | G85: 2914 | H85: 24870 | I85: 141 | J85: 15588 | K85: 375094 | L85: 31874 | M85: 30133 | N85: 11625 | O85: 6221 | P85: 3566 | Q85: 9259 | R85: 390 | S85: 834
A86: 100억원이상 (4) | B86: 1732356 | C86: 286795 | D86: 224 | E86: 687 | F86: 459171 | G86: 0 | H86: 64217 | I86: 3239 | J86: 767 | K86: 843944 | L86: 29659 | M86: 33090 | N86: 9945 | O86: 0 | P86: 118 | Q86: 500 | R86: 0 | S86: 0
A87: 고무 및 프라스틱제품 | B87: 1136477 | C87: 167748 | D87: 22783 | E87: 23871 | F87: 62632 | G87: 29605 | H87: 187478 | I87: 6343 | J87: 10033 | K87: 343583 | L87: 4845 | M87: 61358 | N87: 92904 | O87: 9195 | P87: 7581 | Q87: 43817 | R87: 62287 | S87: 414
A88: 1억원미만 (1) | B88: 33418 | C88: 3588 | D88: 1864 | E88: 423 | F88: 2512 | G88: 25 | H88: 284 | I88: 558 | J88: 0 | K88: 20369 | L88: 331 | M88: 1104 | N88: 950 | O88: 111 | P88: 207 | Q88: 299 | R88: 793 | S88: 0
A89: 1억원~10억원미만 (2) | B89: 289287 | C89: 20306 | D89: 11283 | E89: 12729 | F89: 18925 | G89: 3664 | H89: 3793 | I89: 4098 | J89: 2551 | K89: 118710 | L89: 1624 | M89: 18477 | N89: 19007 | O89: 3345 | P89: 3056 | Q89: 19068 | R89: 28237 | S89: 414
A90: 10억원~100억원미만 (3) | B90: 240500 | C90: 7373 | D90: 7563 | E90: 5340 | F90: 39518 | G90: 4181 | H90: 1747 | I90: 1687 | J90: 7482 | K90: 67780 | L90: 2059 | M90: 23829 | N90: 40322 | O90: 4738 | P90: 4318 | Q90: 9044 | R90: 13519 | S90: 0
A91: 100억원이상 (4) | B91: 573272 | C91: 136481 | D91: 2073 | E91: 5379 | F91: 1677 | G91: 21735 | H91: 181654 | I91: 0 | J91: 0 | K91: 136724 | L91: 831 | M91: 17948 | N91: 32625 | O91: 1001 | P91: 0 | Q91: 15406 | R91: 19738 | S91: 0
A92: 비금속 광물제품 | B92: 365639 | C92: 17958 | D92: 2491 | E92: 5042 | F92: 10018 | G92: 3830 | H92: 3404 | I92: 2524 | J92: 30832 | K92: 75775 | L92: 8382 | M92: 19479 | N92: 93759 | O92: 14606 | P92: 10121 | Q92: 53949 | R92: 13362 | S92: 107
A93: 1억원미만 (1) | B93: 13763 | C93: 652 | D93: 590 | E93: 0 | F93: 748 | G93: 937 | H93: 257 | I93: 78 | J93: 0 | K93: 4221 | L93: 322 | M93: 459 | N93: 1204 | O93: 406 | P93: 574 | Q93: 3182 | R93: 81 | S93: 52
A94: 1억원~10억원미만 (2) | B94: 95139 | C94: 5918 | D94: 1552 | E94: 2113 | F94: 4537 | G94: 2836 | H94: 2288 | I94: 1394 | J94: 85 | K94: 25784 | L94: 4881 | M94: 7885 | N94: 8411 | O94: 9375 | P94: 4276 | Q94: 9263 | R94: 4486 | S94: 55
A95: 10억원~100억원미만 (3) | B95: 76650 | C95: 9822 | D95: 349 | E95: 1995 | F95: 4140 | G95: 57 | H95: 429 | I95: 1052 | J95: 314 | K95: 27546 | L95: 1304 | M95: 6711 | N95: 5443 | O95: 2911 | P95: 4142 | Q95: 5155 | R95: 5280 | S95: 0
A96: 100억원이상 (4) | B96: 180087 | C96: 1566 | D96: 0 | E96: 934 | F96: 593 | G96: 0 | H96: 430 | I96: 0 | J96: 30433 | K96: 18224 | L96: 1875 | M96: 4424 | N96: 78701 | O96: 1914 | P96: 1129 | Q96: 36349 | R96: 3515 | S96: 0
A97: 제1차 금속산업 | B97: 809372 | C97: 14861 | D97: 20057 | E97: 4502 | F97: 81905 | G97: 2011 | H97: 17517 | I97: 29753 | J97: 2416 | K97: 83055 | L97: 2096 | M97: 7780 | N97: 105580 | O97: 23324 | P97: 104145 | Q97: 260674 | R97: 49696 | S97: 0
A98: 1억원미만 (1) | B98: 9546 | C98: 147 | D98: 440 | E98: 362 | F98: 660 | G98: 0 | H98: 0 | I98: 0 | J98: 115 | K98: 2940 | L98: 0 | M98: 6 | N98: 38 | O98: 39 | P98: 382 | Q98: 711 | R98: 3706 | S98: 0
A99: 1억원~10억원미만 (2) | B99: 100496 | C99: 3184 | D99: 8926 | E99: 1495 | F99: 7039 | G99: 1332 | H99: 692 | I99: 2288 | J99: 1000 | K99: 34031 | L99: 353 | M99: 5070 | N99: 5207 | O99: 2331 | P99: 5054 | Q99: 7680 | R99: 14814 | S99: 0
A100: 10억원~100억원미만 (3) | B100: 122123 | C100: 3160 | D100: 7013 | E100: 1184 | F100: 13033 | G100: 679 | H100: 72 | I100: 7287 | J100: 1301 | K100: 35058 | L100: 1743 | M100: 1770 | N100: 13813 | O100: 8036 | P100: 4004 | Q100: 12084 | R100: 11886 | S100: 0
A101: 100억원이상 (4) | B101: 577207 | C101: 8370 | D101: 3678 | E101: 1461 | F101: 61173 | G101: 0 | H101: 16753 | I101: 20178 | J101: 0 | K101: 11026 | L101: 0 | M101: 934 | N101: 86522 | O101: 12918 | P101: 94705 | Q101: 240199 | R101: 19290 | S101: 0
A102: · 제1차 철강 산업 Basic Iron and Steel | B102: 590035 | C102: 10823 | D102: 15836 | E102: 2049 | F102: 59710 | G102: 800 | H102: 86 | I102: 3285 | J102: 1000 | K102: 18863 | L102: 1169 | M102: 4563 | N102: 90878 | O102: 11800 | P102: 96274 | Q102: 236385 | R102: 36514 | S102: 0
A103: 1억원미만 (1) | B103: 5564 | C103: 112 | D103: 319 | E103: 66 | F103: 340 | G103: 0 | H103: 0 | I103: 0 | J103: 0 | K103: 813 | L103: 0 | M103: 0 | N103: 38 | O103: 0 | P103: 0 | Q103: 177 | R103: 3699 | S103: 0
A104: 1억원~10억원미만 (2) | B104: 42721 | C104: 919 | D104: 7912 | E104: 799 | F104: 1491 | G104: 800 | H104: 86 | I104: 725 | J104: 1000 | K104: 11861 | L104: 134 | M104: 3189 | N104: 1131 | O104: 427 | P104: 857 | Q104: 2256 | R104: 9134 | S104: 0
A105: 10억원~100억원미만 (3) | B105: 40341 | C105: 1422 | D105: 3927 | E105: 1184 | F105: 1361 | G105: 0 | H105: 0 | I105: 2560 | J105: 0 | K105: 5107 | L105: 1035 | M105: 790 | N105: 3813 | O105: 5487 | P105: 2030 | Q105: 7234 | R105: 4391 | S105: 0
A106: 100억원이상 (4) | B106: 501409 | C106: 8370 | D106: 3678 | E106: 0 | F106: 56518 | G106: 0 | H106: 0 | I106: 0 | J106: 0 | K106: 1082 | L106: 0 | M106: 584 | N106: 85896 | O106: 5886 | P106: 93387 | Q106: 226718 | R106: 19290 | S106: 0
A107: · 제1차 비철금속 산업 | B107: 166850 | C107: 2503 | D107: 1388 | E107: 1687 | F107: 13119 | G107: 777 | H107: 17144 | I107: 21379 | J107: 1301 | K107: 51360 | L107: 927 | M107: 1545 | N107: 11387 | O107: 9421 | P107: 7002 | Q107: 18407 | R107: 7503 | S107: 0
A108: 1억원미만 (1) | B108: 2062 | C108: 35 | D108: 117 | E108: 0 | F108: 266 | G108: 0 | H108: 0 | I108: 0 | J108: 0 | K108: 1152 | L108: 0 | M108: 6 | N108: 0 | O108: 0 | P108: 0 | Q108: 479 | R108: 7 | S108: 0
A109: 1억원~10억원미만 (2) | B109: 33401 | C109: 820 | D109: 45 | E109: 226 | F109: 2990 | G109: 98 | H109: 319 | I109: 575 | J109: 0 | K109: 16415 | L109: 219 | M109: 209 | N109: 1531 | O109: 0 | P109: 4197 | Q109: 1773 | R109: 3984 | S109: 0
A110: 10억원~100억원미만 (3) | B110: 57322 | C110: 1648 | D110: 1226 | E110: 0 | F110: 5208 | G110: 679 | H110: 72 | I110: 626 | J110: 1301 | K110: 25582 | L110: 708 | M110: 980 | N110: 9230 | O110: 2389 | P110: 1487 | Q110: 2674 | R110: 3512 | S110: 0
A111: 100억원이상 (4) | B111: 74065 | C111: 0 | D111: 0 | E111: 1461 | F111: 4655 | G111: 0 | H111: 16753 | I111: 20178 | J111: 0 | K111: 8211 | L111: 0 | M111: 350 | N111: 626 | O111: 7032 | P111: 1318 | Q111: 13481 | R111: 0 | S111: 0
A112: · 금속주조업 | B112: 52487 | C112: 1535 | D112: 2833 | E112: 766 | F112: 9076 | G112: 434 | H112: 287 | I112: 5089 | J112: 115 | K112: 12832 | L112: 0 | M112: 1672 | N112: 3315 | O112: 2103 | P112: 869 | Q112: 5882 | R112: 5679 | S112: 0
A113: 1억원미만 (1) | B113: 1920 | C113: 0 | D113: 4 | E113: 296 | F113: 54 | G113: 0 | H113: 0 | I113: 0 | J113: 115 | K113: 975 | L113: 0 | M113: 0 | N113: 0 | O113: 39 | P113: 382 | Q113: 55 | R113: 0 | S113: 0
A114: 1억원~10억원미만 (2) | B114: 24374 | C114: 1445 | D114: 969 | E114: 470 | F114: 2558 | G114: 434 | H114: 287 | I114: 988 | J114: 0 | K114: 5755 | L114: 0 | M114: 1672 | N114: 2545 | O114: 1904 | P114: 0 | Q114: 3651 | R114: 1696 | S114: 0
A115: 10억원~100억원미만 (3) | B115: 24460 | C115: 90 | D115: 1860 | E115: 0 | F115: 6464 | G115: 0 | H115: 0 | I115: 4101 | J115: 0 | K115: 4369 | L115: 0 | M115: 0 | N115: 770 | O115: 160 | P115: 487 | Q115: 2176 | R115: 3983 | S115: 0
A116: 100억원이상 (4) | B116: 1733 | C116: 0 | D116: 0 | E116: 0 | F116: 0 | G116: 0 | H116: 0 | I116: 0 | J116: 0 | K116: 1733 | L116: 0 | M116: 0 | N116: 0 | O116: 0 | P116: 0 | Q116: 0 | R116: 0 | S116: 0
A117: 금속가공제품(기계 및 가구 제외) | B117: 1126945 | C117: 49800 | D117: 46190 | E117: 39225 | F117: 62717 | G117: 8369 | H117: 168558 | I117: 23657 | J117: 2598 | K117: 405308 | L117: 3016 | M117: 62715 | N117: 43299 | O117: 18696 | P117: 18683 | Q117: 93584 | R117: 80452 | S117: 78
A118: 1억원미만 (1) | B118: 47090 | C118: 2415 | D118: 2623 | E118: 2335 | F118: 4833 | G118: 718 | H118: 1238 | I118: 1848 | J118: 0 | K118: 24092 | L118: 85 | M118: 1505 | N118: 1251 | O118: 179 | P118: 84 | Q118: 1667 | R118: 2217 | S118: 0
A119: 1억원~10억원미만 (2) | B119: 378442 | C119: 19849 | D119: 22303 | E119: 17145 | F119: 28755 | G119: 7093 | H119: 6322 | I119: 8740 | J119: 2546 | K119: 133006 | L119: 2565 | M119: 16128 | N119: 20896 | O119: 9299 | P119: 6894 | Q119: 42573 | R119: 34328 | S119: 0
A120: 10억원~100억원미만 (3) | B120: 266967 | C120: 23638 | D120: 15035 | E120: 19408 | F120: 18617 | G120: 558 | H120: 21298 | I120: 10539 | J120: 52 | K120: 59071 | L120: 366 | M120: 19563 | N120: 21152 | O120: 6835 | P120: 6302 | Q120: 18016 | R120: 26439 | S120: 78
A121: 100억원이상 (4) | B121: 434446 | C121: 3898 | D121: 6229 | E121: 337 | F121: 10512 | G121: 0 | H121: 139700 | I121: 2530 | J121: 0 | K121: 189139 | L121: 0 | M121: 25519 | N121: 0 | O121: 2383 | P121: 5403 | Q121: 31328 | R121: 17468 | S121: 0
A122: 전자부품, 컴퓨터, 영상, 음향 및 통신장비 | B122: 42700692.5 | C122: 3548970.15 | D122: 133234 | E122: 49558.05 | F122: 415188 | G122: 84106 | H122: 167113.1 | I122: 14730.7 | J122: 29825 | K122: 34614777.7 | L122: 12164 | M122: 446308.4 | N122: 1782883.5 | O122: 36909 | P122: 13429.1 | Q122: 908990.8 | R122: 439583 | S122: 2922
A123: 1억원미만 (1) | B123: 239225.3 | C123: 34296.2 | D123: 2361 | E123: 3222.4 | F123: 9953 | G123: 1795 | H123: 8194 | I123: 2986 | J123: 735 | K123: 108482.9 | L123: 1315 | M123: 44684.4 | N123: 5322 | O123: 1344 | P123: 1190.6 | Q123: 10562.8 | R123: 2781 | S123: 0
A124: 1억원~10억원미만 (2) | B124: 1191255 | C124: 217284.15 | D124: 26496 | E124: 14059.65 | F124: 65764 | G124: 18666 | H124: 64313.3 | I124: 2865.7 | J124: 1746 | K124: 626786.2 | L124: 4194 | M124: 15097 | N124: 38678.5 | O124: 10716 | P124: 8869.5 | Q124: 41317 | R124: 33397 | S124: 1005
A125: 10억원~100억원미만 (3) | B125: 1897924.2 | C125: 553391.8 | D125: 18729 | E125: 9696 | F125: 140229 | G125: 28657 | H125: 81171.8 | I125: 8828 | J125: 4030 | K125: 847790.6 | L125: 6046 | M125: 20143 | N125: 86499 | O125: 18385 | P125: 3369 | Q125: 32422 | R125: 38537 | S125: 0
A126: 100억원이상 (4) | B126: 39372288 | C126: 2743998 | D126: 85648 | E126: 22580 | F126: 199242 | G126: 34988 | H126: 13434 | I126: 51 | J126: 23314 | K126: 33031718 | L126: 609 | M126: 366384 | N126: 1652384 | O126: 6464 | P126: 0 | Q126: 824689 | R126: 364868 | S126: 1917
A127: · 반도체 | B127: 7108982.9 | C127: 371577.4 | D127: 9240 | E127: 11372 | F127: 168880 | G127: 14402 | H127: 66604 | I127: 5010 | J127: 189 | K127: 6000289.5 | L127: 586 | M127: 369587 | N127: 46490 | O127: 17881 | P127: 1656 | Q127: 14974 | R127: 8328 | S127: 1917
A128: 1억원미만 (1) | B128: 102431.5 | C128: 8690 | D128: 292 | E128: 0 | F128: 2237 | G128: 70 | H128: 1198 | I128: 227 | J128: 0 | K128: 37800.5 | L128: 0 | M128: 44274 | N128: 2929 | O128: 948 | P128: 0 | Q128: 3398 | R128: 368 | S128: 0
A129: 1억원~10억원미만 (2) | B129: 253396.4 | C129: 30438.4 | D129: 6974 | E129: 2604 | F129: 11245 | G129: 3790 | H129: 14917 | I129: 326 | J129: 189 | K129: 139323 | L129: 586 | M129: 8705 | N129: 19133 | O129: 2927 | P129: 1181 | Q129: 5672 | R129: 5386 | S129: 0
A130: 10억원~100억원미만 (3) | B130: 580885 | C130: 294745 | D130: 1974 | E130: 2550 | F130: 2389 | G130: 2094 | H130: 50489 | I130: 4457 | J130: 0 | K130: 179934 | L130: 0 | M130: 9270 | N130: 14939 | O130: 11542 | P130: 475 | Q130: 3453 | R130: 2574 | S130: 0
A131: 100억원이상 (4) | B131: 6172270 | C131: 37704 | D131: 0 | E131: 6218 | F131: 153009 | G131: 8448 | H131: 0 | I131: 0 | J131: 0 | K131: 5643232 | L131: 0 | M131: 307338 | N131: 9489 | O131: 2464 | P131: 0 | Q131: 2451 | R131: 0 | S131: 1917
A132: · 전자부품 | B132: 6481673.4 | C132: 505834.3 | D132: 96884 | E132: 25130.4 | F132: 83212 | G132: 18384 | H132: 35732 | I132: 6555 | J132: 25108 | K132: 4302614.7 | L132: 8044 | M132: 72472 | N132: 917840 | O132: 13468 | P132: 6242 | Q132: 312399 | R132: 51754 | S132: 0
A133: 1억원미만 (1) | B133: 69872.1 | C133: 9257 | D133: 402 | E133: 1715.4 | F133: 5036 | G133: 1260 | H133: 2996 | I133: 2028 | J133: 214 | K133: 36200.7 | L133: 1057 | M133: 235 | N133: 1968 | O133: 231 | P133: 655 | Q133: 4307 | R133: 2310 | S133: 0
A134: 1억원~10억원미만 (2) | B134: 376418.5 | C134: 50785.5 | D134: 7210 | E134: 4380 | F134: 26558 | G134: 10183 | H134: 11435 | I134: 1516 | J134: 879 | K134: 202362 | L134: 1282 | M134: 2995 | N134: 14064 | O134: 3920 | P134: 3371 | Q134: 20459 | R134: 15019 | S134: 0
A135: 10억원~100억원미만 (3) | B135: 504104.8 | C135: 48627.8 | D135: 12578 | E135: 4688 | F135: 35448 | G135: 6002 | H135: 13193 | I135: 3011 | J135: 701 | K135: 264115 | L135: 5096 | M135: 10196 | N135: 70367 | O135: 5317 | P135: 2216 | Q135: 11400 | R135: 11149 | S135: 0
A136: 100억원이상 (4) | B136: 5531278 | C136: 397164 | D136: 76694 | E136: 14347 | F136: 16170 | G136: 939 | H136: 8108 | I136: 0 | J136: 23314 | K136: 3799937 | L136: 609 | M136: 59046 | N136: 831441 | O136: 4000 | P136: 0 | Q136: 276233 | R136: 23276 | S136: 0
A137: · 컴퓨터 및 주변장치 | B137: 326666.4 | C137: 83131.55 | D137: 3630 | E137: 2465.65 | F137: 30356 | G137: 6 | H137: 7499.3 | I137: 920.7 | J137: 1107 | K137: 184334.2 | L137: 380 | M137: 920.4 | N137: 1565 | O137: 902 | P137: 2287.6 | Q137: 3689 | R137: 3407 | S137: 65
A138: 1억원미만 (1) | B138: 18172.8 | C138: 7084.7 | D138: 597 | E138: 617 | F138: 234 | G138: 0 | H138: 1030 | I138: 731 | J138: 30 | K138: 6408.1 | L138: 0 | M138: 86.4 | N138: 164 | O138: 165 | P138: 444.6 | Q138: 581 | R138: 0 | S138: 0
A139: 1억원~10억원미만 (2) | B139: 109824.7 | C139: 37052.85 | D139: 3033 | E139: 1798.65 | F139: 2915 | G139: 6 | H139: 4761.5 | I139: 189.7 | J139: 0 | K139: 51908 | L139: 0 | M139: 403 | N139: 524 | O139: 737 | P139: 1843 | Q139: 1181 | R139: 3407 | S139: 65
A140: 10억원~100억원미만 (3) | B140: 113694.9 | C140: 38292 | D140: 0 | E140: 50 | F140: 27207 | G140: 0 | H140: 1707.8 | I140: 0 | J140: 1077 | K140: 41746.1 | L140: 380 | M140: 431 | N140: 877 | O140: 0 | P140: 0 | Q140: 1927 | R140: 0 | S140: 0
A141: 100억원이상 (4) | B141: 84974 | C141: 702 | D141: 0 | E141: 0 | F141: 0 | G141: 0 | H141: 0 | I141: 0 | J141: 0 | K141: 84272 | L141: 0 | M141: 0 | N141: 0 | O141: 0 | P141: 0 | Q141: 0 | R141: 0 | S141: 0
A142: · 통신 및 방송 장비 | B142: 26156473.3 | C142: 1193321.4 | D142: 12103 | E142: 7659 | F142: 66177 | G142: 51042 | H142: 52576.8 | I142: 2061 | J142: 2795 | K142: 23357445.3 | L142: 2746 | M142: 2397 | N142: 815380.5 | O142: 3596 | P142: 3196.5 | Q142: 573691.8 | R142: 9567 | S142: 718
A143: 1억원미만 (1) | B143: 40915.4 | C143: 8304 | D143: 602 | E143: 626 | F143: 2121 | G143: 465 | H143: 2970 | I143: 0 | J143: 390 | K143: 22807.6 | L143: 258 | M143: 0 | N143: 0 | O143: 0 | P143: 91 | Q143: 2177.8 | R143: 103 | S143: 0
A144: 1억원~10억원미만 (2) | B144: 389903.4 | C144: 79083.4 | D144: 7820 | E144: 4726 | F144: 20496 | G144: 4513 | H144: 32418.8 | I144: 701 | J144: 678 | K144: 204606.2 | L144: 2326 | M144: 2306 | N144: 3610.5 | O144: 2070 | P144: 2427.5 | Q144: 12526 | R144: 8877 | S144: 718
A145: 10억원~100억원미만 (3) | B145: 542662.5 | C145: 150897 | D145: 3681 | E145: 2307 | F145: 13700 | G145: 20561 | H145: 11862 | I145: 1360 | J145: 1727 | K145: 320224.5 | L145: 162 | M145: 91 | N145: 316 | O145: 1526 | P145: 678 | Q145: 12983 | R145: 587 | S145: 0
A146: 100억원이상 (4) | B146: 25182992 | C146: 955037 | D146: 0 | E146: 0 | F146: 29860 | G146: 25503 | H146: 5326 | I146: 0 | J146: 0 | K146: 22809807 | L146: 0 | M146: 0 | N146: 811454 | O146: 0 | P146: 0 | Q146: 546005 | R146: 0 | S146: 0
A147: · 영상 및 음향기기 | B147: 2614145.5 | C147: 1395020.5 | D147: 10909 | E147: 2931 | F147: 66563 | G147: 272 | H147: 4211 | I147: 184 | J147: 626 | K147: 759414 | L147: 408 | M147: 932 | N147: 697 | O147: 1062 | P147: 47 | Q147: 4237 | R147: 366410 | S147: 222
A148: 1억원미만 (1) | B148: 7365.5 | C148: 960.5 | D148: 0 | E148: 264 | F148: 325 | G148: 0 | H148: 0 | I148: 0 | J148: 101 | K148: 5266 | L148: 0 | M148: 89 | N148: 261 | O148: 0 | P148: 0 | Q148: 99 | R148: 0 | S148: 0
A149: 1억원~10억원미만 (2) | B149: 59974 | C149: 19839 | D149: 1459 | E149: 551 | F149: 4550 | G149: 174 | H149: 291 | I149: 133 | J149: 0 | K149: 28452 | L149: 0 | M149: 688 | N149: 436 | O149: 1062 | P149: 47 | Q149: 1479 | R149: 591 | S149: 222
A150: 10억원~100억원미만 (3) | B150: 146032 | C150: 20830 | D150: 496 | E150: 101 | F150: 61485 | G150: 0 | H150: 3920 | I150: 0 | J150: 525 | K150: 31226 | L150: 408 | M150: 155 | N150: 0 | O150: 0 | P150: 0 | Q150: 2659 | R150: 24227 | S150: 0
A151: 100억원이상 (4) | B151: 2400774 | C151: 1353391 | D151: 8954 | E151: 2015 | F151: 203 | G151: 98 | H151: 0 | I151: 51 | J151: 0 | K151: 694470 | L151: 0 | M151: 0 | N151: 0 | O151: 0 | P151: 0 | Q151: 0 | R151: 341592 | S151: 0
A152: · 마그네틱 및 광학 매체 | B152: 12751 | C152: 85 | D152: 468 | E152: 0 | F152: 0 | G152: 0 | H152: 490 | I152: 0 | J152: 0 | K152: 10680 | L152: 0 | M152: 0 | N152: 911 | O152: 0 | P152: 0 | Q152: 0 | R152: 117 | S152: 0
A153: 1억원미만 (1) | B153: 468 | C153: 0 | D153: 468 | E153: 0 | F153: 0 | G153: 0 | H153: 0 | I153: 0 | J153: 0 | K153: 0 | L153: 0 | M153: 0 | N153: 0 | O153: 0 | P153: 0 | Q153: 0 | R153: 0 | S153: 0
A154: 1억원~10억원미만 (2) | B154: 1738 | C154: 85 | D154: 0 | E154: 0 | F154: 0 | G154: 0 | H154: 490 | I154: 0 | J154: 0 | K154: 135 | L154: 0 | M154: 0 | N154: 911 | O154: 0 | P154: 0 | Q154: 0 | R154: 117 | S154: 0
A155: 10억원~100억원미만 (3) | B155: 10545 | C155: 0 | D155: 0 | E155: 0 | F155: 0 | G155: 0 | H155: 0 | I155: 0 | J155: 0 | K155: 10545 | L155: 0 | M155: 0 | N155: 0 | O155: 0 | P155: 0 | Q155: 0 | R155: 0 | S155: 0
A156: 100억원이상 (4)
A157: 의료, 정밀, 광학기기 및 시계 | B157: 2305330.5 | C157: 481900.9 | D157: 45242.8 | E157: 56890 | F157: 56198 | G157: 28388 | H157: 123313 | I157: 12337.5 | J157: 7133 | K157: 1236156.3 | L157: 34870 | M157: 46828 | N157: 36830 | O157: 9044 | P157: 4961 | Q157: 99003 | R157: 25835 | S157: 400
A158: 1억원미만 (1) | B158: 153795.6 | C158: 41889.9 | D158: 3722 | E158: 5100 | F158: 7189 | G158: 5129 | H158: 11956 | I158: 1307.5 | J158: 2272 | K158: 62241.2 | L158: 1306 | M158: 1479 | N158: 3385 | O158: 484 | P158: 503 | Q158: 3766 | R158: 2066 | S158: 0
A159: 1억원~10억원미만 (2) | B159: 642805 | C159: 128102 | D159: 20160.8 | E159: 27565 | F159: 23453 | G159: 19980 | H159: 59026 | I159: 5400 | J159: 3790 | K159: 257239.2 | L159: 17007 | M159: 23004 | N159: 13761 | O159: 8267 | P159: 3932 | Q159: 15967 | R159: 15751 | S159: 400
A160: 10억원~100억원미만 (3) | B160: 854665.9 | C160: 255145 | D160: 21360 | E160: 24225 | F160: 23758 | G160: 3279 | H160: 44035 | I160: 5630 | J160: 1071 | K160: 405882.9 | L160: 14427 | M160: 19158 | N160: 19436 | O160: 293 | P160: 526 | Q160: 8422 | R160: 8018 | S160: 0
A161: 100억원이상 (4) | B161: 654064 | C161: 56764 | D161: 0 | E161: 0 | F161: 1798 | G161: 0 | H161: 8296 | I161: 0 | J161: 0 | K161: 510793 | L161: 2130 | M161: 3187 | N161: 248 | O161: 0 | P161: 0 | Q161: 70848 | R161: 0 | S161: 0
A162: 전기장비 | B162: 4134858.4 | C162: 243185.4 | D162: 67492.2 | E162: 64471.5 | F162: 158859.4 | G162: 47846 | H162: 882938 | I162: 20795 | J162: 5803 | K162: 1566781.6 | L162: 16478 | M162: 283543 | N162: 528448.9 | O162: 21689 | P162: 39736 | Q162: 83664 | R162: 97266.4 | S162: 5861
A163: 1억원미만 (1) | B163: 106314 | C163: 18789.6 | D163: 5229 | E163: 3091.5 | F163: 9771 | G163: 984 | H163: 4370 | I163: 2377 | J163: 296 | K163: 43477.9 | L163: 1514 | M163: 577 | N163: 4219 | O163: 3356 | P163: 192 | Q163: 2508 | R163: 5488 | S163: 74
A164: 1억원~10억원미만 (2) | B164: 743845.4 | C164: 78390.8 | D164: 38255.2 | E164: 20029 | F164: 53072.4 | G164: 23134 | H164: 37075 | I164: 10611 | J164: 2070 | K164: 347942.7 | L164: 6609 | M164: 17906 | N164: 15978.9 | O164: 13290 | P164: 22856 | Q164: 13746 | R164: 37092.4 | S164: 5787
A165: 10억원~100억원미만 (3) | B165: 628819 | C165: 55743 | D165: 23600 | E165: 7385 | F165: 82153 | G165: 7697 | H165: 27269 | I165: 3198 | J165: 3437 | K165: 244498 | L165: 600 | M165: 14896 | N165: 40173 | O165: 4907 | P165: 16410 | Q165: 50155 | R165: 46698 | S165: 0
A166: 100억원이상 (4) | B166: 2655880 | C166: 90262 | D166: 408 | E166: 33966 | F166: 13863 | G166: 16031 | H166: 814224 | I166: 4609 | J166: 0 | K166: 930863 | L166: 7755 | M166: 250164 | N166: 468078 | O166: 136 | P166: 278 | Q166: 17255 | R166: 7988 | S166: 0
A167: 기타 기계 및 장비 | B167: 4582934.45 | C167: 212820.7 | D167: 166377 | E167: 153459 | F167: 423474.4 | G167: 48464.5 | H167: 263774 | I167: 38635 | J167: 5210 | K167: 2270486.9 | L167: 6897 | M167: 95314 | N167: 192090 | O167: 64787 | P167: 28395.95 | Q167: 109507 | R167: 501171 | S167: 2071
A168: 1억원미만 (1) | B168: 211669.5 | C168: 13831.1 | D168: 13210 | E168: 13885 | F168: 23734 | G168: 1145 | H168: 3580 | I168: 3468 | J168: 87 | K168: 98944.4 | L168: 1094 | M168: 3624 | N168: 8582 | O168: 2429 | P168: 949 | Q168: 10549 | R168: 12491 | S168: 67
A169: 1억원~10억원미만 (2) | B169: 1412846.15 | C169: 72227.2 | D169: 84045 | E169: 75146 | F169: 119765 | G169: 27782.5 | H169: 54043 | I169: 24787 | J169: 4294 | K169: 606676.5 | L169: 5432 | M169: 40863 | N169: 77645 | O169: 22087 | P169: 20618.95 | Q169: 63575 | R169: 112468 | S169: 1391
A170: 10억원~100억원미만 (3) | B170: 1356206.4 | C170: 83603.4 | D170: 49953 | E170: 54338 | F170: 85357 | G170: 11733 | H170: 42874 | I170: 7097 | J170: 829 | K170: 770896 | L170: 371 | M170: 27954 | N170: 69544 | O170: 12454 | P170: 6077 | Q170: 20979 | R170: 111534 | S170: 613
A171: 100억원이상 (4) | B171: 1602212.4 | C171: 43159 | D171: 19169 | E171: 10090 | F171: 194618.4 | G171: 7804 | H171: 163277 | I171: 3283 | J171: 0 | K171: 793970 | L171: 0 | M171: 22873 | N171: 36319 | O171: 27817 | P171: 751 | Q171: 14404 | R171: 264678 | S171: 0
A172: 자동차 및 트레일러 | B172: 9669611 | C172: 164935 | D172: 110284 | E172: 236393 | F172: 177335 | G172: 66239 | H172: 6240 | I172: 539150 | J172: 120775 | K172: 7264616 | L172: 32215 | M172: 56710 | N172: 229184 | O172: 101861 | P172: 12569 | Q172: 311167 | R172: 239938 | S172: 0
A173: 1억원미만 (1) | B173: 42615 | C173: 1846 | D173: 738 | E173: 5325 | F173: 2799 | G173: 184 | H173: 406 | I173: 1818 | J173: 0 | K173: 14577 | L173: 425 | M173: 1912 | N173: 718 | O173: 2646 | P173: 1864 | Q173: 2928 | R173: 4429 | S173: 0
A174: 1억원~10억원미만 (2) | B174: 404526 | C174: 34762 | D174: 24733 | E174: 26423 | F174: 18534 | G174: 12804 | H174: 2459 | I174: 34458 | J174: 2819 | K174: 106066 | L174: 1026 | M174: 9295 | N174: 25754 | O174: 21381 | P174: 3689 | Q174: 34131 | R174: 46192 | S174: 0
A175: 10억원~100억원미만 (3) | B175: 1116081 | C175: 35134 | D175: 28257 | E175: 78082 | F175: 79712 | G175: 18112 | H175: 2167 | I175: 37243 | J175: 10224 | K175: 442386 | L175: 14663 | M175: 12065 | N175: 131576 | O175: 23787 | P175: 4402 | Q175: 90641 | R175: 107630 | S175: 0
A176: 100억원이상 (4) | B176: 8106389 | C176: 93193 | D176: 56556 | E176: 126563 | F176: 76290 | G176: 35139 | H176: 1208 | I176: 465631 | J176: 107732 | K176: 6701587 | L176: 16101 | M176: 33438 | N176: 71136 | O176: 54047 | P176: 2614 | Q176: 183467 | R176: 81687 | S176: 0
A177: 기타 운송장비 | B177: 1085777.8 | C177: 20929 | D177: 53326 | E177: 3995 | F177: 16430 | G177: 2788 | H177: 45912 | I177: 67406 | J177: 22625 | K177: 293859.8 | L177: 1590 | M177: 22138 | N177: 4159 | O177: 10234 | P177: 64257 | Q177: 4264 | R177: 451865 | S177: 0
A178: 1억원미만 (1) | B178: 27269 | C178: 575 | D178: 2557 | E178: 30 | F178: 860 | G178: 327 | H178: 8457 | I178: 764 | J178: 0 | K178: 7783 | L178: 0 | M178: 191 | N178: 90 | O178: 139 | P178: 2857 | Q178: 252 | R178: 2387 | S178: 0
A179: 1억원~10억원미만 (2) | B179: 169025.8 | C179: 8973 | D179: 22023 | E179: 2700 | F179: 10802 | G179: 2461 | H179: 9794 | I179: 4219 | J179: 22536 | K179: 30474.8 | L179: 155 | M179: 3800 | N179: 1686 | O179: 7114 | P179: 12659 | Q179: 1672 | R179: 27957 | S179: 0
A180: 10억원~100억원미만 (3) | B180: 130945 | C180: 5373 | D180: 25618 | E180: 1265 | F180: 4768 | G180: 0 | H180: 16008 | I180: 4154 | J180: 89 | K180: 18342 | L180: 145 | M180: 18147 | N180: 2316 | O180: 370 | P180: 5662 | Q180: 2340 | R180: 26348 | S180: 0
A181: 100억원이상 (4) | B181: 758538 | C181: 6008 | D181: 3128 | E181: 0 | F181: 0 | G181: 0 | H181: 11653 | I181: 58269 | J181: 0 | K181: 237260 | L181: 1290 | M181: 0 | N181: 67 | O181: 2611 | P181: 43079 | Q181: 0 | R181: 395173 | S181: 0
A182: · 선박 및 보트 | B182: 376042 | C182: 8928 | D182: 43826 | E182: 845 | F182: 3437 | G182: 67 | H182: 12553 | I182: 66459 | J182: 89 | K182: 80482 | L182: 1290 | M182: 0 | N182: 1193 | O182: 2140 | P182: 61858 | Q182: 3018 | R182: 89857 | S182: 0
A183: 1억원미만 (1) | B183: 5722 | C183: 0 | D183: 2017 | E183: 0 | F183: 261 | G183: 67 | H183: 0 | I183: 494 | J183: 0 | K183: 0 | L183: 0 | M183: 0 | N183: 0 | O183: 91 | P183: 1521 | Q183: 252 | R183: 1019 | S183: 0
A184: 1억원~10억원미만 (2) | B184: 44498 | C184: 114 | D184: 15385 | E184: 89 | F184: 31 | G184: 0 | H184: 900 | I184: 3542 | J184: 0 | K184: 1556 | L184: 0 | M184: 0 | N184: 75 | O184: 1931 | P184: 11596 | Q184: 683 | R184: 8596 | S184: 0
A185: 10억원~100억원미만 (3) | B185: 58773 | C185: 2806 | D185: 23296 | E185: 756 | F185: 3145 | G185: 0 | H185: 0 | I185: 4154 | J185: 89 | K185: 466 | L185: 0 | M185: 0 | N185: 1118 | O185: 118 | P185: 5662 | Q185: 2083 | R185: 15080 | S185: 0
A186: 100억원이상 (4) | B186: 267049 | C186: 6008 | D186: 3128 | E186: 0 | F186: 0 | G186: 0 | H186: 11653 | I186: 58269 | J186: 0 | K186: 78460 | L186: 1290 | M186: 0 | N186: 0 | O186: 0 | P186: 43079 | Q186: 0 | R186: 65162 | S186: 0
A187: · 철도장비 | B187: 90124.8 | C187: 4569 | D187: 2222 | E187: 274 | F187: 2149 | G187: 0 | H187: 0 | I187: 0 | J187: 0 | K187: 56831.8 | L187: 0 | M187: 19271 | N187: 92 | O187: 619 | P187: 0 | Q187: 0 | R187: 4097 | S187: 0
A188: 1억원미만 (1) | B188: 567 | C188: 0 | D188: 0 | E188: 0 | F188: 0 | G188: 0 | H188: 0 | I188: 0 | J188: 0 | K188: 567 | L188: 0 | M188: 0 | N188: 0 | O188: 0 | P188: 0 | Q188: 0 | R188: 0 | S188: 0
A189: 1억원~10억원미만 (2) | B189: 29134.8 | C189: 2322 | D189: 2222 | E189: 0 | F189: 1816 | G189: 0 | H189: 0 | I189: 0 | J189: 0 | K189: 16150.8 | L189: 0 | M189: 3493 | N189: 92 | O189: 619 | P189: 0 | Q189: 0 | R189: 2420 | S189: 0
A190: 10억원~100억원미만 (3) | B190: 32425 | C190: 2247 | D190: 0 | E190: 274 | F190: 333 | G190: 0 | H190: 0 | I190: 0 | J190: 0 | K190: 12116 | L190: 0 | M190: 15778 | N190: 0 | O190: 0 | P190: 0 | Q190: 0 | R190: 1677 | S190: 0
A191: 100억원이상 (4) | B191: 27998 | C191: 0 | D191: 0 | E191: 0 | F191: 0 | G191: 0 | H191: 0 | I191: 0 | J191: 0 | K191: 27998 | L191: 0 | M191: 0 | N191: 0 | O191: 0 | P191: 0 | Q191: 0 | R191: 0 | S191: 0
A192: · 항공기, 우주선 및 부품 | B192: 592004 | C192: 6072 | D192: 6544 | E192: 2314 | F192: 7902 | G192: 1312 | H192: 33359 | I192: 947 | J192: 22536 | K192: 149461 | L192: 0 | M192: 2087 | N192: 2262 | O192: 3091 | P192: 1746 | Q192: 804 | R192: 351567 | S192: 0
A193: 1억원미만 (1) | B193: 19109 | C193: 337 | D193: 476 | E193: 0 | F193: 170 | G193: 260 | H193: 8457 | I193: 270 | J193: 0 | K193: 6148 | L193: 0 | M193: 191 | N193: 48 | O193: 48 | P193: 1336 | Q193: 0 | R193: 1368 | S193: 0
A194: 1억원~10억원미만 (2) | B194: 81441 | C194: 5735 | D194: 3793 | E194: 2079 | F194: 6822 | G194: 1052 | H194: 8894 | I194: 677 | J194: 22536 | K194: 8641 | L194: 0 | M194: 307 | N194: 1312 | O194: 2791 | P194: 410 | Q194: 804 | R194: 15588 | S194: 0
A195: 10억원~100억원미만 (3) | B195: 34998 | C195: 0 | D195: 2275 | E195: 235 | F195: 910 | G195: 0 | H195: 16008 | I195: 0 | J195: 0 | K195: 3870 | L195: 0 | M195: 1589 | N195: 835 | O195: 252 | P195: 0 | Q195: 0 | R195: 9024 | S195: 0
A196: 100억원이상 (4) | B196: 456456 | C196: 0 | D196: 0 | E196: 0 | F196: 0 | G196: 0 | H196: 0 | I196: 0 | J196: 0 | K196: 130802 | L196: 0 | M196: 0 | N196: 67 | O196: 0 | P196: 0 | Q196: 0 | R196: 325587 | S196: 0
A197: · 기타 운송장비 | B197: 27607 | C197: 1360 | D197: 734 | E197: 562 | F197: 2942 | G197: 1409 | H197: 0 | I197: 0 | J197: 0 | K197: 7085 | L197: 300 | M197: 780 | N197: 612 | O197: 4384 | P197: 653 | Q197: 442 | R197: 6344 | S197: 0
A198: 1억원미만 (1) | B198: 1871 | C198: 238 | D198: 64 | E198: 30 | F198: 429 | G198: 0 | H198: 0 | I198: 0 | J198: 0 | K198: 1068 | L198: 0 | M198: 0 | N198: 42 | O198: 0 | P198: 0 | Q198: 0 | R198: 0 | S198: 0
A199: 1억원~10억원미만 (2) | B199: 13952 | C199: 802 | D199: 623 | E199: 532 | F199: 2133 | G199: 1409 | H199: 0 | I199: 0 | J199: 0 | K199: 4127 | L199: 155 | M199: 0 | N199: 207 | O199: 1773 | P199: 653 | Q199: 185 | R199: 1353 | S199: 0
A200: 10억원~100억원미만 (3) | B200: 4749 | C200: 320 | D200: 47 | E200: 0 | F200: 380 | G200: 0 | H200: 0 | I200: 0 | J200: 0 | K200: 1890 | L200: 145 | M200: 780 | N200: 363 | O200: 0 | P200: 0 | Q200: 257 | R200: 567 | S200: 0
A201: 100억원이상 (4) | B201: 7035 | C201: 0 | D201: 0 | E201: 0 | F201: 0 | G201: 0 | H201: 0 | I201: 0 | J201: 0 | K201: 0 | L201: 0 | M201: 0 | N201: 0 | O201: 2611 | P201: 0 | Q201: 0 | R201: 4424 | S201: 0
... 156 more rows

Sheet 1-1-14
R1: return to the table
A2: 1-1-14. 기업 산업별 매출액 규모별 연구개발비(2022년)
S4: (단위 : 백만원)
A5: 산업별·매출액 규모별 | B5: 전체 | C5: 지역
C6: 서울 | D6: 부산 | E6: 대구 | F6: 인천 | G6: 광주 | H6: 대전 | I6: 울산 | J6: 세종 | K6: 경기 | L6: 강원 | M6: 충북 | N6: 충남 | O6: 전북 | P6: 전남 | Q6: 경북 | R6: 경남 | S6: 제주
A7: 총계 | B7: =SUM(C7:S7) -> 89421300.22 | C7: =SUM(C8:C11) -> 12651096.56 | D7: =SUM(D8:D11) -> 1001051.05 | E7: 857891.33 | F7: 3009166.3 | G7: 429095.33 | H7: 3967894.02 | I7: 939844.99 | J7: 347585.49 | K7: 55090723.64 | L7: 315051.76 | M7: 1693808.89 | N7: 3482812.6 | O7: 601007.38 | P7: 508004.46 | Q7: 2300198.06 | R7: 2164949.09 | S7: 61119.27
A8: 10억원미만 (1) | B8: 3669511.25 | C8: =SUM(C13,C18,C23,C218,C223,C228,C233) -> 1364058.82 | D8: =SUM(D13,D18,D23,D218,D223,D228,D233) -> 111092.86 | E8: 79283.73 | F8: 140602.8 | G8: 35449.07 | H8: 350552.08 | I8: 35136.27 | J8: 39149.37 | K8: 1106452.48 | L8: 51932.7 | M8: 55190.61 | N8: 59957.09 | O8: 56360.16 | P8: 32798.74 | Q8: 79344.04 | R8: 57364.66 | S8: 14785.77
A9: 10억원~100억원미만 (2) | B9: 8717216.97 | C9: =SUM(C14,C19,C24,C219,C224,C229,C234) -> 2529650.27 | D9: 316691.88 | E9: 238249.02 | F9: 407374.66 | G9: 144668.06 | H9: 431217.78 | I9: 89111.72 | J9: 30061.99 | K9: 3122565.55 | L9: 86800.23 | M9: 210157.68 | N9: 231249.34 | O9: 159808.22 | P9: 149119.72 | Q9: 254920.02 | R9: 287740.43 | S9: 27830.4
A10: 100억원~1000억원미만 (3) | B10: 9208377.48 | C10: =SUM(C15,C20,C25,C220,C225,C230,C235) -> 2135343.42 | D10: 309662.31 | E10: 235576.58 | F10: 424797.44 | G10: 117856.2 | H10: 329814.31 | I10: 103126 | J10: 41779.13 | K10: 3733981.39 | L10: 100312.83 | M10: 324731.6 | N10: 355949.17 | O10: 156391 | P10: 88373 | Q10: 311044 | R10: 424334 | S10: 15305.1
A11: 1000억원이상 (4) | B11: 67826194.52 | C11: =SUM(C16,C21,C26,C221,C226,C231,C236) -> 6622044.05 | D11: 263604 | E11: 304782 | F11: 2036391.4 | G11: 131122 | H11: 2856309.85 | I11: 712471 | J11: 236595 | K11: 47127724.22 | L11: 76006 | M11: 1103729 | N11: 2835657 | O11: 228448 | P11: 237713 | Q11: 1654890 | R11: 1395510 | S11: 3198
A12: [ 농업, 임업 및 어업 ] | B12: 59208 | C12: 2381 | D12: 1418 | E12: 0 | F12: 12 | G12: 48 | H12: 525 | I12: 292 | J12: 735 | K12: 32167 | L12: 2800 | M12: 1307 | N12: 2280 | O12: 8690 | P12: 983 | Q12: 1109 | R12: 3920 | S12: 541
A13: 10억원미만 (1) | B13: 11195 | C13: 56 | D13: 1332 | E13: 0 | F13: 12 | G13: 47 | H13: 525 | I13: 292 | J13: 278 | K13: 2307 | L13: 188 | M13: 234 | N13: 37 | O13: 2975 | P13: 847 | Q13: 1109 | R13: 415 | S13: 541
A14: 10억원~100억원미만 (2) | B14: 11377 | C14: 0 | D14: 86 | E14: 0 | F14: 0 | G14: 1 | H14: 0 | I14: 0 | J14: 457 | K14: 4213 | L14: 680 | M14: 1073 | N14: 1637 | O14: 2899 | P14: 99 | Q14: 0 | R14: 232 | S14: 0
A15: 100억원~1000억원미만 (3) | B15: 19727 | C15: 2325 | D15: 0 | E15: 0 | F15: 0 | G15: 0 | H15: 0 | I15: 0 | J15: 0 | K15: 13558 | L15: 1932 | M15: 0 | N15: 606 | O15: 714 | P15: 37 | Q15: 0 | R15: 555 | S15: 0
A16: 1000억원이상 (4) | B16: 16909 | C16: 0 | D16: 0 | E16: 0 | F16: 0 | G16: 0 | H16: 0 | I16: 0 | J16: 0 | K16: 12089 | L16: 0 | M16: 0 | N16: 0 | O16: 2102 | P16: 0 | Q16: 0 | R16: 2718 | S16: 0
A17: [ 광업 ] | B17: 7923 | C17: 366 | D17: 0 | E17: 0 | F17: 0 | G17: 0 | H17: 0 | I17: 2964 | J17: 0 | K17: 1413 | L17: 1569 | M17: 1548 | N17: 0 | O17: 0 | P17: 0 | Q17: 63 | R17: 0 | S17: 0
A18: 10억원미만 (1) | B18: 381 | C18: 316 | D18: 0 | E18: 0 | F18: 0 | G18: 0 | H18: 0 | I18: 0 | J18: 0 | K18: 65 | L18: 0 | M18: 0 | N18: 0 | O18: 0 | P18: 0 | Q18: 0 | R18: 0 | S18: 0
A19: 10억원~100억원미만 (2) | B19: 583 | C19: 0 | D19: 0 | E19: 0 | F19: 0 | G19: 0 | H19: 0 | I19: 0 | J19: 0 | K19: 422 | L19: 50 | M19: 48 | N19: 0 | O19: 0 | P19: 0 | Q19: 63 | R19: 0 | S19: 0
A20: 100억원~1000억원미만 (3) | B20: 3144 | C20: 50 | D20: 0 | E20: 0 | F20: 0 | G20: 0 | H20: 0 | I20: 0 | J20: 0 | K20: 926 | L20: 668 | M20: 1500 | N20: 0 | O20: 0 | P20: 0 | Q20: 0 | R20: 0 | S20: 0
A21: 1000억원이상 (4) | B21: 3815 | C21: 0 | D21: 0 | E21: 0 | F21: 0 | G21: 0 | H21: 0 | I21: 2964 | J21: 0 | K21: 0 | L21: 851 | M21: 0 | N21: 0 | O21: 0 | P21: 0 | Q21: 0 | R21: 0 | S21: 0
A22: [ 제조업 ] | B22: 76895561.85 | C22: 7152398.95 | D22: 759671 | E22: 730030.55 | F22: 2096108.8 | G22: 345527.5 | H22: 2894518.1 | I22: 887869.2 | J22: 311094 | K22: 51438556.8 | L22: 244254 | M22: 1565958.4 | N22: 3387410.4 | O22: 466578 | P22: 398588.45 | Q22: 2124278.3 | R22: 2067509.4 | S22: 25210
A23: 10억원미만 (1) | B23: 1274096.45 | C23: 217533.65 | D23: 49292.2 | E23: 42002.85 | F23: 58563 | G23: 20692 | H23: 142164.5 | I23: 24678.5 | J23: 28550 | K23: 441168.3 | L23: 36809 | M23: 37668.4 | N23: 34623.4 | O23: 29240 | P23: 17989.95 | Q23: 46505.3 | R23: 43079.4 | S23: 3536
A24: 10억원~100억원미만 (2) | B24: 5215260.3 | C24: 833265.7 | D24: 214587 | E24: 176337.7 | F24: 326523.4 | G24: 99261.5 | H24: 248828.6 | I24: 64349.7 | J24: 18840 | K24: 2156864.2 | L24: 58857 | M24: 157798 | N24: 200699 | O24: 113966 | P24: 112680.5 | Q24: 181900 | R24: 240651 | S24: 9851
A25: 100억원~1000억원미만 (3) | B25: 6857178.7 | C25: 849827.6 | D25: 248194.8 | E25: 214023 | F25: 383965 | G25: 97635 | H25: 238135 | I25: 94731 | J25: 38763 | K25: 3072664.3 | L25: 89024 | M25: 296131 | N25: 327812 | O25: 141072 | P25: 67507 | Q25: 292638 | R25: 396431 | S25: 8625
A26: 1000억원이상 (4) | B26: 63549026.4 | C26: 5251772 | D26: 247597 | E26: 297667 | F26: 1327057.4 | G26: 127939 | H26: 2265390 | I26: 704110 | J26: 224941 | K26: 45767860 | L26: 59564 | M26: 1074361 | N26: 2824276 | O26: 182300 | P26: 200411 | Q26: 1603235 | R26: 1387348 | S26: 3198
A27: 식료품 | B27: 1068907.7 | C27: 307218.7 | D27: 8997 | E27: 11034 | F27: 27374 | G27: 3871 | H27: 52868 | I27: 1748 | J27: 9092 | K27: 408874 | L27: 28131 | M27: 78190 | N27: 41296 | O27: 28446 | P27: 18009 | Q27: 13568 | R27: 23506 | S27: 6685
A28: 10억원미만 (1) | B28: 33113.7 | C28: 4021.7 | D28: 1054 | E28: 625 | F28: 1120 | G28: 413 | H28: 730 | I28: 41 | J28: 207 | K28: 5632 | L28: 4743 | M28: 1534 | N28: 2729 | O28: 3723 | P28: 1709 | Q28: 2120 | R28: 1917 | S28: 795
A29: 10억원~100억원미만 (2) | B29: 150495 | C29: 15090 | D29: 3842 | E29: 4655 | F29: 6430 | G29: 2365 | H29: 2309 | I29: 49 | J29: 1919 | K29: 47654 | L29: 6828 | M29: 10859 | N29: 11815 | O29: 9099 | P29: 11901 | Q29: 6447 | R29: 6049 | S29: 3184
A30: 100억원~1000억원미만 (3) | B30: 221601 | C30: 28636 | D30: 4101 | E30: 5754 | F30: 6713 | G30: 1093 | H30: 2363 | I30: 1658 | J30: 693 | K30: 83422 | L30: 9544 | M30: 20914 | N30: 22290 | O30: 11047 | P30: 4372 | Q30: 4857 | R30: 11438 | S30: 2706
A31: 1000억원이상 (4) | B31: 663698 | C31: 259471 | D31: 0 | E31: 0 | F31: 13111 | G31: 0 | H31: 47466 | I31: 0 | J31: 6273 | K31: 272166 | L31: 7016 | M31: 44883 | N31: 4462 | O31: 4577 | P31: 27 | Q31: 144 | R31: 4102 | S31: 0
A32: 음료 | B32: 40040 | C32: 12964 | D32: 1072 | E32: 843 | F32: 80 | G32: 0 | H32: 349 | I32: 0 | J32: 0 | K32: 7275 | L32: 3224 | M32: 4717 | N32: 1092 | O32: 1247 | P32: 1001 | Q32: 1752 | R32: 2641 | S32: 1783
A33: 10억원미만 (1) | B33: 2420 | C33: 1410 | D33: 173 | E33: 196 | F33: 0 | G33: 0 | H33: 0 | I33: 0 | J33: 0 | K33: 236 | L33: 0 | M33: 0 | N33: 30 | O33: 127 | P33: 174 | Q33: 34 | R33: 40 | S33: 0
A34: 10억원~100억원미만 (2) | B34: 5134 | C34: 104 | D34: 95 | E34: 90 | F34: 0 | G34: 0 | H34: 46 | I34: 0 | J34: 0 | K34: 1621 | L34: 276 | M34: 168 | N34: 207 | O34: 375 | P34: 329 | Q34: 885 | R34: 804 | S34: 134
A35: 100억원~1000억원미만 (3) | B35: 10978 | C35: 1798 | D35: 334 | E35: 557 | F35: 80 | G35: 0 | H35: 303 | I35: 0 | J35: 0 | K35: 2903 | L35: 290 | M35: 0 | N35: 855 | O35: 745 | P35: 498 | Q35: 833 | R35: 1414 | S35: 368
A36: 1000억원이상 (4) | B36: 21508 | C36: 9652 | D36: 470 | E36: 0 | F36: 0 | G36: 0 | H36: 0 | I36: 0 | J36: 0 | K36: 2515 | L36: 2658 | M36: 4549 | N36: 0 | O36: 0 | P36: 0 | Q36: 0 | R36: 383 | S36: 1281
A37: 담배 | B37: 50446 | C37: 0 | D37: 0 | E37: 0 | F37: 0 | G37: 0 | H37: 50446 | I37: 0 | J37: 0 | K37: 0 | L37: 0 | M37: 0 | N37: 0 | O37: 0 | P37: 0 | Q37: 0 | R37: 0 | S37: 0
A38: 10억원미만 (1)
A39: 10억원~100억원미만 (2)
A40: 100억원~1000억원미만 (3)
A41: 1000억원이상 (4) | B41: 50446 | C41: 0 | D41: 0 | E41: 0 | F41: 0 | G41: 0 | H41: 50446 | I41: 0 | J41: 0 | K41: 0 | L41: 0 | M41: 0 | N41: 0 | O41: 0 | P41: 0 | Q41: 0 | R41: 0 | S41: 0
A42: 섬유제품(의복제외) | B42: 203030 | C42: 37031 | D42: 9656 | E42: 34757 | F42: 2617 | G42: 1931 | H42: 2392 | I42: 437 | J42: 749 | K42: 60957 | L42: 435 | M42: 8093 | N42: 7648 | O42: 5574 | P42: 50 | Q42: 24744 | R42: 5959 | S42: 0
A43: 10억원미만 (1) | B43: 12230 | C43: 1417 | D43: 279 | E43: 1644 | F43: 478 | G43: 0 | H43: 0 | I43: 210 | J43: 0 | K43: 6310 | L43: 213 | M43: 141 | N43: 428 | O43: 820 | P43: 0 | Q43: 240 | R43: 50 | S43: 0
A44: 10억원~100억원미만 (2) | B44: 82848 | C44: 15691 | D44: 1150 | E44: 14746 | F44: 1214 | G44: 924 | H44: 932 | I44: 70 | J44: 749 | K44: 30225 | L44: 222 | M44: 2697 | N44: 2115 | O44: 2858 | P44: 50 | Q44: 5354 | R44: 3851 | S44: 0
A45: 100억원~1000억원미만 (3) | B45: 90790 | C45: 13481 | D45: 6662 | E45: 18367 | F45: 925 | G45: 458 | H45: 1460 | I45: 157 | J45: 0 | K45: 21504 | L45: 0 | M45: 3406 | N45: 5105 | O45: 1896 | P45: 0 | Q45: 15311 | R45: 2058 | S45: 0
A46: 1000억원이상 (4) | B46: 17162 | C46: 6442 | D46: 1565 | E46: 0 | F46: 0 | G46: 549 | H46: 0 | I46: 0 | J46: 0 | K46: 2918 | L46: 0 | M46: 1849 | N46: 0 | O46: 0 | P46: 0 | Q46: 3839 | R46: 0 | S46: 0
A47: 의복, 의복액세서리 및 모피제품 | B47: 278373 | C47: 245370 | D47: 9279 | E47: 2097 | F47: 1723 | G47: 226 | H47: 1095 | I47: 538 | J47: 0 | K47: 14677 | L47: 241 | M47: 344 | N47: 0 | O47: 860 | P47: 377 | Q47: 863 | R47: 683 | S47: 0
A48: 10억원미만 (1) | B48: 12630 | C48: 5379 | D48: 4372 | E48: 100 | F48: 437 | G48: 184 | H48: 0 | I48: 538 | J48: 0 | K48: 1394 | L48: 0 | M48: 0 | N48: 0 | O48: 79 | P48: 0 | Q48: 147 | R48: 0 | S48: 0
A49: 10억원~100억원미만 (2) | B49: 45326 | C49: 33885 | D49: 1996 | E49: 1024 | F49: 402 | G49: 42 | H49: 134 | I49: 0 | J49: 0 | K49: 6533 | L49: 241 | M49: 62 | N49: 0 | O49: 545 | P49: 0 | Q49: 0 | R49: 462 | S49: 0
A50: 100억원~1000억원미만 (3) | B50: 88734 | C50: 74423 | D50: 2911 | E50: 973 | F50: 884 | G50: 0 | H50: 961 | I50: 0 | J50: 0 | K50: 6750 | L50: 0 | M50: 282 | N50: 0 | O50: 236 | P50: 377 | Q50: 716 | R50: 221 | S50: 0
A51: 1000억원이상 (4) | B51: 131683 | C51: 131683 | D51: 0 | E51: 0 | F51: 0 | G51: 0 | H51: 0 | I51: 0 | J51: 0 | K51: 0 | L51: 0 | M51: 0 | N51: 0 | O51: 0 | P51: 0 | Q51: 0 | R51: 0 | S51: 0
A52: 가죽, 가방 및 신발 | B52: 56756 | C52: 23362 | D52: 12838 | E52: 847 | F52: 526 | G52: 0 | H52: 123 | I52: 0 | J52: 655 | K52: 15500 | L52: 0 | M52: 817 | N52: 440 | O52: 174 | P52: 275 | Q52: 89 | R52: 1110 | S52: 0
A53: 10억원미만 (1) | B53: 3916 | C53: 666 | D53: 1316 | E53: 40 | F53: 326 | G53: 0 | H53: 0 | I53: 0 | J53: 0 | K53: 1443 | L53: 0 | M53: 0 | N53: 0 | O53: 83 | P53: 0 | Q53: 0 | R53: 42 | S53: 0
A54: 10억원~100억원미만 (2) | B54: 20385 | C54: 5357 | D54: 4651 | E54: 599 | F54: 200 | G54: 0 | H54: 123 | I54: 0 | J54: 0 | K54: 8330 | L54: 0 | M54: 74 | N54: 0 | O54: 91 | P54: 0 | Q54: 89 | R54: 871 | S54: 0
A55: 100억원~1000억원미만 (3) | B55: 19277 | C55: 9683 | D55: 4916 | E55: 208 | F55: 0 | G55: 0 | H55: 0 | I55: 0 | J55: 0 | K55: 3558 | L55: 0 | M55: 0 | N55: 440 | O55: 0 | P55: 275 | Q55: 0 | R55: 197 | S55: 0
A56: 1000억원이상 (4) | B56: 13178 | C56: 7656 | D56: 1955 | E56: 0 | F56: 0 | G56: 0 | H56: 0 | I56: 0 | J56: 655 | K56: 2169 | L56: 0 | M56: 743 | N56: 0 | O56: 0 | P56: 0 | Q56: 0 | R56: 0 | S56: 0
A57: 목재 및 나무제품(가구제외) | B57: 36787 | C57: 3557 | D57: 1186 | E57: 266 | F57: 6322 | G57: 634 | H57: 1055 | I57: 0 | J57: 259 | K57: 13113 | L57: 1765 | M57: 1108 | N57: 1367 | O57: 1388 | P57: 1347 | Q57: 1839 | R57: 1581 | S57: 0
A58: 10억원미만 (1) | B58: 3984 | C58: 147 | D58: 103 | E58: 0 | F58: 142 | G58: 215 | H58: 602 | I58: 0 | J58: 0 | K58: 2293 | L58: 0 | M58: 58 | N58: 34 | O58: 133 | P58: 195 | Q58: 62 | R58: 0 | S58: 0
A59: 10억원~100억원미만 (2) | B59: 17821 | C59: 1611 | D59: 712 | E59: 266 | F59: 857 | G59: 228 | H59: 453 | I59: 0 | J59: 259 | K59: 5111 | L59: 1633 | M59: 864 | N59: 1289 | O59: 556 | P59: 1152 | Q59: 1249 | R59: 1581 | S59: 0
A60: 100억원~1000억원미만 (3) | B60: 12868 | C60: 1799 | D60: 371 | E60: 0 | F60: 3209 | G60: 191 | H60: 0 | I60: 0 | J60: 0 | K60: 5709 | L60: 132 | M60: 186 | N60: 44 | O60: 699 | P60: 0 | Q60: 528 | R60: 0 | S60: 0
A61: 1000억원이상 (4) | B61: 2114 | C61: 0 | D61: 0 | E61: 0 | F61: 2114 | G61: 0 | H61: 0 | I61: 0 | J61: 0 | K61: 0 | L61: 0 | M61: 0 | N61: 0 | O61: 0 | P61: 0 | Q61: 0 | R61: 0 | S61: 0
A62: 펄프, 종이 및 종이제품 | B62: 238182 | C62: 155593 | D62: 2073 | E62: 3031 | F62: 1608 | G62: 478 | H62: 7665 | I62: 4192 | J62: 478 | K62: 45453 | L62: 55 | M62: 5953 | N62: 3111 | O62: 2644 | P62: 94 | Q62: 3062 | R62: 2454 | S62: 238
A63: 10억원미만 (1) | B63: 3621 | C63: 715 | D63: 210 | E63: 0 | F63: 151 | G63: 0 | H63: 0 | I63: 59 | J63: 0 | K63: 1891 | L63: 20 | M63: 36 | N63: 0 | O63: 44 | P63: 0 | Q63: 93 | R63: 402 | S63: 0
A64: 10억원~100억원미만 (2) | B64: 175351 | C64: 152109 | D64: 1179 | E64: 945 | F64: 970 | G64: 208 | H64: 292 | I64: 0 | J64: 39 | K64: 14081 | L64: 35 | M64: 1542 | N64: 1093 | O64: 243 | P64: 47 | Q64: 1629 | R64: 701 | S64: 238
A65: 100억원~1000억원미만 (3) | B65: 31598 | C65: 2344 | D65: 684 | E65: 1587 | F65: 487 | G65: 270 | H65: 223 | I65: 92 | J65: 64 | K65: 16226 | L65: 0 | M65: 3934 | N65: 2018 | O65: 1585 | P65: 47 | Q65: 1340 | R65: 697 | S65: 0
A66: 1000억원이상 (4) | B66: 27612 | C66: 425 | D66: 0 | E66: 499 | F66: 0 | G66: 0 | H66: 7150 | I66: 4041 | J66: 375 | K66: 13255 | L66: 0 | M66: 441 | N66: 0 | O66: 772 | P66: 0 | Q66: 0 | R66: 654 | S66: 0
A67: 인쇄 및 기록매체 복제 | B67: 74830 | C67: 23940.6 | D67: 1925 | E67: 3356 | F67: 3558 | G67: 4313 | H67: 897 | I67: 476 | J67: 70 | K67: 27289.5 | L67: 258 | M67: 2197 | N67: 1201 | O67: 423 | P67: 587.4 | Q67: 2168.5 | R67: 2044 | S67: 126
A68: 10억원미만 (1) | B68: 8595.9 | C68: 1750 | D68: 535 | E68: 225 | F68: 365 | G68: 90 | H68: 671 | I68: 0 | J68: 0 | K68: 1633 | L68: 28 | M68: 67 | N68: 79 | O68: 150 | P68: 19.4 | Q68: 1621.5 | R68: 1278 | S68: 84
A69: 10억원~100억원미만 (2) | B69: 40867.1 | C69: 15671.6 | D69: 1390 | E69: 2029 | F69: 1710 | G69: 1108 | H69: 226 | I69: 476 | J69: 70 | K69: 13745.5 | L69: 4 | M69: 2093 | N69: 347 | O69: 132 | P69: 568 | Q69: 547 | R69: 708 | S69: 42
A70: 100억원~1000억원미만 (3) | B70: 25367 | C70: 6519 | D70: 0 | E70: 1102 | F70: 1483 | G70: 3115 | H70: 0 | I70: 0 | J70: 0 | K70: 11911 | L70: 226 | M70: 37 | N70: 775 | O70: 141 | P70: 0 | Q70: 0 | R70: 58 | S70: 0
A71: 1000억원이상 (4)
A72: 코크스, 연탄 및 석유정제품 | B72: 302267 | C72: 17754 | D72: 197 | E72: 0 | F72: 612 | G72: 0 | H72: 241300 | I72: 3041 | J72: 0 | K72: 19527 | L72: 905 | M72: 877 | N72: 8232 | O72: 0 | P72: 3940 | Q72: 2755 | R72: 3127 | S72: 0
A73: 10억원미만 (1) | B73: 399 | C73: 0 | D73: 0 | E73: 0 | F73: 35 | G73: 0 | H73: 0 | I73: 97 | J73: 0 | K73: 267 | L73: 0 | M73: 0 | N73: 0 | O73: 0 | P73: 0 | Q73: 0 | R73: 0 | S73: 0
A74: 10억원~100억원미만 (2) | B74: 4461 | C74: 26 | D74: 0 | E74: 0 | F74: 577 | G74: 0 | H74: 0 | I74: 975 | J74: 0 | K74: 492 | L74: 48 | M74: 877 | N74: 181 | O74: 0 | P74: 0 | Q74: 110 | R74: 1175 | S74: 0
A75: 100억원~1000억원미만 (3) | B75: 9175 | C75: 0 | D75: 197 | E75: 0 | F75: 0 | G75: 0 | H75: 0 | I75: 1200 | J75: 0 | K75: 702 | L75: 857 | M75: 0 | N75: 878 | O75: 0 | P75: 744 | Q75: 2645 | R75: 1952 | S75: 0
A76: 1000억원이상 (4) | B76: 288232 | C76: 17728 | D76: 0 | E76: 0 | F76: 0 | G76: 0 | H76: 241300 | I76: 769 | J76: 0 | K76: 18066 | L76: 0 | M76: 0 | N76: 7173 | O76: 0 | P76: 3196 | Q76: 0 | R76: 0 | S76: 0
A77: 화학물질 및 화학제품(의약품 제외) | B77: 3768115 | C77: 826291 | D77: 32754 | E77: 19308 | F77: 93124 | G77: 7479 | H77: 562787 | I77: 116403 | J77: 46116 | K77: 1278508 | L77: 20204 | M77: 271558 | N77: 182825 | O77: 105658 | P77: 60638 | Q77: 87726 | R77: 53299 | S77: 3437
A78: 10억원미만 (1) | B78: 101324 | C78: 13998 | D78: 3008 | E78: 2316 | F78: 6195 | G78: 1310 | H78: 18461 | I78: 2295 | J78: 775 | K78: 33924 | L78: 2542 | M78: 4708 | N78: 1810 | O78: 2213 | P78: 2070 | Q78: 2277 | R78: 2425 | S78: 997
A79: 10억원~100억원미만 (2) | B79: 384452 | C79: 40612 | D79: 10932 | E79: 9522 | F79: 32308 | G79: 4535 | H79: 22685 | I79: 5492 | J79: 3489 | K79: 146102 | L79: 12886 | M79: 28464 | N79: 18240 | O79: 9176 | P79: 11106 | Q79: 13103 | R79: 14641 | S79: 1159
A80: 100억원~1000억원미만 (3) | B80: 568504 | C80: 53347 | D80: 8214 | E80: 7470 | F80: 44394 | G80: 1634 | H80: 19587 | I80: 12008 | J80: 17469 | K80: 243973 | L80: 4264 | M80: 49414 | N80: 38750 | O80: 14574 | P80: 3138 | Q80: 31655 | R80: 17332 | S80: 1281
A81: 1000억원이상 (4) | B81: 2713835 | C81: 718334 | D81: 10600 | E81: 0 | F81: 10227 | G81: 0 | H81: 502054 | I81: 96608 | J81: 24383 | K81: 854509 | L81: 512 | M81: 188972 | N81: 124025 | O81: 79695 | P81: 44324 | Q81: 40691 | R81: 18901 | S81: 0
A82: 의료용 물질 및 의약품 | B82: 2552310 | C82: 484156 | D82: 3677 | E82: 10828 | F82: 471166 | G82: 2974 | H82: 91977 | I82: 4279 | J82: 16355 | K82: 1269422 | L82: 64637 | M82: 80493 | N82: 25034 | O82: 6715 | P82: 5653 | Q82: 11211 | R82: 2899 | S82: 834
A83: 10억원미만 (1) | B83: 125112 | C83: 28403 | D83: 412 | E83: 3739 | F83: 2489 | G83: 626 | H83: 27886 | I83: 718 | J83: 0 | K83: 29641 | L83: 13186 | M83: 12957 | N83: 511 | O83: 460 | P83: 587 | Q83: 3251 | R83: 246 | S83: 0
A84: 10억원~100억원미만 (2) | B84: 177744 | C84: 46910 | D84: 499 | E84: 2009 | F84: 4889 | G84: 2348 | H84: 11429 | I84: 322 | J84: 244 | K84: 86979 | L84: 2424 | M84: 8981 | N84: 1167 | O84: 1254 | P84: 1433 | Q84: 6111 | R84: 745 | S84: 0
A85: 100억원~1000억원미만 (3) | B85: 369457 | C85: 68723 | D85: 2542 | E85: 4968 | F85: 4623 | G85: 0 | H85: 36680 | I85: 3147 | J85: 1275 | K85: 174167 | L85: 28689 | M85: 26552 | N85: 7299 | O85: 4565 | P85: 2341 | Q85: 1144 | R85: 1908 | S85: 834
A86: 1000억원이상 (4) | B86: 1879997 | C86: 340120 | D86: 224 | E86: 112 | F86: 459165 | G86: 0 | H86: 15982 | I86: 92 | J86: 14836 | K86: 978635 | L86: 20338 | M86: 32003 | N86: 16057 | O86: 436 | P86: 1292 | Q86: 705 | R86: 0 | S86: 0
A87: 고무 및 프라스틱제품 | B87: 1136477 | C87: 167748 | D87: 22783 | E87: 23871 | F87: 62632 | G87: 29605 | H87: 187478 | I87: 6343 | J87: 10033 | K87: 343583 | L87: 4845 | M87: 61358 | N87: 92904 | O87: 9195 | P87: 7581 | Q87: 43817 | R87: 62287 | S87: 414
A88: 10억원미만 (1) | B88: 28064 | C88: 2809 | D88: 2139 | E88: 751 | F88: 1370 | G88: 911 | H88: 2591 | I88: 27 | J88: 164 | K88: 12274 | L88: 0 | M88: 656 | N88: 1774 | O88: 391 | P88: 423 | Q88: 932 | R88: 852 | S88: 0
A89: 10억원~100억원미만 (2) | B89: 176796 | C89: 9909 | D89: 5628 | E89: 5003 | F89: 12965 | G89: 1395 | H89: 2104 | I89: 2686 | J89: 994 | K89: 80211 | L89: 2296 | M89: 11614 | N89: 11127 | O89: 3275 | P89: 5292 | Q89: 10868 | R89: 11204 | S89: 225
A90: 100억원~1000억원미만 (3) | B90: 266813 | C90: 13699 | D90: 10040 | E90: 8468 | F90: 17245 | G90: 6156 | H90: 1129 | I90: 3630 | J90: 3052 | K90: 111151 | L90: 2549 | M90: 25463 | N90: 18295 | O90: 5135 | P90: 1688 | Q90: 17123 | R90: 21801 | S90: 189
A91: 1000억원이상 (4) | B91: 664804 | C91: 141331 | D91: 4976 | E91: 9649 | F91: 31052 | G91: 21143 | H91: 181654 | I91: 0 | J91: 5823 | K91: 139947 | L91: 0 | M91: 23625 | N91: 61708 | O91: 394 | P91: 178 | Q91: 14894 | R91: 28430 | S91: 0
A92: 비금속 광물제품 | B92: 365639 | C92: 17958 | D92: 2491 | E92: 5042 | F92: 10018 | G92: 3830 | H92: 3404 | I92: 2524 | J92: 30832 | K92: 75775 | L92: 8382 | M92: 19479 | N92: 93759 | O92: 14606 | P92: 10121 | Q92: 53949 | R92: 13362 | S92: 107
A93: 10억원미만 (1) | B93: 11807 | C93: 1606 | D93: 453 | E93: 41 | F93: 556 | G93: 201 | H93: 0 | I93: 329 | J93: 100 | K93: 3844 | L93: 967 | M93: 483 | N93: 1256 | O93: 982 | P93: 0 | Q93: 832 | R93: 105 | S93: 52
A94: 10억원~100억원미만 (2) | B94: 87184 | C94: 3978 | D94: 2038 | E94: 3256 | F94: 4713 | G94: 3159 | H94: 3107 | I94: 2195 | J94: 85 | K94: 21625 | L94: 3176 | M94: 6574 | N94: 6572 | O94: 6610 | P94: 3974 | Q94: 12280 | R94: 3787 | S94: 55
A95: 100억원~1000억원미만 (3) | B95: 61254 | C95: 3760 | D95: 0 | E95: 811 | F95: 3262 | G95: 470 | H95: 297 | I95: 0 | J95: 314 | K95: 18959 | L95: 2364 | M95: 5639 | N95: 7628 | O95: 2381 | P95: 3694 | Q95: 4940 | R95: 6735 | S95: 0
A96: 1000억원이상 (4) | B96: 205394 | C96: 8614 | D96: 0 | E96: 934 | F96: 1487 | G96: 0 | H96: 0 | I96: 0 | J96: 30333 | K96: 31347 | L96: 1875 | M96: 6783 | N96: 78303 | O96: 4633 | P96: 2453 | Q96: 35897 | R96: 2735 | S96: 0
A97: 제1차 금속산업 | B97: 809372 | C97: 14861 | D97: 20057 | E97: 4502 | F97: 81905 | G97: 2011 | H97: 17517 | I97: 29753 | J97: 2416 | K97: 83055 | L97: 2096 | M97: 7780 | N97: 105580 | O97: 23324 | P97: 104145 | Q97: 260674 | R97: 49696 | S97: 0
A98: 10억원미만 (1) | B98: 13206 | C98: 100 | D98: 623 | E98: 0 | F98: 960 | G98: 0 | H98: 477 | I98: 575 | J98: 63 | K98: 5019 | L98: 0 | M98: 140 | N98: 783 | O98: 0 | P98: 440 | Q98: 872 | R98: 3154 | S98: 0
A99: 10억원~100억원미만 (2) | B99: 50293 | C99: 905 | D99: 3825 | E99: 866 | F99: 3845 | G99: 967 | H99: 0 | I99: 2813 | J99: 447 | K99: 21373 | L99: 353 | M99: 2496 | N99: 1558 | O99: 2784 | P99: 1241 | Q99: 2870 | R99: 3950 | S99: 0
A100: 100억원~1000억원미만 (3) | B100: 109427 | C100: 4742 | D100: 7473 | E100: 2961 | F100: 11425 | G100: 1044 | H100: 287 | I100: 2036 | J100: 668 | K100: 24938 | L100: 1035 | M100: 3805 | N100: 8613 | O100: 3426 | P100: 6539 | Q100: 11380 | R100: 19055 | S100: 0
A101: 1000억원이상 (4) | B101: 636446 | C101: 9114 | D101: 8136 | E101: 675 | F101: 65675 | G101: 0 | H101: 16753 | I101: 24329 | J101: 1238 | K101: 31725 | L101: 708 | M101: 1339 | N101: 94626 | O101: 17114 | P101: 95925 | Q101: 245552 | R101: 23537 | S101: 0
A102: · 제1차 철강 산업 Basic Iron and Steel | B102: 590035 | C102: 10823 | D102: 15836 | E102: 2049 | F102: 59710 | G102: 800 | H102: 86 | I102: 3285 | J102: 1000 | K102: 18863 | L102: 1169 | M102: 4563 | N102: 90878 | O102: 11800 | P102: 96274 | Q102: 236385 | R102: 36514 | S102: 0
A103: 10억원미만 (1) | B103: 4062 | C103: 10 | D103: 623 | E103: 0 | F103: 171 | G103: 0 | H103: 86 | I103: 0 | J103: 0 | K103: 431 | L103: 0 | M103: 134 | N103: 38 | O103: 0 | P103: 58 | Q103: 45 | R103: 2466 | S103: 0
A104: 10억원~100억원미만 (2) | B104: 24965 | C104: 302 | D104: 2527 | E104: 350 | F104: 1653 | G104: 385 | H104: 0 | I104: 2510 | J104: 332 | K104: 7842 | L104: 134 | M104: 1065 | N104: 809 | O104: 2287 | P104: 968 | Q104: 1374 | R104: 2427 | S104: 0
A105: 100억원~1000억원미만 (3) | B105: 45963 | C105: 2141 | D105: 5540 | E105: 1699 | F105: 1368 | G105: 415 | H105: 0 | I105: 725 | J105: 668 | K105: 9827 | L105: 1035 | M105: 2624 | N105: 1242 | O105: 1706 | P105: 1425 | Q105: 4011 | R105: 11537 | S105: 0
A106: 1000억원이상 (4) | B106: 515045 | C106: 8370 | D106: 7146 | E106: 0 | F106: 56518 | G106: 0 | H106: 0 | I106: 50 | J106: 0 | K106: 763 | L106: 0 | M106: 740 | N106: 88789 | O106: 7807 | P106: 93823 | Q106: 230955 | R106: 20084 | S106: 0
A107: · 제1차 비철금속 산업 | B107: 166850 | C107: 2503 | D107: 1388 | E107: 1687 | F107: 13119 | G107: 777 | H107: 17144 | I107: 21379 | J107: 1301 | K107: 51360 | L107: 927 | M107: 1545 | N107: 11387 | O107: 9421 | P107: 7002 | Q107: 18407 | R107: 7503 | S107: 0
A108: 10억원미만 (1) | B108: 8261 | C108: 90 | D108: 0 | E108: 0 | F108: 789 | G108: 0 | H108: 391 | I108: 575 | J108: 63 | K108: 4152 | L108: 0 | M108: 6 | N108: 745 | O108: 0 | P108: 0 | Q108: 827 | R108: 623 | S108: 0
A109: 10억원~100억원미만 (2) | B109: 11109 | C109: 135 | D109: 398 | E109: 0 | F109: 1070 | G109: 148 | H109: 0 | I109: 0 | J109: 0 | K109: 6731 | L109: 219 | M109: 465 | N109: 132 | O109: 104 | P109: 273 | Q109: 963 | R109: 471 | S109: 0
A110: 100억원~1000억원미만 (3) | B110: 32953 | C110: 1624 | D110: 0 | E110: 1012 | F110: 2724 | G110: 629 | H110: 0 | I110: 626 | J110: 0 | K110: 11248 | L110: 0 | M110: 475 | N110: 4673 | O110: 10 | P110: 4627 | Q110: 2349 | R110: 2956 | S110: 0
A111: 1000억원이상 (4) | B111: 114527 | C111: 654 | D111: 990 | E111: 675 | F111: 8536 | G111: 0 | H111: 16753 | I111: 20178 | J111: 1238 | K111: 29229 | L111: 708 | M111: 599 | N111: 5837 | O111: 9307 | P111: 2102 | Q111: 14268 | R111: 3453 | S111: 0
A112: · 금속주조업 | B112: 52487 | C112: 1535 | D112: 2833 | E112: 766 | F112: 9076 | G112: 434 | H112: 287 | I112: 5089 | J112: 115 | K112: 12832 | L112: 0 | M112: 1672 | N112: 3315 | O112: 2103 | P112: 869 | Q112: 5882 | R112: 5679 | S112: 0
A113: 10억원미만 (1) | B113: 883 | C113: 0 | D113: 0 | E113: 0 | F113: 0 | G113: 0 | H113: 0 | I113: 0 | J113: 0 | K113: 436 | L113: 0 | M113: 0 | N113: 0 | O113: 0 | P113: 382 | Q113: 0 | R113: 65 | S113: 0
A114: 10억원~100억원미만 (2) | B114: 14219 | C114: 468 | D114: 900 | E114: 516 | F114: 1122 | G114: 434 | H114: 0 | I114: 303 | J114: 115 | K114: 6800 | L114: 0 | M114: 966 | N114: 617 | O114: 393 | P114: 0 | Q114: 533 | R114: 1052 | S114: 0
A115: 100억원~1000억원미만 (3) | B115: 30511 | C115: 977 | D115: 1933 | E115: 250 | F115: 7333 | G115: 0 | H115: 287 | I115: 685 | J115: 0 | K115: 3863 | L115: 0 | M115: 706 | N115: 2698 | O115: 1710 | P115: 487 | Q115: 5020 | R115: 4562 | S115: 0
A116: 1000억원이상 (4) | B116: 6874 | C116: 90 | D116: 0 | E116: 0 | F116: 621 | G116: 0 | H116: 0 | I116: 4101 | J116: 0 | K116: 1733 | L116: 0 | M116: 0 | N116: 0 | O116: 0 | P116: 0 | Q116: 329 | R116: 0 | S116: 0
A117: 금속가공제품(기계 및 가구 제외) | B117: 1126945 | C117: 49800 | D117: 46190 | E117: 39225 | F117: 62717 | G117: 8369 | H117: 168558 | I117: 23657 | J117: 2598 | K117: 405308 | L117: 3016 | M117: 62715 | N117: 43299 | O117: 18696 | P117: 18683 | Q117: 93584 | R117: 80452 | S117: 78
A118: 10억원미만 (1) | B118: 35980 | C118: 3950 | D118: 1881 | E118: 1192 | F118: 2842 | G118: 144 | H118: 1700 | I118: 1010 | J118: 653 | K118: 10883 | L118: 895 | M118: 955 | N118: 3873 | O118: 1062 | P118: 121 | Q118: 1744 | R118: 3075 | S118: 0
A119: 10억원~100억원미만 (2) | B119: 279432 | C119: 15086 | D119: 17354 | E119: 14637 | F119: 28170 | G119: 6408 | H119: 4736 | I119: 6823 | J119: 285 | K119: 112900 | L119: 1752 | M119: 9812 | N119: 15268 | O119: 7201 | P119: 4977 | Q119: 14882 | R119: 19063 | S119: 78
A120: 100억원~1000억원미만 (3) | B120: 347108 | C120: 21542 | D120: 21583 | E120: 15331 | F120: 17095 | G120: 1264 | H120: 16243 | I120: 10986 | J120: 1660 | K120: 97517 | L120: 369 | M120: 33510 | N120: 20037 | O120: 7142 | P120: 6845 | Q120: 39720 | R120: 36264 | S120: 0
A121: 1000억원이상 (4) | B121: 464425 | C121: 9222 | D121: 5372 | E121: 8065 | F121: 14610 | G121: 553 | H121: 145879 | I121: 4838 | J121: 0 | K121: 184008 | L121: 0 | M121: 18438 | N121: 4121 | O121: 3291 | P121: 6740 | Q121: 37238 | R121: 22050 | S121: 0
A122: 전자부품, 컴퓨터, 영상, 음향 및 통신장비 | B122: 42700692.5 | C122: 3548970.15 | D122: 133234 | E122: 49558.05 | F122: 415188 | G122: 84106 | H122: 167113.1 | I122: 14730.7 | J122: 29825 | K122: 34614777.7 | L122: 12164 | M122: 446308.4 | N122: 1782883.5 | O122: 36909 | P122: 13429.1 | Q122: 908990.8 | R122: 439583 | S122: 2922
A123: 10억원미만 (1) | B123: 230378.3 | C123: 42957.95 | D123: 6218 | E123: 4915.85 | F123: 8585 | G123: 4257 | H123: 15344.5 | I123: 4224 | J123: 627 | K123: 105924.7 | L123: 2249 | M123: 3848.4 | N123: 10411.5 | O123: 3413 | P123: 808.6 | Q123: 12544.8 | R123: 3423 | S123: 626
A124: 10억원~100억원미만 (2) | B124: 931721.7 | C124: 182321.6 | D124: 15602 | E124: 11036.2 | F124: 44412 | G124: 10488 | H124: 56930.6 | I124: 2388.7 | J124: 1674 | K124: 496035.1 | L124: 2943 | M124: 13555 | N124: 35582 | O124: 11568 | P124: 9555.5 | Q124: 23661 | R124: 13670 | S124: 299
A125: 100억원~1000억원미만 (3) | B125: 1397024.5 | C125: 250968.6 | D125: 13811 | E125: 14999 | F125: 58016 | G125: 31480 | H125: 43967 | I125: 3610 | J125: 4210 | K125: 843753.9 | L125: 6972 | M125: 19564 | N125: 28436 | O125: 15464 | P125: 2904 | Q125: 31434 | R125: 27355 | S125: 80
A126: 1000억원이상 (4) | B126: 40141568 | C126: 3072722 | D126: 97603 | E126: 18607 | F126: 304175 | G126: 37881 | H126: 50871 | I126: 4508 | J126: 23314 | K126: 33169064 | L126: 0 | M126: 409341 | N126: 1708454 | O126: 6464 | P126: 161 | Q126: 841351 | R126: 395135 | S126: 1917
A127: · 반도체 | B127: 7108982.9 | C127: 371577.4 | D127: 9240 | E127: 11372 | F127: 168880 | G127: 14402 | H127: 66604 | I127: 5010 | J127: 189 | K127: 6000289.5 | L127: 586 | M127: 369587 | N127: 46490 | O127: 17881 | P127: 1656 | Q127: 14974 | R127: 8328 | S127: 1917
A128: 10억원미만 (1) | B128: 84227.5 | C128: 16648 | D128: 730 | E128: 975 | F128: 2100 | G128: 2653 | H128: 9969 | I128: 553 | J128: 0 | K128: 36645.5 | L128: 0 | M128: 3177 | N128: 7597 | O128: 1001 | P128: 42 | Q128: 2059 | R128: 78 | S128: 0
A129: 10억원~100억원미만 (2) | B129: 217569.4 | C129: 23492.4 | D129: 4422 | E129: 2008 | F129: 10962 | G129: 2210 | H129: 11516 | I129: 0 | J129: 189 | K129: 124574 | L129: 586 | M129: 7028 | N129: 15826 | O129: 4331 | P129: 534 | Q129: 6693 | R129: 3198 | S129: 0
A130: 100억원~1000억원미만 (3) | B130: 290441 | C130: 48261 | D130: 4088 | E130: 2171 | F130: 4414 | G130: 1091 | H130: 1671 | I130: 0 | J130: 0 | K130: 190107 | L130: 0 | M130: 9803 | N130: 8847 | O130: 10085 | P130: 1080 | Q130: 3771 | R130: 5052 | S130: 0
A131: 1000억원이상 (4) | B131: 6516745 | C131: 283176 | D131: 0 | E131: 6218 | F131: 151404 | G131: 8448 | H131: 43448 | I131: 4457 | J131: 0 | K131: 5648963 | L131: 0 | M131: 349579 | N131: 14220 | O131: 2464 | P131: 0 | Q131: 2451 | R131: 0 | S131: 1917
A132: · 전자부품 | B132: 6481673.4 | C132: 505834.3 | D132: 96884 | E132: 25130.4 | F132: 83212 | G132: 18384 | H132: 35732 | I132: 6555 | J132: 25108 | K132: 4302614.7 | L132: 8044 | M132: 72472 | N132: 917840 | O132: 13468 | P132: 6242 | Q132: 312399 | R132: 51754 | S132: 0
A133: 10억원미만 (1) | B133: 68884.6 | C133: 7532.5 | D133: 2154 | E133: 1535 | F133: 4717 | G133: 1045 | H133: 1549 | I133: 2411 | J133: 214 | K133: 34462.1 | L133: 635 | M133: 344 | N133: 1733 | O133: 1054 | P133: 161 | Q133: 6644 | R133: 2694 | S133: 0
A134: 10억원~100억원미만 (2) | B134: 276630 | C134: 41134 | D134: 2735 | E134: 4396.4 | F134: 16826 | G134: 3726 | H134: 13478 | I134: 1137 | J134: 699 | K134: 151779.6 | L134: 599 | M134: 3104 | N134: 17232 | O134: 3035 | P134: 4437 | Q134: 8235 | R134: 4077 | S134: 0
A135: 100억원~1000억원미만 (3) | B135: 432069.8 | C135: 34006.8 | D135: 3978 | E135: 8926 | F135: 25163 | G135: 9781 | H135: 17202 | I135: 3007 | J135: 881 | K135: 253584 | L135: 6810 | M135: 9262 | N135: 16084 | O135: 5379 | P135: 1483 | Q135: 15055 | R135: 21468 | S135: 0
A136: 1000억원이상 (4) | B136: 5704089 | C136: 423161 | D136: 88017 | E136: 10273 | F136: 36506 | G136: 3832 | H136: 3503 | I136: 0 | J136: 23314 | K136: 3862789 | L136: 0 | M136: 59762 | N136: 882791 | O136: 4000 | P136: 161 | Q136: 282465 | R136: 23515 | S136: 0
A137: · 컴퓨터 및 주변장치 | B137: 326666.4 | C137: 83131.55 | D137: 3630 | E137: 2465.65 | F137: 30356 | G137: 6 | H137: 7499.3 | I137: 920.7 | J137: 1107 | K137: 184334.2 | L137: 380 | M137: 920.4 | N137: 1565 | O137: 902 | P137: 2287.6 | Q137: 3689 | R137: 3407 | S137: 65
A138: 10억원미만 (1) | B138: 19343.4 | C138: 7451.95 | D138: 978 | E138: 944.85 | F138: 388 | G138: 0 | H138: 506.5 | I138: 231 | J138: 30 | K138: 7095.1 | L138: 0 | M138: 86.4 | N138: 508 | O138: 333 | P138: 444.6 | Q138: 346 | R138: 0 | S138: 0
A139: 10억원~100억원미만 (2) | B139: 91015.2 | C139: 34880.8 | D139: 2348 | E139: 908.8 | F139: 2203 | G139: 0 | H139: 6992.8 | I139: 689.7 | J139: 0 | K139: 35793.1 | L139: 380 | M139: 403 | N139: 180 | O139: 569 | P139: 1843 | Q139: 852 | R139: 2907 | S139: 65
A140: 100억원~1000억원미만 (3) | B140: 77107.8 | C140: 27582.8 | D140: 304 | E140: 612 | F140: 1172 | G140: 6 | H140: 0 | I140: 0 | J140: 1077 | K140: 42055 | L140: 0 | M140: 431 | N140: 877 | O140: 0 | P140: 0 | Q140: 2491 | R140: 500 | S140: 0
A141: 1000억원이상 (4) | B141: 139200 | C141: 13216 | D141: 0 | E141: 0 | F141: 26593 | G141: 0 | H141: 0 | I141: 0 | J141: 0 | K141: 99391 | L141: 0 | M141: 0 | N141: 0 | O141: 0 | P141: 0 | Q141: 0 | R141: 0 | S141: 0
A142: · 통신 및 방송 장비 | B142: 26156473.3 | C142: 1193321.4 | D142: 12103 | E142: 7659 | F142: 66177 | G142: 51042 | H142: 52576.8 | I142: 2061 | J142: 2795 | K142: 23357445.3 | L142: 2746 | M142: 2397 | N142: 815380.5 | O142: 3596 | P142: 3196.5 | Q142: 573691.8 | R142: 9567 | S142: 718
A143: 10억원미만 (1) | B143: 50152.3 | C143: 9633 | D143: 2356 | E143: 1461 | F143: 1051 | G143: 553 | H143: 3320 | I143: 1029 | J143: 282 | K143: 22992 | L143: 1206 | M143: 241 | N143: 497.5 | O143: 738 | P143: 161 | Q143: 3396.8 | R143: 609 | S143: 626
A144: 10억원~100억원미만 (2) | B144: 295046.1 | C144: 66576.4 | D144: 4808 | E144: 2908 | F144: 10774 | G144: 4384 | H144: 24652.8 | I144: 562 | J144: 786 | K144: 159522.4 | L144: 1378 | M144: 2088 | N144: 2028 | O144: 2858 | P144: 2694.5 | Q144: 6058 | R144: 2956 | S144: 12
A145: 100억원~1000억원미만 (3) | B145: 531602.9 | C145: 116960 | D145: 4307 | E145: 3290 | F145: 20744 | G145: 20602 | H145: 24604 | I145: 470 | J145: 1727 | K145: 328874.9 | L145: 162 | M145: 68 | N145: 1412 | O145: 0 | P145: 341 | Q145: 7802 | R145: 159 | S145: 80
A146: 1000억원이상 (4) | B146: 25279672 | C146: 1000152 | D146: 632 | E146: 0 | F146: 33608 | G146: 25503 | H146: 0 | I146: 0 | J146: 0 | K146: 22846056 | L146: 0 | M146: 0 | N146: 811443 | O146: 0 | P146: 0 | Q146: 556435 | R146: 5843 | S146: 0
A147: · 영상 및 음향기기 | B147: 2614145.5 | C147: 1395020.5 | D147: 10909 | E147: 2931 | F147: 66563 | G147: 272 | H147: 4211 | I147: 184 | J147: 626 | K147: 759414 | L147: 408 | M147: 932 | N147: 697 | O147: 1062 | P147: 47 | Q147: 4237 | R147: 366410 | S147: 222
A148: 10억원미만 (1) | B148: 7635.5 | C148: 1692.5 | D148: 0 | E148: 0 | F148: 329 | G148: 6 | H148: 0 | I148: 0 | J148: 101 | K148: 4595 | L148: 408 | M148: 0 | N148: 76 | O148: 287 | P148: 0 | Q148: 99 | R148: 42 | S148: 0
A149: 10억원~100억원미만 (2) | B149: 45097 | C149: 16238 | D149: 821 | E149: 815 | F149: 3647 | G149: 168 | H149: 291 | I149: 0 | J149: 0 | K149: 18587 | L149: 0 | M149: 932 | N149: 316 | O149: 775 | P149: 47 | Q149: 1823 | R149: 415 | S149: 222
A150: 100억원~1000억원미만 (3) | B150: 59551 | C150: 24073 | D150: 1134 | E150: 0 | F150: 6523 | G150: 0 | H150: 0 | I150: 133 | J150: 525 | K150: 24367 | L150: 0 | M150: 0 | N150: 305 | O150: 0 | P150: 0 | Q150: 2315 | R150: 176 | S150: 0
A151: 1000억원이상 (4) | B151: 2501862 | C151: 1353017 | D151: 8954 | E151: 2116 | F151: 56064 | G151: 98 | H151: 3920 | I151: 51 | J151: 0 | K151: 711865 | L151: 0 | M151: 0 | N151: 0 | O151: 0 | P151: 0 | Q151: 0 | R151: 365777 | S151: 0
A152: · 마그네틱 및 광학 매체 | B152: 12751 | C152: 85 | D152: 468 | E152: 0 | F152: 0 | G152: 0 | H152: 490 | I152: 0 | J152: 0 | K152: 10680 | L152: 0 | M152: 0 | N152: 911 | O152: 0 | P152: 0 | Q152: 0 | R152: 117 | S152: 0
A153: 10억원미만 (1) | B153: 135 | C153: 0 | D153: 0 | E153: 0 | F153: 0 | G153: 0 | H153: 0 | I153: 0 | J153: 0 | K153: 135 | L153: 0 | M153: 0 | N153: 0 | O153: 0 | P153: 0 | Q153: 0 | R153: 0 | S153: 0
A154: 10억원~100억원미만 (2) | B154: 6364 | C154: 0 | D154: 468 | E154: 0 | F154: 0 | G154: 0 | H154: 0 | I154: 0 | J154: 0 | K154: 5779 | L154: 0 | M154: 0 | N154: 0 | O154: 0 | P154: 0 | Q154: 0 | R154: 117 | S154: 0
A155: 100억원~1000억원미만 (3) | B155: 6252 | C155: 85 | D155: 0 | E155: 0 | F155: 0 | G155: 0 | H155: 490 | I155: 0 | J155: 0 | K155: 4766 | L155: 0 | M155: 0 | N155: 911 | O155: 0 | P155: 0 | Q155: 0 | R155: 0 | S155: 0
A156: 1000억원이상 (4)
A157: 의료, 정밀, 광학기기 및 시계 | B157: 2305330.5 | C157: 481900.9 | D157: 45242.8 | E157: 56890 | F157: 56198 | G157: 28388 | H157: 123313 | I157: 12337.5 | J157: 7133 | K157: 1236156.3 | L157: 34870 | M157: 46828 | N157: 36830 | O157: 9044 | P157: 4961 | Q157: 99003 | R157: 25835 | S157: 400
A158: 10억원미만 (1) | B158: 223220 | C158: 61502 | D158: 7698.8 | E158: 10159 | F158: 9015 | G158: 5664 | H158: 20807 | I158: 2058.5 | J158: 1527 | K158: 75022.7 | L158: 5548 | M158: 5608 | N158: 2165 | O158: 1616 | P158: 1332 | Q158: 6114 | R158: 7348 | S158: 35
A159: 10억원~100억원미만 (2) | B159: 547360.5 | C159: 110077.9 | D159: 13776 | E159: 18612 | F159: 19840 | G159: 16179 | H159: 58379 | I159: 2983 | J159: 2010 | K159: 232426.6 | L159: 14060 | M159: 10522 | N159: 16712 | O159: 6283 | P159: 3247 | Q159: 9666 | R159: 12222 | S159: 365
A160: 100억원~1000억원미만 (3) | B160: 601607 | C160: 126254 | D160: 5844 | E160: 19663 | F160: 22469 | G160: 6545 | H160: 44127 | I160: 7296 | J160: 3596 | K160: 301446 | L160: 15262 | M160: 20593 | N160: 11359 | O160: 1145 | P160: 382 | Q160: 9361 | R160: 6265 | S160: 0
A161: 1000억원이상 (4) | B161: 933143 | C161: 184067 | D161: 17924 | E161: 8456 | F161: 4874 | G161: 0 | H161: 0 | I161: 0 | J161: 0 | K161: 627261 | L161: 0 | M161: 10105 | N161: 6594 | O161: 0 | P161: 0 | Q161: 73862 | R161: 0 | S161: 0
A162: 전기장비 | B162: 4134858.4 | C162: 243185.4 | D162: 67492.2 | E162: 64471.5 | F162: 158859.4 | G162: 47846 | H162: 882938 | I162: 20795 | J162: 5803 | K162: 1566781.6 | L162: 16478 | M162: 283543 | N162: 528448.9 | O162: 21689 | P162: 39736 | Q162: 83664 | R162: 97266.4 | S162: 5861
A163: 10억원미만 (1) | B163: 154248.6 | C163: 17392.4 | D163: 4312.4 | E163: 3464 | F163: 6101 | G163: 4280 | H163: 33037 | I163: 6642 | J163: 896 | K163: 53747.5 | L163: 2282 | M163: 1831 | N163: 2101.9 | O163: 7421 | P163: 3388 | Q163: 2849 | R163: 4138.4 | S163: 365
A164: 10억원~100억원미만 (2) | B164: 542907.4 | C164: 66154 | D164: 25735 | E164: 15714.5 | F164: 40902.4 | G164: 19152 | H164: 21188 | I164: 9911 | J164: 2544 | K164: 244506.5 | L164: 4662 | M164: 10475 | N164: 13910 | O164: 10349 | P164: 23071 | Q164: 11608 | R164: 20696 | S164: 2329
A165: 100억원~1000억원미만 (3) | B165: 516837.4 | C165: 54179 | D165: 23478.8 | E165: 13124 | F165: 37804 | G165: 5631 | H165: 12725 | I165: 2496 | J165: 2363 | K165: 250873.6 | L165: 1779 | M165: 25213 | N165: 24024 | O165: 3783 | P165: 10319 | Q165: 10507 | R165: 35371 | S165: 3167
A166: 1000억원이상 (4) | B166: 2920865 | C166: 105460 | D166: 13966 | E166: 32169 | F166: 74052 | G166: 18783 | H166: 815988 | I166: 1746 | J166: 0 | K166: 1017654 | L166: 7755 | M166: 246024 | N166: 488413 | O166: 136 | P166: 2958 | Q166: 58700 | R166: 37061 | S166: 0
A167: 기타 기계 및 장비 | B167: 4582934.45 | C167: 212820.7 | D167: 166377 | E167: 153459 | F167: 423474.4 | G167: 48464.5 | H167: 263774 | I167: 38635 | J167: 5210 | K167: 2270486.9 | L167: 6897 | M167: 95314 | N167: 192090 | O167: 64787 | P167: 28395.95 | Q167: 109507 | R167: 501171 | S167: 2071
A168: 10억원미만 (1) | B168: 157010.45 | C168: 19258.1 | D168: 9088 | E168: 7777 | F168: 10151 | G168: 1746 | H168: 9559 | I168: 3371 | J168: 1002 | K168: 60314.4 | L168: 1540 | M168: 3573 | N168: 4360 | O168: 4778 | P168: 2528.95 | Q168: 8173 | R168: 9463 | S168: 328
A169: 10억원~100억원미만 (2) | B169: 1020356.6 | C169: 59263.6 | D169: 72598 | E169: 46321 | F169: 95331 | G169: 19110.5 | H169: 41680 | I169: 17493 | J169: 3367 | K169: 426645.5 | L169: 3671 | M169: 24569 | N169: 50952 | O169: 20293 | P169: 17444 | Q169: 40309 | R169: 79566 | S169: 1743
A170: 100억원~1000억원미만 (3) | B170: 1255886 | C170: 65577 | D170: 61441 | E170: 44628 | F170: 112688 | G170: 19417 | H170: 35646 | I170: 14449 | J170: 841 | K170: 622580 | L170: 1686 | M170: 34491 | N170: 82548 | O170: 10446 | P170: 8423 | Q170: 45931 | R170: 95094 | S170: 0
A171: 1000억원이상 (4) | B171: 2149681.4 | C171: 68722 | D171: 23250 | E171: 54733 | F171: 205304.4 | G171: 8191 | H171: 176889 | I171: 3322 | J171: 0 | K171: 1160947 | L171: 0 | M171: 32681 | N171: 54230 | O171: 29270 | P171: 0 | Q171: 15094 | R171: 317048 | S171: 0
A172: 자동차 및 트레일러 | B172: 9669611 | C172: 164935 | D172: 110284 | E172: 236393 | F172: 177335 | G172: 66239 | H172: 6240 | I172: 539150 | J172: 120775 | K172: 7264616 | L172: 32215 | M172: 56710 | N172: 229184 | O172: 101861 | P172: 12569 | Q172: 311167 | R172: 239938 | S172: 0
A173: 10억원미만 (1) | B173: 21387 | C173: 1365 | D173: 1265 | E173: 2408 | F173: 894 | G173: 60 | H173: 658 | I173: 1049 | J173: 0 | K173: 8339 | L173: 472 | M173: 779 | N173: 886 | O173: 268 | P173: 606 | Q173: 1882 | R173: 456 | S173: 0
A174: 10억원~100억원미만 (2) | B174: 210562 | C174: 14544 | D174: 9747 | E174: 19406 | F174: 12841 | G174: 7712 | H174: 1464 | I174: 7787 | J174: 595 | K174: 65698 | L174: 846 | M174: 5821 | N174: 8775 | O174: 15068 | P174: 4498 | Q174: 15940 | R174: 19820 | S174: 0
A175: 100억원~1000억원미만 (3) | B175: 612887 | C175: 7431 | D175: 46378 | E175: 51567 | F175: 25229 | G175: 17628 | H175: 2813 | I175: 24726 | J175: 2469 | K175: 171810 | L175: 12195 | M175: 13933 | N175: 43480 | O175: 53618 | P175: 7387 | Q175: 59125 | R175: 73098 | S175: 0
A176: 1000억원이상 (4) | B176: 8824775 | C176: 141595 | D176: 52894 | E176: 163012 | F176: 138371 | G176: 40839 | H176: 1305 | I176: 505588 | J176: 117711 | K176: 7018769 | L176: 18702 | M176: 36177 | N176: 176043 | O176: 32907 | P176: 78 | Q176: 234220 | R176: 146564 | S176: 0
A177: 기타 운송장비 | B177: 1085777.8 | C177: 20929 | D177: 53326 | E177: 3995 | F177: 16430 | G177: 2788 | H177: 45912 | I177: 67406 | J177: 22625 | K177: 293859.8 | L177: 1590 | M177: 22138 | N177: 4159 | O177: 10234 | P177: 64257 | Q177: 4264 | R177: 451865 | S177: 0
A178: 10억원미만 (1) | B178: 62618 | C178: 1987 | D178: 2548 | E178: 778 | F178: 4916 | G178: 474 | H178: 9052 | I178: 702 | J178: 22536 | K178: 9329 | L178: 1290 | M178: 293 | N178: 165 | O178: 780 | P178: 3321 | Q178: 412 | R178: 4035 | S178: 0
A179: 10억원~100억원미만 (2) | B179: 109436 | C179: 5825 | D179: 17366 | E179: 2157 | F179: 4399 | G179: 2314 | H179: 9227 | I179: 1677 | J179: 0 | K179: 25692 | L179: 155 | M179: 818 | N179: 1611 | O179: 3919 | P179: 10769 | Q179: 952 | R179: 22555 | S179: 0
A180: 100억원~1000억원미만 (3) | B180: 137321.8 | C180: 6262 | D180: 24750 | E180: 304 | F180: 5218 | G180: 0 | H180: 15980 | I180: 6758 | J180: 89 | K180: 22496.8 | L180: 145 | M180: 5249 | N180: 2316 | O180: 2924 | P180: 7088 | Q180: 2552 | R180: 35190 | S180: 0
A181: 1000억원이상 (4) | B181: 776402 | C181: 6855 | D181: 8662 | E181: 756 | F181: 1897 | G181: 0 | H181: 11653 | I181: 58269 | J181: 0 | K181: 236342 | L181: 0 | M181: 15778 | N181: 67 | O181: 2611 | P181: 43079 | Q181: 348 | R181: 390085 | S181: 0
A182: · 선박 및 보트 | B182: 376042 | C182: 8928 | D182: 43826 | E182: 845 | F182: 3437 | G182: 67 | H182: 12553 | I182: 66459 | J182: 89 | K182: 80482 | L182: 1290 | M182: 0 | N182: 1193 | O182: 2140 | P182: 61858 | Q182: 3018 | R182: 89857 | S182: 0
A183: 10억원미만 (1) | B183: 7316 | C183: 0 | D183: 1734 | E183: 0 | F183: 261 | G183: 67 | H183: 0 | I183: 432 | J183: 0 | K183: 267 | L183: 1290 | M183: 0 | N183: 75 | O183: 525 | P183: 1783 | Q183: 252 | R183: 630 | S183: 0
A184: 10억원~100억원미만 (2) | B184: 36099 | C184: 114 | D184: 13072 | E184: 89 | F184: 31 | G184: 0 | H184: 900 | I184: 1000 | J184: 0 | K184: 1505 | L184: 0 | M184: 0 | N184: 0 | O184: 1171 | P184: 10561 | Q184: 123 | R184: 7533 | S184: 0
A185: 100억원~1000억원미만 (3) | B185: 56304 | C185: 1959 | D185: 20358 | E185: 0 | F185: 1248 | G185: 0 | H185: 0 | I185: 6758 | J185: 89 | K185: 250 | L185: 0 | M185: 0 | N185: 1118 | O185: 444 | P185: 6435 | Q185: 2295 | R185: 15350 | S185: 0
A186: 1000억원이상 (4) | B186: 276323 | C186: 6855 | D186: 8662 | E186: 756 | F186: 1897 | G186: 0 | H186: 11653 | I186: 58269 | J186: 0 | K186: 78460 | L186: 0 | M186: 0 | N186: 0 | O186: 0 | P186: 43079 | Q186: 348 | R186: 66344 | S186: 0
A187: · 철도장비 | B187: 90124.8 | C187: 4569 | D187: 2222 | E187: 274 | F187: 2149 | G187: 0 | H187: 0 | I187: 0 | J187: 0 | K187: 56831.8 | L187: 0 | M187: 19271 | N187: 92 | O187: 619 | P187: 0 | Q187: 0 | R187: 4097 | S187: 0
A188: 10억원미만 (1) | B188: 1651 | C188: 0 | D188: 5 | E188: 0 | F188: 75 | G188: 0 | H188: 0 | I188: 0 | J188: 0 | K188: 638 | L188: 0 | M188: 0 | N188: 0 | O188: 0 | P188: 0 | Q188: 0 | R188: 933 | S188: 0
A189: 10억원~100억원미만 (2) | B189: 12666 | C189: 665 | D189: 753 | E189: 0 | F189: 323 | G189: 0 | H189: 0 | I189: 0 | J189: 0 | K189: 9875 | L189: 0 | M189: 287 | N189: 92 | O189: 249 | P189: 0 | Q189: 0 | R189: 422 | S189: 0
A190: 100억원~1000억원미만 (3) | B190: 31506.8 | C190: 3904 | D190: 1464 | E190: 274 | F190: 1751 | G190: 0 | H190: 0 | I190: 0 | J190: 0 | K190: 18320.8 | L190: 0 | M190: 3206 | N190: 0 | O190: 370 | P190: 0 | Q190: 0 | R190: 2217 | S190: 0
A191: 1000억원이상 (4) | B191: 44301 | C191: 0 | D191: 0 | E191: 0 | F191: 0 | G191: 0 | H191: 0 | I191: 0 | J191: 0 | K191: 27998 | L191: 0 | M191: 15778 | N191: 0 | O191: 0 | P191: 0 | Q191: 0 | R191: 525 | S191: 0
A192: · 항공기, 우주선 및 부품 | B192: 592004 | C192: 6072 | D192: 6544 | E192: 2314 | F192: 7902 | G192: 1312 | H192: 33359 | I192: 947 | J192: 22536 | K192: 149461 | L192: 0 | M192: 2087 | N192: 2262 | O192: 3091 | P192: 1746 | Q192: 804 | R192: 351567 | S192: 0
A193: 10억원미만 (1) | B193: 50730 | C193: 1499 | D193: 352 | E193: 534 | F193: 4580 | G193: 407 | H193: 9052 | I193: 270 | J193: 22536 | K193: 6860 | L193: 0 | M193: 293 | N193: 48 | O193: 255 | P193: 1538 | Q193: 160 | R193: 2346 | S193: 0
A194: 10억원~100억원미만 (2) | B194: 48054 | C194: 4573 | D194: 3264 | E194: 1780 | F194: 1483 | G194: 905 | H194: 8327 | I194: 677 | J194: 0 | K194: 10045 | L194: 0 | M194: 3 | N194: 1312 | O194: 726 | P194: 208 | Q194: 644 | R194: 14107 | S194: 0
A195: 100억원~1000억원미만 (3) | B195: 41359 | C195: 0 | D195: 2928 | E195: 0 | F195: 1839 | G195: 0 | H195: 15980 | I195: 0 | J195: 0 | K195: 2672 | L195: 0 | M195: 1791 | N195: 835 | O195: 2110 | P195: 0 | Q195: 0 | R195: 13204 | S195: 0
A196: 1000억원이상 (4) | B196: 451861 | C196: 0 | D196: 0 | E196: 0 | F196: 0 | G196: 0 | H196: 0 | I196: 0 | J196: 0 | K196: 129884 | L196: 0 | M196: 0 | N196: 67 | O196: 0 | P196: 0 | Q196: 0 | R196: 321910 | S196: 0
A197: · 기타 운송장비 | B197: 27607 | C197: 1360 | D197: 734 | E197: 562 | F197: 2942 | G197: 1409 | H197: 0 | I197: 0 | J197: 0 | K197: 7085 | L197: 300 | M197: 780 | N197: 612 | O197: 4384 | P197: 653 | Q197: 442 | R197: 6344 | S197: 0
A198: 10억원미만 (1) | B198: 2921 | C198: 488 | D198: 457 | E198: 244 | F198: 0 | G198: 0 | H198: 0 | I198: 0 | J198: 0 | K198: 1564 | L198: 0 | M198: 0 | N198: 42 | O198: 0 | P198: 0 | Q198: 0 | R198: 126 | S198: 0
A199: 10억원~100억원미만 (2) | B199: 12617 | C199: 473 | D199: 277 | E199: 288 | F199: 2562 | G199: 1409 | H199: 0 | I199: 0 | J199: 0 | K199: 4267 | L199: 155 | M199: 528 | N199: 207 | O199: 1773 | P199: 0 | Q199: 185 | R199: 493 | S199: 0
A200: 100억원~1000억원미만 (3) | B200: 8152 | C200: 399 | D200: 0 | E200: 30 | F200: 380 | G200: 0 | H200: 0 | I200: 0 | J200: 0 | K200: 1254 | L200: 145 | M200: 252 | N200: 363 | O200: 0 | P200: 653 | Q200: 257 | R200: 4419 | S200: 0
A201: 1000억원이상 (4) | B201: 3917 | C201: 0 | D201: 0 | E201: 0 | F201: 0 | G201: 0 | H201: 0 | I201: 0 | J201: 0 | K201: 0 | L201: 0 | M201: 0 | N201: 0 | O201: 2611 | P201: 0 | Q201: 0 | R201: 1306 | S201: 0
... 156 more rows

Sheet 1-1-15
R1: return to the table
A2: 1-1-15. 기업 산업별 연구원 수 규모별 연구개발비(2022년)
S4: (단위 : 백만원)
A5: 산업별·연구원 수 규모별 | B5: 전체 | C5: 지역
C6: 서울 | D6: 부산 | E6: 대구 | F6: 인천 | G6: 광주 | H6: 대전 | I6: 울산 | J6: 세종 | K6: 경기 | L6: 강원 | M6: 충북 | N6: 충남 | O6: 전북 | P6: 전남 | Q6: 경북 | R6: 경남 | S6: 제주
A7: 총계 | B7: =SUM(C7:S7) -> 89421300.18 | C7: =SUM(C8:C11) -> 12651096.55 | D7: =SUM(D8:D11) -> 1001051.05 | E7: 857891.33 | F7: 3009166.3 | G7: 429095.32 | H7: 3967894.01 | I7: 939844.99 | J7: 347585.49 | K7: 55090723.64 | L7: 315051.76 | M7: 1693808.89 | N7: 3482812.6 | O7: 601007.38 | P7: 508004.46 | Q7: 2300198.06 | R7: 2164949.08 | S7: 61119.27
A8: 9명이하 (1) | B8: 14321267.6 | C8: =SUM(C13,C18,C23,C218,C223,C228,C233) -> 3526658.19 | D8: =SUM(D13,D18,D23,D218,D223,D228,D233) -> 616854.74 | E8: 467831.72 | F8: 750131.29 | G8: 252683.4 | H8: 572832.41 | I8: 191786.99 | J8: 63194.79 | K8: 4924299.2 | L8: 156373.31 | M8: 452533.72 | N8: 534727.8 | O8: 305752.38 | P8: 255522.06 | Q8: 548716.78 | R8: 654031.91 | S8: 47336.91
A9: 10~49명 (2) | B9: 9676903.81 | C9: =SUM(C14,C19,C24,C219,C224,C229,C234) -> 2709562.84 | D9: 181948.31 | E9: 184453.61 | F9: 349677.52 | G9: 57554.92 | H9: 506723.15 | I9: 193091 | J9: 99093.5 | K9: 3788074.61 | L9: 104149.45 | M9: 297939.17 | N9: 372444.8 | O9: 147315 | P9: 90543.4 | Q9: 287925 | R9: 292625.17 | S9: 13782.36
A10: 50~99명 (3) | B10: 4369234.8 | C10: =SUM(C15,C20,C25,C220,C225,C230,C235) -> 949178.37 | D10: 62466 | E10: 121988 | F10: 220150.49 | G10: 46695 | H10: 245512.35 | I10: 52003 | J10: 22553.2 | K10: 1890922.39 | L10: 35633 | M10: 241108 | N10: 220517 | O10: 42558 | P10: 17226 | Q10: 40451 | R10: 160273 | S10: 0
A11: 100명이상 (4) | B11: 61053893.97 | C11: =SUM(C16,C21,C26,C221,C226,C231,C236) -> 5465697.15 | D11: 139782 | E11: 83618 | F11: 1689207 | G11: 72162 | H11: 2642826.1 | I11: 502964 | J11: 162744 | K11: 44487427.44 | L11: 18896 | M11: 702228 | N11: 2355123 | O11: 105382 | P11: 144713 | Q11: 1423105.28 | R11: 1058019 | S11: 0
A12: [ 농업, 임업 및 어업 ] | B12: 59208 | C12: 2381 | D12: 1418 | E12: 0 | F12: 12 | G12: 48 | H12: 525 | I12: 292 | J12: 735 | K12: 32167 | L12: 2800 | M12: 1307 | N12: 2280 | O12: 8690 | P12: 983 | Q12: 1109 | R12: 3920 | S12: 541
A13: 9명이하 (1) | B13: 26282 | C13: 594 | D13: 1418 | E13: 0 | F13: 12 | G13: 48 | H13: 525 | I13: 292 | J13: 735 | K13: 8168 | L13: 2800 | M13: 1307 | N13: 2280 | O13: 4304 | P13: 947 | Q13: 1109 | R13: 1202 | S13: 541
A14: 10~49명 (2) | B14: 32926 | C14: 1787 | D14: 0 | E14: 0 | F14: 0 | G14: 0 | H14: 0 | I14: 0 | J14: 0 | K14: 23999 | L14: 0 | M14: 0 | N14: 0 | O14: 4386 | P14: 36 | Q14: 0 | R14: 2718 | S14: 0
A15: 50~99명 (3)
A16: 100명이상 (4)
A17: [ 광업 ] | B17: 7923 | C17: 366 | D17: 0 | E17: 0 | F17: 0 | G17: 0 | H17: 0 | I17: 2964 | J17: 0 | K17: 1413 | L17: 1569 | M17: 1548 | N17: 0 | O17: 0 | P17: 0 | Q17: 63 | R17: 0 | S17: 0
A18: 9명이하 (1) | B18: 4959 | C18: 366 | D18: 0 | E18: 0 | F18: 0 | G18: 0 | H18: 0 | I18: 0 | J18: 0 | K18: 1413 | L18: 1569 | M18: 1548 | N18: 0 | O18: 0 | P18: 0 | Q18: 63 | R18: 0 | S18: 0
A19: 10~49명 (2) | B19: 2964 | C19: 0 | D19: 0 | E19: 0 | F19: 0 | G19: 0 | H19: 0 | I19: 2964 | J19: 0 | K19: 0 | L19: 0 | M19: 0 | N19: 0 | O19: 0 | P19: 0 | Q19: 0 | R19: 0 | S19: 0
A20: 50~99명 (3)
A21: 100명이상 (4)
A22: [ 제조업 ] | B22: 76895561.85 | C22: 7152398.95 | D22: 759671 | E22: 730030.55 | F22: 2096108.8 | G22: 345527.5 | H22: 2894518.1 | I22: 887869.2 | J22: 311094 | K22: 51438556.8 | L22: 244254 | M22: 1565958.4 | N22: 3387410.4 | O22: 466578 | P22: 398588.45 | Q22: 2124278.3 | R22: 2067509.4 | S22: 25210
A23: 9명이하 (1) | B23: 9403133.85 | C23: 1149766.8 | D23: 451688 | E23: 378005.9 | F23: 607044.4 | G23: 186196.5 | H23: 325901 | I23: 156136.2 | J23: 42938 | K23: 3658934.1 | L23: 106734 | M23: 367110.4 | N23: 472993.4 | O23: 229835 | P23: 192941.45 | Q23: 475539.3 | R23: 580331.4 | S23: 21038
A24: 10~49명 (2) | B24: 6396951 | C24: 973632.15 | D24: 143942 | E24: 151562.65 | F24: 279636.4 | G24: 40552 | H24: 357174.1 | I24: 180235 | J24: 95946 | K24: 2740720.7 | L24: 90050 | M24: 274504 | N24: 360700 | O24: 89815 | P24: 75242 | Q24: 264724 | R24: 274343 | S24: 4172
A25: 50~99명 (3) | B25: 3257089 | C25: 506776 | D25: 50052 | E25: 116844 | F25: 193252 | G25: 46617 | H25: 113697 | I25: 48534 | J25: 20967 | K25: 1467228 | L25: 28574 | M25: 222116 | N25: 199150 | O25: 42558 | P25: 0 | Q25: 40451 | R25: 160273 | S25: 0
A26: 100명이상 (4) | B26: 57838388 | C26: 4522224 | D26: 113989 | E26: 83618 | F26: 1016176 | G26: 72162 | H26: 2097746 | I26: 502964 | J26: 151243 | K26: 43571674 | L26: 18896 | M26: 702228 | N26: 2354567 | O26: 104370 | P26: 130405 | Q26: 1343564 | R26: 1052562 | S26: 0
A27: 식료품 | B27: 1068907.7 | C27: 307218.7 | D27: 8997 | E27: 11034 | F27: 27374 | G27: 3871 | H27: 52868 | I27: 1748 | J27: 9092 | K27: 408874 | L27: 28131 | M27: 78190 | N27: 41296 | O27: 28446 | P27: 18009 | Q27: 13568 | R27: 23506 | S27: 6685
A28: 9명이하 (1) | B28: 362883.7 | C28: 30293.7 | D28: 8997 | E28: 11034 | F28: 14903 | G28: 3671 | H28: 6237 | I28: 353 | J28: 2819 | K28: 116815 | L28: 20521 | M28: 32554 | N28: 34951 | O28: 25257 | P28: 17636 | Q28: 13568 | R28: 17559 | S28: 5715
A29: 10~49명 (2) | B29: 155945 | C29: 54787 | D29: 0 | E29: 0 | F29: 1165 | G29: 200 | H29: 3461 | I29: 1395 | J29: 6273 | K29: 61590 | L29: 6180 | M29: 9215 | N29: 6345 | O29: 3189 | P29: 373 | Q29: 0 | R29: 802 | S29: 970
A30: 50~99명 (3) | B30: 82725 | C30: 16999 | D30: 0 | E30: 0 | F30: 11306 | G30: 0 | H30: 0 | I30: 0 | J30: 0 | K30: 36675 | L30: 1430 | M30: 11170 | N30: 0 | O30: 0 | P30: 0 | Q30: 0 | R30: 5145 | S30: 0
A31: 100명이상 (4) | B31: 467354 | C31: 205139 | D31: 0 | E31: 0 | F31: 0 | G31: 0 | H31: 43170 | I31: 0 | J31: 0 | K31: 193794 | L31: 0 | M31: 25251 | N31: 0 | O31: 0 | P31: 0 | Q31: 0 | R31: 0 | S31: 0
A32: 음료 | B32: 40040 | C32: 12964 | D32: 1072 | E32: 843 | F32: 80 | G32: 0 | H32: 349 | I32: 0 | J32: 0 | K32: 7275 | L32: 3224 | M32: 4717 | N32: 1092 | O32: 1247 | P32: 1001 | Q32: 1752 | R32: 2641 | S32: 1783
A33: 9명이하 (1) | B33: 19504 | C33: 3312 | D33: 1072 | E33: 286 | F33: 80 | G33: 0 | H33: 349 | I33: 0 | J33: 0 | K33: 5436 | L33: 566 | M33: 168 | N33: 1092 | O33: 1247 | P33: 1001 | Q33: 1752 | R33: 2641 | S33: 502
A34: 10~49명 (2) | B34: 20536 | C34: 9652 | D34: 0 | E34: 557 | F34: 0 | G34: 0 | H34: 0 | I34: 0 | J34: 0 | K34: 1839 | L34: 2658 | M34: 4549 | N34: 0 | O34: 0 | P34: 0 | Q34: 0 | R34: 0 | S34: 1281
A35: 50~99명 (3)
A36: 100명이상 (4)
A37: 담배 | B37: 50446 | C37: 0 | D37: 0 | E37: 0 | F37: 0 | G37: 0 | H37: 50446 | I37: 0 | J37: 0 | K37: 0 | L37: 0 | M37: 0 | N37: 0 | O37: 0 | P37: 0 | Q37: 0 | R37: 0 | S37: 0
A38: 9명이하 (1)
A39: 10~49명 (2)
A40: 50~99명 (3)
A41: 100명이상 (4) | B41: 50446 | C41: 0 | D41: 0 | E41: 0 | F41: 0 | G41: 0 | H41: 50446 | I41: 0 | J41: 0 | K41: 0 | L41: 0 | M41: 0 | N41: 0 | O41: 0 | P41: 0 | Q41: 0 | R41: 0 | S41: 0
A42: 섬유제품(의복제외) | B42: 203030 | C42: 37031 | D42: 9656 | E42: 34757 | F42: 2617 | G42: 1931 | H42: 2392 | I42: 437 | J42: 749 | K42: 60957 | L42: 435 | M42: 8093 | N42: 7648 | O42: 5574 | P42: 50 | Q42: 24744 | R42: 5959 | S42: 0
A43: 9명이하 (1) | B43: 183065 | C43: 29491 | D43: 8529 | E43: 32715 | F43: 2617 | G43: 1931 | H43: 2392 | I43: 437 | J43: 749 | K43: 57763 | L43: 435 | M43: 8093 | N43: 7648 | O43: 4143 | P43: 50 | Q43: 20113 | R43: 5959 | S43: 0
A44: 10~49명 (2) | B44: 19965 | C44: 7540 | D44: 1127 | E44: 2042 | F44: 0 | G44: 0 | H44: 0 | I44: 0 | J44: 0 | K44: 3194 | L44: 0 | M44: 0 | N44: 0 | O44: 1431 | P44: 0 | Q44: 4631 | R44: 0 | S44: 0
A45: 50~99명 (3)
A46: 100명이상 (4)
A47: 의복, 의복액세서리 및 모피제품 | B47: 278373 | C47: 245370 | D47: 9279 | E47: 2097 | F47: 1723 | G47: 226 | H47: 1095 | I47: 538 | J47: 0 | K47: 14677 | L47: 241 | M47: 344 | N47: 0 | O47: 860 | P47: 377 | Q47: 863 | R47: 683 | S47: 0
A48: 9명이하 (1) | B48: 115459 | C48: 83545 | D48: 8190 | E48: 2097 | F48: 1723 | G48: 226 | H48: 1095 | I48: 538 | J48: 0 | K48: 14677 | L48: 241 | M48: 344 | N48: 0 | O48: 860 | P48: 377 | Q48: 863 | R48: 683 | S48: 0
A49: 10~49명 (2) | B49: 84424 | C49: 83335 | D49: 1089 | E49: 0 | F49: 0 | G49: 0 | H49: 0 | I49: 0 | J49: 0 | K49: 0 | L49: 0 | M49: 0 | N49: 0 | O49: 0 | P49: 0 | Q49: 0 | R49: 0 | S49: 0
A50: 50~99명 (3) | B50: 43699 | C50: 43699 | D50: 0 | E50: 0 | F50: 0 | G50: 0 | H50: 0 | I50: 0 | J50: 0 | K50: 0 | L50: 0 | M50: 0 | N50: 0 | O50: 0 | P50: 0 | Q50: 0 | R50: 0 | S50: 0
A51: 100명이상 (4) | B51: 34791 | C51: 34791 | D51: 0 | E51: 0 | F51: 0 | G51: 0 | H51: 0 | I51: 0 | J51: 0 | K51: 0 | L51: 0 | M51: 0 | N51: 0 | O51: 0 | P51: 0 | Q51: 0 | R51: 0 | S51: 0
A52: 가죽, 가방 및 신발 | B52: 56756 | C52: 23362 | D52: 12838 | E52: 847 | F52: 526 | G52: 0 | H52: 123 | I52: 0 | J52: 655 | K52: 15500 | L52: 0 | M52: 817 | N52: 440 | O52: 174 | P52: 275 | Q52: 89 | R52: 1110 | S52: 0
A53: 9명이하 (1) | B53: 47146 | C53: 15707 | D53: 10883 | E53: 847 | F53: 526 | G53: 0 | H53: 123 | I53: 0 | J53: 655 | K53: 15500 | L53: 0 | M53: 817 | N53: 440 | O53: 174 | P53: 275 | Q53: 89 | R53: 1110 | S53: 0
A54: 10~49명 (2) | B54: 9610 | C54: 7655 | D54: 1955 | E54: 0 | F54: 0 | G54: 0 | H54: 0 | I54: 0 | J54: 0 | K54: 0 | L54: 0 | M54: 0 | N54: 0 | O54: 0 | P54: 0 | Q54: 0 | R54: 0 | S54: 0
A55: 50~99명 (3)
A56: 100명이상 (4)
A57: 목재 및 나무제품(가구제외) | B57: 36787 | C57: 3557 | D57: 1186 | E57: 266 | F57: 6322 | G57: 634 | H57: 1055 | I57: 0 | J57: 259 | K57: 13113 | L57: 1765 | M57: 1108 | N57: 1367 | O57: 1388 | P57: 1347 | Q57: 1839 | R57: 1581 | S57: 0
A58: 9명이하 (1) | B58: 34673 | C58: 3557 | D58: 1186 | E58: 266 | F58: 4208 | G58: 634 | H58: 1055 | I58: 0 | J58: 259 | K58: 13113 | L58: 1765 | M58: 1108 | N58: 1367 | O58: 1388 | P58: 1347 | Q58: 1839 | R58: 1581 | S58: 0
A59: 10~49명 (2) | B59: 2114 | C59: 0 | D59: 0 | E59: 0 | F59: 2114 | G59: 0 | H59: 0 | I59: 0 | J59: 0 | K59: 0 | L59: 0 | M59: 0 | N59: 0 | O59: 0 | P59: 0 | Q59: 0 | R59: 0 | S59: 0
A60: 50~99명 (3)
A61: 100명이상 (4)
A62: 펄프, 종이 및 종이제품 | B62: 238182 | C62: 155593 | D62: 2073 | E62: 3031 | F62: 1608 | G62: 478 | H62: 7665 | I62: 4192 | J62: 478 | K62: 45453 | L62: 55 | M62: 5953 | N62: 3111 | O62: 2644 | P62: 94 | Q62: 3062 | R62: 2454 | S62: 238
A63: 9명이하 (1) | B63: 211142 | C63: 154199 | D63: 2073 | E63: 3031 | F63: 1608 | G63: 478 | H63: 515 | I63: 151 | J63: 478 | K63: 31853 | L63: 55 | M63: 5752 | N63: 3111 | O63: 2644 | P63: 94 | Q63: 3062 | R63: 1800 | S63: 238
A64: 10~49명 (2) | B64: 27040 | C64: 1394 | D64: 0 | E64: 0 | F64: 0 | G64: 0 | H64: 7150 | I64: 4041 | J64: 0 | K64: 13600 | L64: 0 | M64: 201 | N64: 0 | O64: 0 | P64: 0 | Q64: 0 | R64: 654 | S64: 0
A65: 50~99명 (3)
A66: 100명이상 (4)
A67: 인쇄 및 기록매체 복제 | B67: 74830 | C67: 23940.6 | D67: 1925 | E67: 3356 | F67: 3558 | G67: 4313 | H67: 897 | I67: 476 | J67: 70 | K67: 27289.5 | L67: 258 | M67: 2197 | N67: 1201 | O67: 423 | P67: 587.4 | Q67: 2168.5 | R67: 2044 | S67: 126
A68: 9명이하 (1) | B68: 67381 | C68: 20485.6 | D68: 1925 | E68: 2514 | F68: 3147 | G68: 3751 | H68: 897 | I68: 476 | J68: 70 | K68: 25110.5 | L68: 258 | M68: 2197 | N68: 1201 | O68: 423 | P68: 587.4 | Q68: 2168.5 | R68: 2044 | S68: 126
A69: 10~49명 (2) | B69: 7449 | C69: 3455 | D69: 0 | E69: 842 | F69: 411 | G69: 562 | H69: 0 | I69: 0 | J69: 0 | K69: 2179 | L69: 0 | M69: 0 | N69: 0 | O69: 0 | P69: 0 | Q69: 0 | R69: 0 | S69: 0
A70: 50~99명 (3)
A71: 100명이상 (4)
A72: 코크스, 연탄 및 석유정제품 | B72: 302267 | C72: 17754 | D72: 197 | E72: 0 | F72: 612 | G72: 0 | H72: 241300 | I72: 3041 | J72: 0 | K72: 19527 | L72: 905 | M72: 877 | N72: 8232 | O72: 0 | P72: 3940 | Q72: 2755 | R72: 3127 | S72: 0
A73: 9명이하 (1) | B73: 10656 | C73: 26 | D73: 197 | E73: 0 | F73: 612 | G73: 0 | H73: 0 | I73: 2753 | J73: 0 | K73: 1461 | L73: 48 | M73: 877 | N73: 181 | O73: 0 | P73: 744 | Q73: 1722 | R73: 2035 | S73: 0
A74: 10~49명 (2) | B74: 30620 | C74: 17728 | D74: 0 | E74: 0 | F74: 0 | G74: 0 | H74: 0 | I74: 288 | J74: 0 | K74: 635 | L74: 857 | M74: 0 | N74: 5791 | O74: 0 | P74: 3196 | Q74: 1033 | R74: 1092 | S74: 0
A75: 50~99명 (3) | B75: 62203 | C75: 0 | D75: 0 | E75: 0 | F75: 0 | G75: 0 | H75: 42512 | I75: 0 | J75: 0 | K75: 17431 | L75: 0 | M75: 0 | N75: 2260 | O75: 0 | P75: 0 | Q75: 0 | R75: 0 | S75: 0
A76: 100명이상 (4) | B76: 198788 | C76: 0 | D76: 0 | E76: 0 | F76: 0 | G76: 0 | H76: 198788 | I76: 0 | J76: 0 | K76: 0 | L76: 0 | M76: 0 | N76: 0 | O76: 0 | P76: 0 | Q76: 0 | R76: 0 | S76: 0
A77: 화학물질 및 화학제품(의약품 제외) | B77: 3768115 | C77: 826291 | D77: 32754 | E77: 19308 | F77: 93124 | G77: 7479 | H77: 562787 | I77: 116403 | J77: 46116 | K77: 1278508 | L77: 20204 | M77: 271558 | N77: 182825 | O77: 105658 | P77: 60638 | Q77: 87726 | R77: 53299 | S77: 3437
A78: 9명이하 (1) | B78: 729170 | C78: 72680 | D78: 19125 | E78: 15785 | F78: 57212 | G78: 7479 | H78: 41487 | I78: 18725 | J78: 7121 | K78: 263276 | L78: 13514 | M78: 65437 | N78: 50885 | O78: 19079 | P78: 14954 | Q78: 32471 | R78: 27510 | S78: 2430
A79: 10~49명 (2) | B79: 677735 | C79: 47931 | D79: 9257 | E79: 3523 | F79: 32093 | G79: 0 | H79: 45886 | I79: 60723 | J79: 24590 | K79: 273100 | L79: 6690 | M79: 54069 | N79: 42411 | O79: 15698 | P79: 12927 | Q79: 29812 | R79: 18018 | S79: 1007
A80: 50~99명 (3) | B80: 372689 | C80: 38699 | D80: 4372 | E80: 0 | F80: 1339 | G80: 0 | H80: 57363 | I80: 17788 | J80: 0 | K80: 104479 | L80: 0 | M80: 66322 | N80: 79406 | O80: 2921 | P80: 0 | Q80: 0 | R80: 0 | S80: 0
A81: 100명이상 (4) | B81: 1988521 | C81: 666981 | D81: 0 | E81: 0 | F81: 2480 | G81: 0 | H81: 418051 | I81: 19167 | J81: 14405 | K81: 637653 | L81: 0 | M81: 85730 | N81: 10123 | O81: 67960 | P81: 32757 | Q81: 25443 | R81: 7771 | S81: 0
A82: 의료용 물질 및 의약품 | B82: 2552310 | C82: 484156 | D82: 3677 | E82: 10828 | F82: 471166 | G82: 2974 | H82: 91977 | I82: 4279 | J82: 16355 | K82: 1269422 | L82: 64637 | M82: 80493 | N82: 25034 | O82: 6715 | P82: 5653 | Q82: 11211 | R82: 2899 | S82: 834
A83: 9명이하 (1) | B83: 186912 | C83: 31423 | D83: 763 | E83: 6286 | F83: 6520 | G83: 1600 | H83: 10772 | I83: 1040 | J83: 1147 | K83: 86209 | L83: 4937 | M83: 10888 | N83: 5370 | O83: 4016 | P83: 4361 | Q83: 8681 | R83: 2899 | S83: 0
A84: 10~49명 (2) | B84: 678712 | C84: 144898 | D84: 2690 | E84: 4430 | F84: 6000 | G84: 1374 | H84: 67563 | I84: 3239 | J84: 1139 | K84: 359125 | L84: 36545 | M84: 34326 | N84: 10528 | O84: 2699 | P84: 1292 | Q84: 2030 | R84: 0 | S84: 834
A85: 50~99명 (3) | B85: 386327 | C85: 96112 | D85: 0 | E85: 0 | F85: 0 | G85: 0 | H85: 0 | I85: 0 | J85: 14069 | K85: 219857 | L85: 23155 | M85: 23998 | N85: 9136 | O85: 0 | P85: 0 | Q85: 0 | R85: 0 | S85: 0
A86: 100명이상 (4) | B86: 1300359 | C86: 211723 | D86: 224 | E86: 112 | F86: 458646 | G86: 0 | H86: 13642 | I86: 0 | J86: 0 | K86: 604231 | L86: 0 | M86: 11281 | N86: 0 | O86: 0 | P86: 0 | Q86: 500 | R86: 0 | S86: 0
A87: 고무 및 프라스틱제품 | B87: 1136477 | C87: 167748 | D87: 22783 | E87: 23871 | F87: 62632 | G87: 29605 | H87: 187478 | I87: 6343 | J87: 10033 | K87: 343583 | L87: 4845 | M87: 61358 | N87: 92904 | O87: 9195 | P87: 7581 | Q87: 43817 | R87: 62287 | S87: 414
A88: 9명이하 (1) | B88: 418679 | C88: 21209 | D88: 14096 | E88: 13776 | F88: 31425 | G88: 7972 | H88: 5008 | I88: 5697 | J88: 4390 | K88: 173716 | L88: 4174 | M88: 31149 | N88: 30563 | O88: 8944 | P88: 5770 | Q88: 26837 | R88: 33539 | S88: 414
A89: 10~49명 (2) | B89: 183426 | C89: 15480 | D89: 8687 | E89: 4716 | F89: 4228 | G89: 490 | H89: 816 | I89: 646 | J89: 5643 | K89: 71741 | L89: 671 | M89: 30209 | N89: 20767 | O89: 251 | P89: 1811 | Q89: 3965 | R89: 13305 | S89: 0
A90: 50~99명 (3) | B90: 82946 | C90: 5101 | D90: 0 | E90: 0 | F90: 26979 | G90: 0 | H90: 0 | I90: 0 | J90: 0 | K90: 6536 | L90: 0 | M90: 0 | N90: 31315 | O90: 0 | P90: 0 | Q90: 13015 | R90: 0 | S90: 0
A91: 100명이상 (4) | B91: 451426 | C91: 125958 | D91: 0 | E91: 5379 | F91: 0 | G91: 21143 | H91: 181654 | I91: 0 | J91: 0 | K91: 91590 | L91: 0 | M91: 0 | N91: 10259 | O91: 0 | P91: 0 | Q91: 0 | R91: 15443 | S91: 0
A92: 비금속 광물제품 | B92: 365639 | C92: 17958 | D92: 2491 | E92: 5042 | F92: 10018 | G92: 3830 | H92: 3404 | I92: 2524 | J92: 30832 | K92: 75775 | L92: 8382 | M92: 19479 | N92: 93759 | O92: 14606 | P92: 10121 | Q92: 53949 | R92: 13362 | S92: 107
A93: 9명이하 (1) | B93: 167793 | C93: 8862 | D93: 2491 | E93: 3998 | F93: 8531 | G93: 3830 | H93: 3404 | I93: 2524 | J93: 499 | K93: 47976 | L93: 7502 | M93: 14497 | N93: 15391 | O93: 11160 | P93: 9072 | Q93: 18052 | R93: 9897 | S93: 107
A94: 10~49명 (2) | B94: 67945 | C94: 9096 | D94: 0 | E94: 1044 | F94: 1487 | G94: 0 | H94: 0 | I94: 0 | J94: 8166 | K94: 17933 | L94: 880 | M94: 4982 | N94: 5953 | O94: 3446 | P94: 1049 | Q94: 10444 | R94: 3465 | S94: 0
A95: 50~99명 (3) | B95: 16764 | C95: 0 | D95: 0 | E95: 0 | F95: 0 | G95: 0 | H95: 0 | I95: 0 | J95: 6898 | K95: 9866 | L95: 0 | M95: 0 | N95: 0 | O95: 0 | P95: 0 | Q95: 0 | R95: 0 | S95: 0
A96: 100명이상 (4) | B96: 113137 | C96: 0 | D96: 0 | E96: 0 | F96: 0 | G96: 0 | H96: 0 | I96: 0 | J96: 15269 | K96: 0 | L96: 0 | M96: 0 | N96: 72415 | O96: 0 | P96: 0 | Q96: 25453 | R96: 0 | S96: 0
A97: 제1차 금속산업 | B97: 809372 | C97: 14861 | D97: 20057 | E97: 4502 | F97: 81905 | G97: 2011 | H97: 17517 | I97: 29753 | J97: 2416 | K97: 83055 | L97: 2096 | M97: 7780 | N97: 105580 | O97: 23324 | P97: 104145 | Q97: 260674 | R97: 49696 | S97: 0
A98: 9명이하 (1) | B98: 211067 | C98: 6649 | D98: 14001 | E98: 3827 | F98: 15366 | G98: 2011 | H98: 764 | I98: 7126 | J98: 2416 | K98: 56067 | L98: 2096 | M98: 7780 | N98: 14314 | O98: 9171 | P98: 11900 | Q98: 27233 | R98: 30346 | S98: 0
A99: 10~49명 (2) | B99: 110816 | C99: 8212 | D99: 6056 | E99: 675 | F99: 6239 | G99: 0 | H99: 1427 | I99: 19060 | J99: 0 | K99: 25668 | L99: 0 | M99: 0 | N99: 11743 | O99: 14153 | P99: 0 | Q99: 16699 | R99: 884 | S99: 0
A100: 50~99명 (3) | B100: 24441 | C100: 0 | D100: 0 | E100: 0 | F100: 4655 | G100: 0 | H100: 0 | I100: 0 | J100: 0 | K100: 1320 | L100: 0 | M100: 0 | N100: 0 | O100: 0 | P100: 0 | Q100: 0 | R100: 18466 | S100: 0
A101: 100명이상 (4) | B101: 463048 | C101: 0 | D101: 0 | E101: 0 | F101: 55645 | G101: 0 | H101: 15326 | I101: 3567 | J101: 0 | K101: 0 | L101: 0 | M101: 0 | N101: 79523 | O101: 0 | P101: 92245 | Q101: 216742 | R101: 0 | S101: 0
A102: · 제1차 철강 산업 Basic Iron and Steel | B102: 590035 | C102: 10823 | D102: 15836 | E102: 2049 | F102: 59710 | G102: 800 | H102: 86 | I102: 3285 | J102: 1000 | K102: 18863 | L102: 1169 | M102: 4563 | N102: 90878 | O102: 11800 | P102: 96274 | Q102: 236385 | R102: 36514 | S102: 0
A103: 9명이하 (1) | B103: 96271 | C103: 2611 | D103: 9780 | E103: 2049 | F103: 4065 | G103: 800 | H103: 86 | I103: 3285 | J103: 1000 | K103: 17861 | L103: 1169 | M103: 4563 | N103: 6200 | O103: 6389 | P103: 4029 | Q103: 15220 | R103: 17164 | S103: 0
A104: 10~49명 (2) | B104: 41827 | C104: 8212 | D104: 6056 | E104: 0 | F104: 0 | G104: 0 | H104: 0 | I104: 0 | J104: 0 | K104: 1002 | L104: 0 | M104: 0 | N104: 5155 | O104: 5411 | P104: 0 | Q104: 15107 | R104: 884 | S104: 0
A105: 50~99명 (3) | B105: 18466 | C105: 0 | D105: 0 | E105: 0 | F105: 0 | G105: 0 | H105: 0 | I105: 0 | J105: 0 | K105: 0 | L105: 0 | M105: 0 | N105: 0 | O105: 0 | P105: 0 | Q105: 0 | R105: 18466 | S105: 0
A106: 100명이상 (4) | B106: 433471 | C106: 0 | D106: 0 | E106: 0 | F106: 55645 | G106: 0 | H106: 0 | I106: 0 | J106: 0 | K106: 0 | L106: 0 | M106: 0 | N106: 79523 | O106: 0 | P106: 92245 | Q106: 206058 | R106: 0 | S106: 0
A107: · 제1차 비철금속 산업 | B107: 166850 | C107: 2503 | D107: 1388 | E107: 1687 | F107: 13119 | G107: 777 | H107: 17144 | I107: 21379 | J107: 1301 | K107: 51360 | L107: 927 | M107: 1545 | N107: 11387 | O107: 9421 | P107: 7002 | Q107: 18407 | R107: 7503 | S107: 0
A108: 9명이하 (1) | B108: 74400 | C108: 2503 | D108: 1388 | E108: 1012 | F108: 6487 | G108: 777 | H108: 391 | I108: 2853 | J108: 1301 | K108: 27392 | L108: 927 | M108: 1545 | N108: 4799 | O108: 2389 | P108: 7002 | Q108: 6131 | R108: 7503 | S108: 0
A109: 10~49명 (2) | B109: 56898 | C109: 0 | D109: 0 | E109: 675 | F109: 1977 | G109: 0 | H109: 1427 | I109: 14959 | J109: 0 | K109: 22648 | L109: 0 | M109: 0 | N109: 6588 | O109: 7032 | P109: 0 | Q109: 1592 | R109: 0 | S109: 0
A110: 50~99명 (3) | B110: 5975 | C110: 0 | D110: 0 | E110: 0 | F110: 4655 | G110: 0 | H110: 0 | I110: 0 | J110: 0 | K110: 1320 | L110: 0 | M110: 0 | N110: 0 | O110: 0 | P110: 0 | Q110: 0 | R110: 0 | S110: 0
A111: 100명이상 (4) | B111: 29577 | C111: 0 | D111: 0 | E111: 0 | F111: 0 | G111: 0 | H111: 15326 | I111: 3567 | J111: 0 | K111: 0 | L111: 0 | M111: 0 | N111: 0 | O111: 0 | P111: 0 | Q111: 10684 | R111: 0 | S111: 0
A112: · 금속주조업 | B112: 52487 | C112: 1535 | D112: 2833 | E112: 766 | F112: 9076 | G112: 434 | H112: 287 | I112: 5089 | J112: 115 | K112: 12832 | L112: 0 | M112: 1672 | N112: 3315 | O112: 2103 | P112: 869 | Q112: 5882 | R112: 5679 | S112: 0
A113: 9명이하 (1) | B113: 40396 | C113: 1535 | D113: 2833 | E113: 766 | F113: 4814 | G113: 434 | H113: 287 | I113: 988 | J113: 115 | K113: 10814 | L113: 0 | M113: 1672 | N113: 3315 | O113: 393 | P113: 869 | Q113: 5882 | R113: 5679 | S113: 0
A114: 10~49명 (2) | B114: 12091 | C114: 0 | D114: 0 | E114: 0 | F114: 4262 | G114: 0 | H114: 0 | I114: 4101 | J114: 0 | K114: 2018 | L114: 0 | M114: 0 | N114: 0 | O114: 1710 | P114: 0 | Q114: 0 | R114: 0 | S114: 0
A115: 50~99명 (3)
A116: 100명이상 (4)
A117: 금속가공제품(기계 및 가구 제외) | B117: 1126945 | C117: 49800 | D117: 46190 | E117: 39225 | F117: 62717 | G117: 8369 | H117: 168558 | I117: 23657 | J117: 2598 | K117: 405308 | L117: 3016 | M117: 62715 | N117: 43299 | O117: 18696 | P117: 18683 | Q117: 93584 | R117: 80452 | S117: 78
A118: 9명이하 (1) | B118: 575889 | C118: 30752 | D118: 43767 | E118: 33497 | F118: 42370 | G118: 8369 | H118: 9137 | I118: 19239 | J118: 2598 | K118: 189189 | L118: 3016 | M118: 28415 | N118: 38180 | O118: 13226 | P118: 11330 | Q118: 54927 | R118: 47799 | S118: 78
A119: 10~49명 (2) | B119: 135306 | C119: 13899 | D119: 2423 | E119: 5728 | F119: 7997 | G119: 0 | H119: 19721 | I119: 4418 | J119: 0 | K119: 20292 | L119: 0 | M119: 3180 | N119: 5119 | O119: 5470 | P119: 1950 | Q119: 12456 | R119: 32653 | S119: 0
A120: 50~99명 (3) | B120: 42401 | C120: 5149 | D120: 0 | E120: 0 | F120: 12350 | G120: 0 | H120: 0 | I120: 0 | J120: 0 | K120: 12909 | L120: 0 | M120: 11993 | N120: 0 | O120: 0 | P120: 0 | Q120: 0 | R120: 0 | S120: 0
A121: 100명이상 (4) | B121: 373349 | C121: 0 | D121: 0 | E121: 0 | F121: 0 | G121: 0 | H121: 139700 | I121: 0 | J121: 0 | K121: 182918 | L121: 0 | M121: 19127 | N121: 0 | O121: 0 | P121: 5403 | Q121: 26201 | R121: 0 | S121: 0
A122: 전자부품, 컴퓨터, 영상, 음향 및 통신장비 | B122: 42700692.5 | C122: 3548970.15 | D122: 133234 | E122: 49558.05 | F122: 415188 | G122: 84106 | H122: 167113.1 | I122: 14730.7 | J122: 29825 | K122: 34614777.7 | L122: 12164 | M122: 446308.4 | N122: 1782883.5 | O122: 36909 | P122: 13429.1 | Q122: 908990.8 | R122: 439583 | S122: 2922
A123: 9명이하 (1) | B123: 1413547.8 | C123: 224472.1 | D123: 28761 | E123: 21318.4 | F123: 82151 | G123: 25926 | H123: 64596 | I123: 7215.7 | J123: 5045 | K123: 728218.8 | L123: 5801 | M123: 24507.4 | N123: 70432.5 | O123: 22071 | P123: 11634.1 | Q123: 52527.8 | R123: 36028 | S123: 2842
A124: 10~49명 (2) | B124: 1196262.7 | C124: 196343.05 | D124: 18193 | E124: 13870.65 | F124: 59089 | G124: 7625 | H124: 53960.1 | I124: 7464 | J124: 1466 | K124: 682134.9 | L124: 6363 | M124: 46161 | N124: 31128 | O124: 10838 | P124: 1795 | Q124: 41637 | R124: 18115 | S124: 80
A125: 50~99명 (3) | B125: 753027 | C125: 154396 | D125: 0 | E125: 12354 | F125: 66480 | G125: 15567 | H125: 0 | I125: 0 | J125: 0 | K125: 401378 | L125: 0 | M125: 25835 | N125: 35124 | O125: 4000 | P125: 0 | Q125: 4957 | R125: 32936 | S125: 0
A126: 100명이상 (4) | B126: 39337855 | C126: 2973759 | D126: 86280 | E126: 2015 | F126: 207468 | G126: 34988 | H126: 48557 | I126: 51 | J126: 23314 | K126: 32803046 | L126: 0 | M126: 349805 | N126: 1646199 | O126: 0 | P126: 0 | Q126: 809869 | R126: 352504 | S126: 0
A127: · 반도체 | B127: 7108982.9 | C127: 371577.4 | D127: 9240 | E127: 11372 | F127: 168880 | G127: 14402 | H127: 66604 | I127: 5010 | J127: 189 | K127: 6000289.5 | L127: 586 | M127: 369587 | N127: 46490 | O127: 17881 | P127: 1656 | Q127: 14974 | R127: 8328 | S127: 1917
A128: 9명이하 (1) | B128: 343048.9 | C128: 31666.4 | D128: 9240 | E128: 3756 | F128: 15871 | G128: 5440 | H128: 18639 | I128: 553 | J128: 189 | K128: 176122.5 | L128: 586 | M128: 10510 | N128: 34312 | O128: 11740 | P128: 1656 | Q128: 12523 | R128: 8328 | S128: 1917
A129: 10~49명 (2) | B129: 263714 | C129: 38532 | D129: 0 | E129: 1398 | F129: 1605 | G129: 514 | H129: 4517 | I129: 4457 | J129: 0 | K129: 171324 | L129: 0 | M129: 20597 | N129: 12178 | O129: 6141 | P129: 0 | Q129: 2451 | R129: 0 | S129: 0
A130: 50~99명 (3) | B130: 142027 | C130: 24875 | D130: 0 | E130: 6218 | F130: 0 | G130: 0 | H130: 0 | I130: 0 | J130: 0 | K130: 98597 | L130: 0 | M130: 12337 | N130: 0 | O130: 0 | P130: 0 | Q130: 0 | R130: 0 | S130: 0
A131: 100명이상 (4) | B131: 6360193 | C131: 276504 | D131: 0 | E131: 0 | F131: 151404 | G131: 8448 | H131: 43448 | I131: 0 | J131: 0 | K131: 5554246 | L131: 0 | M131: 326143 | N131: 0 | O131: 0 | P131: 0 | Q131: 0 | R131: 0 | S131: 0
A132: · 전자부품 | B132: 6481673.4 | C132: 505834.3 | D132: 96884 | E132: 25130.4 | F132: 83212 | G132: 18384 | H132: 35732 | I132: 6555 | J132: 25108 | K132: 4302614.7 | L132: 8044 | M132: 72472 | N132: 917840 | O132: 13468 | P132: 6242 | Q132: 312399 | R132: 51754 | S132: 0
A133: 9명이하 (1) | B133: 495551.6 | C133: 50438.5 | D133: 7445 | E133: 9841.4 | F133: 39733 | G133: 12820 | H133: 18496 | I133: 3548 | J133: 1447 | K133: 258374.7 | L133: 1843 | M133: 9848 | N133: 29887 | O133: 5175 | P133: 4447 | Q133: 22339 | R133: 19869 | S133: 0
A134: 10~49명 (2) | B134: 413392.8 | C134: 34339.8 | D134: 12745 | E134: 9153 | F134: 24992 | G134: 4625 | H134: 12127 | I134: 3007 | J134: 347 | K134: 218992 | L134: 6201 | M134: 25464 | N134: 18073 | O134: 4293 | P134: 1795 | Q134: 25017 | R134: 12222 | S134: 0
A135: 50~99명 (3) | B135: 254550 | C135: 10310 | D135: 0 | E135: 6136 | F135: 18487 | G135: 0 | H135: 0 | I135: 0 | J135: 0 | K135: 147332 | L135: 0 | M135: 13498 | N135: 35124 | O135: 4000 | P135: 0 | Q135: 0 | R135: 19663 | S135: 0
A136: 100명이상 (4) | B136: 5318179 | C136: 410746 | D136: 76694 | E136: 0 | F136: 0 | G136: 939 | H136: 5109 | I136: 0 | J136: 23314 | K136: 3677916 | L136: 0 | M136: 23662 | N136: 834756 | O136: 0 | P136: 0 | Q136: 265043 | R136: 0 | S136: 0
A137: · 컴퓨터 및 주변장치 | B137: 326666.4 | C137: 83131.55 | D137: 3630 | E137: 2465.65 | F137: 30356 | G137: 6 | H137: 7499.3 | I137: 920.7 | J137: 1107 | K137: 184334.2 | L137: 380 | M137: 920.4 | N137: 1565 | O137: 902 | P137: 2287.6 | Q137: 3689 | R137: 3407 | S137: 65
A138: 9명이하 (1) | B138: 125911.2 | C138: 47747.3 | D138: 3132 | E138: 2052 | F138: 3529 | G138: 6 | H138: 4716 | I138: 920.7 | J138: 1107 | K138: 52020.2 | L138: 380 | M138: 920.4 | N138: 688 | O138: 498 | P138: 2287.6 | Q138: 2435 | R138: 3407 | S138: 65
A139: 10~49명 (2) | B139: 54932.2 | C139: 18544.25 | D139: 498 | E139: 413.65 | F139: 234 | G139: 0 | H139: 2783.3 | I139: 0 | J139: 0 | K139: 29924 | L139: 0 | M139: 0 | N139: 877 | O139: 404 | P139: 0 | Q139: 1254 | R139: 0 | S139: 0
A140: 50~99명 (3) | B140: 62912 | C140: 16840 | D140: 0 | E140: 0 | F140: 26593 | G140: 0 | H140: 0 | I140: 0 | J140: 0 | K140: 19479 | L140: 0 | M140: 0 | N140: 0 | O140: 0 | P140: 0 | Q140: 0 | R140: 0 | S140: 0
A141: 100명이상 (4) | B141: 82911 | C141: 0 | D141: 0 | E141: 0 | F141: 0 | G141: 0 | H141: 0 | I141: 0 | J141: 0 | K141: 82911 | L141: 0 | M141: 0 | N141: 0 | O141: 0 | P141: 0 | Q141: 0 | R141: 0 | S141: 0
A142: · 통신 및 방송 장비 | B142: 26156473.3 | C142: 1193321.4 | D142: 12103 | E142: 7659 | F142: 66177 | G142: 51042 | H142: 52576.8 | I142: 2061 | J142: 2795 | K142: 23357445.3 | L142: 2746 | M142: 2397 | N142: 815380.5 | O142: 3596 | P142: 3196.5 | Q142: 573691.8 | R142: 9567 | S142: 718
A143: 9명이하 (1) | B143: 375998.6 | C143: 74392.4 | D143: 6521 | E143: 4854 | F143: 16944 | G143: 7486 | H143: 21964 | I143: 2061 | J143: 2201 | K143: 208558.4 | L143: 2584 | M143: 2397 | N143: 3937.5 | O143: 3596 | P143: 3196.5 | Q143: 10993.8 | R143: 3674 | S143: 638
A144: 10~49명 (2) | B144: 403977.7 | C144: 83066 | D144: 4950 | E144: 2805 | F144: 27833 | G144: 2486 | H144: 30612.8 | I144: 0 | J144: 594 | K144: 232580.9 | L144: 162 | M144: 0 | N144: 0 | O144: 0 | P144: 0 | Q144: 12915 | R144: 5893 | S144: 80
A145: 50~99명 (3) | B145: 261818 | C145: 83924 | D145: 0 | E145: 0 | F145: 21400 | G145: 15567 | H145: 0 | I145: 0 | J145: 0 | K145: 135970 | L145: 0 | M145: 0 | N145: 0 | O145: 0 | P145: 0 | Q145: 4957 | R145: 0 | S145: 0
A146: 100명이상 (4) | B146: 25114679 | C146: 951939 | D146: 632 | E146: 0 | F146: 0 | G146: 25503 | H146: 0 | I146: 0 | J146: 0 | K146: 22780336 | L146: 0 | M146: 0 | N146: 811443 | O146: 0 | P146: 0 | Q146: 544826 | R146: 0 | S146: 0
A147: · 영상 및 음향기기 | B147: 2614145.5 | C147: 1395020.5 | D147: 10909 | E147: 2931 | F147: 66563 | G147: 272 | H147: 4211 | I147: 184 | J147: 626 | K147: 759414 | L147: 408 | M147: 932 | N147: 697 | O147: 1062 | P147: 47 | Q147: 4237 | R147: 366410 | S147: 222
A148: 9명이하 (1) | B148: 70046.5 | C148: 20142.5 | D148: 1955 | E148: 815 | F148: 6074 | G148: 174 | H148: 291 | I148: 133 | J148: 101 | K148: 32223 | L148: 408 | M148: 832 | N148: 697 | O148: 1062 | P148: 47 | Q148: 4237 | R148: 633 | S148: 222
A149: 10~49명 (2) | B149: 50486 | C149: 21861 | D149: 0 | E149: 101 | F149: 4425 | G149: 0 | H149: 3920 | I149: 0 | J149: 525 | K149: 19554 | L149: 0 | M149: 100 | N149: 0 | O149: 0 | P149: 0 | Q149: 0 | R149: 0 | S149: 0
A150: 50~99명 (3) | B150: 31720 | C150: 18447 | D150: 0 | E150: 0 | F150: 0 | G150: 0 | H150: 0 | I150: 0 | J150: 0 | K150: 0 | L150: 0 | M150: 0 | N150: 0 | O150: 0 | P150: 0 | Q150: 0 | R150: 13273 | S150: 0
A151: 100명이상 (4) | B151: 2461893 | C151: 1334570 | D151: 8954 | E151: 2015 | F151: 56064 | G151: 98 | H151: 0 | I151: 51 | J151: 0 | K151: 707637 | L151: 0 | M151: 0 | N151: 0 | O151: 0 | P151: 0 | Q151: 0 | R151: 352504 | S151: 0
A152: · 마그네틱 및 광학 매체 | B152: 12751 | C152: 85 | D152: 468 | E152: 0 | F152: 0 | G152: 0 | H152: 490 | I152: 0 | J152: 0 | K152: 10680 | L152: 0 | M152: 0 | N152: 911 | O152: 0 | P152: 0 | Q152: 0 | R152: 117 | S152: 0
A153: 9명이하 (1) | B153: 2991 | C153: 85 | D153: 468 | E153: 0 | F153: 0 | G153: 0 | H153: 490 | I153: 0 | J153: 0 | K153: 920 | L153: 0 | M153: 0 | N153: 911 | O153: 0 | P153: 0 | Q153: 0 | R153: 117 | S153: 0
A154: 10~49명 (2) | B154: 9760 | C154: 0 | D154: 0 | E154: 0 | F154: 0 | G154: 0 | H154: 0 | I154: 0 | J154: 0 | K154: 9760 | L154: 0 | M154: 0 | N154: 0 | O154: 0 | P154: 0 | Q154: 0 | R154: 0 | S154: 0
A155: 50~99명 (3)
A156: 100명이상 (4)
A157: 의료, 정밀, 광학기기 및 시계 | B157: 2305330.5 | C157: 481900.9 | D157: 45242.8 | E157: 56890 | F157: 56198 | G157: 28388 | H157: 123313 | I157: 12337.5 | J157: 7133 | K157: 1236156.3 | L157: 34870 | M157: 46828 | N157: 36830 | O157: 9044 | P157: 4961 | Q157: 99003 | R157: 25835 | S157: 400
A158: 9명이하 (1) | B158: 790802.6 | C158: 136780 | D158: 25218.8 | E158: 33571 | F158: 33363 | G158: 23526 | H158: 66633 | I158: 8490.5 | J158: 5581 | K158: 344001.3 | L158: 17755 | M158: 21097 | N158: 20601 | O158: 8743 | P158: 4961 | Q158: 23520 | R158: 16561 | S158: 400
A159: 10~49명 (2) | B159: 623167.9 | C159: 149725.9 | D159: 15709 | E159: 14863 | F159: 22835 | G159: 4862 | H159: 56680 | I159: 3847 | J159: 1552 | K159: 288923 | L159: 17115 | M159: 22544 | N159: 10302 | O159: 301 | P159: 0 | Q159: 4635 | R159: 9274 | S159: 0
A160: 50~99명 (3) | B160: 192132 | C160: 39787 | D160: 4189 | E160: 8456 | F160: 0 | G160: 0 | H160: 0 | I160: 0 | J160: 0 | K160: 130586 | L160: 0 | M160: 3187 | N160: 5927 | O160: 0 | P160: 0 | Q160: 0 | R160: 0 | S160: 0
A161: 100명이상 (4) | B161: 699228 | C161: 155608 | D161: 126 | E161: 0 | F161: 0 | G161: 0 | H161: 0 | I161: 0 | J161: 0 | K161: 472646 | L161: 0 | M161: 0 | N161: 0 | O161: 0 | P161: 0 | Q161: 70848 | R161: 0 | S161: 0
A162: 전기장비 | B162: 4134858.4 | C162: 243185.4 | D162: 67492.2 | E162: 64471.5 | F162: 158859.4 | G162: 47846 | H162: 882938 | I162: 20795 | J162: 5803 | K162: 1566781.6 | L162: 16478 | M162: 283543 | N162: 528448.9 | O162: 21689 | P162: 39736 | Q162: 83664 | R162: 97266.4 | S162: 5861
A163: 9명이하 (1) | B163: 891093.4 | C163: 88335.4 | D163: 48765.2 | E163: 22841.5 | F163: 68651.4 | G163: 26242 | H163: 30527 | I163: 12236 | J163: 3236 | K163: 406017.6 | L163: 8723 | M163: 25958 | N163: 25542.9 | O163: 18247 | P163: 35448 | Q163: 21571 | R163: 42890.4 | S163: 5861
A164: 10~49명 (2) | B164: 499507 | C164: 54544 | D164: 12733 | E164: 9461 | F164: 21164 | G164: 5573 | H164: 30257 | I164: 7256 | J164: 2567 | K164: 236400 | L164: 0 | M164: 27673 | N164: 38877 | O164: 3442 | P164: 4288 | Q164: 12247 | R164: 33025 | S164: 0
A165: 50~99명 (3) | B165: 220198 | C165: 20557 | D165: 5994 | E165: 32169 | F165: 25182 | G165: 0 | H165: 7930 | I165: 0 | J165: 0 | K165: 40275 | L165: 0 | M165: 66850 | N165: 11437 | O165: 0 | P165: 0 | Q165: 2280 | R165: 7524 | S165: 0
A166: 100명이상 (4) | B166: 2524060 | C166: 79749 | D166: 0 | E166: 0 | F166: 43862 | G166: 16031 | H166: 814224 | I166: 1303 | J166: 0 | K166: 884089 | L166: 7755 | M166: 163062 | N166: 452592 | O166: 0 | P166: 0 | Q166: 47566 | R166: 13827 | S166: 0
A167: 기타 기계 및 장비 | B167: 4582934.45 | C167: 212820.7 | D167: 166377 | E167: 153459 | F167: 423474.4 | G167: 48464.5 | H167: 263774 | I167: 38635 | J167: 5210 | K167: 2270486.9 | L167: 6897 | M167: 95314 | N167: 192090 | O167: 64787 | P167: 28395.95 | Q167: 109507 | R167: 501171 | S167: 2071
A168: 9명이하 (1) | B168: 1883103.85 | C168: 98619.5 | D168: 127887 | E168: 92304 | F168: 175249 | G168: 34624.5 | H168: 49627 | I168: 28968 | J168: 5210 | K168: 803029.9 | L168: 6605 | M168: 56311 | N168: 101366 | O168: 29865 | P168: 26094.95 | Q168: 83381 | R168: 161891 | S168: 2071
A169: 10~49명 (2) | B169: 818979.6 | C169: 77267.2 | D169: 32397 | E169: 34327 | F169: 40713.4 | G169: 7680 | H169: 60501 | I169: 9667 | J169: 0 | K169: 371277 | L169: 292 | M169: 14583 | N169: 70505 | O169: 7909 | P169: 2301 | Q169: 26126 | R169: 63434 | S169: 0
A170: 50~99명 (3) | B170: 440462 | C170: 28484 | D170: 6093 | E170: 9093 | F170: 33388 | G170: 6160 | H170: 0 | I170: 0 | J170: 0 | K170: 290519 | L170: 0 | M170: 7304 | N170: 17158 | O170: 9907 | P170: 0 | Q170: 0 | R170: 32356 | S170: 0
A171: 100명이상 (4) | B171: 1440389 | C171: 8450 | D171: 0 | E171: 17735 | F171: 174124 | G171: 0 | H171: 153646 | I171: 0 | J171: 0 | K171: 805661 | L171: 0 | M171: 17116 | N171: 3061 | O171: 17106 | P171: 0 | Q171: 0 | R171: 243490 | S171: 0
A172: 자동차 및 트레일러 | B172: 9669611 | C172: 164935 | D172: 110284 | E172: 236393 | F172: 177335 | G172: 66239 | H172: 6240 | I172: 539150 | J172: 120775 | K172: 7264616 | L172: 32215 | M172: 56710 | N172: 229184 | O172: 101861 | P172: 12569 | Q172: 311167 | R172: 239938 | S172: 0
A173: 9명이하 (1) | B173: 634570 | C173: 11599 | D173: 41389 | E173: 69659 | F173: 28962 | G173: 29163 | H173: 5412 | I173: 29179 | J173: 595 | K173: 149797 | L173: 5286 | M173: 20130 | N173: 41356 | O173: 40560 | P173: 12491 | Q173: 72865 | R173: 76127 | S173: 0
A174: 10~49명 (2) | B174: 835939 | C174: 48968 | D174: 18454 | E174: 53585 | F174: 64746 | G174: 12186 | H174: 828 | I174: 40341 | J174: 21925 | K174: 271452 | L174: 11799 | M174: 16045 | N174: 100113 | O174: 16267 | P174: 78 | Q174: 97161 | R174: 61991 | S174: 0
A175: 50~99명 (3) | B175: 503747 | C175: 50310 | D175: 23082 | E175: 54772 | F175: 9676 | G175: 24890 | H175: 0 | I175: 30746 | J175: 0 | K175: 183663 | L175: 3989 | M175: 5457 | N175: 7387 | O175: 25730 | P175: 0 | Q175: 20199 | R175: 63846 | S175: 0
A176: 100명이상 (4) | B176: 7695355 | C176: 54058 | D176: 27359 | E176: 58377 | F176: 73951 | G176: 0 | H176: 0 | I176: 438884 | J176: 98255 | K176: 6659704 | L176: 11141 | M176: 15078 | N176: 80328 | O176: 19304 | P176: 0 | Q176: 120942 | R176: 37974 | S176: 0
A177: 기타 운송장비 | B177: 1085777.8 | C177: 20929 | D177: 53326 | E177: 3995 | F177: 16430 | G177: 2788 | H177: 45912 | I177: 67406 | J177: 22625 | K177: 293859.8 | L177: 1590 | M177: 22138 | N177: 4159 | O177: 10234 | P177: 64257 | Q177: 4264 | R177: 451865 | S177: 0
A178: 9명이하 (1) | B178: 197799 | C178: 7935 | D178: 34825 | E178: 2689 | F178: 10660 | G178: 2788 | H178: 10554 | I178: 9564 | J178: 0 | K178: 29718 | L178: 1590 | M178: 3154 | N178: 2974 | O178: 5513 | P178: 20075 | Q178: 2416 | R178: 53344 | S178: 0
A179: 10~49명 (2) | B179: 165294.8 | C179: 6139 | D179: 12179 | E179: 1306 | F179: 3873 | G179: 0 | H179: 8924 | I179: 17850 | J179: 22625 | K179: 20355.8 | L179: 0 | M179: 3206 | N179: 1118 | O179: 4721 | P179: 44182 | Q179: 1848 | R179: 16968 | S179: 0
